{"text_format":"1","workbook":"xlsx","n_sheets":8,"sheets":["Introduction and guidance","Diet input details","Flock input details","Results","References and assumptions log","Data tables","Performance Data","Dataset"],"not_rendered":{"charts":0,"images":5,"macros":1,"external_links":1,"defined_names":8,"comments":0,"pivot_tables":0},"unopened":[],"bounds":{"document_bytes":16777216,"sheet_cells":100000,"rows_first":2000,"rows_last":500,"rows_between":2000,"halvings":0,"cell_chars":16384,"cell_head_chars":4096},"cells_cut":0,"cells_raw":0,"read":"whole","date_system":"1900"}

{"sheet":"Introduction and guidance","index":0,"n_rows":65,"n_cols":34,"rows_kept":65,"cut":false,"hidden":false,"merged":[[41,3,42,13],[41,14,42,16],[43,3,63,15],[33,12,33,15],[34,3,34,5],[34,6,34,7],[34,8,34,11],[34,12,34,15],[35,3,35,15],[36,3,37,15],[38,3,38,15],[39,3,39,15],[40,3,40,4],[40,5,40,7],[40,8,40,10],[40,11,40,13],[33,3,33,5],[33,6,33,7],[33,8,33,11],[9,3,12,15],[14,3,15,15],[16,3,17,15],[18,3,31,15],[32,3,32,15]]}
[]
[]
[]
[]
[]
[]
[]
[]
[]
[null,null,null,"Layer excreta mass balance model"]
[]
[]
[]
[]
[null,null,null,"Nutritional Management Best Available Techniques for Poultry\n(click here to see regulations)"]
[]
[null,null,null,"Best Available Techniques (BAT) Reference Document for the Intensive Rearing of Poultry or Pigs \n(click here to see reference document)"]
[]
[null,null,null,"\nIntroduction:\n\nFarms with more than 40,000 rearing places for poultry fall in scope of regulations requiring the adoption of Best Available Techniques (BAT) to reduce environmental emissions. BAT for pig and poultry farms is outlined in a published BAT Conclusions (BATC) document (see link above). BAT 3 requires farms to reduce total nitrogen excreted whilst BAT 4 requires  the reduction of total phosphorus excreted.  The  BATC include levels for total nitrogen and total phosphorus excreted, measured per animal place. All permitted farms must meet these levels.  \n\nBAT 24 requires the monitoring of total nitrogen and total phosphorus excreted with two recognised methods: Calculation by using a mass balance or estimation using manure analysis results.  Issued permits contain conditions requiring submission of the derived data on an annual basis.  \n\nThis simple spreadsheet tool has been designed to assist farms in assessing compliance with the new BAT for poultry and follows a mass balance calculation approach. The tool is recognised by the Environment Agency, Natural Resources Wales, Northern Ireland Environment Agency and Scottish Environment Protection Agency.\n\nInstructions:\n\nTo calculate the BAT Emission levels please follow the instructions embedded within each worksheet.  Details of the Flock and Diets need entering in the ‘Flock Input Details’ and ‘Diet Input Details’ worksheets, the emission values and feed intake data will then be calculated in the  ‘Results’ worksheet.  Only when all values are completed within the input forms will the BAT values be calculated. \n\nInputs need to accurately reflect your system usage across the year. You should save a copy of your completed calculator tool in case it is requested as part of future permit compliance checks.\n\nYou will need to read the terms of use below and tick the agree box before you can use the tool.  \n\n"]
[]
[]
[]
[]
[]
[]
[]
[]
[]
[]
[]
[]
[]
[null,null,null,"BAT Total Nitrogen and Phosphorus Excreted Levels"]
[null,null,null,"Parameter",null,null,"Category",null,"BAT-associated total nitrogen excreted ⁽¹⁾⁽²⁾\n(kg N excreted/animal place/year)",null,null,null,"BAT-associated total Phosphorus excreted ⁽¹⁾⁽²⁾  \n(kg P₂O₅ excreted/animal place/year)"]
[null,null,null,"Total nutrient excreted ",null,null,"Layers",null,"0.4 - 0.8",null,null,null,"0.10 - 0.45"]
[null,null,null,"(1) The lower end of the range can be achieved by using a combination of techniques. \n(2) The BAT-associated total nitrogen/phosphorus excreted is not applicable to pullets or breeders, for all poultry species. \nThe associated monitoring is in BAT 24. The BAT-associated total phosphorus or nitrogen excreted levels may not be applicable to organic livestock production nor to the rearing of poultry species not indicated above."]
[null,null,null,"Acknowledgements:\n\nThis simple spreadsheet tool has been designed, based on an update of the previous model (created by AIC), by Ricardo. This work model has been developed on behalf of the Environment Agency alongside a partnership of industry bodies (BPC, BEIC) to assist farms in assessing compliance with the new BAT for poultry. The tool has been reviewed by industry representatives and is recognised by the Environment Agency, Natural Resources Wales, Northern Ireland Environment Agency and Scottish Environment Protection Agency.\n"]
[]
[null,null,null,"Terms of use",null,null,null,null,null,null,null,null,null,null,null,null,null,null,null,null,null,null,null,null,null,null,null,null,null,null,false]
[null,null,null,"Enter your installation name and permit reference number in the white boxes below:"]
[null,null,null,"Installation Name:",null,null,null,null,"Permit Number:"]
[null,null,null,"To use the calculator, first read the terms of use below and tick the box to confirm your acceptance \n(the calculator will not work if this box is not ticked)",null,null,null,null,null,null,null,null,null,null,"Tick to confirm\nacceptance"]
[null,null,null,null,null,null,null,null,null,null,null,null,null,null,null,null,null,null,null,null,null,null,null,null,null,null,null,null,null,null,null,null,null,false]
[null,null,null,"Terms of use\n\nIn making use of the BAT Emission Calculator (“the Calculator”), I agree to and accept the following:\n1. I understand that the Calculator has been made available to me by the PARTNERS (Environment Agency, BPC, BEIC) (“the Partners”), and that whilst the Partners have used their best endeavours to ensure the accuracy of the Calculator, the Partners accept no liability or responsibility whatsoever for any errors or omissions in the Calculator.\n2. I understand that, so far as is permitted in law, the Partners accept no liability or responsibility whatsoever for any losses, financial penalties or other consequential losses howsoever arising from my use of the Calculator.\n3. It is my responsibility to ensure that the data that I input into the Calculator is accurate and correct.\n4. I accept that the Partners and their employees and agents do not have sufficient knowledge of my individual farm or business to provide advice as to my individual requirements.\n5. I understand that the Calculator is no substitute for professional advice and that I should seek professional advice as to my compliance requirements under any relevant legislation.\n6. I agree that it is my responsibility to ensure that I comply with the relevant compliance requirements under any relevant legislation.\n7. I agree that English law applies to my use of the Calculator, and the Courts of England and Wales have jurisdiction to hear any disputes arising from my use of the Calculator.\n8. I agree that if I am using the Calculator in a professional capacity for the benefit of a client, it is my responsibility as my client’s professional adviser to advise my client on his / her compliance with the relevant requirements under any relevant legislation."]
[]
[]
[]
[]
[]
[]
[]
[]
[]
[]
[]
[]
[]
[]
[]
[]
[]
[]
[]
[]
[null,null,null,"Please note: If further details on the data inputs and calculations are required, calculation sheets can be unlocked within the model by right clicking the 'Introduction and guidance' tab, clicking 'Unhide...' highlighting each sheet and clicking 'OK'."]

{"sheet":"Diet input details","index":1,"n_rows":24,"n_cols":8,"rows_kept":24,"cut":false,"hidden":false,"merged":[[2,7,24,11],[23,1,23,2],[3,1,3,4],[22,1,22,3],[13,1,13,5]]}
[null,null,null,null,"Input data - diet details"]
[]
[null,"Diet input table 1:",null,null,null,null,null,"\nFlock details input instructions\n\nPlease note: One complete workbook needs to be filled out per management system on your farm.  \n\nDiet input table 1:\nPlease input protein and phosphorus levels (values can be found on all feed declaration tickets) for the appropriate diets in the white boxes in the \"Diet Details\" table.\nIf the diets are the same between phases, then please put the same protein and phosphorus values in both respective sets of boxes.\nIf feed diet groups are not used then leave the cells blank and move on to the next used group.\nThere is a separate row for composition of Whole Wheat. If Whole Wheat is not fed these cells can be left blank.\n\nDiet input table 2:\nEnter the start and end weeks within the production cycle for each diet including the proportion (percentage of total ration fed) of the diet that is made up using Whole Wheat in the final column.\nThe feed start week must be at least 16 and the feed end week must be no more than 100.\nIf Whole Wheat is not fed these cells can be left blank.\n\nDiet input table 3:\nState if phytase is used within the diet. This is a drop down box with Absent or Present. Present represents inlcusion of phytase at a rate of 1,000 FTU/kg of feed."]
[null,"Diet Details"]
[null,"Diet","Crude Protein (%)","Total Nitrogen (%)","Total Phosphorus (%)"]
[null,"Ration 1",null,{"$f":"IF(C6=\"\",\"\",C6/6.25)","v":""}]
[null,"Ration 2",null,""]
[null,"Ration 3",null,""]
[null,"Ration 4",null,""]
[null,"Ration 5",null,""]
[null,"Whole Wheat",null,""]
[]
[null,"Diet input table 2:"]
[null,"Feed Plan Details"]
[null,"Diet","Feed Start (Week)","Feed End (Week)","Whole Wheat (% of ration)","Weeks in ration"]
[null,"Ration 1",null,null,null,{"$f":"IF(D16=\"\",\"\",D16-C16)","v":""}]
[null,"Ration 2",{"$f":"IF(D17=\"\",\"\",D16)","v":""},null,null,{"$f":"IF(D17=\"\",\"\",D17-C17)","v":""}]
[null,"Ration 3","",null,null,{"$f":"IF(D18=\"\",\"\",D18-C18)","v":""}]
[null,"Ration 4","",null,null,{"$f":"IF(D19=\"\",\"\",D19-C19)","v":""}]
[null,"Ration 5",{"$f":"IF(D20=\"\",\"\",D19)","v":""},null,null,{"$f":"IF(D20=\"\",\"\",D20-C20)","v":""}]
[]
[null,"Diet input table 3:"]
[null,"Nutrient Retention"]
[null,"Phytase feed additive value",null,"Please select"]

{"sheet":"Flock input details","index":2,"n_rows":22,"n_cols":14,"rows_kept":22,"cut":false,"hidden":false,"merged":[[20,7,24,8],[20,10,24,11],[20,13,24,14],[2,6,18,15]]}
[null,null,null,"Input data - flock details"]
[]
[null,"Flock input table 1:",null,null,null,null,"Flock details input instructions\n\nFlock input table 1:\nEnter number of birds per cycle and number of days between the final clearance and the next cycle in the two white boxes. The number of birds per cycle entry cell will go red if the value entered is below 40,000 rearing places, the BAT regulation limit. If you have under 40,000 birds you can still use this tool as normal.\nSelect the most appropriate flock type for your system. Included flock types are Brown free-range, Brown colony and White free-range.\n\nFlock input table 2 (optional):\nEnter a value for the final bodyweight of birds in your flock. The difference between your value and the target value from performance objectives will be calculated. This difference will be used to update the performance data to more accurately reflect your system.\nIf this table is left blank the standard performance data will be used.  \n\nFlock input table 3:\nThis table is to help calculate the mortality rate across the production cycle.  The No. of birds at start of Ration 1 is equal to Number of birds per cycle in Table 1.  In the following white cells, please indicate the number of birds at the end of each feed ration. The mortality rate will be calcualted and applied to the backround calculations."]
[null,"Per Shed/Farm"]
[null,"Number of birds per cycle"]
[null,"Weeks empty between cycles"]
[null,"Cycle Length in Weeks ",{"$f":"IF('Diet input details'!D17=\"\",'Diet input details'!D16-'Diet input details'!C16,IF('Diet input details'!D18=\"\",'Diet input details'!D17-'Diet input details'!C16,IF('Diet input details'!D19=\"\",'Diet input details'!D18-'Diet input details'!C16,IF('Diet input details'!D20=\"\",'Diet input details'!D19-'Diet input details'!C16,'Diet input details'!D20-'Diet input details'!C16))))","v":0}]
[null,"Flock Type","Please select"]
[]
[]
[null,"Flock input table 2:"]
[null,"Modelling Factors","Your Value (g)","Target Value (g)"]
[null,"Bodyweight (g)",null,{"$f":"_xlfn.IFNA(INDEX(Table13[Bodyweight Mid-point (g)],MATCH(1,('Flock input details'!$C$8='Performance Data'!$A$8:$A$262)*(Table23[Age at clear in weeks]='Performance Data'!$B$8:$B$262),0)),\"\")","v":""}]
[]
[]
[null,"Flock input table 3:"]
[null,null,"No. of birds at start","No of. birds at end","No. of weeks in phase"]
[null,"Ration 1",{"$f":"C5","v":0},null,{"$f":"'Diet input details'!F16","v":""}]
[null,"Ration 2",{"$f":"IF(D19=\"\",\"\",D18)","v":""},null,{"$f":"'Diet input details'!F17","v":""}]
[null,"Ration 3",{"$f":"IF(D20=\"\",\"\",D19)","v":""},null,{"$f":"'Diet input details'!F18","v":""}]
[null,"Ration 4",{"$f":"IF(D21=\"\",\"\",D20)","v":""},null,{"$f":"'Diet input details'!F19","v":""},null,null,"Brown Free-range performance data",null,null,"Brown Colony performance data",null,null,"White Free-range performance data"]
[null,"Ration 5",{"$f":"IF(D22=\"\",\"\",D21)","v":""},null,{"$f":"'Diet input details'!F20","v":""}]

{"sheet":"Results","index":3,"n_rows":28,"n_cols":11,"rows_kept":28,"cut":false,"hidden":false,"merged":[[6,10,17,14],[3,1,3,2],[7,1,7,3],[8,1,8,3],[6,1,6,7],[7,4,7,7],[8,4,8,7],[25,5,25,7],[26,5,26,7],[27,5,27,7],[11,1,11,3],[10,1,10,7],[11,4,11,7],[25,2,25,3],[26,2,26,3],[27,2,27,3],[24,2,24,7],[19,2,19,4],[19,7,19,8],[14,2,14,4],[14,7,14,8]]}
[null,null,null,null,"Export data - emission levels"]
[]
[]
[null,"Installation name:",null,{"$f":"'Introduction and guidance'!$F$41","v":0},null,null,"Permit Number:",null,{"$f":"'Introduction and guidance'!$L$41","v":0}]
[]
[]
[null,"BAT Emission Level",null,null,null,null,null,null,null,null,"\nUse the data given in this box to demonstrate compliance with the nitrogen and phosphorus excretion levels.\n\nBased on the data entered within the diet and flock details input the emission levels are calculated within the BAT Emission level box, and colour coded green to show compliance with the upper limits of the BAT standards. If the cells turn red then the emission levels are not compliant.\n\n   -  Nitrogen upper limit = 0.4-0.8kg N/animal/place/year\n   -  Phosphorus upper limit = 0.10-0.45kg P/animal place/year \n\n\n"]
[null,"Nitrogen excreted\nPer animal place (kg N/ Year)",null,null,"Phosphorus excreted\nPer animal place (kg P/ Year)"]
[null,{"$f":"H22","v":{"$error":"#DIV/0!"}},null,null,{"$f":"I22","v":{"$error":"#DIV/0!"}}]
[]
[null,"Percentage of BAT upper Limit"]
[null,{"$f":"B9/0.8","v":{"$error":"#DIV/0!"}},null,null,{"$f":"E9/0.45","v":{"$error":"#DIV/0!"}}]
[]
[]
[null,null,"Flock Intake Data",null,null,null,null,"Flock Emission Data"]
[null,null,"Cumulative feed intake of the flock (t)","Nitrogen intake of the flock (t)","Phosphorus intake of the flock (t)",null,null,"Nitrogen excreted by the flock (t)","Phosphorus excreted by the flock (t)"]
[null,"Per cycle",{"$f":"Dataset!B99","v":0},{"$f":"Dataset!C99","v":0},{"$f":"Dataset!D99","v":0},null,"Per cycle",{"$f":"Dataset!E99","v":0},{"$f":"Dataset!F99","v":0}]
[null,"Per year",{"$f":"Dataset!B100","v":{"$error":"#DIV/0!"}},{"$f":"Dataset!C100","v":{"$error":"#DIV/0!"}},{"$f":"Dataset!D100","v":{"$error":"#DIV/0!"}},null,"Per year",{"$f":"Dataset!E100","v":{"$error":"#DIV/0!"}},{"$f":"Dataset!F100","v":{"$error":"#DIV/0!"}}]
[]
[null,null,"Per Animal Intake Data",null,null,null,null,"Per Animal Emission Data"]
[null,null,"Cumulative feed intake (kg)","Nitrogen intake (kg)","Phosphorus intake (kg)",null,null,"Nitrogen excreted (kg)","Phosphorus excreted (kg)"]
[null,"Per animal place/year",{"$f":"Dataset!B92","v":{"$error":"#DIV/0!"}},{"$f":"Dataset!B90","v":{"$error":"#DIV/0!"}},{"$f":"Dataset!B91","v":{"$error":"#DIV/0!"}},null,"Per animal place/year",{"$f":"Dataset!C90","v":{"$error":"#DIV/0!"}},{"$f":"Dataset!C91","v":{"$error":"#DIV/0!"}}]
[]
[]
[null,null,"Emission Levels"]
[null,null,"Per cycle (t)",null,"Per year (t)","kg per tonne liveweight"]
[null,"Nitrogen",{"$f":"H17","v":0},null,{"$f":"H18","v":{"$error":"#DIV/0!"}},{"$f":"((C27*1000)/(Dataset!$B$109/1000))","v":{"$error":"#DIV/0!"}}]
[null,"Phosphorus",{"$f":"I17","v":0},null,{"$f":"I18","v":{"$error":"#DIV/0!"}},{"$f":"((C28*1000)/(Dataset!$B$109/1000))","v":{"$error":"#DIV/0!"}}]

{"sheet":"References and assumptions log","index":4,"n_rows":16,"n_cols":10,"rows_kept":16,"cut":false,"hidden":true,"merged":[]}
["References and assumptions log"]
[]
["Unique ID","Description with key details ","Location in workbook","Link to evidence","Date of last update","Initials","Methodology behind assumption","Assumptions","Any other comments","Reference or assumption"]
["Layer 01","This table presents performance data on layers taken from Hyline performance guides",{"$f":"CELL(\"address\",'Data tables'!B4)","v":"'[Layers_Model draft_V5_Password protected.xlsm]Data tables'!$B$4"},"White - https://www.hyline.co.uk/services/management-guides/\nBrown - https://www.hyline.co.uk/services/management-guides/","2023-03-22","LR","This data has been used to pull out body weight, cumulative intake, feed conversion ratio, and egg production vales for poultry.","Assumed this data is accurate and representative of standard performance.  ","The data used is for Hyline breeds as this was found to be one of the most common breeds of layer hens in the UK. Lohmann was considered but there was low data availability","Reference"]
["Layer 02","Nitrogen Conversion Factor",{"$f":"CELL(\"address\",'Data tables'!B272)","v":"'[Layers_Model draft_V5_Password protected.xlsm]Data tables'!$B$272"},"Standardised conversion factor in nutritional calculations","2023-03-22","LR","This factor is used to convert crude protein content of feed to nitrogen.","Does not consider specifics of individual feeds but is a standardised factor used within the industry.","None.","Reference"]
["Layer 03","Effect of Phytase on intake and excretion of dry matter, phosphorus, and nitrogen ",{"$f":"CELL(\"address\",'Data tables'!B280)","v":"'[Layers_Model draft_V5_Password protected.xlsm]Data tables'!$B$280"},"Effects of phytase supplementation on production performance, egg and bone quality, plasma biochemistry and mineral excretion of layers fed varying levels of phosphorus | Elsevier Enhanced Reader","2023-03-22","LR","This data has been used to calculate the impact of including phytase in the diet on the excretion of phosphorus.","This paper is assumed to reflect standard production in the UK, and the impact to be replicable.","This reference can be updated should a more appropriate one be discovered","Reference"]
["Layer 04","Phytase feed additives effect on nitrogen","None","None","2023-03-22","LR","None","Within the model calculations nitrogen is not impacted by phytase, this is an assumption based on current literature. ","This can be updated in the model a link is found.","Assumption"]
["Layer 05","Nutrient content of eggs",{"$f":"CELL(\"address\",'Data tables'!B303)","v":"'[Layers_Model draft_V5_Password protected.xlsm]Data tables'!$B$303"},"Defra_WT1568_14860_WT1568WorkPackage6. (1).pdf","2023-03-22","LR","This data has been used to calculate the nutrient content of eggs.","This data is referenced in the DEFRA BAT document so is assumed to be accurate for UK production ","This is a non-excretion output of the mass balance model.  This can be updated should new data become available ","Reference"]
["Layer 06","Nitrogen Content of Layer Liveweight",{"$f":"CELL(\"address\",'Data tables'!B312)","v":"'[Layers_Model draft_V5_Password protected.xlsm]Data tables'!$B$312"},"Defra_WT1568_14860_WT1568WorkPackage6. (1).pdf","2023-03-30","LR","This document contain a value for phosphorus concentration of layer liveweight","This data was used to calculate the amount of nitrogen retained in the liveweight of the bird.  This is used to calculate excretion","The value in this paper is from a different source.  It has been used in this model as it is used in the DEFRA calculations and so assumed to be appropriate.  This can be updated if more appropriate data becomes available ","Reference"]
["Layer 07","Phosphorus Content of Layer Liveweight ",{"$f":"CELL(\"address\",'Data tables'!B312)","v":"'[Layers_Model draft_V5_Password protected.xlsm]Data tables'!$B$312"},"Defra_WT1568_14860_WT1568WorkPackage6. (1).pdf","2023-03-30","LR","This document contains a value for nitrogen concentration of layer liveweight","This data was used to calculate the amount of phosphorus retained in the liveweight of the bird.  This is used to calculate excretion","The value in this paper is from a different source.  It has been used in this model as it is used in the DEFRA calculations and so assumed to be appropriate.  This can be updated if more appropriate data becomes available ","Reference"]
["Layer 08","Effect of Phytase on eggs",{"$f":"CELL(\"address\",'Data tables'!B292)","v":"'[Layers_Model draft_V5_Password protected.xlsm]Data tables'!$B$292"},"Effects of phytase supplementation on production performance, egg and bone quality, plasma biochemistry and mineral excretion of layers fed varying levels of phosphorus | Elsevier Enhanced Reader","2023-03-22","LR","None","This paper was used to determine that phytase didn't not influence egg characteristics (weight, number, composition)","None","Assumption"]
["Layer 09","Bodyweight Averages","None","None","2023-03-23","LR","In the performance objective data, the bodyweight at each week was provided as a range rather than as a single value.","The mean of the upper and lower values was calculated and used in further calculations.  This is assumed to be an accurate representation of production standards","This data can be updated if better sources become available ","Assumption "]
["Layer 10","Wholewheat Feed","None","None","2023-03-23","LR","Wholewheat was an input in the AIC broiler model and so has been included in this model as no evidence was found to not","This is assumed to appropriate for a layer model","These input cells can be left as zero and therefore have no impact on the rest of the model.  These can also be removed if this is considered more appropriate ","Assumption"]
["Layer 11","Midpoints of performance data were used ",{"$f":"CELL(\"address\",Table13[[#Headers],[Flock Type]])","v":"'[Layers_Model draft_V5_Password protected.xlsm]Performance Data'!$A$7"},"None","2023-03-30","LR","For some parameters used in the performance data sets were given as ranges rather than single values.  To allow for modelling to be based of these values a midpoint was taken.","It is assumed that these mid-point values are a relevant representation of performance in practice.  ","This approach can be updated if necessary","Assumption"]
["Layer 12","Calculation of cumulative egg mass",{"$f":"CELL(\"address\",Table13[[#Headers],[Cumulative Feed Intake (g/bird)]])","v":"'[Layers_Model draft_V5_Password protected.xlsm]Performance Data'!$J$7"},"None","2023-03-30","LR","Cumulative egg weight was calculated using the cumulative amount of eggs and egg weight ",null,"This approach can be updated if necessary","Assumption"]
["Layer 13","Mortality rate is considered linear ",{"$f":"CELL(\"address\",Table13[[#Headers],[Mortality (%)]])","v":"'[Layers_Model draft_V5_Password protected.xlsm]Performance Data'!$D$7"},"None","2023-03-30","LR","The mortality rate is currently input to the model as three values, and these are applied in a linear fashion","This may not be how mortality works out in reality","This approach can be updated if necessary","Assumption"]

{"sheet":"Data tables","index":5,"n_rows":334,"n_cols":11,"rows_kept":334,"cut":false,"hidden":true,"merged":[]}
["Data tables holding background data"]
[]
["Table 1. HyLine Brown Colony Performance Data"]
["Source: ","Layer 01"]
["This table presents performance data on layers taken from HyLine production guides"]
[]
["AGE\n(weeks)","%\nHEN-DAY\nCurrent","HEN-DAY\nEGGS\nCumulative","HEN-HOUSED\nEGGS\nCumulative","MORT-ALITY\nCumulative\n(%)","BODY WEIGHT (kg)","FEED\nINTAKE\n(g / bird / day)","WATER CONSUMPTION (ml/bird/day)","HEN-HOUSED\nEGG MASS\nCumulative\n(kg)","AVG. EGG\nWEIGHT\n(g / egg)"]
["18","4–14","0.3–1.0","0.3–1.0","0.0","1.47 –1.57","82–88","123–176","0.0","48.8–50.0"]
["19","24–38","2.0–3.6","2.0–3.6","0.1","1.57 –1.67","85–91","128–182","0.1","49.0–51.0"]
["20","45–72","5.1–8.7","5.1 –8.7","0.1","1.63 –1.73","91–97","137–194","0.3","50.2–52.2"]
["21","75–86","10.4 –14.7","10.3 –14.7","0.2","1.67 –1.77","95–101","143–202","0.5","51.5 –53.6"]
["22","87–92","16.5 –21.1","16.4 –21.1","0.3","1.72 –1.82","99–105","149–210","0.9","53.1 –55.3"]
["23","92–94","22.9–27.7","22.8–27.7","0.3","1.75 –1.85","103 –109","155–218","1.2","54.4–56.6"]
["24","92–95","29.3–34.4","29.2–34.3","0.4","1.78 –1.9","105 –111","158–222","1.6","55.5–57.7"]
["25","93–95","35.8–41.0","35.7 –40.9","0.4","1.79 –1.91","106 –112","159–224","2.0","56.6–59.0"]
["26","94–96","42.4–47.7","42.3–47.6","0.5","1.80 –1.92","107 –113","161–226","2.3","57.3 –59.7"]
["27","95–96","49.1 –54.5","48.9–54.3","0.6","1.82 –1.94","107 –113","161–226","2.7","58.4–60.8"]
["28","95–96","55.7 –61.2","55.5–60.9","0.6","1.83 –1.95","107 –113","161–226","3.1","59.0–61.4"]
["29","95–96","62.4–67.9","62.1 –67.6","0.7","1.84 –1.96","107 –113","161–226","3.5","59.3–61.7"]
["30","94–96","69.0–74.6","68.6–74.3","0.7","1.84 –1.96","107 –113","161–226","3.9","59.7 –62.1"]
["31","94–96","75.5–81.3","75.1 –80.9","0.8","1.84 –1.96","108 –114","162–228","4.3","59.9–62.3"]
["32","94–95","82.1 –88.0","81.7 –87.5","0.9","1.85 –1.97","108 –114","162– 228","4.7","60.1 –62.5"]
["33","94–95","88.7 –94.6","88.2–94.1","0.9","1.85 –1.97","108 –114","162–228","5.1","60.3–62.7"]
["34","94–95","95.3–101.3","94.7 –100.7","1.0","1.85 –1.97","108 –114","162–228","5.5","60.5–62.9"]
["35","94–95","101.9 –107.9","101.2 –107.3","1.0","1.85 –1.97","108 –114","162–228","5.9","60.6–63.0"]
["36","93–94","108.4 –114.5","107.6 –113.8","1.1","1.86 –1.98","108 –114","162–228","6.3","60.7 –63.1"]
["37","93–94","114.9 –121.1","114.1 –120.3","1.2","1.86 –1.98","108 –114","162–228","6.7","60.8–63.2"]
["38","93–94","121.4 –127.7","120.5 –126.8","1.2","1.86 –1.98","108 –114","162–228","7.1","60.9–63.3"]
["39","92–93","127.8 –134.2","126.9 –133.2","1.3","1.87 –1.99","108 –114","162–228","7.5","61.0 –63.4"]
["40","92–93","134.3 –140.7","133.2 –139.6","1.4","1.87 –1.99","108 –114","162–228","7.9","61.1 –63.5"]
["41","91–93","140.6–147.2","139.5 –146.0","1.4","1.87 –1.99","108 –114","162–228","8.3","61.2 –63.6"]
["42","91–92","147.0 –153.7","145.8 –152.4","1.5","1.88 –2","108 –114","162–228","8.7","61.3 –63.9"]
["43","90–92","153.3 –160.1","152.0 –158.7","1.6","1.88 –2","108 – 114","162–228","9.1","61.5 –64.1"]
["44","90–92","159.6 –166.5","158.1 –165.0","1.6","1.88 –2","108 –114","162–228","9.5","61.6 –64.2"]
["45","89–91","165.8 –172.9","164.3 –171.3","1.7","1.89 –2.01","107 –113","161–226","9.9","61.6 –64.2"]
["46","89–91","172.1 –179.3","170.4 –177.6","1.8","1.89 –2.01","107 – 113","161–226","10.3","61.7 –64.3"]
["47","88–90","178.2 –185.6","176.4 –183.7","1.9","1.89 –2.01","107–113","161–226","10.6","61.8 –64.4"]
["48","88–90","184.4 –191.9","182.5 –189.9","1.9","1.89 –2.01","107–113","161–226","11.0","61.9 –64.5"]
["49","88–90","190.5 –198.2","188.5 –196.1","2.0","1.89 –2.01","107–113","161–226","11.4","62.0–64.6"]
["50","88–89","196.7–204.4","194.5 –202.2","2.1","1.89 –2.01","107–113","161–226","11.8","62.1 –64.7"]
["51","87–89","202.8–210.6","200.5–208.3","2.1","1.89 –2.01","106–112","159–224","12.2","62.1 –64.7"]
["52","87–89","208.9–216.9","206.4–214.4","2.2","1.89 –2.01","106–112","159–224","12.5","62.2–64.8"]
["53","87–88","215.0 –223.0","212.4 –220.4","2.3","1.89 –2.01","106–112","159–224","12.9","62.2–64.8"]
["54","87–88","221.1 –229.2","218.3 –226.4","2.3","1.89 –2.01","106–112","159–224","13.3","62.2–64.8"]
["55","86–88","227.1 –235.3","224.2–232.4","2.4","1.90 –2.02","106–112","159–224","13.7","62.2–64.8"]
["56","86–87","233.1 –241.4","230.1 –238.4","2.5","1.90 –2.02","106–112","159–224","14.0","62.3–64.9"]
["57","85–87","239.1–247.5","235.9–244.3","2.6","1.90 –2.02","106–112","159–224","14.4","62.3–64.9"]
["58","85–87","245.0–253.6","241.7 –250.2","2.6","1.90 –2.02","106–112","159–224","14.8","62.3–64.9"]
["59","85–87","251.0 –259.7","247.5 –256.1","2.7","1.90 –2.02","106–112","159–224","15.1","62.4–65.0"]
["60","84–86","256.8–265.7","253.2–262.0","2.8","1.90 –2.02","106– 112","159–224","15.5","62.4–65.0"]
["61","84–86","262.7 –271.7","258.9–267.8","2.9","1.90 –2.02","106– 112","159– 224","15.9","62.5–65.1"]
["62","83–86","268.5–277.8","264.5–273.7","2.9","1.90 –2.02","106–112","159–224","16.2","62.5–65.1"]
["63","83–85","274.3 –283.7","270.1 –279.4","3.0","1.90 –2.02","106–112","159–224","16.6","62.6–65.2"]
["64","83–85","280.1 –289.7","275.8–285.2","3.1","1.90 –2.02","106–112","159–224","16.9","62.6–65.2"]
["65","83–85","286.0–295.6","281.4 –291.0","3.2","1.90 –2.02","106–112","159–224","17.3","62.7 –65.3"]
["66","82–84","291.7 –301.5","286.9–296.6","3.3","1.90 –2.02","106–112","159–224","17.7","62.7 –65.3"]
["67","81–84","297.4 –307.4","292.4–302.3","3.4","1.90 –2.02","106–112","159–224","18.0","62.8–65.4"]
["68","81–83","303.0–313.2","297.9 –307.9","3.5","1.90 –2.02","106–112","159–224","18.4","62.8–65.4"]
["69","81–82","308.7 –318.9","303.3–313.4","3.7","1.90 –2.02","106–112","159–224","18.7","62.9–65.5"]
["70","80–82","314.3 –324.7","308.7 –319.0","3.8","1.91 –2.03","106–112","159–224","19.1","62.9–65.5"]
["71","79–81","319.8 –330.3","314.0 –324.4","3.9","1.91 –2.03","106–112","159–224","19.4","63.0–65.6"]
["72","79–81","325.4–336.0","319.3 –329.9","4.0","1.91 –2.03","106–112","159–224","19.7","63.0–65.6"]
["73","78–80","330.8–341.6","324.6–335.2","4.1","1.91 –2.03","106–112","159–224","20.1","63.1 –65.7"]
["74","77–80","336.2–347.2","329.7–340.6","4.3","1.91 –2.03","106–112","159–224","20.4","63.1 –65.7"]
["75","76–79","341.5 –352.7","334.8–345.9","4.4","1.91 –2.03","106–112","159–224","20.7","63.2–65.8"]
["76","76–78","346.9–358.2","339.9–351.1","4.5","1.91 –2.03","106–112","159–224","21.1","63.2–65.8"]
["77","75–77","352.1 –363.6","344.9–356.2","4.7","1.91 –2.03","106–112","159–224","21.4","63.3–65.9"]
["78","75–77","357.4 –369.0","349.9–361.3","4.8","1.91 –2.03","106–112","159–224","21.7","63.3–65.9"]
["79","74–77","362.5–374.4","354.8–366.5","5.0","1.91 –2.03","106–112","159–224","22.0","63.4–66.0"]
["80","74–76","367.7 –379.7","359.7 –371.5","5.1","1.91 –2.03","106–112","159–224","22.4","63.5–66.1"]
["81","74–76","372.9–385.0","364.6–376.5","5.3","1.91 –2.03","106–112","159–224","22.7","63.5–66.1"]
["82","74–76","378.1 –390.3","369.5–381.6","5.4","1.91 –2.03","106–112","159–224","23.0","63.5–66.1"]
["83","73–75","383.2–395.6","374.4 –386.5","5.6","1.91 –2.03","106–112","159–224","23.3","63.6–66.2"]
["84","73–75","388.3–400.8","379.2–391.5","5.7","1.91 –2.03","106–112","159–224","23.6","63.6–66.2"]
["85","73–75","393.4–406.1","384.0–396.4","5.9","1.91 –2.03","106–112","159–224","23.9","63.6–66.2"]
["86","73–75","398.5–411.3","388.8–401.4","6.0","1.91 –2.03","106–112","159–224","24.2","63.6–66.2"]
["87","72–74","403.6–416.5","393.5–406.2","6.2","1.91 –2.03","106–112","159–224","24.5","63.7 –66.3"]
["88","72–74","408.6–421.7","398.2–411.1","6.3","1.91 –2.03","106–112","159–224","24.9","63.7 –66.3"]
["89","72–74","413.6 –426.9","402.9–415.9","6.5","1.91 –2.03","106–112","159–224","25.2","63.7 –66.3"]
["90","72–74","418.7 –432.0","407.7 –420.7","6.6","1.91 –2.03","106–112","159–224","25.5","63.7 –66.3"]
["91","71–73","423.6–437.2","412.3 –425.5","6.8","1.92 –2.04","105–111","157–222","25.8","63.8–66.4"]
["92","71–73","428.6–442.3","416.9 –430.3","7.0","1.92 –2.04","105–111","157–222","26.1","63.8–66.4"]
["93","71–73","433.6–447.4","421.5 –435.0","7.1","1.92 –2.04","105–111","157–222","26.4","63.8–66.4"]
["94","71–73","438.6–452.5","426.1 –439.7","7.3","1.92 –2.04","105–111","157–222","26.7","63.9–66.5"]
["95","70–72","443.5–457.5","430.7 –444.4","7.5","1.92 –2.04","105–111","157–222","27.0","63.9–66.5"]
["96","70–72","448.4–462.6","435.2–449.1","7.6","1.92 –2.04","105–111","157–222","27.3","63.9–66.5"]
["97","70–72","453.3–467.6","439.7 –453.7","7.8","1.92 –2.04","105–111","157–222","27.6","64.0–66.6"]
["98","69–71","458.1 –472.6","444.1–458.3","8.0","1.92 –2.04","105–111","157–222","27.8","64.0–66.6"]
["99","69–71","462.9–477.5","448.6–462.8","8.2","1.92 –2.04","105–111","157–222","28.1","64.0–66.6"]
["100","69–71","467.7 –482.5","453.0–467.4","8.4","1.92 –2.04","105–111","157–222","28.4","64.0–66.7"]
[]
["Table 2. HyLine Brown Free Range Performance Data"]
["Source: ","Layer 01"]
["This table presents performance data on layers taken from HyLine production guides"]
[]
["AGE\n(weeks)","% HEN-DAY\nCurrent","HEN-DAY\nEGGS\nCumulative","HEN-HOUSED\nEGGS\nCumulative","MORT-ALITY\nCumulative\n(%)","BODY\nWEIGHT\n(kg)","FEED\nINTAKE\n(g/bird/day)","WATER\nINTAKE\n(ml/bird/day)","HH\nEGG\nMASS\nCumulative\n(kg)","AVG.\nEGG\nWEIGHT\n(g/egg)"]
["18","1.1–7.7","0.1–0.5","0.1–0.5","0.05","1.49 – 1.61","73–88","110–176","0.0","45.4–49.9"]
["19","8.2–27.1","0.7–2.4","0.7–2.4","0.08","1.59 – 1.70","85–94","128–188","0.1","48.3–51.7"]
["20","30.8–57.3","2.8–6.4","2.8–6.4","0.13","1.65 – 1.77","90–99","135–198","0.2","50.7–53.7"]
["21","61.4–80.5","7.1–12.1","7.1–12.1","0.20","1.70 – 1.81","97–103","146–206","0.5","52.6–55.8"]
["22","82.4–90.6","12.9–18.4","12.8–18.4","0.27","1.75 – 1.85","100–107","150–214","0.8","54.2–57.8"]
["23","90.6–94.1","19.2–25.0","19.2–25.0","0.34","1.78 – 1.88","104–111","156–222","1.2","55.6–59.0"]
["24","93.2–95.5","25.7–31.7","25.7–31.6","0.40","1.81 – 1.91","109–114","164–228","1.6","56.7–60.1"]
["25","94.2–96.2","32.3–38.4","32.2–38.3","0.46","1.82 – 1.93","112–119","168–238","2.0","57.6–61.1"]
["26","94.6–96.4","39.0–45.2","38.8–45.0","0.50","1.83 – 1.94","114–121","171–242","2.4","58.4–61.8"]
["27","94.8–96.6","45.6–51.9","45.4–51.8","0.55","1.85 – 1.95","115–122","173–244","2.8","59.1–62.2"]
["28","94.8–96.6","52.2–58.7","52.0–58.5","0.61","1.86 – 1.97","116–123","174–246","3.2","59.6–62.4"]
["29","94.8–96.6","58.9–65.5","58.6–65.2","0.66","1.87 – 1.98","117–124","176–248","3.6","60.1–62.7"]
["30","94.8–96.5","65.5–72.2","65.2–71.9","0.71","1.87 – 1.98","117–125","176–250","4.0","60.5–63.0"]
["31","94.7–96.5","72.1–79.0","71.8–78.6","0.76","1.87 – 1.98","117–125","176–250","4.4","60.9–63.3"]
["32","94.7–96.5","78.8–85.7","78.4–85.3","0.80","1.88 – 1.99","117–125","176–250","4.9","61.1–63.5"]
["33","94.6–96.3","85.4–92.5","84.9–92.0","0.86","1.88 – 1.99","117–125","176–250","5.3","61.4–63.8"]
["34","94.4–96.1","92.0–99.2","91.5–98.7","0.92","1.89 – 2.00","117–125","176–250","5.7","61.6–64.0"]
["35","94.2–96","98.6–105.9","98.0–105.3","0.97","1.89 – 2.00","117–125","176–250","6.1","61.8–64.2"]
["36","94.0–95.8","105.2–112.6","104.5–111.9","1.02","1.89 – 2.00","116–124","174–248","6.5","62.0–64.4"]
["37","93.7–95.7","111.7–119.3","111.0–118.6","1.08","1.89 – 2.00","116–124","174–248","6.9","62.1–64.6"]
["38","93.5–95.5","118.3–126.0","117.5–125.2","1.12","1.89 – 2.01","116–124","174–248","7.3","62.3–64.7"]
["39","93.3–95.3","124.8–132.7","123.9–131.8","1.18","1.90 – 2.01","116–124","174–248","7.8","62.4–64.9"]
["40","93.1–95","131.3–139.3","130.4–138.3","1.24","1.90 – 2.01","116–124","174–248","8.2","62.5–65.0"]
["41","92.8–94.9","137.8–146.0","136.8–144.9","1.30","1.90 – 2.02","116–124","174–248","8.6","62.6–65.1"]
["42","92.5–94.6","144.3–152.6","143.2–151.4","1.35","1.91 – 2.02","116–124","174–248","9.0","62.7–65.1"]
["43","92.1–94.4","150.8–159.2","149.5–157.9","1.41","1.91 – 2.02","116–124","174–248","9.4","62.8–65.2"]
["44","91.8–94.1","157.2–165.8","155.9–164.4","1.47","1.91 – 2.02","116–124","174–248","9.8","62.9–65.2"]
["45","91.5–93.8","163.6–172.3","162.2–170.9","1.52","1.92 – 2.03","116–124","174–248","10.2","62.9–65.3"]
["46","91.2–93.5","170.0–178.9","168.4–177.3","1.59","1.92 – 2.03","116–124","174–248","10.6","63.0–65.3"]
["47","90.9–93.3","176.3–185.4","174.7–183.8","1.64","1.92 – 2.03","116–124","174–248","11.0","63.1–65.4"]
["48","90.7–93.1","182.7–191.9","181.0–190.2","1.70","1.92 – 2.03","116–124","174–248","11.5","63.1–65.4"]
["49","90.4–92.8","189.0–198.4","187.2–196.5","1.76","1.92 – 2.03","116–124","174–248","11.9","63.2–65.5"]
["50","90.0–92.7","195.3–204.9","193.4–202.9","1.83","1.92 – 2.03","116–124","174–248","12.3","63.2–65.5"]
["51","89.8–92.4","201.6–211.4","199.5–209.3","1.89","1.92 – 2.03","116–124","174–248","12.7","63.3–65.6"]
["52","89.6–92.2","207.9–217.8","205.7–215.6","1.95","1.92 – 2.03","116–124","174–248","13.1","63.3–65.6"]
["53","89.4–91.9","214.1–224.3","211.8–221.9","2.01","1.92 – 2.03","116–124","174–248","13.5","63.4–65.7"]
["54","89.3–91.7","220.4–230.7","217.9–228.2","2.09","1.92 – 2.03","116–124","174–248","13.9","63.4–65.7"]
["55","88.9–91.5","226.6–237.1","224.0–234.4","2.16","1.93 – 2.04","116–124","174–248","14.3","63.4–65.8"]
["56","88.7–91.4","232.8–243.5","230.1–240.7","2.24","1.93 – 2.04","116–124","174–248","14.7","63.5–65.8"]
["57","88.4–91.2","239.0–249.9","236.1–246.9","2.33","1.93 – 2.04","116–124","174–248","15.1","63.5–65.9"]
["58","88.2–91","245.2–256.3","242.2–253.2","2.40","1.93 – 2.04","116–124","174–248","15.5","63.5–65.9"]
["59","87.9–90.8","251.3–262.6","248.2–259.4","2.49","1.93 – 2.04","116–124","174–248","15.9","63.6–66.0"]
["60","87.6–90.5","257.5–269.0","254.1–265.5","2.57","1.93 – 2.04","116–124","174–248","16.3","63.6–66.0"]
[61,"87.3–90.2","263.6–275.3","260.1 –271.7",2.65,"1.93 –2.04","116–124","174–248",16.600000000000001,"63.6–66.1"]
[62,"87.0–90.0","269.7–281.6","266.0 –277.8",2.77,"1.93 –2.04","116–124","174–248",17,"63.7–66.1"]
[63,"86.7–89.8","275.7–287.9","271.9 –283.9",2.85,"1.93 –2.04","116–124","174–248",17.399999999999999,"63.7–66.2"]
[64,"86.4–89.6","281.8–294.1","277.8 –290.0",2.92,"1.93 –2.04","116–124","174–248",17.8,"63.7–66.2"]
[65,"86.1–89.3","287.8–300.4","283.6 –296.1",2.97,"1.93 –2.04","116–124","174–248",18.2,"63.8–66.3"]
[66,"85.6–89.0","293.8–306.6","289.4 –302.1",3.08,"1.93 –2.04","116–124","174–248",18.600000000000001,"63.8–66.3"]
[67,"85.1–88.6","299.7–312.8","295.2 –308.1",3.14,"1.93 –2.04","116–124","174–248",19,"63.8–66.4"]
[68,"84.5–88.3","305.7–319.0","300.9 –314.1",3.2,"1.93 –2.04","116–124","174–248",19.399999999999999,"63.8–66.4"]
[69,"83.8–88.0","311.5–325.2","306.6 –320.1",3.3,"1.93 –2.04","116–124","174–248",19.7,"63.8–66.4"]
[70,"83.2–87.6","317.4–331.3","312.2 –326.0",3.43,"1.93 –2.04","116–124","174–248",20.100000000000001,"63.9–66.5"]
[71,"82.7–87.0","323.1–337.4","317.8 –331.9",3.58,"1.93 –2.04","116–124","174–248",20.5,"63.9–66.5"]
[72,"82.0–86.4","328.9–343.4","323.3 –337.7",3.73,"1.93 –2.04","116–124","174–248",20.8,"63.9–66.6"]
[73,"81.4–85.8","334.6–349.4","328.8 –343.5",3.88,"1.93 –2.04","116–124","174–248",21.2,"63.9–66.6"]
[74,"80.7–85.2","340.2–355.4","334.2 –349.2",4.03,"1.93 –2.04","116–124","174–248",21.6,"63.9–66.7"]
[75,"80.1–84.6","345.8–361.3","339.6 –354.9",4.18,"1.93 –2.04","116–124","174–248",21.9,"64.0–66.7"]
[76,"79.5–84.0","351.4–367.2","344.9 –360.5",4.33,"1.93 –2.04","116–124","174–248",22.3,"64.0–66.8"]
[77,"78.9–83.4","356.9–373.1","350.2 –366.1",4.4800000000000004,"1.93 –2.04","116–124","174–248",22.7,"64.0–66.8"]
[78,"78.3–82.8","362.4–378.8","355.4 –371.6",4.63,"1.93 –2.04","116–124","174–248",23,"64.0–66.9"]
[79,"77.7–82.2","367.8–384.6","360.6 –377.1",4.78,"1.93 –2.04","116–124","174–248",23.4,"64.0–66.9"]
[80,"77.1–81.6","373.2–390.3","365.7 –382.5",4.93,"1.93 –2.04","116–124","174–248",23.7,"64.0–67.0"]
[81,"76.6–81.0","378.6–396.0","370.8 –387.9",5.08,"1.93 –2.04","116–124","174–248",24,"64.0–67.0"]
[82,"76.1–80.4","383.9–401.6","375.8 –393.2",5.23,"1.93 –2.04","116–124","174–248",24.4,"64.1–67.1"]
[83,"75.6–79.8","389.2–407.2","380.9 –398.5",5.38,"1.93 –2.04","116–124","174–248",24.7,"64.1–67.1"]
[84,"75.2–79.2","394.5–412.7","385.8 –403.7",5.53,"1.93 –2.04","116–124","174–248",25.1,"64.1–67.2"]
[85,"74.8–78.6","399.7–418.2","390.8 –408.9",5.68,"1.93 –2.04","116–124","174–248",25.4,"64.1–67.2"]
[86,"74.4–78.0","404.9–423.7","395.7 –414.1",5.83,"1.93 –2.04","116–124","174–248",25.7,"64.1–67.3"]
[87,"74.0–77.4","410.1–429.1","400.5 –419.2",5.98,"1.93 –2.04","116–124","174–248",26.1,"64.1–67.3"]
[88,"73.6–76.8","415.2–434.5","405.4 –424.2",6.13,"1.93 –2.04","116–124","174–248",26.4,"64.1–67.4"]
[89,"73.3–76.3","420.4–439.8","410.2 –429.2",6.28,"1.93 –2.04","116–124","174–248",26.7,"64.1–67.4"]
[90,"73.0–75.8","425.5–445.2","415.0 –434.2",6.45,"1.93 –2.04","116–124","174–248",27,"64.1–67.5"]
[91,"72.7–75.3","430.6–450.4","419.7 –439.1",6.65,"1.94 –2.05","116–124","174–248",27.3,"64.2–67.5"]
[92,"72.4–74.9","435.6–455.7","424.4 –444.0",6.85,"1.94 –2.05","116–124","174–248",27.7,"64.2–67.6"]
[93,"72.1–74.5","440.7–460.9","429.1 –448.8",7.1,"1.94 –2.05","116–124","174–248",28,"64.2–67.6"]
[94,"71.8–74.1","445.7–466.1","433.8 –453.6",7.3,"1.94 –2.05","116–124","174–248",28.3,"64.2–67.7"]
[95,"71.5–73.7","450.7–471.2","438.4 –458.4",7.5,"1.94 –2.05","116–124","174–248",28.6,"64.2–67.7"]
[96,"71.2–73.3","455.7–476.4","443.0 –463.2",7.6,"1.94 –2.05","116–124","174–248",28.9,"64.2–67.8"]
[97,"70.9–72.9","460.7–481.5","447.6 –467.9",7.8,"1.94 –2.05","116–124","174–248",29.2,"64.2–67.8"]
[98,"70.6–72.5","465.6–486.5","452.1 –472.5",8,"1.94 –2.05","116–124","174–248",29.5,"64.2–67.9"]
[99,"70.3–72.1","470.5–491.6","456.7 –477.2",8.1999999999999993,"1.94 –2.05","116–124","174–248",29.8,"64.2–67.9"]
[100,"70.0–71.7","475.4–496.6","461.2 –481.8",8.4,"1.94 –2.05","116–124","174–248",30.1,"64.2–68.0"]
[]
["Table 3. HyLine White Performance Data"]
["Source: ","Layer 01"]
["This table presents performance data on layers taken from Hyline production guides"]
[]
["AGE\n(weeks)","% HEN-DAYCurrent","HEN-DAY\nEGGS\nCumulative","HEN-HOUSED\nEGGS\nCumulative","MORT-ALITY\nCumulative\n(%)","BODY\nWEIGHT\n(kg)","FEED\nINTAKE\n(g / bird / day)","WATER\nCONSUMPTION\n(ml / bird / day)","HEN-HOUSED EGG MASSCumulative (kg)","AVG.\nEGG\nWEIGHT\n(g / egg)"]
[18,"2–3","0.1–0.2","0.1–0.2",0.1,"1.23–1.30","63–74","95 – 148","0.01–0.01",44.2]
[19,"15 –22","1.2–1.8","1.2–1.7",0.1,"1.27–1.37","68–77","102 – 155","0.06–0.09",45]
[20,"35–50","3.6–5.3","3.6–5.2",0.1,"1.32–1.43","73–80","109 – 161","0.2–0.3",45.9]
[21,"60–67","7.8–9.9","7.8–9.9",0.2,"1.38–1.47","76–84","114 – 169","0.4–0.5",48]
[22,"80–84","13.4–15.8","13.4–15.8",0.2,"1.41–1.49","80–88","120 – 177","0.6–0.8",49.8]
[23,"88–92","19.6–22.3","19.6–22.2",0.3,"1.43–1.50","85–93","128 – 186","0.9–1.1",51.3]
[24,"91–94","26.0–28.9","25.9–28.8",0.4,"1.45–1.51","89–96","134 – 192","1.3–1.5",52.6]
[25,"93–95","32.5–35.5","32.4–35.4",0.5,"1.47–1.53","93–99","139 – 197","1.6–1.8",53.7]
[26,"94–96","39.1–42.2","39.0–42.1",0.5,"1.48–1.54","94–101","142 – 202","2.0–2.2",54.7]
[27,"95–96","45.7–49.0","45.6–48.8",0.6,"1.48–1.55","96–102","143 – 205","2.3–2.6",55.5]
[28,"95–96","52.4–55.7","52.1–55.5",0.6,"1.49–1.55","96–103","144 – 205","2.7–3.0",56.3]
[29,"95–97","59.0–62.5","58.7–62.2",0.7,"1.50–1.56","97–103","145 – 206","3.1–3.4",57]
[30,"95–97","65.6–69.2","65.3–68.9",0.7,"1.50–1.56","97–103","146 – 206","3.4–3.8",57.6]
[31,"95–97","72.3–76.0","71.9–75.6",0.8,"1.51–1.57","97–103","146 – 207","3.8–4.1",58.1]
[32,"95–96","78.9–82.7","78.5–82.3",0.9,"1.51–1.57","98–104","146 – 207","4.2–4.5",58.5]
[33,"94–96","85.5–89.5","85.0–89.0",0.9,"1.52–1.58","98–104","147 – 208","4.6–4.9",59]
[34,"94–96","92.1–96.2","91.5–95.6",1,"1.52–1.58","98–104","147 – 208","4.9–5.4",59.3]
[35,"94–95","98.7–102.9","98.1–102.2",1,"1.53–1.59","98–104","147 – 209","5.3–5.8",59.7]
[36,"94–95","105.2–109.5","104.6–108.8",1.1000000000000001,"1.53–1.59","98–105","147 – 209","5.7–6.2",60]
[37,"93–95","111.8–116.2","111.0–115.4",1.1000000000000001,"1.53–1.59","98–105","147 – 209","6.1–6.6",60.3]
[38,"93–95","118.3–122.8","117.5–122.0",1.2,"1.54–1.60","98–105","147 – 209","6.5–7.0",60.5]
[39,"93–95","124.8–129.5","123.9–128.5",1.3,"1.54–1.60","98–105","148 – 209","6.8–7.4",60.7]
[40,"93–94","131.3–136.1","130.3–135.0",1.3,"1.54–1.60","99–105","148 – 209","7.2–7.8",60.9]
[41,"92–94","137.7–142.7","136.6–141.5",1.4,"1.54–1.60","99–105","148 – 209","7.6–8.2",61.1]
[42,"92–94","144.2–149.2","143.0–148.0",1.5,"1.55–1.61","99–105","148 – 209","8.0–8.6",61.3]
[43,"92–93","150.6–155.8","149.3–154.4",1.6,"1.55–1.61","99–105","148 – 209","8.4–9.0",61.5]
[44,"91–93","156.9–162.3","155.5–160.9",1.6,"1.55–1.61","99–105","148 – 209","8.7–9.4",61.6]
[45,"91–93","163.3–168.8","161.8–167.2",1.7,"1.55–1.61","99–105","148 – 209","9.1–9.8",61.8]
[46,"90–92","169.6–175.2","168.0–173.6",1.8,"1.55–1.61","99–105","148 – 209","9.5–10.2",61.9]
[47,"90–92","175.9–181.7","174.2–179.9",1.9,"1.55–1.61","99–105","148 – 209","9.9–10.6",62]
[48,"90–92","182.2–188.1","180.4–186.2",1.9,"1.55–1.61","99–105","148 – 209","10.3–11.0",62.1]
["49","90–92","188.5–194.5","186.5–192.5","2.0","1.55–1.61","99–105","148 –209","10.6–11.4","62.2"]
["50","89–91","194.7–200.9","192.6–198.8","2.1","1.55–1.61","99–105","148 –209","11.0 –11.8","62.3"]
["51","89–91","200.9–207.3","198.7–205","2.2","1.55–1.61","99–105","148 –209","11.4 –12.2","62.4"]
["52","89–91","207.2–213.7","204.8–211.2","2.2","1.55–1.61","99–105","148 –209","11.7 –12.6","62.5"]
["53","88–91","213.4–220.0","210.8–217.4","2.3","1.55–1.61","99–105","148 –209","12.1 –13.0","62.5"]
["54","88–90","219.5–226.3","216.8–223.6","2.4","1.55–1.61","99–105","148 –209","12.5 –13.4","62.6"]
["55","88–90","225.6–232.6","222.8–229.8","2.5","1.55–1.61","99–105","148 –209","12.9 –13.8","62.7"]
["56","87–90","231.8–238.9","228.8–235.9","2.6","1.55–1.61","99–105","148 –209","13.2 –14.2","62.7"]
["57","87–89","237.8–245.1","234.7–241.9","2.7","1.55–1.61","99–105","148 –209","13.6 –14.6","62.8"]
["58","87–89","243.9–251.3","240.6–248","2.8","1.55–1.61","99–105","148 –209","13.9 –14.9","62.9"]
["59","86–88","249.9–257.5","246.5–254","2.8","1.55–1.61","99–105","148 –209","14.3 –15.3","62.9"]
["60","86–88","256.0–263.7","252.3–259.9","2.9","1.55–1.61","99–105","148 –209","14.7 –15.7","63.0"]
["61","86–88","261.9–269.8","258.1–265.9","3.0","1.55–1.61","99–105","148 –209","15.0 –16.1","63.0"]
["62","85–88","267.9–276.0","263.9–271.9","3.1","1.55–1.61","99–105","148 –209","15.4–16.5","63.0"]
["63","85–87","273.9–282.1","269.6–277.8","3.2","1.55–1.61","99–105","148 –209","15.7 –16.9","63.1"]
["64","85–87","279.8–288.1","275.4–283.6","3.3","1.55–1.61","99–105","148 –209","16.1 –17.2","63.1"]
["65","84–86","285.7–294.2","281.1–289.5","3.4","1.55–1.61","99–105","148 –209","16.4 –17.6","63.2"]
["66","84–86","291.5–300.2","286.7–295.3","3.5","1.55–1.61","99–105","148 –209","16.8 –18.0","63.2"]
["67","83–85","297.3–306.2","292.3–301","3.6","1.55–1.61","99–105","148 –209","17.1 –18.4","63.2"]
["68","83–85","303.1–312.1","297.9–306.8","3.7","1.55–1.61","99–105","148 –209","17.5 –18.7","63.3"]
["69","82–85","308.9–318.1","303.4–312.5","3.8","1.55–1.61","99–105","148 –209","17.8 –19.1","63.3"]
["70","82–84","314.6–324.0","308.9–318.1","3.9","1.55–1.61","99–105","148 –209","18.2 –19.5","63.3"]
["71","81–84","320.3–329.8","314.4–323.8","4.0","1.55–1.61","99–105","148 –209","18.5 –19.8","63.3"]
["72","81–83","325.9–335.7","319.8–329.4","4.0","1.55–1.61","99–105","148 –209","18.8 –20.2","63.4"]
["73","80–83","331.6–341.5","325.2–335","4.1","1.55–1.61","99–105","148 –209","19.2 –20.5","63.4"]
["74","80–83","337.2–347.3","330.6–340.5","4.2","1.55–1.61","99–105","148 –209","19.5 –20.9","63.4"]
["75","80–82","342.7–353.0","335.9–346","4.3","1.55–1.61","99–105","148 –209","19.8 –21.3","63.4"]
["76","79–82","348.3–358.8","341.2–351.5","4.3","1.55–1.61","99–105","148 –209","20.2–21.6","63.5"]
["77","79–81","353.8–364.5","346.5–357","4.4","1.55–1.61","99–105","148 –209","20.5–22.0","63.5"]
["78","78–81","359.3–370.2","351.7–362.4","4.6","1.55–1.61","99–105","148 –209","20.8–22.3","63.5"]
["79","78–81","364.7–375.8","356.9–367.8","4.6","1.55–1.61","99–105","148 –209","21.2 –22.7","63.5"]
["80","77–80","370.1–381.4","362.0–373.1","4.7","1.55–1.61","99–105","148 –209","21.5 –23.0","63.5"]
["81","77–80","375.5–387.0","367.1–378.4","4.9","1.55–1.61","99–105","148 –209","21.8 –23.4","63.5"]
["82","76–79","380.8–392.6","372.2–383.7","5.0","1.55–1.61","99–105","148 –209","22.1 –23.7","63.6"]
["83","76–79","386.1–398.1","377.2–388.9","5.2","1.55–1.61","99–105","148 –209","22.4 –24.0","63.6"]
["84","75–78","391.4–403.6","382.2–394.1","5.3","1.55–1.61","99–105","148 –209","22.7 –24.4","63.6"]
["85","75–78","396.6–409.0","387.1–399.3","5.5","1.55–1.61","99–105","148 –209","23.0–24.7","63.6"]
["86","74–77","401.8–414.4","392.0–404.4","5.6","1.55–1.61","99–105","148 –209","23.3–25.0","63.6"]
["87","74–77","406.9–419.8","396.9–409.4","5.8","1.55–1.61","99–105","148 –209","23.6–25.4","63.6"]
["88","73–76","412.1–425.1","401.7–414.5","6.0","1.55–1.61","99–105","148 –209","23.9–25.7","63.6"]
["89","73–76","417.1–430.4","406.5–419.5","6.1","1.55–1.61","99–105","148 –209","24.2 –26.0","63.7"]
["90","72–75","422.2–435.7","411.2–424.4","6.3","1.55–1.61","99–105","148 –209","24.5–26.3","63.7"]
["91","72–75","427.2–440.9","415.9–429.3","6.5","1.55–1.61","99–105","148 –209","24.8–26.7","63.7"]
["92","71–74","432.2–446.1","420.6–434.1","6.7","1.55–1.61","99–105","148 –209","25.1–27.0","63.7"]
["93","71–74","437.1–451.3","425.2–439","6.8","1.55–1.61","99–105","148 –209","25.4–27.3","63.7"]
["94","70–73","442.0–456.4","429.7–443.7","7.0","1.55–1.61","99–105","148 –209","25.7–27.6","63.7"]
["95","70–73","446.9–461.5","434.3–448.5","7.2","1.55–1.61","99–105","148 –209","26.0–27.9","63.7"]
["96","69–72","451.8–466.6","438.7–453.1","7.4","1.55–1.61","99–105","148 –209","26.3–28.2","63.7"]
["97","69–72","456.6–471.6","443.2–457.8","7.6","1.55–1.61","99–105","148 –209","26.5–28.5","63.7"]
["98","68–71","461.3–476.6","447.6–462.4","7.8","1.55–1.61","99–105","148 –209","26.8–28.8","63.7"]
["99","68–71","466.1–481.6","451.9–466.9","7.9","1.55–1.61","99–105","148 –209","27.1–29.1","63.7"]
["100","67–70","470.8–486.5","456.3–471.5","8.0","1.55–1.61","99–105","148 –209","27.4 –29.4","63.8"]
[]
[]
["Table 4. Protein/Nitrogen and Phosphorus/Phosphate Conversion Factor"]
["Source: ","Layer 02"]
["Factor to convert crude protein content to total nitrogen content. E.g. g protein in the feed per g N in the feed."]
[]
["Crude protein to nitrogen conversion factor:","Phosphorus to phosphate conversion factor"]
[6.25,0.437]
[]
[]
["Table 5. Effect of phytase on phosphorus mass balance, and egg composition "]
["Source: ","Layer 03","Jing, M. et al., (2020)"]
["Phytase feed additive intake impacts. One FTU is one phytase unit."]
[]
[]
["Column1","2 (-)","2.5 (-)","3 (-)","1 (+)","1.5 (+)","2 (+)","Average (-)","Average (+)","Factor","Factor "]
["Total P (mg/hen/day)"]
["Intake",481,542,600,355,407,463,{"$f":"AVERAGE(Table5[[#This Row],[2 (-)]:[3 (-)]])","v":541},{"$f":"AVERAGE(Table5[[#This Row],[1 (+)]:[2 (+)]])","v":408.33333333333331},{"$f":"((Table5[[#This Row],[Average (+)]]-Table5[[#This Row],[Average (-)]])/Table5[[#This Row],[Average (-)]])*100","v":-24.522489217498464}]
["Excretion ",290,337,369,256,294,326,{"$f":"AVERAGE(Table5[[#This Row],[2 (-)]:[3 (-)]])","v":332},{"$f":"AVERAGE(Table5[[#This Row],[1 (+)]:[2 (+)]])","v":292},{"$f":"((Table5[[#This Row],[Average (+)]]-Table5[[#This Row],[Average (-)]])/Table5[[#This Row],[Average (-)]])*100","v":-12.048192771084338},{"$f":"Table5[[#This Row],[Average (-)]]-Table5[[#This Row],[Average (+)]]","v":40}]
["Retention",191,205,231,99,113,138,{"$f":"AVERAGE(Table5[[#This Row],[2 (-)]:[3 (-)]])","v":209},{"$f":"AVERAGE(Table5[[#This Row],[1 (+)]:[2 (+)]])","v":116.66666666666667},{"$f":"((Table5[[#This Row],[Average (+)]]-Table5[[#This Row],[Average (-)]])/Table5[[#This Row],[Average (-)]])*100","v":-44.178628389154703}]
[]
[]
["Table 6. Effect of Phytase on Egg Characteristics "]
["Source: ","Layer 08","Jing, M. et al., (2020)"]
["Phytase feed additive intake impacts. One FTU is one phytase unit."]
[]
["Column1","2 (-)","2.5 (-)","3 (-)","1 (+)","1.5 (+)","2 (+)"]
["Whole egg",94,94,95,95,94,94]
["Egg shell",6.7,6.5,6.2,6.5,6.6,7]
["Egg white",4.3,4.5999999999999996,4.5999999999999996,4.5,4.4000000000000004,4.7]
["Egg yolk ",83,83,84,84,83,83]
[]
[]
["Table 7. Nitrogen and Phosphorus content of eggs "]
["Source: ","Layer 05"]
["These are values of nitrogen and phosphorus in whole (eggs) with shell.  The value in grams is based on a 60.8g egg, and the percentage values have been calculated using these weights.  "]
[]
["Nutrient","(g)","(%)"]
["Nitrogen",1,{"$f":"(B307/60.8)","v":1.6447368421052631E-2}]
["Phosphorus",0.12609999999999999,{"$f":"(B308/60.8)","v":2.0740131578947368E-3}]
[]
[]
["Table 8. Nitrogen and Phosphorus retention in liveweight "]
["Source: ","Layer 06"]
["These values are the percentage of a layer's liveweight that is comprised of nirogen and phosphorus.  These values are retention factors for the amount of nutruent that is fixed in the liveweight in the mass balance equation of the model."]
[]
["Nutrient","(%)"]
["Nitrogen",2.8000000000000001E-2]
["Phosphorus",5.4999999999999997E-3]
[]
[]
["Table 9. Lists used for dropdown inputs"]
["Source: ","N/A"]
["Hold data for drop-down lists used within the model"]
[]
["Flock Type"]
["Please select"]
["Brown Free-range"]
["Brown Colony"]
["White Free-range"]
[]
[]
["Phytase Inclusion "]
["Please select"]
["Present"]
["Absent"]

{"sheet":"Performance Data","index":6,"n_rows":262,"n_cols":12,"rows_kept":262,"cut":false,"hidden":true,"merged":[]}
["Combined performance data tables for calculations"]
[]
["Table 1. All Layer Varieties Performance Data"]
["Source: ","Layer 01"]
["This table presents the combined performance data on layers taken from Hyline production guides"]
[]
["Flock Type","AGE (weeks)","Ration","Mortality (%)","Hen-Housed Eggs Cumulative Mid-point","Bodyweight Mid-point (kg)","Bodyweight Mid-point (g)","Feed Intake Mid-point (g/bird/day)","Feed Intake (g/bird/week)","Cumulative Feed Intake (g/bird)","Average Egg Weight Mid-point (g/egg)","Cumulative Egg Weight (g)"]
["Brown Free-range",16,{"$f":"IF(AND(Table13[[#This Row],[AGE (weeks)]]>='Diet input details'!$C$16,Table13[[#This Row],[AGE (weeks)]]<='Diet input details'!$D$16),\"Ration 1\",IF(AND(Table13[[#This Row],[AGE (weeks)]]>='Diet input details'!$C$17,Table13[[#This Row],[AGE (weeks)]]<='Diet input details'!$D$17),\"Ration 2\",IF(AND(Table13[[#This Row],[AGE (weeks)]]>='Diet input details'!$C$18,Table13[[#This Row],[AGE (weeks)]]<='Diet input details'!$D$18),\"Ration 3\",IF(AND(Table13[[#This Row],[AGE (weeks)]]>='Diet input details'!$C$19,Table13[[#This Row],[AGE (weeks)]]<='Diet input details'!$D$19),\"Ration 4\",IF(AND(Table13[[#This Row],[AGE (weeks)]]>='Diet input details'!$C$20,Table13[[#This Row],[AGE (weeks)]]<='Diet input details'!$D$20),\"Ration 5\", \"Clear\")))))","v":"Clear"},{"$f":"(VLOOKUP(Table13[[#This Row],[Ration]],Table22[#All],2,FALSE))","v":{"$error":"#N/A"}},0.3,1.55,{"$f":"Table13[[#This Row],[Bodyweight Mid-point (kg)]]*1000","v":1550},80.5,{"$f":"Table13[[#This Row],[Feed Intake Mid-point (g/bird/day)]]*7","v":563.5},{"$f":"Table13[[#This Row],[Feed Intake (g/bird/week)]]","v":563.5},47.65,{"$f":"(Table13[[#This Row],[Hen-Housed Eggs Cumulative Mid-point]]*Table13[[#This Row],[Average Egg Weight Mid-point (g/egg)]])","v":14.295}]
["Brown Free-range",17,{"$f":"IF(AND(Table13[[#This Row],[AGE (weeks)]]>='Diet input details'!$C$16,Table13[[#This Row],[AGE (weeks)]]<='Diet input details'!$D$16),\"Ration 1\",IF(AND(Table13[[#This Row],[AGE (weeks)]]>='Diet input details'!$C$17,Table13[[#This Row],[AGE (weeks)]]<='Diet input details'!$D$17),\"Ration 2\",IF(AND(Table13[[#This Row],[AGE (weeks)]]>='Diet input details'!$C$18,Table13[[#This Row],[AGE (weeks)]]<='Diet input details'!$D$18),\"Ration 3\",IF(AND(Table13[[#This Row],[AGE (weeks)]]>='Diet input details'!$C$19,Table13[[#This Row],[AGE (weeks)]]<='Diet input details'!$D$19),\"Ration 4\",IF(AND(Table13[[#This Row],[AGE (weeks)]]>='Diet input details'!$C$20,Table13[[#This Row],[AGE (weeks)]]<='Diet input details'!$D$20),\"Ration 5\", \"Clear\")))))","v":"Clear"},{"$f":"(VLOOKUP(Table13[[#This Row],[Ration]],Table22[#All],2,FALSE))","v":{"$error":"#N/A"}},0.3,1.55,{"$f":"Table13[[#This Row],[Bodyweight Mid-point (kg)]]*1000","v":1550},80.5,{"$f":"Table13[[#This Row],[Feed Intake Mid-point (g/bird/day)]]*7","v":563.5},{"$f":"Table13[[#This Row],[Feed Intake (g/bird/week)]]","v":563.5},47.65,{"$f":"(Table13[[#This Row],[Hen-Housed Eggs Cumulative Mid-point]]*Table13[[#This Row],[Average Egg Weight Mid-point (g/egg)]])","v":14.295}]
["Brown Free-range",18,{"$f":"IF(AND(Table13[[#This Row],[AGE (weeks)]]>='Diet input details'!$C$16,Table13[[#This Row],[AGE (weeks)]]<='Diet input details'!$D$16),\"Ration 1\",IF(AND(Table13[[#This Row],[AGE (weeks)]]>='Diet input details'!$C$17,Table13[[#This Row],[AGE (weeks)]]<='Diet input details'!$D$17),\"Ration 2\",IF(AND(Table13[[#This Row],[AGE (weeks)]]>='Diet input details'!$C$18,Table13[[#This Row],[AGE (weeks)]]<='Diet input details'!$D$18),\"Ration 3\",IF(AND(Table13[[#This Row],[AGE (weeks)]]>='Diet input details'!$C$19,Table13[[#This Row],[AGE (weeks)]]<='Diet input details'!$D$19),\"Ration 4\",IF(AND(Table13[[#This Row],[AGE (weeks)]]>='Diet input details'!$C$20,Table13[[#This Row],[AGE (weeks)]]<='Diet input details'!$D$20),\"Ration 5\", \"Clear\")))))","v":"Clear"},{"$f":"(VLOOKUP(Table13[[#This Row],[Ration]],Table22[#All],2,FALSE))","v":{"$error":"#N/A"}},0.3,1.55,{"$f":"Table13[[#This Row],[Bodyweight Mid-point (kg)]]*1000","v":1550},80.5,{"$f":"Table13[[#This Row],[Feed Intake Mid-point (g/bird/day)]]*7","v":563.5},{"$f":"Table13[[#This Row],[Feed Intake (g/bird/week)]]","v":563.5},47.65,{"$f":"(Table13[[#This Row],[Hen-Housed Eggs Cumulative Mid-point]]*Table13[[#This Row],[Average Egg Weight Mid-point (g/egg)]])","v":14.295}]
["Brown Free-range",19,{"$f":"IF(AND(Table13[[#This Row],[AGE (weeks)]]>='Diet input details'!$C$16,Table13[[#This Row],[AGE (weeks)]]<='Diet input details'!$D$16),\"Ration 1\",IF(AND(Table13[[#This Row],[AGE (weeks)]]>='Diet input details'!$C$17,Table13[[#This Row],[AGE (weeks)]]<='Diet input details'!$D$17),\"Ration 2\",IF(AND(Table13[[#This Row],[AGE (weeks)]]>='Diet input details'!$C$18,Table13[[#This Row],[AGE (weeks)]]<='Diet input details'!$D$18),\"Ration 3\",IF(AND(Table13[[#This Row],[AGE (weeks)]]>='Diet input details'!$C$19,Table13[[#This Row],[AGE (weeks)]]<='Diet input details'!$D$19),\"Ration 4\",IF(AND(Table13[[#This Row],[AGE (weeks)]]>='Diet input details'!$C$20,Table13[[#This Row],[AGE (weeks)]]<='Diet input details'!$D$20),\"Ration 5\", \"Clear\")))))","v":"Clear"},{"$f":"(VLOOKUP(Table13[[#This Row],[Ration]],Table22[#All],2,FALSE))","v":{"$error":"#N/A"}},1.5499999999999998,1.645,{"$f":"Table13[[#This Row],[Bodyweight Mid-point (kg)]]*1000","v":1645},89.5,{"$f":"Table13[[#This Row],[Feed Intake Mid-point (g/bird/day)]]*7","v":626.5},{"$f":"Table13[[#This Row],[Feed Intake (g/bird/week)]]+J10","v":1190},50,{"$f":"(Table13[[#This Row],[Hen-Housed Eggs Cumulative Mid-point]]*Table13[[#This Row],[Average Egg Weight Mid-point (g/egg)]])","v":77.499999999999986}]
["Brown Free-range",20,{"$f":"IF(AND(Table13[[#This Row],[AGE (weeks)]]>='Diet input details'!$C$16,Table13[[#This Row],[AGE (weeks)]]<='Diet input details'!$D$16),\"Ration 1\",IF(AND(Table13[[#This Row],[AGE (weeks)]]>='Diet input details'!$C$17,Table13[[#This Row],[AGE (weeks)]]<='Diet input details'!$D$17),\"Ration 2\",IF(AND(Table13[[#This Row],[AGE (weeks)]]>='Diet input details'!$C$18,Table13[[#This Row],[AGE (weeks)]]<='Diet input details'!$D$18),\"Ration 3\",IF(AND(Table13[[#This Row],[AGE (weeks)]]>='Diet input details'!$C$19,Table13[[#This Row],[AGE (weeks)]]<='Diet input details'!$D$19),\"Ration 4\",IF(AND(Table13[[#This Row],[AGE (weeks)]]>='Diet input details'!$C$20,Table13[[#This Row],[AGE (weeks)]]<='Diet input details'!$D$20),\"Ration 5\", \"Clear\")))))","v":"Clear"},{"$f":"(VLOOKUP(Table13[[#This Row],[Ration]],Table22[#All],2,FALSE))","v":{"$error":"#N/A"}},4.5999999999999996,1.71,{"$f":"Table13[[#This Row],[Bodyweight Mid-point (kg)]]*1000","v":1710},94.5,{"$f":"Table13[[#This Row],[Feed Intake Mid-point (g/bird/day)]]*7","v":661.5},{"$f":"Table13[[#This Row],[Feed Intake (g/bird/week)]]+J11","v":1851.5},52.2,{"$f":"(Table13[[#This Row],[Hen-Housed Eggs Cumulative Mid-point]]*Table13[[#This Row],[Average Egg Weight Mid-point (g/egg)]])","v":240.12}]
["Brown Free-range",21,{"$f":"IF(AND(Table13[[#This Row],[AGE (weeks)]]>='Diet input details'!$C$16,Table13[[#This Row],[AGE (weeks)]]<='Diet input details'!$D$16),\"Ration 1\",IF(AND(Table13[[#This Row],[AGE (weeks)]]>='Diet input details'!$C$17,Table13[[#This Row],[AGE (weeks)]]<='Diet input details'!$D$17),\"Ration 2\",IF(AND(Table13[[#This Row],[AGE (weeks)]]>='Diet input details'!$C$18,Table13[[#This Row],[AGE (weeks)]]<='Diet input details'!$D$18),\"Ration 3\",IF(AND(Table13[[#This Row],[AGE (weeks)]]>='Diet input details'!$C$19,Table13[[#This Row],[AGE (weeks)]]<='Diet input details'!$D$19),\"Ration 4\",IF(AND(Table13[[#This Row],[AGE (weeks)]]>='Diet input details'!$C$20,Table13[[#This Row],[AGE (weeks)]]<='Diet input details'!$D$20),\"Ration 5\", \"Clear\")))))","v":"Clear"},{"$f":"(VLOOKUP(Table13[[#This Row],[Ration]],Table22[#All],2,FALSE))","v":{"$error":"#N/A"}},9.6,1.7549999999999999,{"$f":"Table13[[#This Row],[Bodyweight Mid-point (kg)]]*1000","v":1755},100,{"$f":"Table13[[#This Row],[Feed Intake Mid-point (g/bird/day)]]*7","v":700},{"$f":"Table13[[#This Row],[Feed Intake (g/bird/week)]]+J12","v":2551.5},54.2,{"$f":"(Table13[[#This Row],[Hen-Housed Eggs Cumulative Mid-point]]*Table13[[#This Row],[Average Egg Weight Mid-point (g/egg)]])","v":520.32000000000005}]
["Brown Free-range",22,{"$f":"IF(AND(Table13[[#This Row],[AGE (weeks)]]>='Diet input details'!$C$16,Table13[[#This Row],[AGE (weeks)]]<='Diet input details'!$D$16),\"Ration 1\",IF(AND(Table13[[#This Row],[AGE (weeks)]]>='Diet input details'!$C$17,Table13[[#This Row],[AGE (weeks)]]<='Diet input details'!$D$17),\"Ration 2\",IF(AND(Table13[[#This Row],[AGE (weeks)]]>='Diet input details'!$C$18,Table13[[#This Row],[AGE (weeks)]]<='Diet input details'!$D$18),\"Ration 3\",IF(AND(Table13[[#This Row],[AGE (weeks)]]>='Diet input details'!$C$19,Table13[[#This Row],[AGE (weeks)]]<='Diet input details'!$D$19),\"Ration 4\",IF(AND(Table13[[#This Row],[AGE (weeks)]]>='Diet input details'!$C$20,Table13[[#This Row],[AGE (weeks)]]<='Diet input details'!$D$20),\"Ration 5\", \"Clear\")))))","v":"Clear"},{"$f":"(VLOOKUP(Table13[[#This Row],[Ration]],Table22[#All],2,FALSE))","v":{"$error":"#N/A"}},15.6,1.8,{"$f":"Table13[[#This Row],[Bodyweight Mid-point (kg)]]*1000","v":1800},103.5,{"$f":"Table13[[#This Row],[Feed Intake Mid-point (g/bird/day)]]*7","v":724.5},{"$f":"Table13[[#This Row],[Feed Intake (g/bird/week)]]+J13","v":3276},56,{"$f":"(Table13[[#This Row],[Hen-Housed Eggs Cumulative Mid-point]]*Table13[[#This Row],[Average Egg Weight Mid-point (g/egg)]])","v":873.6}]
["Brown Free-range",23,{"$f":"IF(AND(Table13[[#This Row],[AGE (weeks)]]>='Diet input details'!$C$16,Table13[[#This Row],[AGE (weeks)]]<='Diet input details'!$D$16),\"Ration 1\",IF(AND(Table13[[#This Row],[AGE (weeks)]]>='Diet input details'!$C$17,Table13[[#This Row],[AGE (weeks)]]<='Diet input details'!$D$17),\"Ration 2\",IF(AND(Table13[[#This Row],[AGE (weeks)]]>='Diet input details'!$C$18,Table13[[#This Row],[AGE (weeks)]]<='Diet input details'!$D$18),\"Ration 3\",IF(AND(Table13[[#This Row],[AGE (weeks)]]>='Diet input details'!$C$19,Table13[[#This Row],[AGE (weeks)]]<='Diet input details'!$D$19),\"Ration 4\",IF(AND(Table13[[#This Row],[AGE (weeks)]]>='Diet input details'!$C$20,Table13[[#This Row],[AGE (weeks)]]<='Diet input details'!$D$20),\"Ration 5\", \"Clear\")))))","v":"Clear"},{"$f":"(VLOOKUP(Table13[[#This Row],[Ration]],Table22[#All],2,FALSE))","v":{"$error":"#N/A"}},22.1,1.83,{"$f":"Table13[[#This Row],[Bodyweight Mid-point (kg)]]*1000","v":1830},107.5,{"$f":"Table13[[#This Row],[Feed Intake Mid-point (g/bird/day)]]*7","v":752.5},{"$f":"Table13[[#This Row],[Feed Intake (g/bird/week)]]+J14","v":4028.5},57.3,{"$f":"(Table13[[#This Row],[Hen-Housed Eggs Cumulative Mid-point]]*Table13[[#This Row],[Average Egg Weight Mid-point (g/egg)]])","v":1266.33}]
["Brown Free-range",24,{"$f":"IF(AND(Table13[[#This Row],[AGE (weeks)]]>='Diet input details'!$C$16,Table13[[#This Row],[AGE (weeks)]]<='Diet input details'!$D$16),\"Ration 1\",IF(AND(Table13[[#This Row],[AGE (weeks)]]>='Diet input details'!$C$17,Table13[[#This Row],[AGE (weeks)]]<='Diet input details'!$D$17),\"Ration 2\",IF(AND(Table13[[#This Row],[AGE (weeks)]]>='Diet input details'!$C$18,Table13[[#This Row],[AGE (weeks)]]<='Diet input details'!$D$18),\"Ration 3\",IF(AND(Table13[[#This Row],[AGE (weeks)]]>='Diet input details'!$C$19,Table13[[#This Row],[AGE (weeks)]]<='Diet input details'!$D$19),\"Ration 4\",IF(AND(Table13[[#This Row],[AGE (weeks)]]>='Diet input details'!$C$20,Table13[[#This Row],[AGE (weeks)]]<='Diet input details'!$D$20),\"Ration 5\", \"Clear\")))))","v":"Clear"},{"$f":"(VLOOKUP(Table13[[#This Row],[Ration]],Table22[#All],2,FALSE))","v":{"$error":"#N/A"}},28.65,1.8599999999999999,{"$f":"Table13[[#This Row],[Bodyweight Mid-point (kg)]]*1000","v":1859.9999999999998},111.5,{"$f":"Table13[[#This Row],[Feed Intake Mid-point (g/bird/day)]]*7","v":780.5},{"$f":"Table13[[#This Row],[Feed Intake (g/bird/week)]]+J15","v":4809},58.400000000000006,{"$f":"(Table13[[#This Row],[Hen-Housed Eggs Cumulative Mid-point]]*Table13[[#This Row],[Average Egg Weight Mid-point (g/egg)]])","v":1673.16}]
["Brown Free-range",25,{"$f":"IF(AND(Table13[[#This Row],[AGE (weeks)]]>='Diet input details'!$C$16,Table13[[#This Row],[AGE (weeks)]]<='Diet input details'!$D$16),\"Ration 1\",IF(AND(Table13[[#This Row],[AGE (weeks)]]>='Diet input details'!$C$17,Table13[[#This Row],[AGE (weeks)]]<='Diet input details'!$D$17),\"Ration 2\",IF(AND(Table13[[#This Row],[AGE (weeks)]]>='Diet input details'!$C$18,Table13[[#This Row],[AGE (weeks)]]<='Diet input details'!$D$18),\"Ration 3\",IF(AND(Table13[[#This Row],[AGE (weeks)]]>='Diet input details'!$C$19,Table13[[#This Row],[AGE (weeks)]]<='Diet input details'!$D$19),\"Ration 4\",IF(AND(Table13[[#This Row],[AGE (weeks)]]>='Diet input details'!$C$20,Table13[[#This Row],[AGE (weeks)]]<='Diet input details'!$D$20),\"Ration 5\", \"Clear\")))))","v":"Clear"},{"$f":"(VLOOKUP(Table13[[#This Row],[Ration]],Table22[#All],2,FALSE))","v":{"$error":"#N/A"}},35.25,1.875,{"$f":"Table13[[#This Row],[Bodyweight Mid-point (kg)]]*1000","v":1875},115.5,{"$f":"Table13[[#This Row],[Feed Intake Mid-point (g/bird/day)]]*7","v":808.5},{"$f":"Table13[[#This Row],[Feed Intake (g/bird/week)]]+J16","v":5617.5},59.35,{"$f":"(Table13[[#This Row],[Hen-Housed Eggs Cumulative Mid-point]]*Table13[[#This Row],[Average Egg Weight Mid-point (g/egg)]])","v":2092.0875000000001}]
["Brown Free-range",26,{"$f":"IF(AND(Table13[[#This Row],[AGE (weeks)]]>='Diet input details'!$C$16,Table13[[#This Row],[AGE (weeks)]]<='Diet input details'!$D$16),\"Ration 1\",IF(AND(Table13[[#This Row],[AGE (weeks)]]>='Diet input details'!$C$17,Table13[[#This Row],[AGE (weeks)]]<='Diet input details'!$D$17),\"Ration 2\",IF(AND(Table13[[#This Row],[AGE (weeks)]]>='Diet input details'!$C$18,Table13[[#This Row],[AGE (weeks)]]<='Diet input details'!$D$18),\"Ration 3\",IF(AND(Table13[[#This Row],[AGE (weeks)]]>='Diet input details'!$C$19,Table13[[#This Row],[AGE (weeks)]]<='Diet input details'!$D$19),\"Ration 4\",IF(AND(Table13[[#This Row],[AGE (weeks)]]>='Diet input details'!$C$20,Table13[[#This Row],[AGE (weeks)]]<='Diet input details'!$D$20),\"Ration 5\", \"Clear\")))))","v":"Clear"},{"$f":"(VLOOKUP(Table13[[#This Row],[Ration]],Table22[#All],2,FALSE))","v":{"$error":"#N/A"}},41.9,1.885,{"$f":"Table13[[#This Row],[Bodyweight Mid-point (kg)]]*1000","v":1885},117.5,{"$f":"Table13[[#This Row],[Feed Intake Mid-point (g/bird/day)]]*7","v":822.5},{"$f":"Table13[[#This Row],[Feed Intake (g/bird/week)]]+J17","v":6440},60.099999999999994,{"$f":"(Table13[[#This Row],[Hen-Housed Eggs Cumulative Mid-point]]*Table13[[#This Row],[Average Egg Weight Mid-point (g/egg)]])","v":2518.1899999999996}]
["Brown Free-range",27,{"$f":"IF(AND(Table13[[#This Row],[AGE (weeks)]]>='Diet input details'!$C$16,Table13[[#This Row],[AGE (weeks)]]<='Diet input details'!$D$16),\"Ration 1\",IF(AND(Table13[[#This Row],[AGE (weeks)]]>='Diet input details'!$C$17,Table13[[#This Row],[AGE (weeks)]]<='Diet input details'!$D$17),\"Ration 2\",IF(AND(Table13[[#This Row],[AGE (weeks)]]>='Diet input details'!$C$18,Table13[[#This Row],[AGE (weeks)]]<='Diet input details'!$D$18),\"Ration 3\",IF(AND(Table13[[#This Row],[AGE (weeks)]]>='Diet input details'!$C$19,Table13[[#This Row],[AGE (weeks)]]<='Diet input details'!$D$19),\"Ration 4\",IF(AND(Table13[[#This Row],[AGE (weeks)]]>='Diet input details'!$C$20,Table13[[#This Row],[AGE (weeks)]]<='Diet input details'!$D$20),\"Ration 5\", \"Clear\")))))","v":"Clear"},{"$f":"(VLOOKUP(Table13[[#This Row],[Ration]],Table22[#All],2,FALSE))","v":{"$error":"#N/A"}},48.599999999999994,1.9,{"$f":"Table13[[#This Row],[Bodyweight Mid-point (kg)]]*1000","v":1900},118.5,{"$f":"Table13[[#This Row],[Feed Intake Mid-point (g/bird/day)]]*7","v":829.5},{"$f":"Table13[[#This Row],[Feed Intake (g/bird/week)]]+J18","v":7269.5},60.650000000000006,{"$f":"(Table13[[#This Row],[Hen-Housed Eggs Cumulative Mid-point]]*Table13[[#This Row],[Average Egg Weight Mid-point (g/egg)]])","v":2947.59}]
["Brown Free-range",28,{"$f":"IF(AND(Table13[[#This Row],[AGE (weeks)]]>='Diet input details'!$C$16,Table13[[#This Row],[AGE (weeks)]]<='Diet input details'!$D$16),\"Ration 1\",IF(AND(Table13[[#This Row],[AGE (weeks)]]>='Diet input details'!$C$17,Table13[[#This Row],[AGE (weeks)]]<='Diet input details'!$D$17),\"Ration 2\",IF(AND(Table13[[#This Row],[AGE (weeks)]]>='Diet input details'!$C$18,Table13[[#This Row],[AGE (weeks)]]<='Diet input details'!$D$18),\"Ration 3\",IF(AND(Table13[[#This Row],[AGE (weeks)]]>='Diet input details'!$C$19,Table13[[#This Row],[AGE (weeks)]]<='Diet input details'!$D$19),\"Ration 4\",IF(AND(Table13[[#This Row],[AGE (weeks)]]>='Diet input details'!$C$20,Table13[[#This Row],[AGE (weeks)]]<='Diet input details'!$D$20),\"Ration 5\", \"Clear\")))))","v":"Clear"},{"$f":"(VLOOKUP(Table13[[#This Row],[Ration]],Table22[#All],2,FALSE))","v":{"$error":"#N/A"}},55.25,1.915,{"$f":"Table13[[#This Row],[Bodyweight Mid-point (kg)]]*1000","v":1915},119.5,{"$f":"Table13[[#This Row],[Feed Intake Mid-point (g/bird/day)]]*7","v":836.5},{"$f":"Table13[[#This Row],[Feed Intake (g/bird/week)]]+J19","v":8106},61,{"$f":"(Table13[[#This Row],[Hen-Housed Eggs Cumulative Mid-point]]*Table13[[#This Row],[Average Egg Weight Mid-point (g/egg)]])","v":3370.25}]
["Brown Free-range",29,{"$f":"IF(AND(Table13[[#This Row],[AGE (weeks)]]>='Diet input details'!$C$16,Table13[[#This Row],[AGE (weeks)]]<='Diet input details'!$D$16),\"Ration 1\",IF(AND(Table13[[#This Row],[AGE (weeks)]]>='Diet input details'!$C$17,Table13[[#This Row],[AGE (weeks)]]<='Diet input details'!$D$17),\"Ration 2\",IF(AND(Table13[[#This Row],[AGE (weeks)]]>='Diet input details'!$C$18,Table13[[#This Row],[AGE (weeks)]]<='Diet input details'!$D$18),\"Ration 3\",IF(AND(Table13[[#This Row],[AGE (weeks)]]>='Diet input details'!$C$19,Table13[[#This Row],[AGE (weeks)]]<='Diet input details'!$D$19),\"Ration 4\",IF(AND(Table13[[#This Row],[AGE (weeks)]]>='Diet input details'!$C$20,Table13[[#This Row],[AGE (weeks)]]<='Diet input details'!$D$20),\"Ration 5\", \"Clear\")))))","v":"Clear"},{"$f":"(VLOOKUP(Table13[[#This Row],[Ration]],Table22[#All],2,FALSE))","v":{"$error":"#N/A"}},61.900000000000006,1.925,{"$f":"Table13[[#This Row],[Bodyweight Mid-point (kg)]]*1000","v":1925},120.5,{"$f":"Table13[[#This Row],[Feed Intake Mid-point (g/bird/day)]]*7","v":843.5},{"$f":"Table13[[#This Row],[Feed Intake (g/bird/week)]]+J20","v":8949.5},61.400000000000006,{"$f":"(Table13[[#This Row],[Hen-Housed Eggs Cumulative Mid-point]]*Table13[[#This Row],[Average Egg Weight Mid-point (g/egg)]])","v":3800.6600000000008}]
["Brown Free-range",30,{"$f":"IF(AND(Table13[[#This Row],[AGE (weeks)]]>='Diet input details'!$C$16,Table13[[#This Row],[AGE (weeks)]]<='Diet input details'!$D$16),\"Ration 1\",IF(AND(Table13[[#This Row],[AGE (weeks)]]>='Diet input details'!$C$17,Table13[[#This Row],[AGE (weeks)]]<='Diet input details'!$D$17),\"Ration 2\",IF(AND(Table13[[#This Row],[AGE (weeks)]]>='Diet input details'!$C$18,Table13[[#This Row],[AGE (weeks)]]<='Diet input details'!$D$18),\"Ration 3\",IF(AND(Table13[[#This Row],[AGE (weeks)]]>='Diet input details'!$C$19,Table13[[#This Row],[AGE (weeks)]]<='Diet input details'!$D$19),\"Ration 4\",IF(AND(Table13[[#This Row],[AGE (weeks)]]>='Diet input details'!$C$20,Table13[[#This Row],[AGE (weeks)]]<='Diet input details'!$D$20),\"Ration 5\", \"Clear\")))))","v":"Clear"},{"$f":"(VLOOKUP(Table13[[#This Row],[Ration]],Table22[#All],2,FALSE))","v":{"$error":"#N/A"}},68.550000000000011,1.925,{"$f":"Table13[[#This Row],[Bodyweight Mid-point (kg)]]*1000","v":1925},121,{"$f":"Table13[[#This Row],[Feed Intake Mid-point (g/bird/day)]]*7","v":847},{"$f":"Table13[[#This Row],[Feed Intake (g/bird/week)]]+J21","v":9796.5},61.75,{"$f":"(Table13[[#This Row],[Hen-Housed Eggs Cumulative Mid-point]]*Table13[[#This Row],[Average Egg Weight Mid-point (g/egg)]])","v":4232.9625000000005}]
["Brown Free-range",31,{"$f":"IF(AND(Table13[[#This Row],[AGE (weeks)]]>='Diet input details'!$C$16,Table13[[#This Row],[AGE (weeks)]]<='Diet input details'!$D$16),\"Ration 1\",IF(AND(Table13[[#This Row],[AGE (weeks)]]>='Diet input details'!$C$17,Table13[[#This Row],[AGE (weeks)]]<='Diet input details'!$D$17),\"Ration 2\",IF(AND(Table13[[#This Row],[AGE (weeks)]]>='Diet input details'!$C$18,Table13[[#This Row],[AGE (weeks)]]<='Diet input details'!$D$18),\"Ration 3\",IF(AND(Table13[[#This Row],[AGE (weeks)]]>='Diet input details'!$C$19,Table13[[#This Row],[AGE (weeks)]]<='Diet input details'!$D$19),\"Ration 4\",IF(AND(Table13[[#This Row],[AGE (weeks)]]>='Diet input details'!$C$20,Table13[[#This Row],[AGE (weeks)]]<='Diet input details'!$D$20),\"Ration 5\", \"Clear\")))))","v":"Clear"},{"$f":"(VLOOKUP(Table13[[#This Row],[Ration]],Table22[#All],2,FALSE))","v":{"$error":"#N/A"}},75.199999999999989,1.925,{"$f":"Table13[[#This Row],[Bodyweight Mid-point (kg)]]*1000","v":1925},121,{"$f":"Table13[[#This Row],[Feed Intake Mid-point (g/bird/day)]]*7","v":847},{"$f":"Table13[[#This Row],[Feed Intake (g/bird/week)]]+J22","v":10643.5},62.099999999999994,{"$f":"(Table13[[#This Row],[Hen-Housed Eggs Cumulative Mid-point]]*Table13[[#This Row],[Average Egg Weight Mid-point (g/egg)]])","v":4669.9199999999992}]
["Brown Free-range",32,{"$f":"IF(AND(Table13[[#This Row],[AGE (weeks)]]>='Diet input details'!$C$16,Table13[[#This Row],[AGE (weeks)]]<='Diet input details'!$D$16),\"Ration 1\",IF(AND(Table13[[#This Row],[AGE (weeks)]]>='Diet input details'!$C$17,Table13[[#This Row],[AGE (weeks)]]<='Diet input details'!$D$17),\"Ration 2\",IF(AND(Table13[[#This Row],[AGE (weeks)]]>='Diet input details'!$C$18,Table13[[#This Row],[AGE (weeks)]]<='Diet input details'!$D$18),\"Ration 3\",IF(AND(Table13[[#This Row],[AGE (weeks)]]>='Diet input details'!$C$19,Table13[[#This Row],[AGE (weeks)]]<='Diet input details'!$D$19),\"Ration 4\",IF(AND(Table13[[#This Row],[AGE (weeks)]]>='Diet input details'!$C$20,Table13[[#This Row],[AGE (weeks)]]<='Diet input details'!$D$20),\"Ration 5\", \"Clear\")))))","v":"Clear"},{"$f":"(VLOOKUP(Table13[[#This Row],[Ration]],Table22[#All],2,FALSE))","v":{"$error":"#N/A"}},81.849999999999994,1.9350000000000001,{"$f":"Table13[[#This Row],[Bodyweight Mid-point (kg)]]*1000","v":1935},121,{"$f":"Table13[[#This Row],[Feed Intake Mid-point (g/bird/day)]]*7","v":847},{"$f":"Table13[[#This Row],[Feed Intake (g/bird/week)]]+J23","v":11490.5},62.3,{"$f":"(Table13[[#This Row],[Hen-Housed Eggs Cumulative Mid-point]]*Table13[[#This Row],[Average Egg Weight Mid-point (g/egg)]])","v":5099.2549999999992}]
["Brown Free-range",33,{"$f":"IF(AND(Table13[[#This Row],[AGE (weeks)]]>='Diet input details'!$C$16,Table13[[#This Row],[AGE (weeks)]]<='Diet input details'!$D$16),\"Ration 1\",IF(AND(Table13[[#This Row],[AGE (weeks)]]>='Diet input details'!$C$17,Table13[[#This Row],[AGE (weeks)]]<='Diet input details'!$D$17),\"Ration 2\",IF(AND(Table13[[#This Row],[AGE (weeks)]]>='Diet input details'!$C$18,Table13[[#This Row],[AGE (weeks)]]<='Diet input details'!$D$18),\"Ration 3\",IF(AND(Table13[[#This Row],[AGE (weeks)]]>='Diet input details'!$C$19,Table13[[#This Row],[AGE (weeks)]]<='Diet input details'!$D$19),\"Ration 4\",IF(AND(Table13[[#This Row],[AGE (weeks)]]>='Diet input details'!$C$20,Table13[[#This Row],[AGE (weeks)]]<='Diet input details'!$D$20),\"Ration 5\", \"Clear\")))))","v":"Clear"},{"$f":"(VLOOKUP(Table13[[#This Row],[Ration]],Table22[#All],2,FALSE))","v":{"$error":"#N/A"}},88.45,1.9350000000000001,{"$f":"Table13[[#This Row],[Bodyweight Mid-point (kg)]]*1000","v":1935},121,{"$f":"Table13[[#This Row],[Feed Intake Mid-point (g/bird/day)]]*7","v":847},{"$f":"Table13[[#This Row],[Feed Intake (g/bird/week)]]+J24","v":12337.5},62.599999999999994,{"$f":"(Table13[[#This Row],[Hen-Housed Eggs Cumulative Mid-point]]*Table13[[#This Row],[Average Egg Weight Mid-point (g/egg)]])","v":5536.9699999999993}]
["Brown Free-range",34,{"$f":"IF(AND(Table13[[#This Row],[AGE (weeks)]]>='Diet input details'!$C$16,Table13[[#This Row],[AGE (weeks)]]<='Diet input details'!$D$16),\"Ration 1\",IF(AND(Table13[[#This Row],[AGE (weeks)]]>='Diet input details'!$C$17,Table13[[#This Row],[AGE (weeks)]]<='Diet input details'!$D$17),\"Ration 2\",IF(AND(Table13[[#This Row],[AGE (weeks)]]>='Diet input details'!$C$18,Table13[[#This Row],[AGE (weeks)]]<='Diet input details'!$D$18),\"Ration 3\",IF(AND(Table13[[#This Row],[AGE (weeks)]]>='Diet input details'!$C$19,Table13[[#This Row],[AGE (weeks)]]<='Diet input details'!$D$19),\"Ration 4\",IF(AND(Table13[[#This Row],[AGE (weeks)]]>='Diet input details'!$C$20,Table13[[#This Row],[AGE (weeks)]]<='Diet input details'!$D$20),\"Ration 5\", \"Clear\")))))","v":"Clear"},{"$f":"(VLOOKUP(Table13[[#This Row],[Ration]],Table22[#All],2,FALSE))","v":{"$error":"#N/A"}},95.1,1.9449999999999998,{"$f":"Table13[[#This Row],[Bodyweight Mid-point (kg)]]*1000","v":1944.9999999999998},121,{"$f":"Table13[[#This Row],[Feed Intake Mid-point (g/bird/day)]]*7","v":847},{"$f":"Table13[[#This Row],[Feed Intake (g/bird/week)]]+J25","v":13184.5},62.8,{"$f":"(Table13[[#This Row],[Hen-Housed Eggs Cumulative Mid-point]]*Table13[[#This Row],[Average Egg Weight Mid-point (g/egg)]])","v":5972.28}]
["Brown Free-range",35,{"$f":"IF(AND(Table13[[#This Row],[AGE (weeks)]]>='Diet input details'!$C$16,Table13[[#This Row],[AGE (weeks)]]<='Diet input details'!$D$16),\"Ration 1\",IF(AND(Table13[[#This Row],[AGE (weeks)]]>='Diet input details'!$C$17,Table13[[#This Row],[AGE (weeks)]]<='Diet input details'!$D$17),\"Ration 2\",IF(AND(Table13[[#This Row],[AGE (weeks)]]>='Diet input details'!$C$18,Table13[[#This Row],[AGE (weeks)]]<='Diet input details'!$D$18),\"Ration 3\",IF(AND(Table13[[#This Row],[AGE (weeks)]]>='Diet input details'!$C$19,Table13[[#This Row],[AGE (weeks)]]<='Diet input details'!$D$19),\"Ration 4\",IF(AND(Table13[[#This Row],[AGE (weeks)]]>='Diet input details'!$C$20,Table13[[#This Row],[AGE (weeks)]]<='Diet input details'!$D$20),\"Ration 5\", \"Clear\")))))","v":"Clear"},{"$f":"(VLOOKUP(Table13[[#This Row],[Ration]],Table22[#All],2,FALSE))","v":{"$error":"#N/A"}},101.65,1.9449999999999998,{"$f":"Table13[[#This Row],[Bodyweight Mid-point (kg)]]*1000","v":1944.9999999999998},121,{"$f":"Table13[[#This Row],[Feed Intake Mid-point (g/bird/day)]]*7","v":847},{"$f":"Table13[[#This Row],[Feed Intake (g/bird/week)]]+J26","v":14031.5},63,{"$f":"(Table13[[#This Row],[Hen-Housed Eggs Cumulative Mid-point]]*Table13[[#This Row],[Average Egg Weight Mid-point (g/egg)]])","v":6403.9500000000007}]
["Brown Free-range",36,{"$f":"IF(AND(Table13[[#This Row],[AGE (weeks)]]>='Diet input details'!$C$16,Table13[[#This Row],[AGE (weeks)]]<='Diet input details'!$D$16),\"Ration 1\",IF(AND(Table13[[#This Row],[AGE (weeks)]]>='Diet input details'!$C$17,Table13[[#This Row],[AGE (weeks)]]<='Diet input details'!$D$17),\"Ration 2\",IF(AND(Table13[[#This Row],[AGE (weeks)]]>='Diet input details'!$C$18,Table13[[#This Row],[AGE (weeks)]]<='Diet input details'!$D$18),\"Ration 3\",IF(AND(Table13[[#This Row],[AGE (weeks)]]>='Diet input details'!$C$19,Table13[[#This Row],[AGE (weeks)]]<='Diet input details'!$D$19),\"Ration 4\",IF(AND(Table13[[#This Row],[AGE (weeks)]]>='Diet input details'!$C$20,Table13[[#This Row],[AGE (weeks)]]<='Diet input details'!$D$20),\"Ration 5\", \"Clear\")))))","v":"Clear"},{"$f":"(VLOOKUP(Table13[[#This Row],[Ration]],Table22[#All],2,FALSE))","v":{"$error":"#N/A"}},108.2,1.9449999999999998,{"$f":"Table13[[#This Row],[Bodyweight Mid-point (kg)]]*1000","v":1944.9999999999998},120,{"$f":"Table13[[#This Row],[Feed Intake Mid-point (g/bird/day)]]*7","v":840},{"$f":"Table13[[#This Row],[Feed Intake (g/bird/week)]]+J27","v":14871.5},63.2,{"$f":"(Table13[[#This Row],[Hen-Housed Eggs Cumulative Mid-point]]*Table13[[#This Row],[Average Egg Weight Mid-point (g/egg)]])","v":6838.2400000000007}]
["Brown Free-range",37,{"$f":"IF(AND(Table13[[#This Row],[AGE (weeks)]]>='Diet input details'!$C$16,Table13[[#This Row],[AGE (weeks)]]<='Diet input details'!$D$16),\"Ration 1\",IF(AND(Table13[[#This Row],[AGE (weeks)]]>='Diet input details'!$C$17,Table13[[#This Row],[AGE (weeks)]]<='Diet input details'!$D$17),\"Ration 2\",IF(AND(Table13[[#This Row],[AGE (weeks)]]>='Diet input details'!$C$18,Table13[[#This Row],[AGE (weeks)]]<='Diet input details'!$D$18),\"Ration 3\",IF(AND(Table13[[#This Row],[AGE (weeks)]]>='Diet input details'!$C$19,Table13[[#This Row],[AGE (weeks)]]<='Diet input details'!$D$19),\"Ration 4\",IF(AND(Table13[[#This Row],[AGE (weeks)]]>='Diet input details'!$C$20,Table13[[#This Row],[AGE (weeks)]]<='Diet input details'!$D$20),\"Ration 5\", \"Clear\")))))","v":"Clear"},{"$f":"(VLOOKUP(Table13[[#This Row],[Ration]],Table22[#All],2,FALSE))","v":{"$error":"#N/A"}},114.8,1.9449999999999998,{"$f":"Table13[[#This Row],[Bodyweight Mid-point (kg)]]*1000","v":1944.9999999999998},120,{"$f":"Table13[[#This Row],[Feed Intake Mid-point (g/bird/day)]]*7","v":840},{"$f":"Table13[[#This Row],[Feed Intake (g/bird/week)]]+J28","v":15711.5},63.349999999999994,{"$f":"(Table13[[#This Row],[Hen-Housed Eggs Cumulative Mid-point]]*Table13[[#This Row],[Average Egg Weight Mid-point (g/egg)]])","v":7272.579999999999}]
["Brown Free-range",38,{"$f":"IF(AND(Table13[[#This Row],[AGE (weeks)]]>='Diet input details'!$C$16,Table13[[#This Row],[AGE (weeks)]]<='Diet input details'!$D$16),\"Ration 1\",IF(AND(Table13[[#This Row],[AGE (weeks)]]>='Diet input details'!$C$17,Table13[[#This Row],[AGE (weeks)]]<='Diet input details'!$D$17),\"Ration 2\",IF(AND(Table13[[#This Row],[AGE (weeks)]]>='Diet input details'!$C$18,Table13[[#This Row],[AGE (weeks)]]<='Diet input details'!$D$18),\"Ration 3\",IF(AND(Table13[[#This Row],[AGE (weeks)]]>='Diet input details'!$C$19,Table13[[#This Row],[AGE (weeks)]]<='Diet input details'!$D$19),\"Ration 4\",IF(AND(Table13[[#This Row],[AGE (weeks)]]>='Diet input details'!$C$20,Table13[[#This Row],[AGE (weeks)]]<='Diet input details'!$D$20),\"Ration 5\", \"Clear\")))))","v":"Clear"},{"$f":"(VLOOKUP(Table13[[#This Row],[Ration]],Table22[#All],2,FALSE))","v":{"$error":"#N/A"}},121.35,1.9499999999999997,{"$f":"Table13[[#This Row],[Bodyweight Mid-point (kg)]]*1000","v":1949.9999999999998},120,{"$f":"Table13[[#This Row],[Feed Intake Mid-point (g/bird/day)]]*7","v":840},{"$f":"Table13[[#This Row],[Feed Intake (g/bird/week)]]+J29","v":16551.5},63.5,{"$f":"(Table13[[#This Row],[Hen-Housed Eggs Cumulative Mid-point]]*Table13[[#This Row],[Average Egg Weight Mid-point (g/egg)]])","v":7705.7249999999995}]
["Brown Free-range",39,{"$f":"IF(AND(Table13[[#This Row],[AGE (weeks)]]>='Diet input details'!$C$16,Table13[[#This Row],[AGE (weeks)]]<='Diet input details'!$D$16),\"Ration 1\",IF(AND(Table13[[#This Row],[AGE (weeks)]]>='Diet input details'!$C$17,Table13[[#This Row],[AGE (weeks)]]<='Diet input details'!$D$17),\"Ration 2\",IF(AND(Table13[[#This Row],[AGE (weeks)]]>='Diet input details'!$C$18,Table13[[#This Row],[AGE (weeks)]]<='Diet input details'!$D$18),\"Ration 3\",IF(AND(Table13[[#This Row],[AGE (weeks)]]>='Diet input details'!$C$19,Table13[[#This Row],[AGE (weeks)]]<='Diet input details'!$D$19),\"Ration 4\",IF(AND(Table13[[#This Row],[AGE (weeks)]]>='Diet input details'!$C$20,Table13[[#This Row],[AGE (weeks)]]<='Diet input details'!$D$20),\"Ration 5\", \"Clear\")))))","v":"Clear"},{"$f":"(VLOOKUP(Table13[[#This Row],[Ration]],Table22[#All],2,FALSE))","v":{"$error":"#N/A"}},127.85000000000001,1.9549999999999998,{"$f":"Table13[[#This Row],[Bodyweight Mid-point (kg)]]*1000","v":1954.9999999999998},120,{"$f":"Table13[[#This Row],[Feed Intake Mid-point (g/bird/day)]]*7","v":840},{"$f":"Table13[[#This Row],[Feed Intake (g/bird/week)]]+J30","v":17391.5},63.650000000000006,{"$f":"(Table13[[#This Row],[Hen-Housed Eggs Cumulative Mid-point]]*Table13[[#This Row],[Average Egg Weight Mid-point (g/egg)]])","v":8137.6525000000011}]
["Brown Free-range",40,{"$f":"IF(AND(Table13[[#This Row],[AGE (weeks)]]>='Diet input details'!$C$16,Table13[[#This Row],[AGE (weeks)]]<='Diet input details'!$D$16),\"Ration 1\",IF(AND(Table13[[#This Row],[AGE (weeks)]]>='Diet input details'!$C$17,Table13[[#This Row],[AGE (weeks)]]<='Diet input details'!$D$17),\"Ration 2\",IF(AND(Table13[[#This Row],[AGE (weeks)]]>='Diet input details'!$C$18,Table13[[#This Row],[AGE (weeks)]]<='Diet input details'!$D$18),\"Ration 3\",IF(AND(Table13[[#This Row],[AGE (weeks)]]>='Diet input details'!$C$19,Table13[[#This Row],[AGE (weeks)]]<='Diet input details'!$D$19),\"Ration 4\",IF(AND(Table13[[#This Row],[AGE (weeks)]]>='Diet input details'!$C$20,Table13[[#This Row],[AGE (weeks)]]<='Diet input details'!$D$20),\"Ration 5\", \"Clear\")))))","v":"Clear"},{"$f":"(VLOOKUP(Table13[[#This Row],[Ration]],Table22[#All],2,FALSE))","v":{"$error":"#N/A"}},134.35000000000002,1.9549999999999998,{"$f":"Table13[[#This Row],[Bodyweight Mid-point (kg)]]*1000","v":1954.9999999999998},120,{"$f":"Table13[[#This Row],[Feed Intake Mid-point (g/bird/day)]]*7","v":840},{"$f":"Table13[[#This Row],[Feed Intake (g/bird/week)]]+J31","v":18231.5},63.75,{"$f":"(Table13[[#This Row],[Hen-Housed Eggs Cumulative Mid-point]]*Table13[[#This Row],[Average Egg Weight Mid-point (g/egg)]])","v":8564.8125000000018}]
["Brown Free-range",41,{"$f":"IF(AND(Table13[[#This Row],[AGE (weeks)]]>='Diet input details'!$C$16,Table13[[#This Row],[AGE (weeks)]]<='Diet input details'!$D$16),\"Ration 1\",IF(AND(Table13[[#This Row],[AGE (weeks)]]>='Diet input details'!$C$17,Table13[[#This Row],[AGE (weeks)]]<='Diet input details'!$D$17),\"Ration 2\",IF(AND(Table13[[#This Row],[AGE (weeks)]]>='Diet input details'!$C$18,Table13[[#This Row],[AGE (weeks)]]<='Diet input details'!$D$18),\"Ration 3\",IF(AND(Table13[[#This Row],[AGE (weeks)]]>='Diet input details'!$C$19,Table13[[#This Row],[AGE (weeks)]]<='Diet input details'!$D$19),\"Ration 4\",IF(AND(Table13[[#This Row],[AGE (weeks)]]>='Diet input details'!$C$20,Table13[[#This Row],[AGE (weeks)]]<='Diet input details'!$D$20),\"Ration 5\", \"Clear\")))))","v":"Clear"},{"$f":"(VLOOKUP(Table13[[#This Row],[Ration]],Table22[#All],2,FALSE))","v":{"$error":"#N/A"}},140.85000000000002,1.96,{"$f":"Table13[[#This Row],[Bodyweight Mid-point (kg)]]*1000","v":1960},120,{"$f":"Table13[[#This Row],[Feed Intake Mid-point (g/bird/day)]]*7","v":840},{"$f":"Table13[[#This Row],[Feed Intake (g/bird/week)]]+J32","v":19071.5},63.849999999999994,{"$f":"(Table13[[#This Row],[Hen-Housed Eggs Cumulative Mid-point]]*Table13[[#This Row],[Average Egg Weight Mid-point (g/egg)]])","v":8993.2725000000009}]
["Brown Free-range",42,{"$f":"IF(AND(Table13[[#This Row],[AGE (weeks)]]>='Diet input details'!$C$16,Table13[[#This Row],[AGE (weeks)]]<='Diet input details'!$D$16),\"Ration 1\",IF(AND(Table13[[#This Row],[AGE (weeks)]]>='Diet input details'!$C$17,Table13[[#This Row],[AGE (weeks)]]<='Diet input details'!$D$17),\"Ration 2\",IF(AND(Table13[[#This Row],[AGE (weeks)]]>='Diet input details'!$C$18,Table13[[#This Row],[AGE (weeks)]]<='Diet input details'!$D$18),\"Ration 3\",IF(AND(Table13[[#This Row],[AGE (weeks)]]>='Diet input details'!$C$19,Table13[[#This Row],[AGE (weeks)]]<='Diet input details'!$D$19),\"Ration 4\",IF(AND(Table13[[#This Row],[AGE (weeks)]]>='Diet input details'!$C$20,Table13[[#This Row],[AGE (weeks)]]<='Diet input details'!$D$20),\"Ration 5\", \"Clear\")))))","v":"Clear"},{"$f":"(VLOOKUP(Table13[[#This Row],[Ration]],Table22[#All],2,FALSE))","v":{"$error":"#N/A"}},147.30000000000001,1.9649999999999999,{"$f":"Table13[[#This Row],[Bodyweight Mid-point (kg)]]*1000","v":1964.9999999999998},120,{"$f":"Table13[[#This Row],[Feed Intake Mid-point (g/bird/day)]]*7","v":840},{"$f":"Table13[[#This Row],[Feed Intake (g/bird/week)]]+J33","v":19911.5},63.9,{"$f":"(Table13[[#This Row],[Hen-Housed Eggs Cumulative Mid-point]]*Table13[[#This Row],[Average Egg Weight Mid-point (g/egg)]])","v":9412.4700000000012}]
["Brown Free-range",43,{"$f":"IF(AND(Table13[[#This Row],[AGE (weeks)]]>='Diet input details'!$C$16,Table13[[#This Row],[AGE (weeks)]]<='Diet input details'!$D$16),\"Ration 1\",IF(AND(Table13[[#This Row],[AGE (weeks)]]>='Diet input details'!$C$17,Table13[[#This Row],[AGE (weeks)]]<='Diet input details'!$D$17),\"Ration 2\",IF(AND(Table13[[#This Row],[AGE (weeks)]]>='Diet input details'!$C$18,Table13[[#This Row],[AGE (weeks)]]<='Diet input details'!$D$18),\"Ration 3\",IF(AND(Table13[[#This Row],[AGE (weeks)]]>='Diet input details'!$C$19,Table13[[#This Row],[AGE (weeks)]]<='Diet input details'!$D$19),\"Ration 4\",IF(AND(Table13[[#This Row],[AGE (weeks)]]>='Diet input details'!$C$20,Table13[[#This Row],[AGE (weeks)]]<='Diet input details'!$D$20),\"Ration 5\", \"Clear\")))))","v":"Clear"},{"$f":"(VLOOKUP(Table13[[#This Row],[Ration]],Table22[#All],2,FALSE))","v":{"$error":"#N/A"}},153.69999999999999,1.9649999999999999,{"$f":"Table13[[#This Row],[Bodyweight Mid-point (kg)]]*1000","v":1964.9999999999998},120,{"$f":"Table13[[#This Row],[Feed Intake Mid-point (g/bird/day)]]*7","v":840},{"$f":"Table13[[#This Row],[Feed Intake (g/bird/week)]]+J34","v":20751.5},64,{"$f":"(Table13[[#This Row],[Hen-Housed Eggs Cumulative Mid-point]]*Table13[[#This Row],[Average Egg Weight Mid-point (g/egg)]])","v":9836.7999999999993}]
["Brown Free-range",44,{"$f":"IF(AND(Table13[[#This Row],[AGE (weeks)]]>='Diet input details'!$C$16,Table13[[#This Row],[AGE (weeks)]]<='Diet input details'!$D$16),\"Ration 1\",IF(AND(Table13[[#This Row],[AGE (weeks)]]>='Diet input details'!$C$17,Table13[[#This Row],[AGE (weeks)]]<='Diet input details'!$D$17),\"Ration 2\",IF(AND(Table13[[#This Row],[AGE (weeks)]]>='Diet input details'!$C$18,Table13[[#This Row],[AGE (weeks)]]<='Diet input details'!$D$18),\"Ration 3\",IF(AND(Table13[[#This Row],[AGE (weeks)]]>='Diet input details'!$C$19,Table13[[#This Row],[AGE (weeks)]]<='Diet input details'!$D$19),\"Ration 4\",IF(AND(Table13[[#This Row],[AGE (weeks)]]>='Diet input details'!$C$20,Table13[[#This Row],[AGE (weeks)]]<='Diet input details'!$D$20),\"Ration 5\", \"Clear\")))))","v":"Clear"},{"$f":"(VLOOKUP(Table13[[#This Row],[Ration]],Table22[#All],2,FALSE))","v":{"$error":"#N/A"}},160.15,1.9649999999999999,{"$f":"Table13[[#This Row],[Bodyweight Mid-point (kg)]]*1000","v":1964.9999999999998},120,{"$f":"Table13[[#This Row],[Feed Intake Mid-point (g/bird/day)]]*7","v":840},{"$f":"Table13[[#This Row],[Feed Intake (g/bird/week)]]+J35","v":21591.5},64.05,{"$f":"(Table13[[#This Row],[Hen-Housed Eggs Cumulative Mid-point]]*Table13[[#This Row],[Average Egg Weight Mid-point (g/egg)]])","v":10257.6075}]
["Brown Free-range",45,{"$f":"IF(AND(Table13[[#This Row],[AGE (weeks)]]>='Diet input details'!$C$16,Table13[[#This Row],[AGE (weeks)]]<='Diet input details'!$D$16),\"Ration 1\",IF(AND(Table13[[#This Row],[AGE (weeks)]]>='Diet input details'!$C$17,Table13[[#This Row],[AGE (weeks)]]<='Diet input details'!$D$17),\"Ration 2\",IF(AND(Table13[[#This Row],[AGE (weeks)]]>='Diet input details'!$C$18,Table13[[#This Row],[AGE (weeks)]]<='Diet input details'!$D$18),\"Ration 3\",IF(AND(Table13[[#This Row],[AGE (weeks)]]>='Diet input details'!$C$19,Table13[[#This Row],[AGE (weeks)]]<='Diet input details'!$D$19),\"Ration 4\",IF(AND(Table13[[#This Row],[AGE (weeks)]]>='Diet input details'!$C$20,Table13[[#This Row],[AGE (weeks)]]<='Diet input details'!$D$20),\"Ration 5\", \"Clear\")))))","v":"Clear"},{"$f":"(VLOOKUP(Table13[[#This Row],[Ration]],Table22[#All],2,FALSE))","v":{"$error":"#N/A"}},166.55,1.9749999999999999,{"$f":"Table13[[#This Row],[Bodyweight Mid-point (kg)]]*1000","v":1974.9999999999998},120,{"$f":"Table13[[#This Row],[Feed Intake Mid-point (g/bird/day)]]*7","v":840},{"$f":"Table13[[#This Row],[Feed Intake (g/bird/week)]]+J36","v":22431.5},64.099999999999994,{"$f":"(Table13[[#This Row],[Hen-Housed Eggs Cumulative Mid-point]]*Table13[[#This Row],[Average Egg Weight Mid-point (g/egg)]])","v":10675.855}]
["Brown Free-range",46,{"$f":"IF(AND(Table13[[#This Row],[AGE (weeks)]]>='Diet input details'!$C$16,Table13[[#This Row],[AGE (weeks)]]<='Diet input details'!$D$16),\"Ration 1\",IF(AND(Table13[[#This Row],[AGE (weeks)]]>='Diet input details'!$C$17,Table13[[#This Row],[AGE (weeks)]]<='Diet input details'!$D$17),\"Ration 2\",IF(AND(Table13[[#This Row],[AGE (weeks)]]>='Diet input details'!$C$18,Table13[[#This Row],[AGE (weeks)]]<='Diet input details'!$D$18),\"Ration 3\",IF(AND(Table13[[#This Row],[AGE (weeks)]]>='Diet input details'!$C$19,Table13[[#This Row],[AGE (weeks)]]<='Diet input details'!$D$19),\"Ration 4\",IF(AND(Table13[[#This Row],[AGE (weeks)]]>='Diet input details'!$C$20,Table13[[#This Row],[AGE (weeks)]]<='Diet input details'!$D$20),\"Ration 5\", \"Clear\")))))","v":"Clear"},{"$f":"(VLOOKUP(Table13[[#This Row],[Ration]],Table22[#All],2,FALSE))","v":{"$error":"#N/A"}},172.85000000000002,1.9749999999999999,{"$f":"Table13[[#This Row],[Bodyweight Mid-point (kg)]]*1000","v":1974.9999999999998},120,{"$f":"Table13[[#This Row],[Feed Intake Mid-point (g/bird/day)]]*7","v":840},{"$f":"Table13[[#This Row],[Feed Intake (g/bird/week)]]+J37","v":23271.5},64.150000000000006,{"$f":"(Table13[[#This Row],[Hen-Housed Eggs Cumulative Mid-point]]*Table13[[#This Row],[Average Egg Weight Mid-point (g/egg)]])","v":11088.327500000003}]
["Brown Free-range",47,{"$f":"IF(AND(Table13[[#This Row],[AGE (weeks)]]>='Diet input details'!$C$16,Table13[[#This Row],[AGE (weeks)]]<='Diet input details'!$D$16),\"Ration 1\",IF(AND(Table13[[#This Row],[AGE (weeks)]]>='Diet input details'!$C$17,Table13[[#This Row],[AGE (weeks)]]<='Diet input details'!$D$17),\"Ration 2\",IF(AND(Table13[[#This Row],[AGE (weeks)]]>='Diet input details'!$C$18,Table13[[#This Row],[AGE (weeks)]]<='Diet input details'!$D$18),\"Ration 3\",IF(AND(Table13[[#This Row],[AGE (weeks)]]>='Diet input details'!$C$19,Table13[[#This Row],[AGE (weeks)]]<='Diet input details'!$D$19),\"Ration 4\",IF(AND(Table13[[#This Row],[AGE (weeks)]]>='Diet input details'!$C$20,Table13[[#This Row],[AGE (weeks)]]<='Diet input details'!$D$20),\"Ration 5\", \"Clear\")))))","v":"Clear"},{"$f":"(VLOOKUP(Table13[[#This Row],[Ration]],Table22[#All],2,FALSE))","v":{"$error":"#N/A"}},179.25,1.9749999999999999,{"$f":"Table13[[#This Row],[Bodyweight Mid-point (kg)]]*1000","v":1974.9999999999998},120,{"$f":"Table13[[#This Row],[Feed Intake Mid-point (g/bird/day)]]*7","v":840},{"$f":"Table13[[#This Row],[Feed Intake (g/bird/week)]]+J38","v":24111.5},64.25,{"$f":"(Table13[[#This Row],[Hen-Housed Eggs Cumulative Mid-point]]*Table13[[#This Row],[Average Egg Weight Mid-point (g/egg)]])","v":11516.8125}]
["Brown Free-range",48,{"$f":"IF(AND(Table13[[#This Row],[AGE (weeks)]]>='Diet input details'!$C$16,Table13[[#This Row],[AGE (weeks)]]<='Diet input details'!$D$16),\"Ration 1\",IF(AND(Table13[[#This Row],[AGE (weeks)]]>='Diet input details'!$C$17,Table13[[#This Row],[AGE (weeks)]]<='Diet input details'!$D$17),\"Ration 2\",IF(AND(Table13[[#This Row],[AGE (weeks)]]>='Diet input details'!$C$18,Table13[[#This Row],[AGE (weeks)]]<='Diet input details'!$D$18),\"Ration 3\",IF(AND(Table13[[#This Row],[AGE (weeks)]]>='Diet input details'!$C$19,Table13[[#This Row],[AGE (weeks)]]<='Diet input details'!$D$19),\"Ration 4\",IF(AND(Table13[[#This Row],[AGE (weeks)]]>='Diet input details'!$C$20,Table13[[#This Row],[AGE (weeks)]]<='Diet input details'!$D$20),\"Ration 5\", \"Clear\")))))","v":"Clear"},{"$f":"(VLOOKUP(Table13[[#This Row],[Ration]],Table22[#All],2,FALSE))","v":{"$error":"#N/A"}},185.6,1.9749999999999999,{"$f":"Table13[[#This Row],[Bodyweight Mid-point (kg)]]*1000","v":1974.9999999999998},120,{"$f":"Table13[[#This Row],[Feed Intake Mid-point (g/bird/day)]]*7","v":840},{"$f":"Table13[[#This Row],[Feed Intake (g/bird/week)]]+J39","v":24951.5},64.25,{"$f":"(Table13[[#This Row],[Hen-Housed Eggs Cumulative Mid-point]]*Table13[[#This Row],[Average Egg Weight Mid-point (g/egg)]])","v":11924.8}]
["Brown Free-range",49,{"$f":"IF(AND(Table13[[#This Row],[AGE (weeks)]]>='Diet input details'!$C$16,Table13[[#This Row],[AGE (weeks)]]<='Diet input details'!$D$16),\"Ration 1\",IF(AND(Table13[[#This Row],[AGE (weeks)]]>='Diet input details'!$C$17,Table13[[#This Row],[AGE (weeks)]]<='Diet input details'!$D$17),\"Ration 2\",IF(AND(Table13[[#This Row],[AGE (weeks)]]>='Diet input details'!$C$18,Table13[[#This Row],[AGE (weeks)]]<='Diet input details'!$D$18),\"Ration 3\",IF(AND(Table13[[#This Row],[AGE (weeks)]]>='Diet input details'!$C$19,Table13[[#This Row],[AGE (weeks)]]<='Diet input details'!$D$19),\"Ration 4\",IF(AND(Table13[[#This Row],[AGE (weeks)]]>='Diet input details'!$C$20,Table13[[#This Row],[AGE (weeks)]]<='Diet input details'!$D$20),\"Ration 5\", \"Clear\")))))","v":"Clear"},{"$f":"(VLOOKUP(Table13[[#This Row],[Ration]],Table22[#All],2,FALSE))","v":{"$error":"#N/A"}},191.85,1.9749999999999999,{"$f":"Table13[[#This Row],[Bodyweight Mid-point (kg)]]*1000","v":1974.9999999999998},120,{"$f":"Table13[[#This Row],[Feed Intake Mid-point (g/bird/day)]]*7","v":840},{"$f":"Table13[[#This Row],[Feed Intake (g/bird/week)]]+J40","v":25791.5},64.349999999999994,{"$f":"(Table13[[#This Row],[Hen-Housed Eggs Cumulative Mid-point]]*Table13[[#This Row],[Average Egg Weight Mid-point (g/egg)]])","v":12345.547499999999}]
["Brown Free-range",50,{"$f":"IF(AND(Table13[[#This Row],[AGE (weeks)]]>='Diet input details'!$C$16,Table13[[#This Row],[AGE (weeks)]]<='Diet input details'!$D$16),\"Ration 1\",IF(AND(Table13[[#This Row],[AGE (weeks)]]>='Diet input details'!$C$17,Table13[[#This Row],[AGE (weeks)]]<='Diet input details'!$D$17),\"Ration 2\",IF(AND(Table13[[#This Row],[AGE (weeks)]]>='Diet input details'!$C$18,Table13[[#This Row],[AGE (weeks)]]<='Diet input details'!$D$18),\"Ration 3\",IF(AND(Table13[[#This Row],[AGE (weeks)]]>='Diet input details'!$C$19,Table13[[#This Row],[AGE (weeks)]]<='Diet input details'!$D$19),\"Ration 4\",IF(AND(Table13[[#This Row],[AGE (weeks)]]>='Diet input details'!$C$20,Table13[[#This Row],[AGE (weeks)]]<='Diet input details'!$D$20),\"Ration 5\", \"Clear\")))))","v":"Clear"},{"$f":"(VLOOKUP(Table13[[#This Row],[Ration]],Table22[#All],2,FALSE))","v":{"$error":"#N/A"}},198.15,1.9749999999999999,{"$f":"Table13[[#This Row],[Bodyweight Mid-point (kg)]]*1000","v":1974.9999999999998},120,{"$f":"Table13[[#This Row],[Feed Intake Mid-point (g/bird/day)]]*7","v":840},{"$f":"Table13[[#This Row],[Feed Intake (g/bird/week)]]+J41","v":26631.5},64.349999999999994,{"$f":"(Table13[[#This Row],[Hen-Housed Eggs Cumulative Mid-point]]*Table13[[#This Row],[Average Egg Weight Mid-point (g/egg)]])","v":12750.952499999999}]
["Brown Free-range",51,{"$f":"IF(AND(Table13[[#This Row],[AGE (weeks)]]>='Diet input details'!$C$16,Table13[[#This Row],[AGE (weeks)]]<='Diet input details'!$D$16),\"Ration 1\",IF(AND(Table13[[#This Row],[AGE (weeks)]]>='Diet input details'!$C$17,Table13[[#This Row],[AGE (weeks)]]<='Diet input details'!$D$17),\"Ration 2\",IF(AND(Table13[[#This Row],[AGE (weeks)]]>='Diet input details'!$C$18,Table13[[#This Row],[AGE (weeks)]]<='Diet input details'!$D$18),\"Ration 3\",IF(AND(Table13[[#This Row],[AGE (weeks)]]>='Diet input details'!$C$19,Table13[[#This Row],[AGE (weeks)]]<='Diet input details'!$D$19),\"Ration 4\",IF(AND(Table13[[#This Row],[AGE (weeks)]]>='Diet input details'!$C$20,Table13[[#This Row],[AGE (weeks)]]<='Diet input details'!$D$20),\"Ration 5\", \"Clear\")))))","v":"Clear"},{"$f":"(VLOOKUP(Table13[[#This Row],[Ration]],Table22[#All],2,FALSE))","v":{"$error":"#N/A"}},204.4,1.9749999999999999,{"$f":"Table13[[#This Row],[Bodyweight Mid-point (kg)]]*1000","v":1974.9999999999998},120,{"$f":"Table13[[#This Row],[Feed Intake Mid-point (g/bird/day)]]*7","v":840},{"$f":"Table13[[#This Row],[Feed Intake (g/bird/week)]]+J42","v":27471.5},64.449999999999989,{"$f":"(Table13[[#This Row],[Hen-Housed Eggs Cumulative Mid-point]]*Table13[[#This Row],[Average Egg Weight Mid-point (g/egg)]])","v":13173.579999999998}]
["Brown Free-range",52,{"$f":"IF(AND(Table13[[#This Row],[AGE (weeks)]]>='Diet input details'!$C$16,Table13[[#This Row],[AGE (weeks)]]<='Diet input details'!$D$16),\"Ration 1\",IF(AND(Table13[[#This Row],[AGE (weeks)]]>='Diet input details'!$C$17,Table13[[#This Row],[AGE (weeks)]]<='Diet input details'!$D$17),\"Ration 2\",IF(AND(Table13[[#This Row],[AGE (weeks)]]>='Diet input details'!$C$18,Table13[[#This Row],[AGE (weeks)]]<='Diet input details'!$D$18),\"Ration 3\",IF(AND(Table13[[#This Row],[AGE (weeks)]]>='Diet input details'!$C$19,Table13[[#This Row],[AGE (weeks)]]<='Diet input details'!$D$19),\"Ration 4\",IF(AND(Table13[[#This Row],[AGE (weeks)]]>='Diet input details'!$C$20,Table13[[#This Row],[AGE (weeks)]]<='Diet input details'!$D$20),\"Ration 5\", \"Clear\")))))","v":"Clear"},{"$f":"(VLOOKUP(Table13[[#This Row],[Ration]],Table22[#All],2,FALSE))","v":{"$error":"#N/A"}},210.64999999999998,1.9749999999999999,{"$f":"Table13[[#This Row],[Bodyweight Mid-point (kg)]]*1000","v":1974.9999999999998},120,{"$f":"Table13[[#This Row],[Feed Intake Mid-point (g/bird/day)]]*7","v":840},{"$f":"Table13[[#This Row],[Feed Intake (g/bird/week)]]+J43","v":28311.5},64.449999999999989,{"$f":"(Table13[[#This Row],[Hen-Housed Eggs Cumulative Mid-point]]*Table13[[#This Row],[Average Egg Weight Mid-point (g/egg)]])","v":13576.392499999996}]
["Brown Free-range",53,{"$f":"IF(AND(Table13[[#This Row],[AGE (weeks)]]>='Diet input details'!$C$16,Table13[[#This Row],[AGE (weeks)]]<='Diet input details'!$D$16),\"Ration 1\",IF(AND(Table13[[#This Row],[AGE (weeks)]]>='Diet input details'!$C$17,Table13[[#This Row],[AGE (weeks)]]<='Diet input details'!$D$17),\"Ration 2\",IF(AND(Table13[[#This Row],[AGE (weeks)]]>='Diet input details'!$C$18,Table13[[#This Row],[AGE (weeks)]]<='Diet input details'!$D$18),\"Ration 3\",IF(AND(Table13[[#This Row],[AGE (weeks)]]>='Diet input details'!$C$19,Table13[[#This Row],[AGE (weeks)]]<='Diet input details'!$D$19),\"Ration 4\",IF(AND(Table13[[#This Row],[AGE (weeks)]]>='Diet input details'!$C$20,Table13[[#This Row],[AGE (weeks)]]<='Diet input details'!$D$20),\"Ration 5\", \"Clear\")))))","v":"Clear"},{"$f":"(VLOOKUP(Table13[[#This Row],[Ration]],Table22[#All],2,FALSE))","v":{"$error":"#N/A"}},216.85000000000002,1.9749999999999999,{"$f":"Table13[[#This Row],[Bodyweight Mid-point (kg)]]*1000","v":1974.9999999999998},120,{"$f":"Table13[[#This Row],[Feed Intake Mid-point (g/bird/day)]]*7","v":840},{"$f":"Table13[[#This Row],[Feed Intake (g/bird/week)]]+J44","v":29151.5},64.55,{"$f":"(Table13[[#This Row],[Hen-Housed Eggs Cumulative Mid-point]]*Table13[[#This Row],[Average Egg Weight Mid-point (g/egg)]])","v":13997.667500000001}]
["Brown Free-range",54,{"$f":"IF(AND(Table13[[#This Row],[AGE (weeks)]]>='Diet input details'!$C$16,Table13[[#This Row],[AGE (weeks)]]<='Diet input details'!$D$16),\"Ration 1\",IF(AND(Table13[[#This Row],[AGE (weeks)]]>='Diet input details'!$C$17,Table13[[#This Row],[AGE (weeks)]]<='Diet input details'!$D$17),\"Ration 2\",IF(AND(Table13[[#This Row],[AGE (weeks)]]>='Diet input details'!$C$18,Table13[[#This Row],[AGE (weeks)]]<='Diet input details'!$D$18),\"Ration 3\",IF(AND(Table13[[#This Row],[AGE (weeks)]]>='Diet input details'!$C$19,Table13[[#This Row],[AGE (weeks)]]<='Diet input details'!$D$19),\"Ration 4\",IF(AND(Table13[[#This Row],[AGE (weeks)]]>='Diet input details'!$C$20,Table13[[#This Row],[AGE (weeks)]]<='Diet input details'!$D$20),\"Ration 5\", \"Clear\")))))","v":"Clear"},{"$f":"(VLOOKUP(Table13[[#This Row],[Ration]],Table22[#All],2,FALSE))","v":{"$error":"#N/A"}},223.05,1.9749999999999999,{"$f":"Table13[[#This Row],[Bodyweight Mid-point (kg)]]*1000","v":1974.9999999999998},120,{"$f":"Table13[[#This Row],[Feed Intake Mid-point (g/bird/day)]]*7","v":840},{"$f":"Table13[[#This Row],[Feed Intake (g/bird/week)]]+J45","v":29991.5},64.55,{"$f":"(Table13[[#This Row],[Hen-Housed Eggs Cumulative Mid-point]]*Table13[[#This Row],[Average Egg Weight Mid-point (g/egg)]])","v":14397.877500000001}]
["Brown Free-range",55,{"$f":"IF(AND(Table13[[#This Row],[AGE (weeks)]]>='Diet input details'!$C$16,Table13[[#This Row],[AGE (weeks)]]<='Diet input details'!$D$16),\"Ration 1\",IF(AND(Table13[[#This Row],[AGE (weeks)]]>='Diet input details'!$C$17,Table13[[#This Row],[AGE (weeks)]]<='Diet input details'!$D$17),\"Ration 2\",IF(AND(Table13[[#This Row],[AGE (weeks)]]>='Diet input details'!$C$18,Table13[[#This Row],[AGE (weeks)]]<='Diet input details'!$D$18),\"Ration 3\",IF(AND(Table13[[#This Row],[AGE (weeks)]]>='Diet input details'!$C$19,Table13[[#This Row],[AGE (weeks)]]<='Diet input details'!$D$19),\"Ration 4\",IF(AND(Table13[[#This Row],[AGE (weeks)]]>='Diet input details'!$C$20,Table13[[#This Row],[AGE (weeks)]]<='Diet input details'!$D$20),\"Ration 5\", \"Clear\")))))","v":"Clear"},{"$f":"(VLOOKUP(Table13[[#This Row],[Ration]],Table22[#All],2,FALSE))","v":{"$error":"#N/A"}},229.2,1.9849999999999999,{"$f":"Table13[[#This Row],[Bodyweight Mid-point (kg)]]*1000","v":1984.9999999999998},120,{"$f":"Table13[[#This Row],[Feed Intake Mid-point (g/bird/day)]]*7","v":840},{"$f":"Table13[[#This Row],[Feed Intake (g/bird/week)]]+J46","v":30831.5},64.599999999999994,{"$f":"(Table13[[#This Row],[Hen-Housed Eggs Cumulative Mid-point]]*Table13[[#This Row],[Average Egg Weight Mid-point (g/egg)]])","v":14806.319999999998}]
["Brown Free-range",56,{"$f":"IF(AND(Table13[[#This Row],[AGE (weeks)]]>='Diet input details'!$C$16,Table13[[#This Row],[AGE (weeks)]]<='Diet input details'!$D$16),\"Ration 1\",IF(AND(Table13[[#This Row],[AGE (weeks)]]>='Diet input details'!$C$17,Table13[[#This Row],[AGE (weeks)]]<='Diet input details'!$D$17),\"Ration 2\",IF(AND(Table13[[#This Row],[AGE (weeks)]]>='Diet input details'!$C$18,Table13[[#This Row],[AGE (weeks)]]<='Diet input details'!$D$18),\"Ration 3\",IF(AND(Table13[[#This Row],[AGE (weeks)]]>='Diet input details'!$C$19,Table13[[#This Row],[AGE (weeks)]]<='Diet input details'!$D$19),\"Ration 4\",IF(AND(Table13[[#This Row],[AGE (weeks)]]>='Diet input details'!$C$20,Table13[[#This Row],[AGE (weeks)]]<='Diet input details'!$D$20),\"Ration 5\", \"Clear\")))))","v":"Clear"},{"$f":"(VLOOKUP(Table13[[#This Row],[Ration]],Table22[#All],2,FALSE))","v":{"$error":"#N/A"}},235.39999999999998,1.9849999999999999,{"$f":"Table13[[#This Row],[Bodyweight Mid-point (kg)]]*1000","v":1984.9999999999998},120,{"$f":"Table13[[#This Row],[Feed Intake Mid-point (g/bird/day)]]*7","v":840},{"$f":"Table13[[#This Row],[Feed Intake (g/bird/week)]]+J47","v":31671.5},64.650000000000006,{"$f":"(Table13[[#This Row],[Hen-Housed Eggs Cumulative Mid-point]]*Table13[[#This Row],[Average Egg Weight Mid-point (g/egg)]])","v":15218.61}]
["Brown Free-range",57,{"$f":"IF(AND(Table13[[#This Row],[AGE (weeks)]]>='Diet input details'!$C$16,Table13[[#This Row],[AGE (weeks)]]<='Diet input details'!$D$16),\"Ration 1\",IF(AND(Table13[[#This Row],[AGE (weeks)]]>='Diet input details'!$C$17,Table13[[#This Row],[AGE (weeks)]]<='Diet input details'!$D$17),\"Ration 2\",IF(AND(Table13[[#This Row],[AGE (weeks)]]>='Diet input details'!$C$18,Table13[[#This Row],[AGE (weeks)]]<='Diet input details'!$D$18),\"Ration 3\",IF(AND(Table13[[#This Row],[AGE (weeks)]]>='Diet input details'!$C$19,Table13[[#This Row],[AGE (weeks)]]<='Diet input details'!$D$19),\"Ration 4\",IF(AND(Table13[[#This Row],[AGE (weeks)]]>='Diet input details'!$C$20,Table13[[#This Row],[AGE (weeks)]]<='Diet input details'!$D$20),\"Ration 5\", \"Clear\")))))","v":"Clear"},{"$f":"(VLOOKUP(Table13[[#This Row],[Ration]],Table22[#All],2,FALSE))","v":{"$error":"#N/A"}},241.5,1.9849999999999999,{"$f":"Table13[[#This Row],[Bodyweight Mid-point (kg)]]*1000","v":1984.9999999999998},120,{"$f":"Table13[[#This Row],[Feed Intake Mid-point (g/bird/day)]]*7","v":840},{"$f":"Table13[[#This Row],[Feed Intake (g/bird/week)]]+J48","v":32511.5},64.7,{"$f":"(Table13[[#This Row],[Hen-Housed Eggs Cumulative Mid-point]]*Table13[[#This Row],[Average Egg Weight Mid-point (g/egg)]])","v":15625.050000000001}]
["Brown Free-range",58,{"$f":"IF(AND(Table13[[#This Row],[AGE (weeks)]]>='Diet input details'!$C$16,Table13[[#This Row],[AGE (weeks)]]<='Diet input details'!$D$16),\"Ration 1\",IF(AND(Table13[[#This Row],[AGE (weeks)]]>='Diet input details'!$C$17,Table13[[#This Row],[AGE (weeks)]]<='Diet input details'!$D$17),\"Ration 2\",IF(AND(Table13[[#This Row],[AGE (weeks)]]>='Diet input details'!$C$18,Table13[[#This Row],[AGE (weeks)]]<='Diet input details'!$D$18),\"Ration 3\",IF(AND(Table13[[#This Row],[AGE (weeks)]]>='Diet input details'!$C$19,Table13[[#This Row],[AGE (weeks)]]<='Diet input details'!$D$19),\"Ration 4\",IF(AND(Table13[[#This Row],[AGE (weeks)]]>='Diet input details'!$C$20,Table13[[#This Row],[AGE (weeks)]]<='Diet input details'!$D$20),\"Ration 5\", \"Clear\")))))","v":"Clear"},{"$f":"(VLOOKUP(Table13[[#This Row],[Ration]],Table22[#All],2,FALSE))","v":{"$error":"#N/A"}},247.7,1.9849999999999999,{"$f":"Table13[[#This Row],[Bodyweight Mid-point (kg)]]*1000","v":1984.9999999999998},120,{"$f":"Table13[[#This Row],[Feed Intake Mid-point (g/bird/day)]]*7","v":840},{"$f":"Table13[[#This Row],[Feed Intake (g/bird/week)]]+J49","v":33351.5},64.7,{"$f":"(Table13[[#This Row],[Hen-Housed Eggs Cumulative Mid-point]]*Table13[[#This Row],[Average Egg Weight Mid-point (g/egg)]])","v":16026.19}]
["Brown Free-range",59,{"$f":"IF(AND(Table13[[#This Row],[AGE (weeks)]]>='Diet input details'!$C$16,Table13[[#This Row],[AGE (weeks)]]<='Diet input details'!$D$16),\"Ration 1\",IF(AND(Table13[[#This Row],[AGE (weeks)]]>='Diet input details'!$C$17,Table13[[#This Row],[AGE (weeks)]]<='Diet input details'!$D$17),\"Ration 2\",IF(AND(Table13[[#This Row],[AGE (weeks)]]>='Diet input details'!$C$18,Table13[[#This Row],[AGE (weeks)]]<='Diet input details'!$D$18),\"Ration 3\",IF(AND(Table13[[#This Row],[AGE (weeks)]]>='Diet input details'!$C$19,Table13[[#This Row],[AGE (weeks)]]<='Diet input details'!$D$19),\"Ration 4\",IF(AND(Table13[[#This Row],[AGE (weeks)]]>='Diet input details'!$C$20,Table13[[#This Row],[AGE (weeks)]]<='Diet input details'!$D$20),\"Ration 5\", \"Clear\")))))","v":"Clear"},{"$f":"(VLOOKUP(Table13[[#This Row],[Ration]],Table22[#All],2,FALSE))","v":{"$error":"#N/A"}},253.79999999999998,1.9849999999999999,{"$f":"Table13[[#This Row],[Bodyweight Mid-point (kg)]]*1000","v":1984.9999999999998},120,{"$f":"Table13[[#This Row],[Feed Intake Mid-point (g/bird/day)]]*7","v":840},{"$f":"Table13[[#This Row],[Feed Intake (g/bird/week)]]+J50","v":34191.5},64.8,{"$f":"(Table13[[#This Row],[Hen-Housed Eggs Cumulative Mid-point]]*Table13[[#This Row],[Average Egg Weight Mid-point (g/egg)]])","v":16446.239999999998}]
["Brown Free-range",60,{"$f":"IF(AND(Table13[[#This Row],[AGE (weeks)]]>='Diet input details'!$C$16,Table13[[#This Row],[AGE (weeks)]]<='Diet input details'!$D$16),\"Ration 1\",IF(AND(Table13[[#This Row],[AGE (weeks)]]>='Diet input details'!$C$17,Table13[[#This Row],[AGE (weeks)]]<='Diet input details'!$D$17),\"Ration 2\",IF(AND(Table13[[#This Row],[AGE (weeks)]]>='Diet input details'!$C$18,Table13[[#This Row],[AGE (weeks)]]<='Diet input details'!$D$18),\"Ration 3\",IF(AND(Table13[[#This Row],[AGE (weeks)]]>='Diet input details'!$C$19,Table13[[#This Row],[AGE (weeks)]]<='Diet input details'!$D$19),\"Ration 4\",IF(AND(Table13[[#This Row],[AGE (weeks)]]>='Diet input details'!$C$20,Table13[[#This Row],[AGE (weeks)]]<='Diet input details'!$D$20),\"Ration 5\", \"Clear\")))))","v":"Clear"},{"$f":"(VLOOKUP(Table13[[#This Row],[Ration]],Table22[#All],2,FALSE))","v":{"$error":"#N/A"}},259.8,1.9849999999999999,{"$f":"Table13[[#This Row],[Bodyweight Mid-point (kg)]]*1000","v":1984.9999999999998},120,{"$f":"Table13[[#This Row],[Feed Intake Mid-point (g/bird/day)]]*7","v":840},{"$f":"Table13[[#This Row],[Feed Intake (g/bird/week)]]+J51","v":35031.5},64.8,{"$f":"(Table13[[#This Row],[Hen-Housed Eggs Cumulative Mid-point]]*Table13[[#This Row],[Average Egg Weight Mid-point (g/egg)]])","v":16835.04}]
["Brown Free-range",61,{"$f":"IF(AND(Table13[[#This Row],[AGE (weeks)]]>='Diet input details'!$C$16,Table13[[#This Row],[AGE (weeks)]]<='Diet input details'!$D$16),\"Ration 1\",IF(AND(Table13[[#This Row],[AGE (weeks)]]>='Diet input details'!$C$17,Table13[[#This Row],[AGE (weeks)]]<='Diet input details'!$D$17),\"Ration 2\",IF(AND(Table13[[#This Row],[AGE (weeks)]]>='Diet input details'!$C$18,Table13[[#This Row],[AGE (weeks)]]<='Diet input details'!$D$18),\"Ration 3\",IF(AND(Table13[[#This Row],[AGE (weeks)]]>='Diet input details'!$C$19,Table13[[#This Row],[AGE (weeks)]]<='Diet input details'!$D$19),\"Ration 4\",IF(AND(Table13[[#This Row],[AGE (weeks)]]>='Diet input details'!$C$20,Table13[[#This Row],[AGE (weeks)]]<='Diet input details'!$D$20),\"Ration 5\", \"Clear\")))))","v":"Clear"},{"$f":"(VLOOKUP(Table13[[#This Row],[Ration]],Table22[#All],2,FALSE))","v":{"$error":"#N/A"}},265.89999999999998,1.9849999999999999,{"$f":"Table13[[#This Row],[Bodyweight Mid-point (kg)]]*1000","v":1984.9999999999998},120,{"$f":"Table13[[#This Row],[Feed Intake Mid-point (g/bird/day)]]*7","v":840},{"$f":"Table13[[#This Row],[Feed Intake (g/bird/week)]]+J52","v":35871.5},64.849999999999994,{"$f":"(Table13[[#This Row],[Hen-Housed Eggs Cumulative Mid-point]]*Table13[[#This Row],[Average Egg Weight Mid-point (g/egg)]])","v":17243.614999999998}]
["Brown Free-range",62,{"$f":"IF(AND(Table13[[#This Row],[AGE (weeks)]]>='Diet input details'!$C$16,Table13[[#This Row],[AGE (weeks)]]<='Diet input details'!$D$16),\"Ration 1\",IF(AND(Table13[[#This Row],[AGE (weeks)]]>='Diet input details'!$C$17,Table13[[#This Row],[AGE (weeks)]]<='Diet input details'!$D$17),\"Ration 2\",IF(AND(Table13[[#This Row],[AGE (weeks)]]>='Diet input details'!$C$18,Table13[[#This Row],[AGE (weeks)]]<='Diet input details'!$D$18),\"Ration 3\",IF(AND(Table13[[#This Row],[AGE (weeks)]]>='Diet input details'!$C$19,Table13[[#This Row],[AGE (weeks)]]<='Diet input details'!$D$19),\"Ration 4\",IF(AND(Table13[[#This Row],[AGE (weeks)]]>='Diet input details'!$C$20,Table13[[#This Row],[AGE (weeks)]]<='Diet input details'!$D$20),\"Ration 5\", \"Clear\")))))","v":"Clear"},{"$f":"(VLOOKUP(Table13[[#This Row],[Ration]],Table22[#All],2,FALSE))","v":{"$error":"#N/A"}},271.89999999999998,1.9849999999999999,{"$f":"Table13[[#This Row],[Bodyweight Mid-point (kg)]]*1000","v":1984.9999999999998},120,{"$f":"Table13[[#This Row],[Feed Intake Mid-point (g/bird/day)]]*7","v":840},{"$f":"Table13[[#This Row],[Feed Intake (g/bird/week)]]+J53","v":36711.5},64.900000000000006,{"$f":"(Table13[[#This Row],[Hen-Housed Eggs Cumulative Mid-point]]*Table13[[#This Row],[Average Egg Weight Mid-point (g/egg)]])","v":17646.310000000001}]
["Brown Free-range",63,{"$f":"IF(AND(Table13[[#This Row],[AGE (weeks)]]>='Diet input details'!$C$16,Table13[[#This Row],[AGE (weeks)]]<='Diet input details'!$D$16),\"Ration 1\",IF(AND(Table13[[#This Row],[AGE (weeks)]]>='Diet input details'!$C$17,Table13[[#This Row],[AGE (weeks)]]<='Diet input details'!$D$17),\"Ration 2\",IF(AND(Table13[[#This Row],[AGE (weeks)]]>='Diet input details'!$C$18,Table13[[#This Row],[AGE (weeks)]]<='Diet input details'!$D$18),\"Ration 3\",IF(AND(Table13[[#This Row],[AGE (weeks)]]>='Diet input details'!$C$19,Table13[[#This Row],[AGE (weeks)]]<='Diet input details'!$D$19),\"Ration 4\",IF(AND(Table13[[#This Row],[AGE (weeks)]]>='Diet input details'!$C$20,Table13[[#This Row],[AGE (weeks)]]<='Diet input details'!$D$20),\"Ration 5\", \"Clear\")))))","v":"Clear"},{"$f":"(VLOOKUP(Table13[[#This Row],[Ration]],Table22[#All],2,FALSE))","v":{"$error":"#N/A"}},277.89999999999998,1.9849999999999999,{"$f":"Table13[[#This Row],[Bodyweight Mid-point (kg)]]*1000","v":1984.9999999999998},120,{"$f":"Table13[[#This Row],[Feed Intake Mid-point (g/bird/day)]]*7","v":840},{"$f":"Table13[[#This Row],[Feed Intake (g/bird/week)]]+J54","v":37551.5},64.95,{"$f":"(Table13[[#This Row],[Hen-Housed Eggs Cumulative Mid-point]]*Table13[[#This Row],[Average Egg Weight Mid-point (g/egg)]])","v":18049.605}]
["Brown Free-range",64,{"$f":"IF(AND(Table13[[#This Row],[AGE (weeks)]]>='Diet input details'!$C$16,Table13[[#This Row],[AGE (weeks)]]<='Diet input details'!$D$16),\"Ration 1\",IF(AND(Table13[[#This Row],[AGE (weeks)]]>='Diet input details'!$C$17,Table13[[#This Row],[AGE (weeks)]]<='Diet input details'!$D$17),\"Ration 2\",IF(AND(Table13[[#This Row],[AGE (weeks)]]>='Diet input details'!$C$18,Table13[[#This Row],[AGE (weeks)]]<='Diet input details'!$D$18),\"Ration 3\",IF(AND(Table13[[#This Row],[AGE (weeks)]]>='Diet input details'!$C$19,Table13[[#This Row],[AGE (weeks)]]<='Diet input details'!$D$19),\"Ration 4\",IF(AND(Table13[[#This Row],[AGE (weeks)]]>='Diet input details'!$C$20,Table13[[#This Row],[AGE (weeks)]]<='Diet input details'!$D$20),\"Ration 5\", \"Clear\")))))","v":"Clear"},{"$f":"(VLOOKUP(Table13[[#This Row],[Ration]],Table22[#All],2,FALSE))","v":{"$error":"#N/A"}},283.89999999999998,1.9849999999999999,{"$f":"Table13[[#This Row],[Bodyweight Mid-point (kg)]]*1000","v":1984.9999999999998},120,{"$f":"Table13[[#This Row],[Feed Intake Mid-point (g/bird/day)]]*7","v":840},{"$f":"Table13[[#This Row],[Feed Intake (g/bird/week)]]+J55","v":38391.5},64.95,{"$f":"(Table13[[#This Row],[Hen-Housed Eggs Cumulative Mid-point]]*Table13[[#This Row],[Average Egg Weight Mid-point (g/egg)]])","v":18439.305}]
["Brown Free-range",65,{"$f":"IF(AND(Table13[[#This Row],[AGE (weeks)]]>='Diet input details'!$C$16,Table13[[#This Row],[AGE (weeks)]]<='Diet input details'!$D$16),\"Ration 1\",IF(AND(Table13[[#This Row],[AGE (weeks)]]>='Diet input details'!$C$17,Table13[[#This Row],[AGE (weeks)]]<='Diet input details'!$D$17),\"Ration 2\",IF(AND(Table13[[#This Row],[AGE (weeks)]]>='Diet input details'!$C$18,Table13[[#This Row],[AGE (weeks)]]<='Diet input details'!$D$18),\"Ration 3\",IF(AND(Table13[[#This Row],[AGE (weeks)]]>='Diet input details'!$C$19,Table13[[#This Row],[AGE (weeks)]]<='Diet input details'!$D$19),\"Ration 4\",IF(AND(Table13[[#This Row],[AGE (weeks)]]>='Diet input details'!$C$20,Table13[[#This Row],[AGE (weeks)]]<='Diet input details'!$D$20),\"Ration 5\", \"Clear\")))))","v":"Clear"},{"$f":"(VLOOKUP(Table13[[#This Row],[Ration]],Table22[#All],2,FALSE))","v":{"$error":"#N/A"}},289.85000000000002,1.9849999999999999,{"$f":"Table13[[#This Row],[Bodyweight Mid-point (kg)]]*1000","v":1984.9999999999998},120,{"$f":"Table13[[#This Row],[Feed Intake Mid-point (g/bird/day)]]*7","v":840},{"$f":"Table13[[#This Row],[Feed Intake (g/bird/week)]]+J56","v":39231.5},65.05,{"$f":"(Table13[[#This Row],[Hen-Housed Eggs Cumulative Mid-point]]*Table13[[#This Row],[Average Egg Weight Mid-point (g/egg)]])","v":18854.7425}]
["Brown Free-range",66,{"$f":"IF(AND(Table13[[#This Row],[AGE (weeks)]]>='Diet input details'!$C$16,Table13[[#This Row],[AGE (weeks)]]<='Diet input details'!$D$16),\"Ration 1\",IF(AND(Table13[[#This Row],[AGE (weeks)]]>='Diet input details'!$C$17,Table13[[#This Row],[AGE (weeks)]]<='Diet input details'!$D$17),\"Ration 2\",IF(AND(Table13[[#This Row],[AGE (weeks)]]>='Diet input details'!$C$18,Table13[[#This Row],[AGE (weeks)]]<='Diet input details'!$D$18),\"Ration 3\",IF(AND(Table13[[#This Row],[AGE (weeks)]]>='Diet input details'!$C$19,Table13[[#This Row],[AGE (weeks)]]<='Diet input details'!$D$19),\"Ration 4\",IF(AND(Table13[[#This Row],[AGE (weeks)]]>='Diet input details'!$C$20,Table13[[#This Row],[AGE (weeks)]]<='Diet input details'!$D$20),\"Ration 5\", \"Clear\")))))","v":"Clear"},{"$f":"(VLOOKUP(Table13[[#This Row],[Ration]],Table22[#All],2,FALSE))","v":{"$error":"#N/A"}},295.75,1.9849999999999999,{"$f":"Table13[[#This Row],[Bodyweight Mid-point (kg)]]*1000","v":1984.9999999999998},120,{"$f":"Table13[[#This Row],[Feed Intake Mid-point (g/bird/day)]]*7","v":840},{"$f":"Table13[[#This Row],[Feed Intake (g/bird/week)]]+J57","v":40071.5},65.05,{"$f":"(Table13[[#This Row],[Hen-Housed Eggs Cumulative Mid-point]]*Table13[[#This Row],[Average Egg Weight Mid-point (g/egg)]])","v":19238.537499999999}]
["Brown Free-range",67,{"$f":"IF(AND(Table13[[#This Row],[AGE (weeks)]]>='Diet input details'!$C$16,Table13[[#This Row],[AGE (weeks)]]<='Diet input details'!$D$16),\"Ration 1\",IF(AND(Table13[[#This Row],[AGE (weeks)]]>='Diet input details'!$C$17,Table13[[#This Row],[AGE (weeks)]]<='Diet input details'!$D$17),\"Ration 2\",IF(AND(Table13[[#This Row],[AGE (weeks)]]>='Diet input details'!$C$18,Table13[[#This Row],[AGE (weeks)]]<='Diet input details'!$D$18),\"Ration 3\",IF(AND(Table13[[#This Row],[AGE (weeks)]]>='Diet input details'!$C$19,Table13[[#This Row],[AGE (weeks)]]<='Diet input details'!$D$19),\"Ration 4\",IF(AND(Table13[[#This Row],[AGE (weeks)]]>='Diet input details'!$C$20,Table13[[#This Row],[AGE (weeks)]]<='Diet input details'!$D$20),\"Ration 5\", \"Clear\")))))","v":"Clear"},{"$f":"(VLOOKUP(Table13[[#This Row],[Ration]],Table22[#All],2,FALSE))","v":{"$error":"#N/A"}},301.64999999999998,1.9849999999999999,{"$f":"Table13[[#This Row],[Bodyweight Mid-point (kg)]]*1000","v":1984.9999999999998},120,{"$f":"Table13[[#This Row],[Feed Intake Mid-point (g/bird/day)]]*7","v":840},{"$f":"Table13[[#This Row],[Feed Intake (g/bird/week)]]+J58","v":40911.5},65.099999999999994,{"$f":"(Table13[[#This Row],[Hen-Housed Eggs Cumulative Mid-point]]*Table13[[#This Row],[Average Egg Weight Mid-point (g/egg)]])","v":19637.414999999997}]
["Brown Free-range",68,{"$f":"IF(AND(Table13[[#This Row],[AGE (weeks)]]>='Diet input details'!$C$16,Table13[[#This Row],[AGE (weeks)]]<='Diet input details'!$D$16),\"Ration 1\",IF(AND(Table13[[#This Row],[AGE (weeks)]]>='Diet input details'!$C$17,Table13[[#This Row],[AGE (weeks)]]<='Diet input details'!$D$17),\"Ration 2\",IF(AND(Table13[[#This Row],[AGE (weeks)]]>='Diet input details'!$C$18,Table13[[#This Row],[AGE (weeks)]]<='Diet input details'!$D$18),\"Ration 3\",IF(AND(Table13[[#This Row],[AGE (weeks)]]>='Diet input details'!$C$19,Table13[[#This Row],[AGE (weeks)]]<='Diet input details'!$D$19),\"Ration 4\",IF(AND(Table13[[#This Row],[AGE (weeks)]]>='Diet input details'!$C$20,Table13[[#This Row],[AGE (weeks)]]<='Diet input details'!$D$20),\"Ration 5\", \"Clear\")))))","v":"Clear"},{"$f":"(VLOOKUP(Table13[[#This Row],[Ration]],Table22[#All],2,FALSE))","v":{"$error":"#N/A"}},307.5,1.9849999999999999,{"$f":"Table13[[#This Row],[Bodyweight Mid-point (kg)]]*1000","v":1984.9999999999998},120,{"$f":"Table13[[#This Row],[Feed Intake Mid-point (g/bird/day)]]*7","v":840},{"$f":"Table13[[#This Row],[Feed Intake (g/bird/week)]]+J59","v":41751.5},65.099999999999994,{"$f":"(Table13[[#This Row],[Hen-Housed Eggs Cumulative Mid-point]]*Table13[[#This Row],[Average Egg Weight Mid-point (g/egg)]])","v":20018.25}]
["Brown Free-range",69,{"$f":"IF(AND(Table13[[#This Row],[AGE (weeks)]]>='Diet input details'!$C$16,Table13[[#This Row],[AGE (weeks)]]<='Diet input details'!$D$16),\"Ration 1\",IF(AND(Table13[[#This Row],[AGE (weeks)]]>='Diet input details'!$C$17,Table13[[#This Row],[AGE (weeks)]]<='Diet input details'!$D$17),\"Ration 2\",IF(AND(Table13[[#This Row],[AGE (weeks)]]>='Diet input details'!$C$18,Table13[[#This Row],[AGE (weeks)]]<='Diet input details'!$D$18),\"Ration 3\",IF(AND(Table13[[#This Row],[AGE (weeks)]]>='Diet input details'!$C$19,Table13[[#This Row],[AGE (weeks)]]<='Diet input details'!$D$19),\"Ration 4\",IF(AND(Table13[[#This Row],[AGE (weeks)]]>='Diet input details'!$C$20,Table13[[#This Row],[AGE (weeks)]]<='Diet input details'!$D$20),\"Ration 5\", \"Clear\")))))","v":"Clear"},{"$f":"(VLOOKUP(Table13[[#This Row],[Ration]],Table22[#All],2,FALSE))","v":{"$error":"#N/A"}},313.35000000000002,1.9849999999999999,{"$f":"Table13[[#This Row],[Bodyweight Mid-point (kg)]]*1000","v":1984.9999999999998},120,{"$f":"Table13[[#This Row],[Feed Intake Mid-point (g/bird/day)]]*7","v":840},{"$f":"Table13[[#This Row],[Feed Intake (g/bird/week)]]+J60","v":42591.5},65.099999999999994,{"$f":"(Table13[[#This Row],[Hen-Housed Eggs Cumulative Mid-point]]*Table13[[#This Row],[Average Egg Weight Mid-point (g/egg)]])","v":20399.084999999999}]
["Brown Free-range",70,{"$f":"IF(AND(Table13[[#This Row],[AGE (weeks)]]>='Diet input details'!$C$16,Table13[[#This Row],[AGE (weeks)]]<='Diet input details'!$D$16),\"Ration 1\",IF(AND(Table13[[#This Row],[AGE (weeks)]]>='Diet input details'!$C$17,Table13[[#This Row],[AGE (weeks)]]<='Diet input details'!$D$17),\"Ration 2\",IF(AND(Table13[[#This Row],[AGE (weeks)]]>='Diet input details'!$C$18,Table13[[#This Row],[AGE (weeks)]]<='Diet input details'!$D$18),\"Ration 3\",IF(AND(Table13[[#This Row],[AGE (weeks)]]>='Diet input details'!$C$19,Table13[[#This Row],[AGE (weeks)]]<='Diet input details'!$D$19),\"Ration 4\",IF(AND(Table13[[#This Row],[AGE (weeks)]]>='Diet input details'!$C$20,Table13[[#This Row],[AGE (weeks)]]<='Diet input details'!$D$20),\"Ration 5\", \"Clear\")))))","v":"Clear"},{"$f":"(VLOOKUP(Table13[[#This Row],[Ration]],Table22[#All],2,FALSE))","v":{"$error":"#N/A"}},319.10000000000002,1.9849999999999999,{"$f":"Table13[[#This Row],[Bodyweight Mid-point (kg)]]*1000","v":1984.9999999999998},120,{"$f":"Table13[[#This Row],[Feed Intake Mid-point (g/bird/day)]]*7","v":840},{"$f":"Table13[[#This Row],[Feed Intake (g/bird/week)]]+J61","v":43431.5},65.2,{"$f":"(Table13[[#This Row],[Hen-Housed Eggs Cumulative Mid-point]]*Table13[[#This Row],[Average Egg Weight Mid-point (g/egg)]])","v":20805.320000000003}]
["Brown Free-range",71,{"$f":"IF(AND(Table13[[#This Row],[AGE (weeks)]]>='Diet input details'!$C$16,Table13[[#This Row],[AGE (weeks)]]<='Diet input details'!$D$16),\"Ration 1\",IF(AND(Table13[[#This Row],[AGE (weeks)]]>='Diet input details'!$C$17,Table13[[#This Row],[AGE (weeks)]]<='Diet input details'!$D$17),\"Ration 2\",IF(AND(Table13[[#This Row],[AGE (weeks)]]>='Diet input details'!$C$18,Table13[[#This Row],[AGE (weeks)]]<='Diet input details'!$D$18),\"Ration 3\",IF(AND(Table13[[#This Row],[AGE (weeks)]]>='Diet input details'!$C$19,Table13[[#This Row],[AGE (weeks)]]<='Diet input details'!$D$19),\"Ration 4\",IF(AND(Table13[[#This Row],[AGE (weeks)]]>='Diet input details'!$C$20,Table13[[#This Row],[AGE (weeks)]]<='Diet input details'!$D$20),\"Ration 5\", \"Clear\")))))","v":"Clear"},{"$f":"(VLOOKUP(Table13[[#This Row],[Ration]],Table22[#All],2,FALSE))","v":{"$error":"#N/A"}},324.85000000000002,1.9849999999999999,{"$f":"Table13[[#This Row],[Bodyweight Mid-point (kg)]]*1000","v":1984.9999999999998},120,{"$f":"Table13[[#This Row],[Feed Intake Mid-point (g/bird/day)]]*7","v":840},{"$f":"Table13[[#This Row],[Feed Intake (g/bird/week)]]+J62","v":44271.5},65.2,{"$f":"(Table13[[#This Row],[Hen-Housed Eggs Cumulative Mid-point]]*Table13[[#This Row],[Average Egg Weight Mid-point (g/egg)]])","v":21180.22}]
["Brown Free-range",72,{"$f":"IF(AND(Table13[[#This Row],[AGE (weeks)]]>='Diet input details'!$C$16,Table13[[#This Row],[AGE (weeks)]]<='Diet input details'!$D$16),\"Ration 1\",IF(AND(Table13[[#This Row],[AGE (weeks)]]>='Diet input details'!$C$17,Table13[[#This Row],[AGE (weeks)]]<='Diet input details'!$D$17),\"Ration 2\",IF(AND(Table13[[#This Row],[AGE (weeks)]]>='Diet input details'!$C$18,Table13[[#This Row],[AGE (weeks)]]<='Diet input details'!$D$18),\"Ration 3\",IF(AND(Table13[[#This Row],[AGE (weeks)]]>='Diet input details'!$C$19,Table13[[#This Row],[AGE (weeks)]]<='Diet input details'!$D$19),\"Ration 4\",IF(AND(Table13[[#This Row],[AGE (weeks)]]>='Diet input details'!$C$20,Table13[[#This Row],[AGE (weeks)]]<='Diet input details'!$D$20),\"Ration 5\", \"Clear\")))))","v":"Clear"},{"$f":"(VLOOKUP(Table13[[#This Row],[Ration]],Table22[#All],2,FALSE))","v":{"$error":"#N/A"}},330.5,1.9849999999999999,{"$f":"Table13[[#This Row],[Bodyweight Mid-point (kg)]]*1000","v":1984.9999999999998},120,{"$f":"Table13[[#This Row],[Feed Intake Mid-point (g/bird/day)]]*7","v":840},{"$f":"Table13[[#This Row],[Feed Intake (g/bird/week)]]+J63","v":45111.5},65.25,{"$f":"(Table13[[#This Row],[Hen-Housed Eggs Cumulative Mid-point]]*Table13[[#This Row],[Average Egg Weight Mid-point (g/egg)]])","v":21565.125}]
["Brown Free-range",73,{"$f":"IF(AND(Table13[[#This Row],[AGE (weeks)]]>='Diet input details'!$C$16,Table13[[#This Row],[AGE (weeks)]]<='Diet input details'!$D$16),\"Ration 1\",IF(AND(Table13[[#This Row],[AGE (weeks)]]>='Diet input details'!$C$17,Table13[[#This Row],[AGE (weeks)]]<='Diet input details'!$D$17),\"Ration 2\",IF(AND(Table13[[#This Row],[AGE (weeks)]]>='Diet input details'!$C$18,Table13[[#This Row],[AGE (weeks)]]<='Diet input details'!$D$18),\"Ration 3\",IF(AND(Table13[[#This Row],[AGE (weeks)]]>='Diet input details'!$C$19,Table13[[#This Row],[AGE (weeks)]]<='Diet input details'!$D$19),\"Ration 4\",IF(AND(Table13[[#This Row],[AGE (weeks)]]>='Diet input details'!$C$20,Table13[[#This Row],[AGE (weeks)]]<='Diet input details'!$D$20),\"Ration 5\", \"Clear\")))))","v":"Clear"},{"$f":"(VLOOKUP(Table13[[#This Row],[Ration]],Table22[#All],2,FALSE))","v":{"$error":"#N/A"}},336.15,1.9849999999999999,{"$f":"Table13[[#This Row],[Bodyweight Mid-point (kg)]]*1000","v":1984.9999999999998},120,{"$f":"Table13[[#This Row],[Feed Intake Mid-point (g/bird/day)]]*7","v":840},{"$f":"Table13[[#This Row],[Feed Intake (g/bird/week)]]+J64","v":45951.5},65.25,{"$f":"(Table13[[#This Row],[Hen-Housed Eggs Cumulative Mid-point]]*Table13[[#This Row],[Average Egg Weight Mid-point (g/egg)]])","v":21933.787499999999}]
["Brown Free-range",74,{"$f":"IF(AND(Table13[[#This Row],[AGE (weeks)]]>='Diet input details'!$C$16,Table13[[#This Row],[AGE (weeks)]]<='Diet input details'!$D$16),\"Ration 1\",IF(AND(Table13[[#This Row],[AGE (weeks)]]>='Diet input details'!$C$17,Table13[[#This Row],[AGE (weeks)]]<='Diet input details'!$D$17),\"Ration 2\",IF(AND(Table13[[#This Row],[AGE (weeks)]]>='Diet input details'!$C$18,Table13[[#This Row],[AGE (weeks)]]<='Diet input details'!$D$18),\"Ration 3\",IF(AND(Table13[[#This Row],[AGE (weeks)]]>='Diet input details'!$C$19,Table13[[#This Row],[AGE (weeks)]]<='Diet input details'!$D$19),\"Ration 4\",IF(AND(Table13[[#This Row],[AGE (weeks)]]>='Diet input details'!$C$20,Table13[[#This Row],[AGE (weeks)]]<='Diet input details'!$D$20),\"Ration 5\", \"Clear\")))))","v":"Clear"},{"$f":"(VLOOKUP(Table13[[#This Row],[Ration]],Table22[#All],2,FALSE))","v":{"$error":"#N/A"}},341.7,1.9849999999999999,{"$f":"Table13[[#This Row],[Bodyweight Mid-point (kg)]]*1000","v":1984.9999999999998},120,{"$f":"Table13[[#This Row],[Feed Intake Mid-point (g/bird/day)]]*7","v":840},{"$f":"Table13[[#This Row],[Feed Intake (g/bird/week)]]+J65","v":46791.5},65.3,{"$f":"(Table13[[#This Row],[Hen-Housed Eggs Cumulative Mid-point]]*Table13[[#This Row],[Average Egg Weight Mid-point (g/egg)]])","v":22313.01}]
["Brown Free-range",75,{"$f":"IF(AND(Table13[[#This Row],[AGE (weeks)]]>='Diet input details'!$C$16,Table13[[#This Row],[AGE (weeks)]]<='Diet input details'!$D$16),\"Ration 1\",IF(AND(Table13[[#This Row],[AGE (weeks)]]>='Diet input details'!$C$17,Table13[[#This Row],[AGE (weeks)]]<='Diet input details'!$D$17),\"Ration 2\",IF(AND(Table13[[#This Row],[AGE (weeks)]]>='Diet input details'!$C$18,Table13[[#This Row],[AGE (weeks)]]<='Diet input details'!$D$18),\"Ration 3\",IF(AND(Table13[[#This Row],[AGE (weeks)]]>='Diet input details'!$C$19,Table13[[#This Row],[AGE (weeks)]]<='Diet input details'!$D$19),\"Ration 4\",IF(AND(Table13[[#This Row],[AGE (weeks)]]>='Diet input details'!$C$20,Table13[[#This Row],[AGE (weeks)]]<='Diet input details'!$D$20),\"Ration 5\", \"Clear\")))))","v":"Clear"},{"$f":"(VLOOKUP(Table13[[#This Row],[Ration]],Table22[#All],2,FALSE))","v":{"$error":"#N/A"}},347.25,1.9849999999999999,{"$f":"Table13[[#This Row],[Bodyweight Mid-point (kg)]]*1000","v":1984.9999999999998},120,{"$f":"Table13[[#This Row],[Feed Intake Mid-point (g/bird/day)]]*7","v":840},{"$f":"Table13[[#This Row],[Feed Intake (g/bird/week)]]+J66","v":47631.5},65.349999999999994,{"$f":"(Table13[[#This Row],[Hen-Housed Eggs Cumulative Mid-point]]*Table13[[#This Row],[Average Egg Weight Mid-point (g/egg)]])","v":22692.787499999999}]
["Brown Free-range",76,{"$f":"IF(AND(Table13[[#This Row],[AGE (weeks)]]>='Diet input details'!$C$16,Table13[[#This Row],[AGE (weeks)]]<='Diet input details'!$D$16),\"Ration 1\",IF(AND(Table13[[#This Row],[AGE (weeks)]]>='Diet input details'!$C$17,Table13[[#This Row],[AGE (weeks)]]<='Diet input details'!$D$17),\"Ration 2\",IF(AND(Table13[[#This Row],[AGE (weeks)]]>='Diet input details'!$C$18,Table13[[#This Row],[AGE (weeks)]]<='Diet input details'!$D$18),\"Ration 3\",IF(AND(Table13[[#This Row],[AGE (weeks)]]>='Diet input details'!$C$19,Table13[[#This Row],[AGE (weeks)]]<='Diet input details'!$D$19),\"Ration 4\",IF(AND(Table13[[#This Row],[AGE (weeks)]]>='Diet input details'!$C$20,Table13[[#This Row],[AGE (weeks)]]<='Diet input details'!$D$20),\"Ration 5\", \"Clear\")))))","v":"Clear"},{"$f":"(VLOOKUP(Table13[[#This Row],[Ration]],Table22[#All],2,FALSE))","v":{"$error":"#N/A"}},352.7,1.9849999999999999,{"$f":"Table13[[#This Row],[Bodyweight Mid-point (kg)]]*1000","v":1984.9999999999998},120,{"$f":"Table13[[#This Row],[Feed Intake Mid-point (g/bird/day)]]*7","v":840},{"$f":"Table13[[#This Row],[Feed Intake (g/bird/week)]]+J67","v":48471.5},65.400000000000006,{"$f":"(Table13[[#This Row],[Hen-Housed Eggs Cumulative Mid-point]]*Table13[[#This Row],[Average Egg Weight Mid-point (g/egg)]])","v":23066.58}]
["Brown Free-range",77,{"$f":"IF(AND(Table13[[#This Row],[AGE (weeks)]]>='Diet input details'!$C$16,Table13[[#This Row],[AGE (weeks)]]<='Diet input details'!$D$16),\"Ration 1\",IF(AND(Table13[[#This Row],[AGE (weeks)]]>='Diet input details'!$C$17,Table13[[#This Row],[AGE (weeks)]]<='Diet input details'!$D$17),\"Ration 2\",IF(AND(Table13[[#This Row],[AGE (weeks)]]>='Diet input details'!$C$18,Table13[[#This Row],[AGE (weeks)]]<='Diet input details'!$D$18),\"Ration 3\",IF(AND(Table13[[#This Row],[AGE (weeks)]]>='Diet input details'!$C$19,Table13[[#This Row],[AGE (weeks)]]<='Diet input details'!$D$19),\"Ration 4\",IF(AND(Table13[[#This Row],[AGE (weeks)]]>='Diet input details'!$C$20,Table13[[#This Row],[AGE (weeks)]]<='Diet input details'!$D$20),\"Ration 5\", \"Clear\")))))","v":"Clear"},{"$f":"(VLOOKUP(Table13[[#This Row],[Ration]],Table22[#All],2,FALSE))","v":{"$error":"#N/A"}},358.15,1.9849999999999999,{"$f":"Table13[[#This Row],[Bodyweight Mid-point (kg)]]*1000","v":1984.9999999999998},120,{"$f":"Table13[[#This Row],[Feed Intake Mid-point (g/bird/day)]]*7","v":840},{"$f":"Table13[[#This Row],[Feed Intake (g/bird/week)]]+J68","v":49311.5},65.400000000000006,{"$f":"(Table13[[#This Row],[Hen-Housed Eggs Cumulative Mid-point]]*Table13[[#This Row],[Average Egg Weight Mid-point (g/egg)]])","v":23423.010000000002}]
["Brown Free-range",78,{"$f":"IF(AND(Table13[[#This Row],[AGE (weeks)]]>='Diet input details'!$C$16,Table13[[#This Row],[AGE (weeks)]]<='Diet input details'!$D$16),\"Ration 1\",IF(AND(Table13[[#This Row],[AGE (weeks)]]>='Diet input details'!$C$17,Table13[[#This Row],[AGE (weeks)]]<='Diet input details'!$D$17),\"Ration 2\",IF(AND(Table13[[#This Row],[AGE (weeks)]]>='Diet input details'!$C$18,Table13[[#This Row],[AGE (weeks)]]<='Diet input details'!$D$18),\"Ration 3\",IF(AND(Table13[[#This Row],[AGE (weeks)]]>='Diet input details'!$C$19,Table13[[#This Row],[AGE (weeks)]]<='Diet input details'!$D$19),\"Ration 4\",IF(AND(Table13[[#This Row],[AGE (weeks)]]>='Diet input details'!$C$20,Table13[[#This Row],[AGE (weeks)]]<='Diet input details'!$D$20),\"Ration 5\", \"Clear\")))))","v":"Clear"},{"$f":"(VLOOKUP(Table13[[#This Row],[Ration]],Table22[#All],2,FALSE))","v":{"$error":"#N/A"}},363.5,1.9849999999999999,{"$f":"Table13[[#This Row],[Bodyweight Mid-point (kg)]]*1000","v":1984.9999999999998},120,{"$f":"Table13[[#This Row],[Feed Intake Mid-point (g/bird/day)]]*7","v":840},{"$f":"Table13[[#This Row],[Feed Intake (g/bird/week)]]+J69","v":50151.5},65.45,{"$f":"(Table13[[#This Row],[Hen-Housed Eggs Cumulative Mid-point]]*Table13[[#This Row],[Average Egg Weight Mid-point (g/egg)]])","v":23791.075000000001}]
["Brown Free-range",79,{"$f":"IF(AND(Table13[[#This Row],[AGE (weeks)]]>='Diet input details'!$C$16,Table13[[#This Row],[AGE (weeks)]]<='Diet input details'!$D$16),\"Ration 1\",IF(AND(Table13[[#This Row],[AGE (weeks)]]>='Diet input details'!$C$17,Table13[[#This Row],[AGE (weeks)]]<='Diet input details'!$D$17),\"Ration 2\",IF(AND(Table13[[#This Row],[AGE (weeks)]]>='Diet input details'!$C$18,Table13[[#This Row],[AGE (weeks)]]<='Diet input details'!$D$18),\"Ration 3\",IF(AND(Table13[[#This Row],[AGE (weeks)]]>='Diet input details'!$C$19,Table13[[#This Row],[AGE (weeks)]]<='Diet input details'!$D$19),\"Ration 4\",IF(AND(Table13[[#This Row],[AGE (weeks)]]>='Diet input details'!$C$20,Table13[[#This Row],[AGE (weeks)]]<='Diet input details'!$D$20),\"Ration 5\", \"Clear\")))))","v":"Clear"},{"$f":"(VLOOKUP(Table13[[#This Row],[Ration]],Table22[#All],2,FALSE))","v":{"$error":"#N/A"}},368.85,1.9849999999999999,{"$f":"Table13[[#This Row],[Bodyweight Mid-point (kg)]]*1000","v":1984.9999999999998},120,{"$f":"Table13[[#This Row],[Feed Intake Mid-point (g/bird/day)]]*7","v":840},{"$f":"Table13[[#This Row],[Feed Intake (g/bird/week)]]+J70","v":50991.5},65.45,{"$f":"(Table13[[#This Row],[Hen-Housed Eggs Cumulative Mid-point]]*Table13[[#This Row],[Average Egg Weight Mid-point (g/egg)]])","v":24141.232500000002}]
["Brown Free-range",80,{"$f":"IF(AND(Table13[[#This Row],[AGE (weeks)]]>='Diet input details'!$C$16,Table13[[#This Row],[AGE (weeks)]]<='Diet input details'!$D$16),\"Ration 1\",IF(AND(Table13[[#This Row],[AGE (weeks)]]>='Diet input details'!$C$17,Table13[[#This Row],[AGE (weeks)]]<='Diet input details'!$D$17),\"Ration 2\",IF(AND(Table13[[#This Row],[AGE (weeks)]]>='Diet input details'!$C$18,Table13[[#This Row],[AGE (weeks)]]<='Diet input details'!$D$18),\"Ration 3\",IF(AND(Table13[[#This Row],[AGE (weeks)]]>='Diet input details'!$C$19,Table13[[#This Row],[AGE (weeks)]]<='Diet input details'!$D$19),\"Ration 4\",IF(AND(Table13[[#This Row],[AGE (weeks)]]>='Diet input details'!$C$20,Table13[[#This Row],[AGE (weeks)]]<='Diet input details'!$D$20),\"Ration 5\", \"Clear\")))))","v":"Clear"},{"$f":"(VLOOKUP(Table13[[#This Row],[Ration]],Table22[#All],2,FALSE))","v":{"$error":"#N/A"}},374.1,1.9849999999999999,{"$f":"Table13[[#This Row],[Bodyweight Mid-point (kg)]]*1000","v":1984.9999999999998},120,{"$f":"Table13[[#This Row],[Feed Intake Mid-point (g/bird/day)]]*7","v":840},{"$f":"Table13[[#This Row],[Feed Intake (g/bird/week)]]+J71","v":51831.5},65.5,{"$f":"(Table13[[#This Row],[Hen-Housed Eggs Cumulative Mid-point]]*Table13[[#This Row],[Average Egg Weight Mid-point (g/egg)]])","v":24503.550000000003}]
["Brown Free-range",81,{"$f":"IF(AND(Table13[[#This Row],[AGE (weeks)]]>='Diet input details'!$C$16,Table13[[#This Row],[AGE (weeks)]]<='Diet input details'!$D$16),\"Ration 1\",IF(AND(Table13[[#This Row],[AGE (weeks)]]>='Diet input details'!$C$17,Table13[[#This Row],[AGE (weeks)]]<='Diet input details'!$D$17),\"Ration 2\",IF(AND(Table13[[#This Row],[AGE (weeks)]]>='Diet input details'!$C$18,Table13[[#This Row],[AGE (weeks)]]<='Diet input details'!$D$18),\"Ration 3\",IF(AND(Table13[[#This Row],[AGE (weeks)]]>='Diet input details'!$C$19,Table13[[#This Row],[AGE (weeks)]]<='Diet input details'!$D$19),\"Ration 4\",IF(AND(Table13[[#This Row],[AGE (weeks)]]>='Diet input details'!$C$20,Table13[[#This Row],[AGE (weeks)]]<='Diet input details'!$D$20),\"Ration 5\", \"Clear\")))))","v":"Clear"},{"$f":"(VLOOKUP(Table13[[#This Row],[Ration]],Table22[#All],2,FALSE))","v":{"$error":"#N/A"}},379.35,1.9849999999999999,{"$f":"Table13[[#This Row],[Bodyweight Mid-point (kg)]]*1000","v":1984.9999999999998},120,{"$f":"Table13[[#This Row],[Feed Intake Mid-point (g/bird/day)]]*7","v":840},{"$f":"Table13[[#This Row],[Feed Intake (g/bird/week)]]+J72","v":52671.5},65.5,{"$f":"(Table13[[#This Row],[Hen-Housed Eggs Cumulative Mid-point]]*Table13[[#This Row],[Average Egg Weight Mid-point (g/egg)]])","v":24847.425000000003}]
["Brown Free-range",82,{"$f":"IF(AND(Table13[[#This Row],[AGE (weeks)]]>='Diet input details'!$C$16,Table13[[#This Row],[AGE (weeks)]]<='Diet input details'!$D$16),\"Ration 1\",IF(AND(Table13[[#This Row],[AGE (weeks)]]>='Diet input details'!$C$17,Table13[[#This Row],[AGE (weeks)]]<='Diet input details'!$D$17),\"Ration 2\",IF(AND(Table13[[#This Row],[AGE (weeks)]]>='Diet input details'!$C$18,Table13[[#This Row],[AGE (weeks)]]<='Diet input details'!$D$18),\"Ration 3\",IF(AND(Table13[[#This Row],[AGE (weeks)]]>='Diet input details'!$C$19,Table13[[#This Row],[AGE (weeks)]]<='Diet input details'!$D$19),\"Ration 4\",IF(AND(Table13[[#This Row],[AGE (weeks)]]>='Diet input details'!$C$20,Table13[[#This Row],[AGE (weeks)]]<='Diet input details'!$D$20),\"Ration 5\", \"Clear\")))))","v":"Clear"},{"$f":"(VLOOKUP(Table13[[#This Row],[Ration]],Table22[#All],2,FALSE))","v":{"$error":"#N/A"}},384.5,1.9849999999999999,{"$f":"Table13[[#This Row],[Bodyweight Mid-point (kg)]]*1000","v":1984.9999999999998},120,{"$f":"Table13[[#This Row],[Feed Intake Mid-point (g/bird/day)]]*7","v":840},{"$f":"Table13[[#This Row],[Feed Intake (g/bird/week)]]+J73","v":53511.5},65.599999999999994,{"$f":"(Table13[[#This Row],[Hen-Housed Eggs Cumulative Mid-point]]*Table13[[#This Row],[Average Egg Weight Mid-point (g/egg)]])","v":25223.199999999997}]
["Brown Free-range",83,{"$f":"IF(AND(Table13[[#This Row],[AGE (weeks)]]>='Diet input details'!$C$16,Table13[[#This Row],[AGE (weeks)]]<='Diet input details'!$D$16),\"Ration 1\",IF(AND(Table13[[#This Row],[AGE (weeks)]]>='Diet input details'!$C$17,Table13[[#This Row],[AGE (weeks)]]<='Diet input details'!$D$17),\"Ration 2\",IF(AND(Table13[[#This Row],[AGE (weeks)]]>='Diet input details'!$C$18,Table13[[#This Row],[AGE (weeks)]]<='Diet input details'!$D$18),\"Ration 3\",IF(AND(Table13[[#This Row],[AGE (weeks)]]>='Diet input details'!$C$19,Table13[[#This Row],[AGE (weeks)]]<='Diet input details'!$D$19),\"Ration 4\",IF(AND(Table13[[#This Row],[AGE (weeks)]]>='Diet input details'!$C$20,Table13[[#This Row],[AGE (weeks)]]<='Diet input details'!$D$20),\"Ration 5\", \"Clear\")))))","v":"Clear"},{"$f":"(VLOOKUP(Table13[[#This Row],[Ration]],Table22[#All],2,FALSE))","v":{"$error":"#N/A"}},389.7,1.9849999999999999,{"$f":"Table13[[#This Row],[Bodyweight Mid-point (kg)]]*1000","v":1984.9999999999998},120,{"$f":"Table13[[#This Row],[Feed Intake Mid-point (g/bird/day)]]*7","v":840},{"$f":"Table13[[#This Row],[Feed Intake (g/bird/week)]]+J74","v":54351.5},65.599999999999994,{"$f":"(Table13[[#This Row],[Hen-Housed Eggs Cumulative Mid-point]]*Table13[[#This Row],[Average Egg Weight Mid-point (g/egg)]])","v":25564.319999999996}]
["Brown Free-range",84,{"$f":"IF(AND(Table13[[#This Row],[AGE (weeks)]]>='Diet input details'!$C$16,Table13[[#This Row],[AGE (weeks)]]<='Diet input details'!$D$16),\"Ration 1\",IF(AND(Table13[[#This Row],[AGE (weeks)]]>='Diet input details'!$C$17,Table13[[#This Row],[AGE (weeks)]]<='Diet input details'!$D$17),\"Ration 2\",IF(AND(Table13[[#This Row],[AGE (weeks)]]>='Diet input details'!$C$18,Table13[[#This Row],[AGE (weeks)]]<='Diet input details'!$D$18),\"Ration 3\",IF(AND(Table13[[#This Row],[AGE (weeks)]]>='Diet input details'!$C$19,Table13[[#This Row],[AGE (weeks)]]<='Diet input details'!$D$19),\"Ration 4\",IF(AND(Table13[[#This Row],[AGE (weeks)]]>='Diet input details'!$C$20,Table13[[#This Row],[AGE (weeks)]]<='Diet input details'!$D$20),\"Ration 5\", \"Clear\")))))","v":"Clear"},{"$f":"(VLOOKUP(Table13[[#This Row],[Ration]],Table22[#All],2,FALSE))","v":{"$error":"#N/A"}},394.75,1.9849999999999999,{"$f":"Table13[[#This Row],[Bodyweight Mid-point (kg)]]*1000","v":1984.9999999999998},120,{"$f":"Table13[[#This Row],[Feed Intake Mid-point (g/bird/day)]]*7","v":840},{"$f":"Table13[[#This Row],[Feed Intake (g/bird/week)]]+J75","v":55191.5},65.650000000000006,{"$f":"(Table13[[#This Row],[Hen-Housed Eggs Cumulative Mid-point]]*Table13[[#This Row],[Average Egg Weight Mid-point (g/egg)]])","v":25915.337500000001}]
["Brown Free-range",85,{"$f":"IF(AND(Table13[[#This Row],[AGE (weeks)]]>='Diet input details'!$C$16,Table13[[#This Row],[AGE (weeks)]]<='Diet input details'!$D$16),\"Ration 1\",IF(AND(Table13[[#This Row],[AGE (weeks)]]>='Diet input details'!$C$17,Table13[[#This Row],[AGE (weeks)]]<='Diet input details'!$D$17),\"Ration 2\",IF(AND(Table13[[#This Row],[AGE (weeks)]]>='Diet input details'!$C$18,Table13[[#This Row],[AGE (weeks)]]<='Diet input details'!$D$18),\"Ration 3\",IF(AND(Table13[[#This Row],[AGE (weeks)]]>='Diet input details'!$C$19,Table13[[#This Row],[AGE (weeks)]]<='Diet input details'!$D$19),\"Ration 4\",IF(AND(Table13[[#This Row],[AGE (weeks)]]>='Diet input details'!$C$20,Table13[[#This Row],[AGE (weeks)]]<='Diet input details'!$D$20),\"Ration 5\", \"Clear\")))))","v":"Clear"},{"$f":"(VLOOKUP(Table13[[#This Row],[Ration]],Table22[#All],2,FALSE))","v":{"$error":"#N/A"}},399.85,1.9849999999999999,{"$f":"Table13[[#This Row],[Bodyweight Mid-point (kg)]]*1000","v":1984.9999999999998},120,{"$f":"Table13[[#This Row],[Feed Intake Mid-point (g/bird/day)]]*7","v":840},{"$f":"Table13[[#This Row],[Feed Intake (g/bird/week)]]+J76","v":56031.5},65.650000000000006,{"$f":"(Table13[[#This Row],[Hen-Housed Eggs Cumulative Mid-point]]*Table13[[#This Row],[Average Egg Weight Mid-point (g/egg)]])","v":26250.152500000004}]
["Brown Free-range",86,{"$f":"IF(AND(Table13[[#This Row],[AGE (weeks)]]>='Diet input details'!$C$16,Table13[[#This Row],[AGE (weeks)]]<='Diet input details'!$D$16),\"Ration 1\",IF(AND(Table13[[#This Row],[AGE (weeks)]]>='Diet input details'!$C$17,Table13[[#This Row],[AGE (weeks)]]<='Diet input details'!$D$17),\"Ration 2\",IF(AND(Table13[[#This Row],[AGE (weeks)]]>='Diet input details'!$C$18,Table13[[#This Row],[AGE (weeks)]]<='Diet input details'!$D$18),\"Ration 3\",IF(AND(Table13[[#This Row],[AGE (weeks)]]>='Diet input details'!$C$19,Table13[[#This Row],[AGE (weeks)]]<='Diet input details'!$D$19),\"Ration 4\",IF(AND(Table13[[#This Row],[AGE (weeks)]]>='Diet input details'!$C$20,Table13[[#This Row],[AGE (weeks)]]<='Diet input details'!$D$20),\"Ration 5\", \"Clear\")))))","v":"Clear"},{"$f":"(VLOOKUP(Table13[[#This Row],[Ration]],Table22[#All],2,FALSE))","v":{"$error":"#N/A"}},404.9,1.9849999999999999,{"$f":"Table13[[#This Row],[Bodyweight Mid-point (kg)]]*1000","v":1984.9999999999998},120,{"$f":"Table13[[#This Row],[Feed Intake Mid-point (g/bird/day)]]*7","v":840},{"$f":"Table13[[#This Row],[Feed Intake (g/bird/week)]]+J77","v":56871.5},65.699999999999989,{"$f":"(Table13[[#This Row],[Hen-Housed Eggs Cumulative Mid-point]]*Table13[[#This Row],[Average Egg Weight Mid-point (g/egg)]])","v":26601.929999999993}]
["Brown Free-range",87,{"$f":"IF(AND(Table13[[#This Row],[AGE (weeks)]]>='Diet input details'!$C$16,Table13[[#This Row],[AGE (weeks)]]<='Diet input details'!$D$16),\"Ration 1\",IF(AND(Table13[[#This Row],[AGE (weeks)]]>='Diet input details'!$C$17,Table13[[#This Row],[AGE (weeks)]]<='Diet input details'!$D$17),\"Ration 2\",IF(AND(Table13[[#This Row],[AGE (weeks)]]>='Diet input details'!$C$18,Table13[[#This Row],[AGE (weeks)]]<='Diet input details'!$D$18),\"Ration 3\",IF(AND(Table13[[#This Row],[AGE (weeks)]]>='Diet input details'!$C$19,Table13[[#This Row],[AGE (weeks)]]<='Diet input details'!$D$19),\"Ration 4\",IF(AND(Table13[[#This Row],[AGE (weeks)]]>='Diet input details'!$C$20,Table13[[#This Row],[AGE (weeks)]]<='Diet input details'!$D$20),\"Ration 5\", \"Clear\")))))","v":"Clear"},{"$f":"(VLOOKUP(Table13[[#This Row],[Ration]],Table22[#All],2,FALSE))","v":{"$error":"#N/A"}},409.85,1.9849999999999999,{"$f":"Table13[[#This Row],[Bodyweight Mid-point (kg)]]*1000","v":1984.9999999999998},120,{"$f":"Table13[[#This Row],[Feed Intake Mid-point (g/bird/day)]]*7","v":840},{"$f":"Table13[[#This Row],[Feed Intake (g/bird/week)]]+J78","v":57711.5},65.699999999999989,{"$f":"(Table13[[#This Row],[Hen-Housed Eggs Cumulative Mid-point]]*Table13[[#This Row],[Average Egg Weight Mid-point (g/egg)]])","v":26927.144999999997}]
["Brown Free-range",88,{"$f":"IF(AND(Table13[[#This Row],[AGE (weeks)]]>='Diet input details'!$C$16,Table13[[#This Row],[AGE (weeks)]]<='Diet input details'!$D$16),\"Ration 1\",IF(AND(Table13[[#This Row],[AGE (weeks)]]>='Diet input details'!$C$17,Table13[[#This Row],[AGE (weeks)]]<='Diet input details'!$D$17),\"Ration 2\",IF(AND(Table13[[#This Row],[AGE (weeks)]]>='Diet input details'!$C$18,Table13[[#This Row],[AGE (weeks)]]<='Diet input details'!$D$18),\"Ration 3\",IF(AND(Table13[[#This Row],[AGE (weeks)]]>='Diet input details'!$C$19,Table13[[#This Row],[AGE (weeks)]]<='Diet input details'!$D$19),\"Ration 4\",IF(AND(Table13[[#This Row],[AGE (weeks)]]>='Diet input details'!$C$20,Table13[[#This Row],[AGE (weeks)]]<='Diet input details'!$D$20),\"Ration 5\", \"Clear\")))))","v":"Clear"},{"$f":"(VLOOKUP(Table13[[#This Row],[Ration]],Table22[#All],2,FALSE))","v":{"$error":"#N/A"}},414.79999999999995,1.9849999999999999,{"$f":"Table13[[#This Row],[Bodyweight Mid-point (kg)]]*1000","v":1984.9999999999998},120,{"$f":"Table13[[#This Row],[Feed Intake Mid-point (g/bird/day)]]*7","v":840},{"$f":"Table13[[#This Row],[Feed Intake (g/bird/week)]]+J79","v":58551.5},65.75,{"$f":"(Table13[[#This Row],[Hen-Housed Eggs Cumulative Mid-point]]*Table13[[#This Row],[Average Egg Weight Mid-point (g/egg)]])","v":27273.1}]
["Brown Free-range",89,{"$f":"IF(AND(Table13[[#This Row],[AGE (weeks)]]>='Diet input details'!$C$16,Table13[[#This Row],[AGE (weeks)]]<='Diet input details'!$D$16),\"Ration 1\",IF(AND(Table13[[#This Row],[AGE (weeks)]]>='Diet input details'!$C$17,Table13[[#This Row],[AGE (weeks)]]<='Diet input details'!$D$17),\"Ration 2\",IF(AND(Table13[[#This Row],[AGE (weeks)]]>='Diet input details'!$C$18,Table13[[#This Row],[AGE (weeks)]]<='Diet input details'!$D$18),\"Ration 3\",IF(AND(Table13[[#This Row],[AGE (weeks)]]>='Diet input details'!$C$19,Table13[[#This Row],[AGE (weeks)]]<='Diet input details'!$D$19),\"Ration 4\",IF(AND(Table13[[#This Row],[AGE (weeks)]]>='Diet input details'!$C$20,Table13[[#This Row],[AGE (weeks)]]<='Diet input details'!$D$20),\"Ration 5\", \"Clear\")))))","v":"Clear"},{"$f":"(VLOOKUP(Table13[[#This Row],[Ration]],Table22[#All],2,FALSE))","v":{"$error":"#N/A"}},419.7,1.9849999999999999,{"$f":"Table13[[#This Row],[Bodyweight Mid-point (kg)]]*1000","v":1984.9999999999998},120,{"$f":"Table13[[#This Row],[Feed Intake Mid-point (g/bird/day)]]*7","v":840},{"$f":"Table13[[#This Row],[Feed Intake (g/bird/week)]]+J80","v":59391.5},65.75,{"$f":"(Table13[[#This Row],[Hen-Housed Eggs Cumulative Mid-point]]*Table13[[#This Row],[Average Egg Weight Mid-point (g/egg)]])","v":27595.274999999998}]
["Brown Free-range",90,{"$f":"IF(AND(Table13[[#This Row],[AGE (weeks)]]>='Diet input details'!$C$16,Table13[[#This Row],[AGE (weeks)]]<='Diet input details'!$D$16),\"Ration 1\",IF(AND(Table13[[#This Row],[AGE (weeks)]]>='Diet input details'!$C$17,Table13[[#This Row],[AGE (weeks)]]<='Diet input details'!$D$17),\"Ration 2\",IF(AND(Table13[[#This Row],[AGE (weeks)]]>='Diet input details'!$C$18,Table13[[#This Row],[AGE (weeks)]]<='Diet input details'!$D$18),\"Ration 3\",IF(AND(Table13[[#This Row],[AGE (weeks)]]>='Diet input details'!$C$19,Table13[[#This Row],[AGE (weeks)]]<='Diet input details'!$D$19),\"Ration 4\",IF(AND(Table13[[#This Row],[AGE (weeks)]]>='Diet input details'!$C$20,Table13[[#This Row],[AGE (weeks)]]<='Diet input details'!$D$20),\"Ration 5\", \"Clear\")))))","v":"Clear"},{"$f":"(VLOOKUP(Table13[[#This Row],[Ration]],Table22[#All],2,FALSE))","v":{"$error":"#N/A"}},424.6,1.9849999999999999,{"$f":"Table13[[#This Row],[Bodyweight Mid-point (kg)]]*1000","v":1984.9999999999998},120,{"$f":"Table13[[#This Row],[Feed Intake Mid-point (g/bird/day)]]*7","v":840},{"$f":"Table13[[#This Row],[Feed Intake (g/bird/week)]]+J81","v":60231.5},65.8,{"$f":"(Table13[[#This Row],[Hen-Housed Eggs Cumulative Mid-point]]*Table13[[#This Row],[Average Egg Weight Mid-point (g/egg)]])","v":27938.68}]
["Brown Free-range",91,{"$f":"IF(AND(Table13[[#This Row],[AGE (weeks)]]>='Diet input details'!$C$16,Table13[[#This Row],[AGE (weeks)]]<='Diet input details'!$D$16),\"Ration 1\",IF(AND(Table13[[#This Row],[AGE (weeks)]]>='Diet input details'!$C$17,Table13[[#This Row],[AGE (weeks)]]<='Diet input details'!$D$17),\"Ration 2\",IF(AND(Table13[[#This Row],[AGE (weeks)]]>='Diet input details'!$C$18,Table13[[#This Row],[AGE (weeks)]]<='Diet input details'!$D$18),\"Ration 3\",IF(AND(Table13[[#This Row],[AGE (weeks)]]>='Diet input details'!$C$19,Table13[[#This Row],[AGE (weeks)]]<='Diet input details'!$D$19),\"Ration 4\",IF(AND(Table13[[#This Row],[AGE (weeks)]]>='Diet input details'!$C$20,Table13[[#This Row],[AGE (weeks)]]<='Diet input details'!$D$20),\"Ration 5\", \"Clear\")))))","v":"Clear"},{"$f":"(VLOOKUP(Table13[[#This Row],[Ration]],Table22[#All],2,FALSE))","v":{"$error":"#N/A"}},429.4,1.9949999999999999,{"$f":"Table13[[#This Row],[Bodyweight Mid-point (kg)]]*1000","v":1994.9999999999998},120,{"$f":"Table13[[#This Row],[Feed Intake Mid-point (g/bird/day)]]*7","v":840},{"$f":"Table13[[#This Row],[Feed Intake (g/bird/week)]]+J82","v":61071.5},65.849999999999994,{"$f":"(Table13[[#This Row],[Hen-Housed Eggs Cumulative Mid-point]]*Table13[[#This Row],[Average Egg Weight Mid-point (g/egg)]])","v":28275.989999999994}]
["Brown Free-range",92,{"$f":"IF(AND(Table13[[#This Row],[AGE (weeks)]]>='Diet input details'!$C$16,Table13[[#This Row],[AGE (weeks)]]<='Diet input details'!$D$16),\"Ration 1\",IF(AND(Table13[[#This Row],[AGE (weeks)]]>='Diet input details'!$C$17,Table13[[#This Row],[AGE (weeks)]]<='Diet input details'!$D$17),\"Ration 2\",IF(AND(Table13[[#This Row],[AGE (weeks)]]>='Diet input details'!$C$18,Table13[[#This Row],[AGE (weeks)]]<='Diet input details'!$D$18),\"Ration 3\",IF(AND(Table13[[#This Row],[AGE (weeks)]]>='Diet input details'!$C$19,Table13[[#This Row],[AGE (weeks)]]<='Diet input details'!$D$19),\"Ration 4\",IF(AND(Table13[[#This Row],[AGE (weeks)]]>='Diet input details'!$C$20,Table13[[#This Row],[AGE (weeks)]]<='Diet input details'!$D$20),\"Ration 5\", \"Clear\")))))","v":"Clear"},{"$f":"(VLOOKUP(Table13[[#This Row],[Ration]],Table22[#All],2,FALSE))","v":{"$error":"#N/A"}},434.2,1.9949999999999999,{"$f":"Table13[[#This Row],[Bodyweight Mid-point (kg)]]*1000","v":1994.9999999999998},120,{"$f":"Table13[[#This Row],[Feed Intake Mid-point (g/bird/day)]]*7","v":840},{"$f":"Table13[[#This Row],[Feed Intake (g/bird/week)]]+J83","v":61911.5},65.900000000000006,{"$f":"(Table13[[#This Row],[Hen-Housed Eggs Cumulative Mid-point]]*Table13[[#This Row],[Average Egg Weight Mid-point (g/egg)]])","v":28613.780000000002}]
["Brown Free-range",93,{"$f":"IF(AND(Table13[[#This Row],[AGE (weeks)]]>='Diet input details'!$C$16,Table13[[#This Row],[AGE (weeks)]]<='Diet input details'!$D$16),\"Ration 1\",IF(AND(Table13[[#This Row],[AGE (weeks)]]>='Diet input details'!$C$17,Table13[[#This Row],[AGE (weeks)]]<='Diet input details'!$D$17),\"Ration 2\",IF(AND(Table13[[#This Row],[AGE (weeks)]]>='Diet input details'!$C$18,Table13[[#This Row],[AGE (weeks)]]<='Diet input details'!$D$18),\"Ration 3\",IF(AND(Table13[[#This Row],[AGE (weeks)]]>='Diet input details'!$C$19,Table13[[#This Row],[AGE (weeks)]]<='Diet input details'!$D$19),\"Ration 4\",IF(AND(Table13[[#This Row],[AGE (weeks)]]>='Diet input details'!$C$20,Table13[[#This Row],[AGE (weeks)]]<='Diet input details'!$D$20),\"Ration 5\", \"Clear\")))))","v":"Clear"},{"$f":"(VLOOKUP(Table13[[#This Row],[Ration]],Table22[#All],2,FALSE))","v":{"$error":"#N/A"}},438.95000000000005,1.9949999999999999,{"$f":"Table13[[#This Row],[Bodyweight Mid-point (kg)]]*1000","v":1994.9999999999998},120,{"$f":"Table13[[#This Row],[Feed Intake Mid-point (g/bird/day)]]*7","v":840},{"$f":"Table13[[#This Row],[Feed Intake (g/bird/week)]]+J84","v":62751.5},65.900000000000006,{"$f":"(Table13[[#This Row],[Hen-Housed Eggs Cumulative Mid-point]]*Table13[[#This Row],[Average Egg Weight Mid-point (g/egg)]])","v":28926.805000000004}]
["Brown Free-range",94,{"$f":"IF(AND(Table13[[#This Row],[AGE (weeks)]]>='Diet input details'!$C$16,Table13[[#This Row],[AGE (weeks)]]<='Diet input details'!$D$16),\"Ration 1\",IF(AND(Table13[[#This Row],[AGE (weeks)]]>='Diet input details'!$C$17,Table13[[#This Row],[AGE (weeks)]]<='Diet input details'!$D$17),\"Ration 2\",IF(AND(Table13[[#This Row],[AGE (weeks)]]>='Diet input details'!$C$18,Table13[[#This Row],[AGE (weeks)]]<='Diet input details'!$D$18),\"Ration 3\",IF(AND(Table13[[#This Row],[AGE (weeks)]]>='Diet input details'!$C$19,Table13[[#This Row],[AGE (weeks)]]<='Diet input details'!$D$19),\"Ration 4\",IF(AND(Table13[[#This Row],[AGE (weeks)]]>='Diet input details'!$C$20,Table13[[#This Row],[AGE (weeks)]]<='Diet input details'!$D$20),\"Ration 5\", \"Clear\")))))","v":"Clear"},{"$f":"(VLOOKUP(Table13[[#This Row],[Ration]],Table22[#All],2,FALSE))","v":{"$error":"#N/A"}},443.70000000000005,1.9949999999999999,{"$f":"Table13[[#This Row],[Bodyweight Mid-point (kg)]]*1000","v":1994.9999999999998},120,{"$f":"Table13[[#This Row],[Feed Intake Mid-point (g/bird/day)]]*7","v":840},{"$f":"Table13[[#This Row],[Feed Intake (g/bird/week)]]+J85","v":63591.5},65.95,{"$f":"(Table13[[#This Row],[Hen-Housed Eggs Cumulative Mid-point]]*Table13[[#This Row],[Average Egg Weight Mid-point (g/egg)]])","v":29262.015000000003}]
["Brown Free-range",95,{"$f":"IF(AND(Table13[[#This Row],[AGE (weeks)]]>='Diet input details'!$C$16,Table13[[#This Row],[AGE (weeks)]]<='Diet input details'!$D$16),\"Ration 1\",IF(AND(Table13[[#This Row],[AGE (weeks)]]>='Diet input details'!$C$17,Table13[[#This Row],[AGE (weeks)]]<='Diet input details'!$D$17),\"Ration 2\",IF(AND(Table13[[#This Row],[AGE (weeks)]]>='Diet input details'!$C$18,Table13[[#This Row],[AGE (weeks)]]<='Diet input details'!$D$18),\"Ration 3\",IF(AND(Table13[[#This Row],[AGE (weeks)]]>='Diet input details'!$C$19,Table13[[#This Row],[AGE (weeks)]]<='Diet input details'!$D$19),\"Ration 4\",IF(AND(Table13[[#This Row],[AGE (weeks)]]>='Diet input details'!$C$20,Table13[[#This Row],[AGE (weeks)]]<='Diet input details'!$D$20),\"Ration 5\", \"Clear\")))))","v":"Clear"},{"$f":"(VLOOKUP(Table13[[#This Row],[Ration]],Table22[#All],2,FALSE))","v":{"$error":"#N/A"}},448.4,1.9949999999999999,{"$f":"Table13[[#This Row],[Bodyweight Mid-point (kg)]]*1000","v":1994.9999999999998},120,{"$f":"Table13[[#This Row],[Feed Intake Mid-point (g/bird/day)]]*7","v":840},{"$f":"Table13[[#This Row],[Feed Intake (g/bird/week)]]+J86","v":64431.5},65.95,{"$f":"(Table13[[#This Row],[Hen-Housed Eggs Cumulative Mid-point]]*Table13[[#This Row],[Average Egg Weight Mid-point (g/egg)]])","v":29571.98}]
["Brown Free-range",96,{"$f":"IF(AND(Table13[[#This Row],[AGE (weeks)]]>='Diet input details'!$C$16,Table13[[#This Row],[AGE (weeks)]]<='Diet input details'!$D$16),\"Ration 1\",IF(AND(Table13[[#This Row],[AGE (weeks)]]>='Diet input details'!$C$17,Table13[[#This Row],[AGE (weeks)]]<='Diet input details'!$D$17),\"Ration 2\",IF(AND(Table13[[#This Row],[AGE (weeks)]]>='Diet input details'!$C$18,Table13[[#This Row],[AGE (weeks)]]<='Diet input details'!$D$18),\"Ration 3\",IF(AND(Table13[[#This Row],[AGE (weeks)]]>='Diet input details'!$C$19,Table13[[#This Row],[AGE (weeks)]]<='Diet input details'!$D$19),\"Ration 4\",IF(AND(Table13[[#This Row],[AGE (weeks)]]>='Diet input details'!$C$20,Table13[[#This Row],[AGE (weeks)]]<='Diet input details'!$D$20),\"Ration 5\", \"Clear\")))))","v":"Clear"},{"$f":"(VLOOKUP(Table13[[#This Row],[Ration]],Table22[#All],2,FALSE))","v":{"$error":"#N/A"}},453.1,1.9949999999999999,{"$f":"Table13[[#This Row],[Bodyweight Mid-point (kg)]]*1000","v":1994.9999999999998},120,{"$f":"Table13[[#This Row],[Feed Intake Mid-point (g/bird/day)]]*7","v":840},{"$f":"Table13[[#This Row],[Feed Intake (g/bird/week)]]+J87","v":65271.5},66,{"$f":"(Table13[[#This Row],[Hen-Housed Eggs Cumulative Mid-point]]*Table13[[#This Row],[Average Egg Weight Mid-point (g/egg)]])","v":29904.600000000002}]
["Brown Free-range",97,{"$f":"IF(AND(Table13[[#This Row],[AGE (weeks)]]>='Diet input details'!$C$16,Table13[[#This Row],[AGE (weeks)]]<='Diet input details'!$D$16),\"Ration 1\",IF(AND(Table13[[#This Row],[AGE (weeks)]]>='Diet input details'!$C$17,Table13[[#This Row],[AGE (weeks)]]<='Diet input details'!$D$17),\"Ration 2\",IF(AND(Table13[[#This Row],[AGE (weeks)]]>='Diet input details'!$C$18,Table13[[#This Row],[AGE (weeks)]]<='Diet input details'!$D$18),\"Ration 3\",IF(AND(Table13[[#This Row],[AGE (weeks)]]>='Diet input details'!$C$19,Table13[[#This Row],[AGE (weeks)]]<='Diet input details'!$D$19),\"Ration 4\",IF(AND(Table13[[#This Row],[AGE (weeks)]]>='Diet input details'!$C$20,Table13[[#This Row],[AGE (weeks)]]<='Diet input details'!$D$20),\"Ration 5\", \"Clear\")))))","v":"Clear"},{"$f":"(VLOOKUP(Table13[[#This Row],[Ration]],Table22[#All],2,FALSE))","v":{"$error":"#N/A"}},457.75,1.9949999999999999,{"$f":"Table13[[#This Row],[Bodyweight Mid-point (kg)]]*1000","v":1994.9999999999998},120,{"$f":"Table13[[#This Row],[Feed Intake Mid-point (g/bird/day)]]*7","v":840},{"$f":"Table13[[#This Row],[Feed Intake (g/bird/week)]]+J88","v":66111.5},66,{"$f":"(Table13[[#This Row],[Hen-Housed Eggs Cumulative Mid-point]]*Table13[[#This Row],[Average Egg Weight Mid-point (g/egg)]])","v":30211.5}]
["Brown Free-range",98,{"$f":"IF(AND(Table13[[#This Row],[AGE (weeks)]]>='Diet input details'!$C$16,Table13[[#This Row],[AGE (weeks)]]<='Diet input details'!$D$16),\"Ration 1\",IF(AND(Table13[[#This Row],[AGE (weeks)]]>='Diet input details'!$C$17,Table13[[#This Row],[AGE (weeks)]]<='Diet input details'!$D$17),\"Ration 2\",IF(AND(Table13[[#This Row],[AGE (weeks)]]>='Diet input details'!$C$18,Table13[[#This Row],[AGE (weeks)]]<='Diet input details'!$D$18),\"Ration 3\",IF(AND(Table13[[#This Row],[AGE (weeks)]]>='Diet input details'!$C$19,Table13[[#This Row],[AGE (weeks)]]<='Diet input details'!$D$19),\"Ration 4\",IF(AND(Table13[[#This Row],[AGE (weeks)]]>='Diet input details'!$C$20,Table13[[#This Row],[AGE (weeks)]]<='Diet input details'!$D$20),\"Ration 5\", \"Clear\")))))","v":"Clear"},{"$f":"(VLOOKUP(Table13[[#This Row],[Ration]],Table22[#All],2,FALSE))","v":{"$error":"#N/A"}},462.3,1.9949999999999999,{"$f":"Table13[[#This Row],[Bodyweight Mid-point (kg)]]*1000","v":1994.9999999999998},120,{"$f":"Table13[[#This Row],[Feed Intake Mid-point (g/bird/day)]]*7","v":840},{"$f":"Table13[[#This Row],[Feed Intake (g/bird/week)]]+J89","v":66951.5},66.050000000000011,{"$f":"(Table13[[#This Row],[Hen-Housed Eggs Cumulative Mid-point]]*Table13[[#This Row],[Average Egg Weight Mid-point (g/egg)]])","v":30534.915000000005}]
["Brown Free-range",99,{"$f":"IF(AND(Table13[[#This Row],[AGE (weeks)]]>='Diet input details'!$C$16,Table13[[#This Row],[AGE (weeks)]]<='Diet input details'!$D$16),\"Ration 1\",IF(AND(Table13[[#This Row],[AGE (weeks)]]>='Diet input details'!$C$17,Table13[[#This Row],[AGE (weeks)]]<='Diet input details'!$D$17),\"Ration 2\",IF(AND(Table13[[#This Row],[AGE (weeks)]]>='Diet input details'!$C$18,Table13[[#This Row],[AGE (weeks)]]<='Diet input details'!$D$18),\"Ration 3\",IF(AND(Table13[[#This Row],[AGE (weeks)]]>='Diet input details'!$C$19,Table13[[#This Row],[AGE (weeks)]]<='Diet input details'!$D$19),\"Ration 4\",IF(AND(Table13[[#This Row],[AGE (weeks)]]>='Diet input details'!$C$20,Table13[[#This Row],[AGE (weeks)]]<='Diet input details'!$D$20),\"Ration 5\", \"Clear\")))))","v":"Clear"},{"$f":"(VLOOKUP(Table13[[#This Row],[Ration]],Table22[#All],2,FALSE))","v":{"$error":"#N/A"}},466.95,1.9949999999999999,{"$f":"Table13[[#This Row],[Bodyweight Mid-point (kg)]]*1000","v":1994.9999999999998},120,{"$f":"Table13[[#This Row],[Feed Intake Mid-point (g/bird/day)]]*7","v":840},{"$f":"Table13[[#This Row],[Feed Intake (g/bird/week)]]+J90","v":67791.5},66.050000000000011,{"$f":"(Table13[[#This Row],[Hen-Housed Eggs Cumulative Mid-point]]*Table13[[#This Row],[Average Egg Weight Mid-point (g/egg)]])","v":30842.047500000004}]
["Brown Free-range",100,{"$f":"IF(AND(Table13[[#This Row],[AGE (weeks)]]>='Diet input details'!$C$16,Table13[[#This Row],[AGE (weeks)]]<='Diet input details'!$D$16),\"Ration 1\",IF(AND(Table13[[#This Row],[AGE (weeks)]]>='Diet input details'!$C$17,Table13[[#This Row],[AGE (weeks)]]<='Diet input details'!$D$17),\"Ration 2\",IF(AND(Table13[[#This Row],[AGE (weeks)]]>='Diet input details'!$C$18,Table13[[#This Row],[AGE (weeks)]]<='Diet input details'!$D$18),\"Ration 3\",IF(AND(Table13[[#This Row],[AGE (weeks)]]>='Diet input details'!$C$19,Table13[[#This Row],[AGE (weeks)]]<='Diet input details'!$D$19),\"Ration 4\",IF(AND(Table13[[#This Row],[AGE (weeks)]]>='Diet input details'!$C$20,Table13[[#This Row],[AGE (weeks)]]<='Diet input details'!$D$20),\"Ration 5\", \"Clear\")))))","v":"Clear"},{"$f":"(VLOOKUP(Table13[[#This Row],[Ration]],Table22[#All],2,FALSE))","v":{"$error":"#N/A"}},471.5,1.9949999999999999,{"$f":"Table13[[#This Row],[Bodyweight Mid-point (kg)]]*1000","v":1994.9999999999998},120,{"$f":"Table13[[#This Row],[Feed Intake Mid-point (g/bird/day)]]*7","v":840},{"$f":"Table13[[#This Row],[Feed Intake (g/bird/week)]]+J91","v":68631.5},66.099999999999994,{"$f":"(Table13[[#This Row],[Hen-Housed Eggs Cumulative Mid-point]]*Table13[[#This Row],[Average Egg Weight Mid-point (g/egg)]])","v":31166.149999999998}]
["Brown Colony",16,{"$f":"IF(AND(Table13[[#This Row],[AGE (weeks)]]>='Diet input details'!$C$16,Table13[[#This Row],[AGE (weeks)]]<='Diet input details'!$D$16),\"Ration 1\",IF(AND(Table13[[#This Row],[AGE (weeks)]]>='Diet input details'!$C$17,Table13[[#This Row],[AGE (weeks)]]<='Diet input details'!$D$17),\"Ration 2\",IF(AND(Table13[[#This Row],[AGE (weeks)]]>='Diet input details'!$C$18,Table13[[#This Row],[AGE (weeks)]]<='Diet input details'!$D$18),\"Ration 3\",IF(AND(Table13[[#This Row],[AGE (weeks)]]>='Diet input details'!$C$19,Table13[[#This Row],[AGE (weeks)]]<='Diet input details'!$D$19),\"Ration 4\",IF(AND(Table13[[#This Row],[AGE (weeks)]]>='Diet input details'!$C$20,Table13[[#This Row],[AGE (weeks)]]<='Diet input details'!$D$20),\"Ration 5\", \"Clear\")))))","v":"Clear"},{"$f":"(VLOOKUP(Table13[[#This Row],[Ration]],Table22[#All],2,FALSE))","v":{"$error":"#N/A"}},0.65,1.52,{"$f":"Table13[[#This Row],[Bodyweight Mid-point (kg)]]*1000","v":1520},85,{"$f":"Table13[[#This Row],[Feed Intake Mid-point (g/bird/day)]]*7","v":595},{"$f":"Table13[[#This Row],[Feed Intake (g/bird/week)]]","v":595},49.4,{"$f":"(Table13[[#This Row],[Hen-Housed Eggs Cumulative Mid-point]]*Table13[[#This Row],[Average Egg Weight Mid-point (g/egg)]])","v":32.11}]
["Brown Colony",17,{"$f":"IF(AND(Table13[[#This Row],[AGE (weeks)]]>='Diet input details'!$C$16,Table13[[#This Row],[AGE (weeks)]]<='Diet input details'!$D$16),\"Ration 1\",IF(AND(Table13[[#This Row],[AGE (weeks)]]>='Diet input details'!$C$17,Table13[[#This Row],[AGE (weeks)]]<='Diet input details'!$D$17),\"Ration 2\",IF(AND(Table13[[#This Row],[AGE (weeks)]]>='Diet input details'!$C$18,Table13[[#This Row],[AGE (weeks)]]<='Diet input details'!$D$18),\"Ration 3\",IF(AND(Table13[[#This Row],[AGE (weeks)]]>='Diet input details'!$C$19,Table13[[#This Row],[AGE (weeks)]]<='Diet input details'!$D$19),\"Ration 4\",IF(AND(Table13[[#This Row],[AGE (weeks)]]>='Diet input details'!$C$20,Table13[[#This Row],[AGE (weeks)]]<='Diet input details'!$D$20),\"Ration 5\", \"Clear\")))))","v":"Clear"},{"$f":"(VLOOKUP(Table13[[#This Row],[Ration]],Table22[#All],2,FALSE))","v":{"$error":"#N/A"}},0.65,1.52,{"$f":"Table13[[#This Row],[Bodyweight Mid-point (kg)]]*1000","v":1520},85,{"$f":"Table13[[#This Row],[Feed Intake Mid-point (g/bird/day)]]*7","v":595},{"$f":"Table13[[#This Row],[Feed Intake (g/bird/week)]]+J93","v":1190},49.4,{"$f":"(Table13[[#This Row],[Hen-Housed Eggs Cumulative Mid-point]]*Table13[[#This Row],[Average Egg Weight Mid-point (g/egg)]])","v":32.11}]
["Brown Colony",18,{"$f":"IF(AND(Table13[[#This Row],[AGE (weeks)]]>='Diet input details'!$C$16,Table13[[#This Row],[AGE (weeks)]]<='Diet input details'!$D$16),\"Ration 1\",IF(AND(Table13[[#This Row],[AGE (weeks)]]>='Diet input details'!$C$17,Table13[[#This Row],[AGE (weeks)]]<='Diet input details'!$D$17),\"Ration 2\",IF(AND(Table13[[#This Row],[AGE (weeks)]]>='Diet input details'!$C$18,Table13[[#This Row],[AGE (weeks)]]<='Diet input details'!$D$18),\"Ration 3\",IF(AND(Table13[[#This Row],[AGE (weeks)]]>='Diet input details'!$C$19,Table13[[#This Row],[AGE (weeks)]]<='Diet input details'!$D$19),\"Ration 4\",IF(AND(Table13[[#This Row],[AGE (weeks)]]>='Diet input details'!$C$20,Table13[[#This Row],[AGE (weeks)]]<='Diet input details'!$D$20),\"Ration 5\", \"Clear\")))))","v":"Clear"},{"$f":"(VLOOKUP(Table13[[#This Row],[Ration]],Table22[#All],2,FALSE))","v":{"$error":"#N/A"}},0.65,1.52,{"$f":"Table13[[#This Row],[Bodyweight Mid-point (kg)]]*1000","v":1520},85,{"$f":"Table13[[#This Row],[Feed Intake Mid-point (g/bird/day)]]*7","v":595},{"$f":"Table13[[#This Row],[Feed Intake (g/bird/week)]]+J94","v":1785},49.4,{"$f":"(Table13[[#This Row],[Hen-Housed Eggs Cumulative Mid-point]]*Table13[[#This Row],[Average Egg Weight Mid-point (g/egg)]])","v":32.11}]
["Brown Colony",19,{"$f":"IF(AND(Table13[[#This Row],[AGE (weeks)]]>='Diet input details'!$C$16,Table13[[#This Row],[AGE (weeks)]]<='Diet input details'!$D$16),\"Ration 1\",IF(AND(Table13[[#This Row],[AGE (weeks)]]>='Diet input details'!$C$17,Table13[[#This Row],[AGE (weeks)]]<='Diet input details'!$D$17),\"Ration 2\",IF(AND(Table13[[#This Row],[AGE (weeks)]]>='Diet input details'!$C$18,Table13[[#This Row],[AGE (weeks)]]<='Diet input details'!$D$18),\"Ration 3\",IF(AND(Table13[[#This Row],[AGE (weeks)]]>='Diet input details'!$C$19,Table13[[#This Row],[AGE (weeks)]]<='Diet input details'!$D$19),\"Ration 4\",IF(AND(Table13[[#This Row],[AGE (weeks)]]>='Diet input details'!$C$20,Table13[[#This Row],[AGE (weeks)]]<='Diet input details'!$D$20),\"Ration 5\", \"Clear\")))))","v":"Clear"},{"$f":"(VLOOKUP(Table13[[#This Row],[Ration]],Table22[#All],2,FALSE))","v":{"$error":"#N/A"}},2.8,1.62,{"$f":"Table13[[#This Row],[Bodyweight Mid-point (kg)]]*1000","v":1620},88,{"$f":"Table13[[#This Row],[Feed Intake Mid-point (g/bird/day)]]*7","v":616},{"$f":"Table13[[#This Row],[Feed Intake (g/bird/week)]]+J95","v":2401},50,{"$f":"(Table13[[#This Row],[Hen-Housed Eggs Cumulative Mid-point]]*Table13[[#This Row],[Average Egg Weight Mid-point (g/egg)]])","v":140}]
["Brown Colony",20,{"$f":"IF(AND(Table13[[#This Row],[AGE (weeks)]]>='Diet input details'!$C$16,Table13[[#This Row],[AGE (weeks)]]<='Diet input details'!$D$16),\"Ration 1\",IF(AND(Table13[[#This Row],[AGE (weeks)]]>='Diet input details'!$C$17,Table13[[#This Row],[AGE (weeks)]]<='Diet input details'!$D$17),\"Ration 2\",IF(AND(Table13[[#This Row],[AGE (weeks)]]>='Diet input details'!$C$18,Table13[[#This Row],[AGE (weeks)]]<='Diet input details'!$D$18),\"Ration 3\",IF(AND(Table13[[#This Row],[AGE (weeks)]]>='Diet input details'!$C$19,Table13[[#This Row],[AGE (weeks)]]<='Diet input details'!$D$19),\"Ration 4\",IF(AND(Table13[[#This Row],[AGE (weeks)]]>='Diet input details'!$C$20,Table13[[#This Row],[AGE (weeks)]]<='Diet input details'!$D$20),\"Ration 5\", \"Clear\")))))","v":"Clear"},{"$f":"(VLOOKUP(Table13[[#This Row],[Ration]],Table22[#All],2,FALSE))","v":{"$error":"#N/A"}},6.8999999999999995,1.68,{"$f":"Table13[[#This Row],[Bodyweight Mid-point (kg)]]*1000","v":1680},94,{"$f":"Table13[[#This Row],[Feed Intake Mid-point (g/bird/day)]]*7","v":658},{"$f":"Table13[[#This Row],[Feed Intake (g/bird/week)]]+J96","v":3059},51.2,{"$f":"(Table13[[#This Row],[Hen-Housed Eggs Cumulative Mid-point]]*Table13[[#This Row],[Average Egg Weight Mid-point (g/egg)]])","v":353.28}]
["Brown Colony",21,{"$f":"IF(AND(Table13[[#This Row],[AGE (weeks)]]>='Diet input details'!$C$16,Table13[[#This Row],[AGE (weeks)]]<='Diet input details'!$D$16),\"Ration 1\",IF(AND(Table13[[#This Row],[AGE (weeks)]]>='Diet input details'!$C$17,Table13[[#This Row],[AGE (weeks)]]<='Diet input details'!$D$17),\"Ration 2\",IF(AND(Table13[[#This Row],[AGE (weeks)]]>='Diet input details'!$C$18,Table13[[#This Row],[AGE (weeks)]]<='Diet input details'!$D$18),\"Ration 3\",IF(AND(Table13[[#This Row],[AGE (weeks)]]>='Diet input details'!$C$19,Table13[[#This Row],[AGE (weeks)]]<='Diet input details'!$D$19),\"Ration 4\",IF(AND(Table13[[#This Row],[AGE (weeks)]]>='Diet input details'!$C$20,Table13[[#This Row],[AGE (weeks)]]<='Diet input details'!$D$20),\"Ration 5\", \"Clear\")))))","v":"Clear"},{"$f":"(VLOOKUP(Table13[[#This Row],[Ration]],Table22[#All],2,FALSE))","v":{"$error":"#N/A"}},12.5,1.72,{"$f":"Table13[[#This Row],[Bodyweight Mid-point (kg)]]*1000","v":1720},98,{"$f":"Table13[[#This Row],[Feed Intake Mid-point (g/bird/day)]]*7","v":686},{"$f":"Table13[[#This Row],[Feed Intake (g/bird/week)]]+J97","v":3745},52.55,{"$f":"(Table13[[#This Row],[Hen-Housed Eggs Cumulative Mid-point]]*Table13[[#This Row],[Average Egg Weight Mid-point (g/egg)]])","v":656.875}]
["Brown Colony",22,{"$f":"IF(AND(Table13[[#This Row],[AGE (weeks)]]>='Diet input details'!$C$16,Table13[[#This Row],[AGE (weeks)]]<='Diet input details'!$D$16),\"Ration 1\",IF(AND(Table13[[#This Row],[AGE (weeks)]]>='Diet input details'!$C$17,Table13[[#This Row],[AGE (weeks)]]<='Diet input details'!$D$17),\"Ration 2\",IF(AND(Table13[[#This Row],[AGE (weeks)]]>='Diet input details'!$C$18,Table13[[#This Row],[AGE (weeks)]]<='Diet input details'!$D$18),\"Ration 3\",IF(AND(Table13[[#This Row],[AGE (weeks)]]>='Diet input details'!$C$19,Table13[[#This Row],[AGE (weeks)]]<='Diet input details'!$D$19),\"Ration 4\",IF(AND(Table13[[#This Row],[AGE (weeks)]]>='Diet input details'!$C$20,Table13[[#This Row],[AGE (weeks)]]<='Diet input details'!$D$20),\"Ration 5\", \"Clear\")))))","v":"Clear"},{"$f":"(VLOOKUP(Table13[[#This Row],[Ration]],Table22[#All],2,FALSE))","v":{"$error":"#N/A"}},18.75,1.77,{"$f":"Table13[[#This Row],[Bodyweight Mid-point (kg)]]*1000","v":1770},102,{"$f":"Table13[[#This Row],[Feed Intake Mid-point (g/bird/day)]]*7","v":714},{"$f":"Table13[[#This Row],[Feed Intake (g/bird/week)]]+J98","v":4459},54.2,{"$f":"(Table13[[#This Row],[Hen-Housed Eggs Cumulative Mid-point]]*Table13[[#This Row],[Average Egg Weight Mid-point (g/egg)]])","v":1016.25}]
["Brown Colony",23,{"$f":"IF(AND(Table13[[#This Row],[AGE (weeks)]]>='Diet input details'!$C$16,Table13[[#This Row],[AGE (weeks)]]<='Diet input details'!$D$16),\"Ration 1\",IF(AND(Table13[[#This Row],[AGE (weeks)]]>='Diet input details'!$C$17,Table13[[#This Row],[AGE (weeks)]]<='Diet input details'!$D$17),\"Ration 2\",IF(AND(Table13[[#This Row],[AGE (weeks)]]>='Diet input details'!$C$18,Table13[[#This Row],[AGE (weeks)]]<='Diet input details'!$D$18),\"Ration 3\",IF(AND(Table13[[#This Row],[AGE (weeks)]]>='Diet input details'!$C$19,Table13[[#This Row],[AGE (weeks)]]<='Diet input details'!$D$19),\"Ration 4\",IF(AND(Table13[[#This Row],[AGE (weeks)]]>='Diet input details'!$C$20,Table13[[#This Row],[AGE (weeks)]]<='Diet input details'!$D$20),\"Ration 5\", \"Clear\")))))","v":"Clear"},{"$f":"(VLOOKUP(Table13[[#This Row],[Ration]],Table22[#All],2,FALSE))","v":{"$error":"#N/A"}},25.25,1.8,{"$f":"Table13[[#This Row],[Bodyweight Mid-point (kg)]]*1000","v":1800},106,{"$f":"Table13[[#This Row],[Feed Intake Mid-point (g/bird/day)]]*7","v":742},{"$f":"Table13[[#This Row],[Feed Intake (g/bird/week)]]+J99","v":5201},55.5,{"$f":"(Table13[[#This Row],[Hen-Housed Eggs Cumulative Mid-point]]*Table13[[#This Row],[Average Egg Weight Mid-point (g/egg)]])","v":1401.375}]
["Brown Colony",24,{"$f":"IF(AND(Table13[[#This Row],[AGE (weeks)]]>='Diet input details'!$C$16,Table13[[#This Row],[AGE (weeks)]]<='Diet input details'!$D$16),\"Ration 1\",IF(AND(Table13[[#This Row],[AGE (weeks)]]>='Diet input details'!$C$17,Table13[[#This Row],[AGE (weeks)]]<='Diet input details'!$D$17),\"Ration 2\",IF(AND(Table13[[#This Row],[AGE (weeks)]]>='Diet input details'!$C$18,Table13[[#This Row],[AGE (weeks)]]<='Diet input details'!$D$18),\"Ration 3\",IF(AND(Table13[[#This Row],[AGE (weeks)]]>='Diet input details'!$C$19,Table13[[#This Row],[AGE (weeks)]]<='Diet input details'!$D$19),\"Ration 4\",IF(AND(Table13[[#This Row],[AGE (weeks)]]>='Diet input details'!$C$20,Table13[[#This Row],[AGE (weeks)]]<='Diet input details'!$D$20),\"Ration 5\", \"Clear\")))))","v":"Clear"},{"$f":"(VLOOKUP(Table13[[#This Row],[Ration]],Table22[#All],2,FALSE))","v":{"$error":"#N/A"}},31.75,1.8399999999999999,{"$f":"Table13[[#This Row],[Bodyweight Mid-point (kg)]]*1000","v":1839.9999999999998},108,{"$f":"Table13[[#This Row],[Feed Intake Mid-point (g/bird/day)]]*7","v":756},{"$f":"Table13[[#This Row],[Feed Intake (g/bird/week)]]+J100","v":5957},56.6,{"$f":"(Table13[[#This Row],[Hen-Housed Eggs Cumulative Mid-point]]*Table13[[#This Row],[Average Egg Weight Mid-point (g/egg)]])","v":1797.05}]
["Brown Colony",25,{"$f":"IF(AND(Table13[[#This Row],[AGE (weeks)]]>='Diet input details'!$C$16,Table13[[#This Row],[AGE (weeks)]]<='Diet input details'!$D$16),\"Ration 1\",IF(AND(Table13[[#This Row],[AGE (weeks)]]>='Diet input details'!$C$17,Table13[[#This Row],[AGE (weeks)]]<='Diet input details'!$D$17),\"Ration 2\",IF(AND(Table13[[#This Row],[AGE (weeks)]]>='Diet input details'!$C$18,Table13[[#This Row],[AGE (weeks)]]<='Diet input details'!$D$18),\"Ration 3\",IF(AND(Table13[[#This Row],[AGE (weeks)]]>='Diet input details'!$C$19,Table13[[#This Row],[AGE (weeks)]]<='Diet input details'!$D$19),\"Ration 4\",IF(AND(Table13[[#This Row],[AGE (weeks)]]>='Diet input details'!$C$20,Table13[[#This Row],[AGE (weeks)]]<='Diet input details'!$D$20),\"Ration 5\", \"Clear\")))))","v":"Clear"},{"$f":"(VLOOKUP(Table13[[#This Row],[Ration]],Table22[#All],2,FALSE))","v":{"$error":"#N/A"}},38.299999999999997,1.85,{"$f":"Table13[[#This Row],[Bodyweight Mid-point (kg)]]*1000","v":1850},109,{"$f":"Table13[[#This Row],[Feed Intake Mid-point (g/bird/day)]]*7","v":763},{"$f":"Table13[[#This Row],[Feed Intake (g/bird/week)]]+J101","v":6720},57.8,{"$f":"(Table13[[#This Row],[Hen-Housed Eggs Cumulative Mid-point]]*Table13[[#This Row],[Average Egg Weight Mid-point (g/egg)]])","v":2213.7399999999998}]
["Brown Colony",26,{"$f":"IF(AND(Table13[[#This Row],[AGE (weeks)]]>='Diet input details'!$C$16,Table13[[#This Row],[AGE (weeks)]]<='Diet input details'!$D$16),\"Ration 1\",IF(AND(Table13[[#This Row],[AGE (weeks)]]>='Diet input details'!$C$17,Table13[[#This Row],[AGE (weeks)]]<='Diet input details'!$D$17),\"Ration 2\",IF(AND(Table13[[#This Row],[AGE (weeks)]]>='Diet input details'!$C$18,Table13[[#This Row],[AGE (weeks)]]<='Diet input details'!$D$18),\"Ration 3\",IF(AND(Table13[[#This Row],[AGE (weeks)]]>='Diet input details'!$C$19,Table13[[#This Row],[AGE (weeks)]]<='Diet input details'!$D$19),\"Ration 4\",IF(AND(Table13[[#This Row],[AGE (weeks)]]>='Diet input details'!$C$20,Table13[[#This Row],[AGE (weeks)]]<='Diet input details'!$D$20),\"Ration 5\", \"Clear\")))))","v":"Clear"},{"$f":"(VLOOKUP(Table13[[#This Row],[Ration]],Table22[#All],2,FALSE))","v":{"$error":"#N/A"}},44.95,1.8599999999999999,{"$f":"Table13[[#This Row],[Bodyweight Mid-point (kg)]]*1000","v":1859.9999999999998},110,{"$f":"Table13[[#This Row],[Feed Intake Mid-point (g/bird/day)]]*7","v":770},{"$f":"Table13[[#This Row],[Feed Intake (g/bird/week)]]+J102","v":7490},58.5,{"$f":"(Table13[[#This Row],[Hen-Housed Eggs Cumulative Mid-point]]*Table13[[#This Row],[Average Egg Weight Mid-point (g/egg)]])","v":2629.5750000000003}]
["Brown Colony",27,{"$f":"IF(AND(Table13[[#This Row],[AGE (weeks)]]>='Diet input details'!$C$16,Table13[[#This Row],[AGE (weeks)]]<='Diet input details'!$D$16),\"Ration 1\",IF(AND(Table13[[#This Row],[AGE (weeks)]]>='Diet input details'!$C$17,Table13[[#This Row],[AGE (weeks)]]<='Diet input details'!$D$17),\"Ration 2\",IF(AND(Table13[[#This Row],[AGE (weeks)]]>='Diet input details'!$C$18,Table13[[#This Row],[AGE (weeks)]]<='Diet input details'!$D$18),\"Ration 3\",IF(AND(Table13[[#This Row],[AGE (weeks)]]>='Diet input details'!$C$19,Table13[[#This Row],[AGE (weeks)]]<='Diet input details'!$D$19),\"Ration 4\",IF(AND(Table13[[#This Row],[AGE (weeks)]]>='Diet input details'!$C$20,Table13[[#This Row],[AGE (weeks)]]<='Diet input details'!$D$20),\"Ration 5\", \"Clear\")))))","v":"Clear"},{"$f":"(VLOOKUP(Table13[[#This Row],[Ration]],Table22[#All],2,FALSE))","v":{"$error":"#N/A"}},51.599999999999994,1.88,{"$f":"Table13[[#This Row],[Bodyweight Mid-point (kg)]]*1000","v":1880},110,{"$f":"Table13[[#This Row],[Feed Intake Mid-point (g/bird/day)]]*7","v":770},{"$f":"Table13[[#This Row],[Feed Intake (g/bird/week)]]+J103","v":8260},59.599999999999994,{"$f":"(Table13[[#This Row],[Hen-Housed Eggs Cumulative Mid-point]]*Table13[[#This Row],[Average Egg Weight Mid-point (g/egg)]])","v":3075.3599999999992}]
["Brown Colony",28,{"$f":"IF(AND(Table13[[#This Row],[AGE (weeks)]]>='Diet input details'!$C$16,Table13[[#This Row],[AGE (weeks)]]<='Diet input details'!$D$16),\"Ration 1\",IF(AND(Table13[[#This Row],[AGE (weeks)]]>='Diet input details'!$C$17,Table13[[#This Row],[AGE (weeks)]]<='Diet input details'!$D$17),\"Ration 2\",IF(AND(Table13[[#This Row],[AGE (weeks)]]>='Diet input details'!$C$18,Table13[[#This Row],[AGE (weeks)]]<='Diet input details'!$D$18),\"Ration 3\",IF(AND(Table13[[#This Row],[AGE (weeks)]]>='Diet input details'!$C$19,Table13[[#This Row],[AGE (weeks)]]<='Diet input details'!$D$19),\"Ration 4\",IF(AND(Table13[[#This Row],[AGE (weeks)]]>='Diet input details'!$C$20,Table13[[#This Row],[AGE (weeks)]]<='Diet input details'!$D$20),\"Ration 5\", \"Clear\")))))","v":"Clear"},{"$f":"(VLOOKUP(Table13[[#This Row],[Ration]],Table22[#All],2,FALSE))","v":{"$error":"#N/A"}},58.2,1.8900000000000001,{"$f":"Table13[[#This Row],[Bodyweight Mid-point (kg)]]*1000","v":1890.0000000000002},110,{"$f":"Table13[[#This Row],[Feed Intake Mid-point (g/bird/day)]]*7","v":770},{"$f":"Table13[[#This Row],[Feed Intake (g/bird/week)]]+J104","v":9030},60.2,{"$f":"(Table13[[#This Row],[Hen-Housed Eggs Cumulative Mid-point]]*Table13[[#This Row],[Average Egg Weight Mid-point (g/egg)]])","v":3503.6400000000003}]
["Brown Colony",29,{"$f":"IF(AND(Table13[[#This Row],[AGE (weeks)]]>='Diet input details'!$C$16,Table13[[#This Row],[AGE (weeks)]]<='Diet input details'!$D$16),\"Ration 1\",IF(AND(Table13[[#This Row],[AGE (weeks)]]>='Diet input details'!$C$17,Table13[[#This Row],[AGE (weeks)]]<='Diet input details'!$D$17),\"Ration 2\",IF(AND(Table13[[#This Row],[AGE (weeks)]]>='Diet input details'!$C$18,Table13[[#This Row],[AGE (weeks)]]<='Diet input details'!$D$18),\"Ration 3\",IF(AND(Table13[[#This Row],[AGE (weeks)]]>='Diet input details'!$C$19,Table13[[#This Row],[AGE (weeks)]]<='Diet input details'!$D$19),\"Ration 4\",IF(AND(Table13[[#This Row],[AGE (weeks)]]>='Diet input details'!$C$20,Table13[[#This Row],[AGE (weeks)]]<='Diet input details'!$D$20),\"Ration 5\", \"Clear\")))))","v":"Clear"},{"$f":"(VLOOKUP(Table13[[#This Row],[Ration]],Table22[#All],2,FALSE))","v":{"$error":"#N/A"}},64.849999999999994,1.9,{"$f":"Table13[[#This Row],[Bodyweight Mid-point (kg)]]*1000","v":1900},110,{"$f":"Table13[[#This Row],[Feed Intake Mid-point (g/bird/day)]]*7","v":770},{"$f":"Table13[[#This Row],[Feed Intake (g/bird/week)]]+J105","v":9800},60.5,{"$f":"(Table13[[#This Row],[Hen-Housed Eggs Cumulative Mid-point]]*Table13[[#This Row],[Average Egg Weight Mid-point (g/egg)]])","v":3923.4249999999997}]
["Brown Colony",30,{"$f":"IF(AND(Table13[[#This Row],[AGE (weeks)]]>='Diet input details'!$C$16,Table13[[#This Row],[AGE (weeks)]]<='Diet input details'!$D$16),\"Ration 1\",IF(AND(Table13[[#This Row],[AGE (weeks)]]>='Diet input details'!$C$17,Table13[[#This Row],[AGE (weeks)]]<='Diet input details'!$D$17),\"Ration 2\",IF(AND(Table13[[#This Row],[AGE (weeks)]]>='Diet input details'!$C$18,Table13[[#This Row],[AGE (weeks)]]<='Diet input details'!$D$18),\"Ration 3\",IF(AND(Table13[[#This Row],[AGE (weeks)]]>='Diet input details'!$C$19,Table13[[#This Row],[AGE (weeks)]]<='Diet input details'!$D$19),\"Ration 4\",IF(AND(Table13[[#This Row],[AGE (weeks)]]>='Diet input details'!$C$20,Table13[[#This Row],[AGE (weeks)]]<='Diet input details'!$D$20),\"Ration 5\", \"Clear\")))))","v":"Clear"},{"$f":"(VLOOKUP(Table13[[#This Row],[Ration]],Table22[#All],2,FALSE))","v":{"$error":"#N/A"}},71.449999999999989,1.9,{"$f":"Table13[[#This Row],[Bodyweight Mid-point (kg)]]*1000","v":1900},110,{"$f":"Table13[[#This Row],[Feed Intake Mid-point (g/bird/day)]]*7","v":770},{"$f":"Table13[[#This Row],[Feed Intake (g/bird/week)]]+J106","v":10570},60.900000000000006,{"$f":"(Table13[[#This Row],[Hen-Housed Eggs Cumulative Mid-point]]*Table13[[#This Row],[Average Egg Weight Mid-point (g/egg)]])","v":4351.3049999999994}]
["Brown Colony",31,{"$f":"IF(AND(Table13[[#This Row],[AGE (weeks)]]>='Diet input details'!$C$16,Table13[[#This Row],[AGE (weeks)]]<='Diet input details'!$D$16),\"Ration 1\",IF(AND(Table13[[#This Row],[AGE (weeks)]]>='Diet input details'!$C$17,Table13[[#This Row],[AGE (weeks)]]<='Diet input details'!$D$17),\"Ration 2\",IF(AND(Table13[[#This Row],[AGE (weeks)]]>='Diet input details'!$C$18,Table13[[#This Row],[AGE (weeks)]]<='Diet input details'!$D$18),\"Ration 3\",IF(AND(Table13[[#This Row],[AGE (weeks)]]>='Diet input details'!$C$19,Table13[[#This Row],[AGE (weeks)]]<='Diet input details'!$D$19),\"Ration 4\",IF(AND(Table13[[#This Row],[AGE (weeks)]]>='Diet input details'!$C$20,Table13[[#This Row],[AGE (weeks)]]<='Diet input details'!$D$20),\"Ration 5\", \"Clear\")))))","v":"Clear"},{"$f":"(VLOOKUP(Table13[[#This Row],[Ration]],Table22[#All],2,FALSE))","v":{"$error":"#N/A"}},78,1.9,{"$f":"Table13[[#This Row],[Bodyweight Mid-point (kg)]]*1000","v":1900},111,{"$f":"Table13[[#This Row],[Feed Intake Mid-point (g/bird/day)]]*7","v":777},{"$f":"Table13[[#This Row],[Feed Intake (g/bird/week)]]+J107","v":11347},61.099999999999994,{"$f":"(Table13[[#This Row],[Hen-Housed Eggs Cumulative Mid-point]]*Table13[[#This Row],[Average Egg Weight Mid-point (g/egg)]])","v":4765.7999999999993}]
["Brown Colony",32,{"$f":"IF(AND(Table13[[#This Row],[AGE (weeks)]]>='Diet input details'!$C$16,Table13[[#This Row],[AGE (weeks)]]<='Diet input details'!$D$16),\"Ration 1\",IF(AND(Table13[[#This Row],[AGE (weeks)]]>='Diet input details'!$C$17,Table13[[#This Row],[AGE (weeks)]]<='Diet input details'!$D$17),\"Ration 2\",IF(AND(Table13[[#This Row],[AGE (weeks)]]>='Diet input details'!$C$18,Table13[[#This Row],[AGE (weeks)]]<='Diet input details'!$D$18),\"Ration 3\",IF(AND(Table13[[#This Row],[AGE (weeks)]]>='Diet input details'!$C$19,Table13[[#This Row],[AGE (weeks)]]<='Diet input details'!$D$19),\"Ration 4\",IF(AND(Table13[[#This Row],[AGE (weeks)]]>='Diet input details'!$C$20,Table13[[#This Row],[AGE (weeks)]]<='Diet input details'!$D$20),\"Ration 5\", \"Clear\")))))","v":"Clear"},{"$f":"(VLOOKUP(Table13[[#This Row],[Ration]],Table22[#All],2,FALSE))","v":{"$error":"#N/A"}},84.6,1.9100000000000001,{"$f":"Table13[[#This Row],[Bodyweight Mid-point (kg)]]*1000","v":1910.0000000000002},111,{"$f":"Table13[[#This Row],[Feed Intake Mid-point (g/bird/day)]]*7","v":777},{"$f":"Table13[[#This Row],[Feed Intake (g/bird/week)]]+J108","v":12124},61.3,{"$f":"(Table13[[#This Row],[Hen-Housed Eggs Cumulative Mid-point]]*Table13[[#This Row],[Average Egg Weight Mid-point (g/egg)]])","v":5185.9799999999996}]
["Brown Colony",33,{"$f":"IF(AND(Table13[[#This Row],[AGE (weeks)]]>='Diet input details'!$C$16,Table13[[#This Row],[AGE (weeks)]]<='Diet input details'!$D$16),\"Ration 1\",IF(AND(Table13[[#This Row],[AGE (weeks)]]>='Diet input details'!$C$17,Table13[[#This Row],[AGE (weeks)]]<='Diet input details'!$D$17),\"Ration 2\",IF(AND(Table13[[#This Row],[AGE (weeks)]]>='Diet input details'!$C$18,Table13[[#This Row],[AGE (weeks)]]<='Diet input details'!$D$18),\"Ration 3\",IF(AND(Table13[[#This Row],[AGE (weeks)]]>='Diet input details'!$C$19,Table13[[#This Row],[AGE (weeks)]]<='Diet input details'!$D$19),\"Ration 4\",IF(AND(Table13[[#This Row],[AGE (weeks)]]>='Diet input details'!$C$20,Table13[[#This Row],[AGE (weeks)]]<='Diet input details'!$D$20),\"Ration 5\", \"Clear\")))))","v":"Clear"},{"$f":"(VLOOKUP(Table13[[#This Row],[Ration]],Table22[#All],2,FALSE))","v":{"$error":"#N/A"}},91.15,1.9100000000000001,{"$f":"Table13[[#This Row],[Bodyweight Mid-point (kg)]]*1000","v":1910.0000000000002},111,{"$f":"Table13[[#This Row],[Feed Intake Mid-point (g/bird/day)]]*7","v":777},{"$f":"Table13[[#This Row],[Feed Intake (g/bird/week)]]+J109","v":12901},61.5,{"$f":"(Table13[[#This Row],[Hen-Housed Eggs Cumulative Mid-point]]*Table13[[#This Row],[Average Egg Weight Mid-point (g/egg)]])","v":5605.7250000000004}]
["Brown Colony",34,{"$f":"IF(AND(Table13[[#This Row],[AGE (weeks)]]>='Diet input details'!$C$16,Table13[[#This Row],[AGE (weeks)]]<='Diet input details'!$D$16),\"Ration 1\",IF(AND(Table13[[#This Row],[AGE (weeks)]]>='Diet input details'!$C$17,Table13[[#This Row],[AGE (weeks)]]<='Diet input details'!$D$17),\"Ration 2\",IF(AND(Table13[[#This Row],[AGE (weeks)]]>='Diet input details'!$C$18,Table13[[#This Row],[AGE (weeks)]]<='Diet input details'!$D$18),\"Ration 3\",IF(AND(Table13[[#This Row],[AGE (weeks)]]>='Diet input details'!$C$19,Table13[[#This Row],[AGE (weeks)]]<='Diet input details'!$D$19),\"Ration 4\",IF(AND(Table13[[#This Row],[AGE (weeks)]]>='Diet input details'!$C$20,Table13[[#This Row],[AGE (weeks)]]<='Diet input details'!$D$20),\"Ration 5\", \"Clear\")))))","v":"Clear"},{"$f":"(VLOOKUP(Table13[[#This Row],[Ration]],Table22[#All],2,FALSE))","v":{"$error":"#N/A"}},97.7,1.9100000000000001,{"$f":"Table13[[#This Row],[Bodyweight Mid-point (kg)]]*1000","v":1910.0000000000002},111,{"$f":"Table13[[#This Row],[Feed Intake Mid-point (g/bird/day)]]*7","v":777},{"$f":"Table13[[#This Row],[Feed Intake (g/bird/week)]]+J110","v":13678},61.7,{"$f":"(Table13[[#This Row],[Hen-Housed Eggs Cumulative Mid-point]]*Table13[[#This Row],[Average Egg Weight Mid-point (g/egg)]])","v":6028.09}]
["Brown Colony",35,{"$f":"IF(AND(Table13[[#This Row],[AGE (weeks)]]>='Diet input details'!$C$16,Table13[[#This Row],[AGE (weeks)]]<='Diet input details'!$D$16),\"Ration 1\",IF(AND(Table13[[#This Row],[AGE (weeks)]]>='Diet input details'!$C$17,Table13[[#This Row],[AGE (weeks)]]<='Diet input details'!$D$17),\"Ration 2\",IF(AND(Table13[[#This Row],[AGE (weeks)]]>='Diet input details'!$C$18,Table13[[#This Row],[AGE (weeks)]]<='Diet input details'!$D$18),\"Ration 3\",IF(AND(Table13[[#This Row],[AGE (weeks)]]>='Diet input details'!$C$19,Table13[[#This Row],[AGE (weeks)]]<='Diet input details'!$D$19),\"Ration 4\",IF(AND(Table13[[#This Row],[AGE (weeks)]]>='Diet input details'!$C$20,Table13[[#This Row],[AGE (weeks)]]<='Diet input details'!$D$20),\"Ration 5\", \"Clear\")))))","v":"Clear"},{"$f":"(VLOOKUP(Table13[[#This Row],[Ration]],Table22[#All],2,FALSE))","v":{"$error":"#N/A"}},104.25,1.9100000000000001,{"$f":"Table13[[#This Row],[Bodyweight Mid-point (kg)]]*1000","v":1910.0000000000002},111,{"$f":"Table13[[#This Row],[Feed Intake Mid-point (g/bird/day)]]*7","v":777},{"$f":"Table13[[#This Row],[Feed Intake (g/bird/week)]]+J111","v":14455},61.8,{"$f":"(Table13[[#This Row],[Hen-Housed Eggs Cumulative Mid-point]]*Table13[[#This Row],[Average Egg Weight Mid-point (g/egg)]])","v":6442.65}]
["Brown Colony",36,{"$f":"IF(AND(Table13[[#This Row],[AGE (weeks)]]>='Diet input details'!$C$16,Table13[[#This Row],[AGE (weeks)]]<='Diet input details'!$D$16),\"Ration 1\",IF(AND(Table13[[#This Row],[AGE (weeks)]]>='Diet input details'!$C$17,Table13[[#This Row],[AGE (weeks)]]<='Diet input details'!$D$17),\"Ration 2\",IF(AND(Table13[[#This Row],[AGE (weeks)]]>='Diet input details'!$C$18,Table13[[#This Row],[AGE (weeks)]]<='Diet input details'!$D$18),\"Ration 3\",IF(AND(Table13[[#This Row],[AGE (weeks)]]>='Diet input details'!$C$19,Table13[[#This Row],[AGE (weeks)]]<='Diet input details'!$D$19),\"Ration 4\",IF(AND(Table13[[#This Row],[AGE (weeks)]]>='Diet input details'!$C$20,Table13[[#This Row],[AGE (weeks)]]<='Diet input details'!$D$20),\"Ration 5\", \"Clear\")))))","v":"Clear"},{"$f":"(VLOOKUP(Table13[[#This Row],[Ration]],Table22[#All],2,FALSE))","v":{"$error":"#N/A"}},110.69999999999999,1.92,{"$f":"Table13[[#This Row],[Bodyweight Mid-point (kg)]]*1000","v":1920},111,{"$f":"Table13[[#This Row],[Feed Intake Mid-point (g/bird/day)]]*7","v":777},{"$f":"Table13[[#This Row],[Feed Intake (g/bird/week)]]+J112","v":15232},61.900000000000006,{"$f":"(Table13[[#This Row],[Hen-Housed Eggs Cumulative Mid-point]]*Table13[[#This Row],[Average Egg Weight Mid-point (g/egg)]])","v":6852.33}]
["Brown Colony",37,{"$f":"IF(AND(Table13[[#This Row],[AGE (weeks)]]>='Diet input details'!$C$16,Table13[[#This Row],[AGE (weeks)]]<='Diet input details'!$D$16),\"Ration 1\",IF(AND(Table13[[#This Row],[AGE (weeks)]]>='Diet input details'!$C$17,Table13[[#This Row],[AGE (weeks)]]<='Diet input details'!$D$17),\"Ration 2\",IF(AND(Table13[[#This Row],[AGE (weeks)]]>='Diet input details'!$C$18,Table13[[#This Row],[AGE (weeks)]]<='Diet input details'!$D$18),\"Ration 3\",IF(AND(Table13[[#This Row],[AGE (weeks)]]>='Diet input details'!$C$19,Table13[[#This Row],[AGE (weeks)]]<='Diet input details'!$D$19),\"Ration 4\",IF(AND(Table13[[#This Row],[AGE (weeks)]]>='Diet input details'!$C$20,Table13[[#This Row],[AGE (weeks)]]<='Diet input details'!$D$20),\"Ration 5\", \"Clear\")))))","v":"Clear"},{"$f":"(VLOOKUP(Table13[[#This Row],[Ration]],Table22[#All],2,FALSE))","v":{"$error":"#N/A"}},117.19999999999999,1.92,{"$f":"Table13[[#This Row],[Bodyweight Mid-point (kg)]]*1000","v":1920},111,{"$f":"Table13[[#This Row],[Feed Intake Mid-point (g/bird/day)]]*7","v":777},{"$f":"Table13[[#This Row],[Feed Intake (g/bird/week)]]+J113","v":16009},62,{"$f":"(Table13[[#This Row],[Hen-Housed Eggs Cumulative Mid-point]]*Table13[[#This Row],[Average Egg Weight Mid-point (g/egg)]])","v":7266.4}]
["Brown Colony",38,{"$f":"IF(AND(Table13[[#This Row],[AGE (weeks)]]>='Diet input details'!$C$16,Table13[[#This Row],[AGE (weeks)]]<='Diet input details'!$D$16),\"Ration 1\",IF(AND(Table13[[#This Row],[AGE (weeks)]]>='Diet input details'!$C$17,Table13[[#This Row],[AGE (weeks)]]<='Diet input details'!$D$17),\"Ration 2\",IF(AND(Table13[[#This Row],[AGE (weeks)]]>='Diet input details'!$C$18,Table13[[#This Row],[AGE (weeks)]]<='Diet input details'!$D$18),\"Ration 3\",IF(AND(Table13[[#This Row],[AGE (weeks)]]>='Diet input details'!$C$19,Table13[[#This Row],[AGE (weeks)]]<='Diet input details'!$D$19),\"Ration 4\",IF(AND(Table13[[#This Row],[AGE (weeks)]]>='Diet input details'!$C$20,Table13[[#This Row],[AGE (weeks)]]<='Diet input details'!$D$20),\"Ration 5\", \"Clear\")))))","v":"Clear"},{"$f":"(VLOOKUP(Table13[[#This Row],[Ration]],Table22[#All],2,FALSE))","v":{"$error":"#N/A"}},123.65,1.92,{"$f":"Table13[[#This Row],[Bodyweight Mid-point (kg)]]*1000","v":1920},111,{"$f":"Table13[[#This Row],[Feed Intake Mid-point (g/bird/day)]]*7","v":777},{"$f":"Table13[[#This Row],[Feed Intake (g/bird/week)]]+J114","v":16786},62.099999999999994,{"$f":"(Table13[[#This Row],[Hen-Housed Eggs Cumulative Mid-point]]*Table13[[#This Row],[Average Egg Weight Mid-point (g/egg)]])","v":7678.665}]
["Brown Colony",39,{"$f":"IF(AND(Table13[[#This Row],[AGE (weeks)]]>='Diet input details'!$C$16,Table13[[#This Row],[AGE (weeks)]]<='Diet input details'!$D$16),\"Ration 1\",IF(AND(Table13[[#This Row],[AGE (weeks)]]>='Diet input details'!$C$17,Table13[[#This Row],[AGE (weeks)]]<='Diet input details'!$D$17),\"Ration 2\",IF(AND(Table13[[#This Row],[AGE (weeks)]]>='Diet input details'!$C$18,Table13[[#This Row],[AGE (weeks)]]<='Diet input details'!$D$18),\"Ration 3\",IF(AND(Table13[[#This Row],[AGE (weeks)]]>='Diet input details'!$C$19,Table13[[#This Row],[AGE (weeks)]]<='Diet input details'!$D$19),\"Ration 4\",IF(AND(Table13[[#This Row],[AGE (weeks)]]>='Diet input details'!$C$20,Table13[[#This Row],[AGE (weeks)]]<='Diet input details'!$D$20),\"Ration 5\", \"Clear\")))))","v":"Clear"},{"$f":"(VLOOKUP(Table13[[#This Row],[Ration]],Table22[#All],2,FALSE))","v":{"$error":"#N/A"}},130.05000000000001,1.9300000000000002,{"$f":"Table13[[#This Row],[Bodyweight Mid-point (kg)]]*1000","v":1930.0000000000002},111,{"$f":"Table13[[#This Row],[Feed Intake Mid-point (g/bird/day)]]*7","v":777},{"$f":"Table13[[#This Row],[Feed Intake (g/bird/week)]]+J115","v":17563},62.2,{"$f":"(Table13[[#This Row],[Hen-Housed Eggs Cumulative Mid-point]]*Table13[[#This Row],[Average Egg Weight Mid-point (g/egg)]])","v":8089.1100000000015}]
["Brown Colony",40,{"$f":"IF(AND(Table13[[#This Row],[AGE (weeks)]]>='Diet input details'!$C$16,Table13[[#This Row],[AGE (weeks)]]<='Diet input details'!$D$16),\"Ration 1\",IF(AND(Table13[[#This Row],[AGE (weeks)]]>='Diet input details'!$C$17,Table13[[#This Row],[AGE (weeks)]]<='Diet input details'!$D$17),\"Ration 2\",IF(AND(Table13[[#This Row],[AGE (weeks)]]>='Diet input details'!$C$18,Table13[[#This Row],[AGE (weeks)]]<='Diet input details'!$D$18),\"Ration 3\",IF(AND(Table13[[#This Row],[AGE (weeks)]]>='Diet input details'!$C$19,Table13[[#This Row],[AGE (weeks)]]<='Diet input details'!$D$19),\"Ration 4\",IF(AND(Table13[[#This Row],[AGE (weeks)]]>='Diet input details'!$C$20,Table13[[#This Row],[AGE (weeks)]]<='Diet input details'!$D$20),\"Ration 5\", \"Clear\")))))","v":"Clear"},{"$f":"(VLOOKUP(Table13[[#This Row],[Ration]],Table22[#All],2,FALSE))","v":{"$error":"#N/A"}},136.39999999999998,1.9300000000000002,{"$f":"Table13[[#This Row],[Bodyweight Mid-point (kg)]]*1000","v":1930.0000000000002},111,{"$f":"Table13[[#This Row],[Feed Intake Mid-point (g/bird/day)]]*7","v":777},{"$f":"Table13[[#This Row],[Feed Intake (g/bird/week)]]+J116","v":18340},62.3,{"$f":"(Table13[[#This Row],[Hen-Housed Eggs Cumulative Mid-point]]*Table13[[#This Row],[Average Egg Weight Mid-point (g/egg)]])","v":8497.7199999999975}]
["Brown Colony",41,{"$f":"IF(AND(Table13[[#This Row],[AGE (weeks)]]>='Diet input details'!$C$16,Table13[[#This Row],[AGE (weeks)]]<='Diet input details'!$D$16),\"Ration 1\",IF(AND(Table13[[#This Row],[AGE (weeks)]]>='Diet input details'!$C$17,Table13[[#This Row],[AGE (weeks)]]<='Diet input details'!$D$17),\"Ration 2\",IF(AND(Table13[[#This Row],[AGE (weeks)]]>='Diet input details'!$C$18,Table13[[#This Row],[AGE (weeks)]]<='Diet input details'!$D$18),\"Ration 3\",IF(AND(Table13[[#This Row],[AGE (weeks)]]>='Diet input details'!$C$19,Table13[[#This Row],[AGE (weeks)]]<='Diet input details'!$D$19),\"Ration 4\",IF(AND(Table13[[#This Row],[AGE (weeks)]]>='Diet input details'!$C$20,Table13[[#This Row],[AGE (weeks)]]<='Diet input details'!$D$20),\"Ration 5\", \"Clear\")))))","v":"Clear"},{"$f":"(VLOOKUP(Table13[[#This Row],[Ration]],Table22[#All],2,FALSE))","v":{"$error":"#N/A"}},142.75,1.9300000000000002,{"$f":"Table13[[#This Row],[Bodyweight Mid-point (kg)]]*1000","v":1930.0000000000002},111,{"$f":"Table13[[#This Row],[Feed Intake Mid-point (g/bird/day)]]*7","v":777},{"$f":"Table13[[#This Row],[Feed Intake (g/bird/week)]]+J117","v":19117},62.400000000000006,{"$f":"(Table13[[#This Row],[Hen-Housed Eggs Cumulative Mid-point]]*Table13[[#This Row],[Average Egg Weight Mid-point (g/egg)]])","v":8907.6}]
["Brown Colony",42,{"$f":"IF(AND(Table13[[#This Row],[AGE (weeks)]]>='Diet input details'!$C$16,Table13[[#This Row],[AGE (weeks)]]<='Diet input details'!$D$16),\"Ration 1\",IF(AND(Table13[[#This Row],[AGE (weeks)]]>='Diet input details'!$C$17,Table13[[#This Row],[AGE (weeks)]]<='Diet input details'!$D$17),\"Ration 2\",IF(AND(Table13[[#This Row],[AGE (weeks)]]>='Diet input details'!$C$18,Table13[[#This Row],[AGE (weeks)]]<='Diet input details'!$D$18),\"Ration 3\",IF(AND(Table13[[#This Row],[AGE (weeks)]]>='Diet input details'!$C$19,Table13[[#This Row],[AGE (weeks)]]<='Diet input details'!$D$19),\"Ration 4\",IF(AND(Table13[[#This Row],[AGE (weeks)]]>='Diet input details'!$C$20,Table13[[#This Row],[AGE (weeks)]]<='Diet input details'!$D$20),\"Ration 5\", \"Clear\")))))","v":"Clear"},{"$f":"(VLOOKUP(Table13[[#This Row],[Ration]],Table22[#All],2,FALSE))","v":{"$error":"#N/A"}},149.10000000000002,1.94,{"$f":"Table13[[#This Row],[Bodyweight Mid-point (kg)]]*1000","v":1940},111,{"$f":"Table13[[#This Row],[Feed Intake Mid-point (g/bird/day)]]*7","v":777},{"$f":"Table13[[#This Row],[Feed Intake (g/bird/week)]]+J118","v":19894},62.599999999999994,{"$f":"(Table13[[#This Row],[Hen-Housed Eggs Cumulative Mid-point]]*Table13[[#This Row],[Average Egg Weight Mid-point (g/egg)]])","v":9333.66}]
["Brown Colony",43,{"$f":"IF(AND(Table13[[#This Row],[AGE (weeks)]]>='Diet input details'!$C$16,Table13[[#This Row],[AGE (weeks)]]<='Diet input details'!$D$16),\"Ration 1\",IF(AND(Table13[[#This Row],[AGE (weeks)]]>='Diet input details'!$C$17,Table13[[#This Row],[AGE (weeks)]]<='Diet input details'!$D$17),\"Ration 2\",IF(AND(Table13[[#This Row],[AGE (weeks)]]>='Diet input details'!$C$18,Table13[[#This Row],[AGE (weeks)]]<='Diet input details'!$D$18),\"Ration 3\",IF(AND(Table13[[#This Row],[AGE (weeks)]]>='Diet input details'!$C$19,Table13[[#This Row],[AGE (weeks)]]<='Diet input details'!$D$19),\"Ration 4\",IF(AND(Table13[[#This Row],[AGE (weeks)]]>='Diet input details'!$C$20,Table13[[#This Row],[AGE (weeks)]]<='Diet input details'!$D$20),\"Ration 5\", \"Clear\")))))","v":"Clear"},{"$f":"(VLOOKUP(Table13[[#This Row],[Ration]],Table22[#All],2,FALSE))","v":{"$error":"#N/A"}},155.35,1.94,{"$f":"Table13[[#This Row],[Bodyweight Mid-point (kg)]]*1000","v":1940},111,{"$f":"Table13[[#This Row],[Feed Intake Mid-point (g/bird/day)]]*7","v":777},{"$f":"Table13[[#This Row],[Feed Intake (g/bird/week)]]+J119","v":20671},62.8,{"$f":"(Table13[[#This Row],[Hen-Housed Eggs Cumulative Mid-point]]*Table13[[#This Row],[Average Egg Weight Mid-point (g/egg)]])","v":9755.98}]
["Brown Colony",44,{"$f":"IF(AND(Table13[[#This Row],[AGE (weeks)]]>='Diet input details'!$C$16,Table13[[#This Row],[AGE (weeks)]]<='Diet input details'!$D$16),\"Ration 1\",IF(AND(Table13[[#This Row],[AGE (weeks)]]>='Diet input details'!$C$17,Table13[[#This Row],[AGE (weeks)]]<='Diet input details'!$D$17),\"Ration 2\",IF(AND(Table13[[#This Row],[AGE (weeks)]]>='Diet input details'!$C$18,Table13[[#This Row],[AGE (weeks)]]<='Diet input details'!$D$18),\"Ration 3\",IF(AND(Table13[[#This Row],[AGE (weeks)]]>='Diet input details'!$C$19,Table13[[#This Row],[AGE (weeks)]]<='Diet input details'!$D$19),\"Ration 4\",IF(AND(Table13[[#This Row],[AGE (weeks)]]>='Diet input details'!$C$20,Table13[[#This Row],[AGE (weeks)]]<='Diet input details'!$D$20),\"Ration 5\", \"Clear\")))))","v":"Clear"},{"$f":"(VLOOKUP(Table13[[#This Row],[Ration]],Table22[#All],2,FALSE))","v":{"$error":"#N/A"}},161.55000000000001,1.94,{"$f":"Table13[[#This Row],[Bodyweight Mid-point (kg)]]*1000","v":1940},111,{"$f":"Table13[[#This Row],[Feed Intake Mid-point (g/bird/day)]]*7","v":777},{"$f":"Table13[[#This Row],[Feed Intake (g/bird/week)]]+J120","v":21448},62.900000000000006,{"$f":"(Table13[[#This Row],[Hen-Housed Eggs Cumulative Mid-point]]*Table13[[#This Row],[Average Egg Weight Mid-point (g/egg)]])","v":10161.495000000001}]
["Brown Colony",45,{"$f":"IF(AND(Table13[[#This Row],[AGE (weeks)]]>='Diet input details'!$C$16,Table13[[#This Row],[AGE (weeks)]]<='Diet input details'!$D$16),\"Ration 1\",IF(AND(Table13[[#This Row],[AGE (weeks)]]>='Diet input details'!$C$17,Table13[[#This Row],[AGE (weeks)]]<='Diet input details'!$D$17),\"Ration 2\",IF(AND(Table13[[#This Row],[AGE (weeks)]]>='Diet input details'!$C$18,Table13[[#This Row],[AGE (weeks)]]<='Diet input details'!$D$18),\"Ration 3\",IF(AND(Table13[[#This Row],[AGE (weeks)]]>='Diet input details'!$C$19,Table13[[#This Row],[AGE (weeks)]]<='Diet input details'!$D$19),\"Ration 4\",IF(AND(Table13[[#This Row],[AGE (weeks)]]>='Diet input details'!$C$20,Table13[[#This Row],[AGE (weeks)]]<='Diet input details'!$D$20),\"Ration 5\", \"Clear\")))))","v":"Clear"},{"$f":"(VLOOKUP(Table13[[#This Row],[Ration]],Table22[#All],2,FALSE))","v":{"$error":"#N/A"}},167.8,1.9499999999999997,{"$f":"Table13[[#This Row],[Bodyweight Mid-point (kg)]]*1000","v":1949.9999999999998},110,{"$f":"Table13[[#This Row],[Feed Intake Mid-point (g/bird/day)]]*7","v":770},{"$f":"Table13[[#This Row],[Feed Intake (g/bird/week)]]+J121","v":22218},62.900000000000006,{"$f":"(Table13[[#This Row],[Hen-Housed Eggs Cumulative Mid-point]]*Table13[[#This Row],[Average Egg Weight Mid-point (g/egg)]])","v":10554.62}]
["Brown Colony",46,{"$f":"IF(AND(Table13[[#This Row],[AGE (weeks)]]>='Diet input details'!$C$16,Table13[[#This Row],[AGE (weeks)]]<='Diet input details'!$D$16),\"Ration 1\",IF(AND(Table13[[#This Row],[AGE (weeks)]]>='Diet input details'!$C$17,Table13[[#This Row],[AGE (weeks)]]<='Diet input details'!$D$17),\"Ration 2\",IF(AND(Table13[[#This Row],[AGE (weeks)]]>='Diet input details'!$C$18,Table13[[#This Row],[AGE (weeks)]]<='Diet input details'!$D$18),\"Ration 3\",IF(AND(Table13[[#This Row],[AGE (weeks)]]>='Diet input details'!$C$19,Table13[[#This Row],[AGE (weeks)]]<='Diet input details'!$D$19),\"Ration 4\",IF(AND(Table13[[#This Row],[AGE (weeks)]]>='Diet input details'!$C$20,Table13[[#This Row],[AGE (weeks)]]<='Diet input details'!$D$20),\"Ration 5\", \"Clear\")))))","v":"Clear"},{"$f":"(VLOOKUP(Table13[[#This Row],[Ration]],Table22[#All],2,FALSE))","v":{"$error":"#N/A"}},174,1.9499999999999997,{"$f":"Table13[[#This Row],[Bodyweight Mid-point (kg)]]*1000","v":1949.9999999999998},110,{"$f":"Table13[[#This Row],[Feed Intake Mid-point (g/bird/day)]]*7","v":770},{"$f":"Table13[[#This Row],[Feed Intake (g/bird/week)]]+J122","v":22988},63,{"$f":"(Table13[[#This Row],[Hen-Housed Eggs Cumulative Mid-point]]*Table13[[#This Row],[Average Egg Weight Mid-point (g/egg)]])","v":10962}]
["Brown Colony",47,{"$f":"IF(AND(Table13[[#This Row],[AGE (weeks)]]>='Diet input details'!$C$16,Table13[[#This Row],[AGE (weeks)]]<='Diet input details'!$D$16),\"Ration 1\",IF(AND(Table13[[#This Row],[AGE (weeks)]]>='Diet input details'!$C$17,Table13[[#This Row],[AGE (weeks)]]<='Diet input details'!$D$17),\"Ration 2\",IF(AND(Table13[[#This Row],[AGE (weeks)]]>='Diet input details'!$C$18,Table13[[#This Row],[AGE (weeks)]]<='Diet input details'!$D$18),\"Ration 3\",IF(AND(Table13[[#This Row],[AGE (weeks)]]>='Diet input details'!$C$19,Table13[[#This Row],[AGE (weeks)]]<='Diet input details'!$D$19),\"Ration 4\",IF(AND(Table13[[#This Row],[AGE (weeks)]]>='Diet input details'!$C$20,Table13[[#This Row],[AGE (weeks)]]<='Diet input details'!$D$20),\"Ration 5\", \"Clear\")))))","v":"Clear"},{"$f":"(VLOOKUP(Table13[[#This Row],[Ration]],Table22[#All],2,FALSE))","v":{"$error":"#N/A"}},180.05,1.9499999999999997,{"$f":"Table13[[#This Row],[Bodyweight Mid-point (kg)]]*1000","v":1949.9999999999998},110,{"$f":"Table13[[#This Row],[Feed Intake Mid-point (g/bird/day)]]*7","v":770},{"$f":"Table13[[#This Row],[Feed Intake (g/bird/week)]]+J123","v":23758},63.1,{"$f":"(Table13[[#This Row],[Hen-Housed Eggs Cumulative Mid-point]]*Table13[[#This Row],[Average Egg Weight Mid-point (g/egg)]])","v":11361.155000000001}]
["Brown Colony",48,{"$f":"IF(AND(Table13[[#This Row],[AGE (weeks)]]>='Diet input details'!$C$16,Table13[[#This Row],[AGE (weeks)]]<='Diet input details'!$D$16),\"Ration 1\",IF(AND(Table13[[#This Row],[AGE (weeks)]]>='Diet input details'!$C$17,Table13[[#This Row],[AGE (weeks)]]<='Diet input details'!$D$17),\"Ration 2\",IF(AND(Table13[[#This Row],[AGE (weeks)]]>='Diet input details'!$C$18,Table13[[#This Row],[AGE (weeks)]]<='Diet input details'!$D$18),\"Ration 3\",IF(AND(Table13[[#This Row],[AGE (weeks)]]>='Diet input details'!$C$19,Table13[[#This Row],[AGE (weeks)]]<='Diet input details'!$D$19),\"Ration 4\",IF(AND(Table13[[#This Row],[AGE (weeks)]]>='Diet input details'!$C$20,Table13[[#This Row],[AGE (weeks)]]<='Diet input details'!$D$20),\"Ration 5\", \"Clear\")))))","v":"Clear"},{"$f":"(VLOOKUP(Table13[[#This Row],[Ration]],Table22[#All],2,FALSE))","v":{"$error":"#N/A"}},186.2,1.9499999999999997,{"$f":"Table13[[#This Row],[Bodyweight Mid-point (kg)]]*1000","v":1949.9999999999998},110,{"$f":"Table13[[#This Row],[Feed Intake Mid-point (g/bird/day)]]*7","v":770},{"$f":"Table13[[#This Row],[Feed Intake (g/bird/week)]]+J124","v":24528},63.2,{"$f":"(Table13[[#This Row],[Hen-Housed Eggs Cumulative Mid-point]]*Table13[[#This Row],[Average Egg Weight Mid-point (g/egg)]])","v":11767.84}]
["Brown Colony",49,{"$f":"IF(AND(Table13[[#This Row],[AGE (weeks)]]>='Diet input details'!$C$16,Table13[[#This Row],[AGE (weeks)]]<='Diet input details'!$D$16),\"Ration 1\",IF(AND(Table13[[#This Row],[AGE (weeks)]]>='Diet input details'!$C$17,Table13[[#This Row],[AGE (weeks)]]<='Diet input details'!$D$17),\"Ration 2\",IF(AND(Table13[[#This Row],[AGE (weeks)]]>='Diet input details'!$C$18,Table13[[#This Row],[AGE (weeks)]]<='Diet input details'!$D$18),\"Ration 3\",IF(AND(Table13[[#This Row],[AGE (weeks)]]>='Diet input details'!$C$19,Table13[[#This Row],[AGE (weeks)]]<='Diet input details'!$D$19),\"Ration 4\",IF(AND(Table13[[#This Row],[AGE (weeks)]]>='Diet input details'!$C$20,Table13[[#This Row],[AGE (weeks)]]<='Diet input details'!$D$20),\"Ration 5\", \"Clear\")))))","v":"Clear"},{"$f":"(VLOOKUP(Table13[[#This Row],[Ration]],Table22[#All],2,FALSE))","v":{"$error":"#N/A"}},192.3,1.9499999999999997,{"$f":"Table13[[#This Row],[Bodyweight Mid-point (kg)]]*1000","v":1949.9999999999998},110,{"$f":"Table13[[#This Row],[Feed Intake Mid-point (g/bird/day)]]*7","v":770},{"$f":"Table13[[#This Row],[Feed Intake (g/bird/week)]]+J125","v":25298},63.3,{"$f":"(Table13[[#This Row],[Hen-Housed Eggs Cumulative Mid-point]]*Table13[[#This Row],[Average Egg Weight Mid-point (g/egg)]])","v":12172.59}]
["Brown Colony",50,{"$f":"IF(AND(Table13[[#This Row],[AGE (weeks)]]>='Diet input details'!$C$16,Table13[[#This Row],[AGE (weeks)]]<='Diet input details'!$D$16),\"Ration 1\",IF(AND(Table13[[#This Row],[AGE (weeks)]]>='Diet input details'!$C$17,Table13[[#This Row],[AGE (weeks)]]<='Diet input details'!$D$17),\"Ration 2\",IF(AND(Table13[[#This Row],[AGE (weeks)]]>='Diet input details'!$C$18,Table13[[#This Row],[AGE (weeks)]]<='Diet input details'!$D$18),\"Ration 3\",IF(AND(Table13[[#This Row],[AGE (weeks)]]>='Diet input details'!$C$19,Table13[[#This Row],[AGE (weeks)]]<='Diet input details'!$D$19),\"Ration 4\",IF(AND(Table13[[#This Row],[AGE (weeks)]]>='Diet input details'!$C$20,Table13[[#This Row],[AGE (weeks)]]<='Diet input details'!$D$20),\"Ration 5\", \"Clear\")))))","v":"Clear"},{"$f":"(VLOOKUP(Table13[[#This Row],[Ration]],Table22[#All],2,FALSE))","v":{"$error":"#N/A"}},198.35,1.9499999999999997,{"$f":"Table13[[#This Row],[Bodyweight Mid-point (kg)]]*1000","v":1949.9999999999998},110,{"$f":"Table13[[#This Row],[Feed Intake Mid-point (g/bird/day)]]*7","v":770},{"$f":"Table13[[#This Row],[Feed Intake (g/bird/week)]]+J126","v":26068},63.400000000000006,{"$f":"(Table13[[#This Row],[Hen-Housed Eggs Cumulative Mid-point]]*Table13[[#This Row],[Average Egg Weight Mid-point (g/egg)]])","v":12575.390000000001}]
["Brown Colony",51,{"$f":"IF(AND(Table13[[#This Row],[AGE (weeks)]]>='Diet input details'!$C$16,Table13[[#This Row],[AGE (weeks)]]<='Diet input details'!$D$16),\"Ration 1\",IF(AND(Table13[[#This Row],[AGE (weeks)]]>='Diet input details'!$C$17,Table13[[#This Row],[AGE (weeks)]]<='Diet input details'!$D$17),\"Ration 2\",IF(AND(Table13[[#This Row],[AGE (weeks)]]>='Diet input details'!$C$18,Table13[[#This Row],[AGE (weeks)]]<='Diet input details'!$D$18),\"Ration 3\",IF(AND(Table13[[#This Row],[AGE (weeks)]]>='Diet input details'!$C$19,Table13[[#This Row],[AGE (weeks)]]<='Diet input details'!$D$19),\"Ration 4\",IF(AND(Table13[[#This Row],[AGE (weeks)]]>='Diet input details'!$C$20,Table13[[#This Row],[AGE (weeks)]]<='Diet input details'!$D$20),\"Ration 5\", \"Clear\")))))","v":"Clear"},{"$f":"(VLOOKUP(Table13[[#This Row],[Ration]],Table22[#All],2,FALSE))","v":{"$error":"#N/A"}},204.4,1.9499999999999997,{"$f":"Table13[[#This Row],[Bodyweight Mid-point (kg)]]*1000","v":1949.9999999999998},109,{"$f":"Table13[[#This Row],[Feed Intake Mid-point (g/bird/day)]]*7","v":763},{"$f":"Table13[[#This Row],[Feed Intake (g/bird/week)]]+J127","v":26831},63.400000000000006,{"$f":"(Table13[[#This Row],[Hen-Housed Eggs Cumulative Mid-point]]*Table13[[#This Row],[Average Egg Weight Mid-point (g/egg)]])","v":12958.960000000001}]
["Brown Colony",52,{"$f":"IF(AND(Table13[[#This Row],[AGE (weeks)]]>='Diet input details'!$C$16,Table13[[#This Row],[AGE (weeks)]]<='Diet input details'!$D$16),\"Ration 1\",IF(AND(Table13[[#This Row],[AGE (weeks)]]>='Diet input details'!$C$17,Table13[[#This Row],[AGE (weeks)]]<='Diet input details'!$D$17),\"Ration 2\",IF(AND(Table13[[#This Row],[AGE (weeks)]]>='Diet input details'!$C$18,Table13[[#This Row],[AGE (weeks)]]<='Diet input details'!$D$18),\"Ration 3\",IF(AND(Table13[[#This Row],[AGE (weeks)]]>='Diet input details'!$C$19,Table13[[#This Row],[AGE (weeks)]]<='Diet input details'!$D$19),\"Ration 4\",IF(AND(Table13[[#This Row],[AGE (weeks)]]>='Diet input details'!$C$20,Table13[[#This Row],[AGE (weeks)]]<='Diet input details'!$D$20),\"Ration 5\", \"Clear\")))))","v":"Clear"},{"$f":"(VLOOKUP(Table13[[#This Row],[Ration]],Table22[#All],2,FALSE))","v":{"$error":"#N/A"}},210.4,1.9499999999999997,{"$f":"Table13[[#This Row],[Bodyweight Mid-point (kg)]]*1000","v":1949.9999999999998},109,{"$f":"Table13[[#This Row],[Feed Intake Mid-point (g/bird/day)]]*7","v":763},{"$f":"Table13[[#This Row],[Feed Intake (g/bird/week)]]+J128","v":27594},63.5,{"$f":"(Table13[[#This Row],[Hen-Housed Eggs Cumulative Mid-point]]*Table13[[#This Row],[Average Egg Weight Mid-point (g/egg)]])","v":13360.4}]
["Brown Colony",53,{"$f":"IF(AND(Table13[[#This Row],[AGE (weeks)]]>='Diet input details'!$C$16,Table13[[#This Row],[AGE (weeks)]]<='Diet input details'!$D$16),\"Ration 1\",IF(AND(Table13[[#This Row],[AGE (weeks)]]>='Diet input details'!$C$17,Table13[[#This Row],[AGE (weeks)]]<='Diet input details'!$D$17),\"Ration 2\",IF(AND(Table13[[#This Row],[AGE (weeks)]]>='Diet input details'!$C$18,Table13[[#This Row],[AGE (weeks)]]<='Diet input details'!$D$18),\"Ration 3\",IF(AND(Table13[[#This Row],[AGE (weeks)]]>='Diet input details'!$C$19,Table13[[#This Row],[AGE (weeks)]]<='Diet input details'!$D$19),\"Ration 4\",IF(AND(Table13[[#This Row],[AGE (weeks)]]>='Diet input details'!$C$20,Table13[[#This Row],[AGE (weeks)]]<='Diet input details'!$D$20),\"Ration 5\", \"Clear\")))))","v":"Clear"},{"$f":"(VLOOKUP(Table13[[#This Row],[Ration]],Table22[#All],2,FALSE))","v":{"$error":"#N/A"}},216.4,1.9499999999999997,{"$f":"Table13[[#This Row],[Bodyweight Mid-point (kg)]]*1000","v":1949.9999999999998},109,{"$f":"Table13[[#This Row],[Feed Intake Mid-point (g/bird/day)]]*7","v":763},{"$f":"Table13[[#This Row],[Feed Intake (g/bird/week)]]+J129","v":28357},63.5,{"$f":"(Table13[[#This Row],[Hen-Housed Eggs Cumulative Mid-point]]*Table13[[#This Row],[Average Egg Weight Mid-point (g/egg)]])","v":13741.4}]
["Brown Colony",54,{"$f":"IF(AND(Table13[[#This Row],[AGE (weeks)]]>='Diet input details'!$C$16,Table13[[#This Row],[AGE (weeks)]]<='Diet input details'!$D$16),\"Ration 1\",IF(AND(Table13[[#This Row],[AGE (weeks)]]>='Diet input details'!$C$17,Table13[[#This Row],[AGE (weeks)]]<='Diet input details'!$D$17),\"Ration 2\",IF(AND(Table13[[#This Row],[AGE (weeks)]]>='Diet input details'!$C$18,Table13[[#This Row],[AGE (weeks)]]<='Diet input details'!$D$18),\"Ration 3\",IF(AND(Table13[[#This Row],[AGE (weeks)]]>='Diet input details'!$C$19,Table13[[#This Row],[AGE (weeks)]]<='Diet input details'!$D$19),\"Ration 4\",IF(AND(Table13[[#This Row],[AGE (weeks)]]>='Diet input details'!$C$20,Table13[[#This Row],[AGE (weeks)]]<='Diet input details'!$D$20),\"Ration 5\", \"Clear\")))))","v":"Clear"},{"$f":"(VLOOKUP(Table13[[#This Row],[Ration]],Table22[#All],2,FALSE))","v":{"$error":"#N/A"}},222.35000000000002,1.9499999999999997,{"$f":"Table13[[#This Row],[Bodyweight Mid-point (kg)]]*1000","v":1949.9999999999998},109,{"$f":"Table13[[#This Row],[Feed Intake Mid-point (g/bird/day)]]*7","v":763},{"$f":"Table13[[#This Row],[Feed Intake (g/bird/week)]]+J130","v":29120},63.5,{"$f":"(Table13[[#This Row],[Hen-Housed Eggs Cumulative Mid-point]]*Table13[[#This Row],[Average Egg Weight Mid-point (g/egg)]])","v":14119.225000000002}]
["Brown Colony",55,{"$f":"IF(AND(Table13[[#This Row],[AGE (weeks)]]>='Diet input details'!$C$16,Table13[[#This Row],[AGE (weeks)]]<='Diet input details'!$D$16),\"Ration 1\",IF(AND(Table13[[#This Row],[AGE (weeks)]]>='Diet input details'!$C$17,Table13[[#This Row],[AGE (weeks)]]<='Diet input details'!$D$17),\"Ration 2\",IF(AND(Table13[[#This Row],[AGE (weeks)]]>='Diet input details'!$C$18,Table13[[#This Row],[AGE (weeks)]]<='Diet input details'!$D$18),\"Ration 3\",IF(AND(Table13[[#This Row],[AGE (weeks)]]>='Diet input details'!$C$19,Table13[[#This Row],[AGE (weeks)]]<='Diet input details'!$D$19),\"Ration 4\",IF(AND(Table13[[#This Row],[AGE (weeks)]]>='Diet input details'!$C$20,Table13[[#This Row],[AGE (weeks)]]<='Diet input details'!$D$20),\"Ration 5\", \"Clear\")))))","v":"Clear"},{"$f":"(VLOOKUP(Table13[[#This Row],[Ration]],Table22[#All],2,FALSE))","v":{"$error":"#N/A"}},228.3,1.96,{"$f":"Table13[[#This Row],[Bodyweight Mid-point (kg)]]*1000","v":1960},109,{"$f":"Table13[[#This Row],[Feed Intake Mid-point (g/bird/day)]]*7","v":763},{"$f":"Table13[[#This Row],[Feed Intake (g/bird/week)]]+J131","v":29883},63.5,{"$f":"(Table13[[#This Row],[Hen-Housed Eggs Cumulative Mid-point]]*Table13[[#This Row],[Average Egg Weight Mid-point (g/egg)]])","v":14497.050000000001}]
["Brown Colony",56,{"$f":"IF(AND(Table13[[#This Row],[AGE (weeks)]]>='Diet input details'!$C$16,Table13[[#This Row],[AGE (weeks)]]<='Diet input details'!$D$16),\"Ration 1\",IF(AND(Table13[[#This Row],[AGE (weeks)]]>='Diet input details'!$C$17,Table13[[#This Row],[AGE (weeks)]]<='Diet input details'!$D$17),\"Ration 2\",IF(AND(Table13[[#This Row],[AGE (weeks)]]>='Diet input details'!$C$18,Table13[[#This Row],[AGE (weeks)]]<='Diet input details'!$D$18),\"Ration 3\",IF(AND(Table13[[#This Row],[AGE (weeks)]]>='Diet input details'!$C$19,Table13[[#This Row],[AGE (weeks)]]<='Diet input details'!$D$19),\"Ration 4\",IF(AND(Table13[[#This Row],[AGE (weeks)]]>='Diet input details'!$C$20,Table13[[#This Row],[AGE (weeks)]]<='Diet input details'!$D$20),\"Ration 5\", \"Clear\")))))","v":"Clear"},{"$f":"(VLOOKUP(Table13[[#This Row],[Ration]],Table22[#All],2,FALSE))","v":{"$error":"#N/A"}},234.25,1.96,{"$f":"Table13[[#This Row],[Bodyweight Mid-point (kg)]]*1000","v":1960},109,{"$f":"Table13[[#This Row],[Feed Intake Mid-point (g/bird/day)]]*7","v":763},{"$f":"Table13[[#This Row],[Feed Intake (g/bird/week)]]+J132","v":30646},63.6,{"$f":"(Table13[[#This Row],[Hen-Housed Eggs Cumulative Mid-point]]*Table13[[#This Row],[Average Egg Weight Mid-point (g/egg)]])","v":14898.300000000001}]
["Brown Colony",57,{"$f":"IF(AND(Table13[[#This Row],[AGE (weeks)]]>='Diet input details'!$C$16,Table13[[#This Row],[AGE (weeks)]]<='Diet input details'!$D$16),\"Ration 1\",IF(AND(Table13[[#This Row],[AGE (weeks)]]>='Diet input details'!$C$17,Table13[[#This Row],[AGE (weeks)]]<='Diet input details'!$D$17),\"Ration 2\",IF(AND(Table13[[#This Row],[AGE (weeks)]]>='Diet input details'!$C$18,Table13[[#This Row],[AGE (weeks)]]<='Diet input details'!$D$18),\"Ration 3\",IF(AND(Table13[[#This Row],[AGE (weeks)]]>='Diet input details'!$C$19,Table13[[#This Row],[AGE (weeks)]]<='Diet input details'!$D$19),\"Ration 4\",IF(AND(Table13[[#This Row],[AGE (weeks)]]>='Diet input details'!$C$20,Table13[[#This Row],[AGE (weeks)]]<='Diet input details'!$D$20),\"Ration 5\", \"Clear\")))))","v":"Clear"},{"$f":"(VLOOKUP(Table13[[#This Row],[Ration]],Table22[#All],2,FALSE))","v":{"$error":"#N/A"}},240.10000000000002,1.96,{"$f":"Table13[[#This Row],[Bodyweight Mid-point (kg)]]*1000","v":1960},109,{"$f":"Table13[[#This Row],[Feed Intake Mid-point (g/bird/day)]]*7","v":763},{"$f":"Table13[[#This Row],[Feed Intake (g/bird/week)]]+J133","v":31409},63.6,{"$f":"(Table13[[#This Row],[Hen-Housed Eggs Cumulative Mid-point]]*Table13[[#This Row],[Average Egg Weight Mid-point (g/egg)]])","v":15270.360000000002}]
["Brown Colony",58,{"$f":"IF(AND(Table13[[#This Row],[AGE (weeks)]]>='Diet input details'!$C$16,Table13[[#This Row],[AGE (weeks)]]<='Diet input details'!$D$16),\"Ration 1\",IF(AND(Table13[[#This Row],[AGE (weeks)]]>='Diet input details'!$C$17,Table13[[#This Row],[AGE (weeks)]]<='Diet input details'!$D$17),\"Ration 2\",IF(AND(Table13[[#This Row],[AGE (weeks)]]>='Diet input details'!$C$18,Table13[[#This Row],[AGE (weeks)]]<='Diet input details'!$D$18),\"Ration 3\",IF(AND(Table13[[#This Row],[AGE (weeks)]]>='Diet input details'!$C$19,Table13[[#This Row],[AGE (weeks)]]<='Diet input details'!$D$19),\"Ration 4\",IF(AND(Table13[[#This Row],[AGE (weeks)]]>='Diet input details'!$C$20,Table13[[#This Row],[AGE (weeks)]]<='Diet input details'!$D$20),\"Ration 5\", \"Clear\")))))","v":"Clear"},{"$f":"(VLOOKUP(Table13[[#This Row],[Ration]],Table22[#All],2,FALSE))","v":{"$error":"#N/A"}},245.95,1.96,{"$f":"Table13[[#This Row],[Bodyweight Mid-point (kg)]]*1000","v":1960},109,{"$f":"Table13[[#This Row],[Feed Intake Mid-point (g/bird/day)]]*7","v":763},{"$f":"Table13[[#This Row],[Feed Intake (g/bird/week)]]+J134","v":32172},63.6,{"$f":"(Table13[[#This Row],[Hen-Housed Eggs Cumulative Mid-point]]*Table13[[#This Row],[Average Egg Weight Mid-point (g/egg)]])","v":15642.42}]
["Brown Colony",59,{"$f":"IF(AND(Table13[[#This Row],[AGE (weeks)]]>='Diet input details'!$C$16,Table13[[#This Row],[AGE (weeks)]]<='Diet input details'!$D$16),\"Ration 1\",IF(AND(Table13[[#This Row],[AGE (weeks)]]>='Diet input details'!$C$17,Table13[[#This Row],[AGE (weeks)]]<='Diet input details'!$D$17),\"Ration 2\",IF(AND(Table13[[#This Row],[AGE (weeks)]]>='Diet input details'!$C$18,Table13[[#This Row],[AGE (weeks)]]<='Diet input details'!$D$18),\"Ration 3\",IF(AND(Table13[[#This Row],[AGE (weeks)]]>='Diet input details'!$C$19,Table13[[#This Row],[AGE (weeks)]]<='Diet input details'!$D$19),\"Ration 4\",IF(AND(Table13[[#This Row],[AGE (weeks)]]>='Diet input details'!$C$20,Table13[[#This Row],[AGE (weeks)]]<='Diet input details'!$D$20),\"Ration 5\", \"Clear\")))))","v":"Clear"},{"$f":"(VLOOKUP(Table13[[#This Row],[Ration]],Table22[#All],2,FALSE))","v":{"$error":"#N/A"}},251.8,1.96,{"$f":"Table13[[#This Row],[Bodyweight Mid-point (kg)]]*1000","v":1960},109,{"$f":"Table13[[#This Row],[Feed Intake Mid-point (g/bird/day)]]*7","v":763},{"$f":"Table13[[#This Row],[Feed Intake (g/bird/week)]]+J135","v":32935},63.7,{"$f":"(Table13[[#This Row],[Hen-Housed Eggs Cumulative Mid-point]]*Table13[[#This Row],[Average Egg Weight Mid-point (g/egg)]])","v":16039.660000000002}]
["Brown Colony",60,{"$f":"IF(AND(Table13[[#This Row],[AGE (weeks)]]>='Diet input details'!$C$16,Table13[[#This Row],[AGE (weeks)]]<='Diet input details'!$D$16),\"Ration 1\",IF(AND(Table13[[#This Row],[AGE (weeks)]]>='Diet input details'!$C$17,Table13[[#This Row],[AGE (weeks)]]<='Diet input details'!$D$17),\"Ration 2\",IF(AND(Table13[[#This Row],[AGE (weeks)]]>='Diet input details'!$C$18,Table13[[#This Row],[AGE (weeks)]]<='Diet input details'!$D$18),\"Ration 3\",IF(AND(Table13[[#This Row],[AGE (weeks)]]>='Diet input details'!$C$19,Table13[[#This Row],[AGE (weeks)]]<='Diet input details'!$D$19),\"Ration 4\",IF(AND(Table13[[#This Row],[AGE (weeks)]]>='Diet input details'!$C$20,Table13[[#This Row],[AGE (weeks)]]<='Diet input details'!$D$20),\"Ration 5\", \"Clear\")))))","v":"Clear"},{"$f":"(VLOOKUP(Table13[[#This Row],[Ration]],Table22[#All],2,FALSE))","v":{"$error":"#N/A"}},257.60000000000002,1.96,{"$f":"Table13[[#This Row],[Bodyweight Mid-point (kg)]]*1000","v":1960},109,{"$f":"Table13[[#This Row],[Feed Intake Mid-point (g/bird/day)]]*7","v":763},{"$f":"Table13[[#This Row],[Feed Intake (g/bird/week)]]+J136","v":33698},63.7,{"$f":"(Table13[[#This Row],[Hen-Housed Eggs Cumulative Mid-point]]*Table13[[#This Row],[Average Egg Weight Mid-point (g/egg)]])","v":16409.120000000003}]
["Brown Colony",61,{"$f":"IF(AND(Table13[[#This Row],[AGE (weeks)]]>='Diet input details'!$C$16,Table13[[#This Row],[AGE (weeks)]]<='Diet input details'!$D$16),\"Ration 1\",IF(AND(Table13[[#This Row],[AGE (weeks)]]>='Diet input details'!$C$17,Table13[[#This Row],[AGE (weeks)]]<='Diet input details'!$D$17),\"Ration 2\",IF(AND(Table13[[#This Row],[AGE (weeks)]]>='Diet input details'!$C$18,Table13[[#This Row],[AGE (weeks)]]<='Diet input details'!$D$18),\"Ration 3\",IF(AND(Table13[[#This Row],[AGE (weeks)]]>='Diet input details'!$C$19,Table13[[#This Row],[AGE (weeks)]]<='Diet input details'!$D$19),\"Ration 4\",IF(AND(Table13[[#This Row],[AGE (weeks)]]>='Diet input details'!$C$20,Table13[[#This Row],[AGE (weeks)]]<='Diet input details'!$D$20),\"Ration 5\", \"Clear\")))))","v":"Clear"},{"$f":"(VLOOKUP(Table13[[#This Row],[Ration]],Table22[#All],2,FALSE))","v":{"$error":"#N/A"}},263.35000000000002,1.96,{"$f":"Table13[[#This Row],[Bodyweight Mid-point (kg)]]*1000","v":1960},109,{"$f":"Table13[[#This Row],[Feed Intake Mid-point (g/bird/day)]]*7","v":763},{"$f":"Table13[[#This Row],[Feed Intake (g/bird/week)]]+J137","v":34461},63.8,{"$f":"(Table13[[#This Row],[Hen-Housed Eggs Cumulative Mid-point]]*Table13[[#This Row],[Average Egg Weight Mid-point (g/egg)]])","v":16801.73}]
["Brown Colony",62,{"$f":"IF(AND(Table13[[#This Row],[AGE (weeks)]]>='Diet input details'!$C$16,Table13[[#This Row],[AGE (weeks)]]<='Diet input details'!$D$16),\"Ration 1\",IF(AND(Table13[[#This Row],[AGE (weeks)]]>='Diet input details'!$C$17,Table13[[#This Row],[AGE (weeks)]]<='Diet input details'!$D$17),\"Ration 2\",IF(AND(Table13[[#This Row],[AGE (weeks)]]>='Diet input details'!$C$18,Table13[[#This Row],[AGE (weeks)]]<='Diet input details'!$D$18),\"Ration 3\",IF(AND(Table13[[#This Row],[AGE (weeks)]]>='Diet input details'!$C$19,Table13[[#This Row],[AGE (weeks)]]<='Diet input details'!$D$19),\"Ration 4\",IF(AND(Table13[[#This Row],[AGE (weeks)]]>='Diet input details'!$C$20,Table13[[#This Row],[AGE (weeks)]]<='Diet input details'!$D$20),\"Ration 5\", \"Clear\")))))","v":"Clear"},{"$f":"(VLOOKUP(Table13[[#This Row],[Ration]],Table22[#All],2,FALSE))","v":{"$error":"#N/A"}},269.10000000000002,1.96,{"$f":"Table13[[#This Row],[Bodyweight Mid-point (kg)]]*1000","v":1960},109,{"$f":"Table13[[#This Row],[Feed Intake Mid-point (g/bird/day)]]*7","v":763},{"$f":"Table13[[#This Row],[Feed Intake (g/bird/week)]]+J138","v":35224},63.8,{"$f":"(Table13[[#This Row],[Hen-Housed Eggs Cumulative Mid-point]]*Table13[[#This Row],[Average Egg Weight Mid-point (g/egg)]])","v":17168.580000000002}]
["Brown Colony",63,{"$f":"IF(AND(Table13[[#This Row],[AGE (weeks)]]>='Diet input details'!$C$16,Table13[[#This Row],[AGE (weeks)]]<='Diet input details'!$D$16),\"Ration 1\",IF(AND(Table13[[#This Row],[AGE (weeks)]]>='Diet input details'!$C$17,Table13[[#This Row],[AGE (weeks)]]<='Diet input details'!$D$17),\"Ration 2\",IF(AND(Table13[[#This Row],[AGE (weeks)]]>='Diet input details'!$C$18,Table13[[#This Row],[AGE (weeks)]]<='Diet input details'!$D$18),\"Ration 3\",IF(AND(Table13[[#This Row],[AGE (weeks)]]>='Diet input details'!$C$19,Table13[[#This Row],[AGE (weeks)]]<='Diet input details'!$D$19),\"Ration 4\",IF(AND(Table13[[#This Row],[AGE (weeks)]]>='Diet input details'!$C$20,Table13[[#This Row],[AGE (weeks)]]<='Diet input details'!$D$20),\"Ration 5\", \"Clear\")))))","v":"Clear"},{"$f":"(VLOOKUP(Table13[[#This Row],[Ration]],Table22[#All],2,FALSE))","v":{"$error":"#N/A"}},274.75,1.96,{"$f":"Table13[[#This Row],[Bodyweight Mid-point (kg)]]*1000","v":1960},109,{"$f":"Table13[[#This Row],[Feed Intake Mid-point (g/bird/day)]]*7","v":763},{"$f":"Table13[[#This Row],[Feed Intake (g/bird/week)]]+J139","v":35987},63.900000000000006,{"$f":"(Table13[[#This Row],[Hen-Housed Eggs Cumulative Mid-point]]*Table13[[#This Row],[Average Egg Weight Mid-point (g/egg)]])","v":17556.525000000001}]
["Brown Colony",64,{"$f":"IF(AND(Table13[[#This Row],[AGE (weeks)]]>='Diet input details'!$C$16,Table13[[#This Row],[AGE (weeks)]]<='Diet input details'!$D$16),\"Ration 1\",IF(AND(Table13[[#This Row],[AGE (weeks)]]>='Diet input details'!$C$17,Table13[[#This Row],[AGE (weeks)]]<='Diet input details'!$D$17),\"Ration 2\",IF(AND(Table13[[#This Row],[AGE (weeks)]]>='Diet input details'!$C$18,Table13[[#This Row],[AGE (weeks)]]<='Diet input details'!$D$18),\"Ration 3\",IF(AND(Table13[[#This Row],[AGE (weeks)]]>='Diet input details'!$C$19,Table13[[#This Row],[AGE (weeks)]]<='Diet input details'!$D$19),\"Ration 4\",IF(AND(Table13[[#This Row],[AGE (weeks)]]>='Diet input details'!$C$20,Table13[[#This Row],[AGE (weeks)]]<='Diet input details'!$D$20),\"Ration 5\", \"Clear\")))))","v":"Clear"},{"$f":"(VLOOKUP(Table13[[#This Row],[Ration]],Table22[#All],2,FALSE))","v":{"$error":"#N/A"}},280.5,1.96,{"$f":"Table13[[#This Row],[Bodyweight Mid-point (kg)]]*1000","v":1960},109,{"$f":"Table13[[#This Row],[Feed Intake Mid-point (g/bird/day)]]*7","v":763},{"$f":"Table13[[#This Row],[Feed Intake (g/bird/week)]]+J140","v":36750},63.900000000000006,{"$f":"(Table13[[#This Row],[Hen-Housed Eggs Cumulative Mid-point]]*Table13[[#This Row],[Average Egg Weight Mid-point (g/egg)]])","v":17923.95}]
["Brown Colony",65,{"$f":"IF(AND(Table13[[#This Row],[AGE (weeks)]]>='Diet input details'!$C$16,Table13[[#This Row],[AGE (weeks)]]<='Diet input details'!$D$16),\"Ration 1\",IF(AND(Table13[[#This Row],[AGE (weeks)]]>='Diet input details'!$C$17,Table13[[#This Row],[AGE (weeks)]]<='Diet input details'!$D$17),\"Ration 2\",IF(AND(Table13[[#This Row],[AGE (weeks)]]>='Diet input details'!$C$18,Table13[[#This Row],[AGE (weeks)]]<='Diet input details'!$D$18),\"Ration 3\",IF(AND(Table13[[#This Row],[AGE (weeks)]]>='Diet input details'!$C$19,Table13[[#This Row],[AGE (weeks)]]<='Diet input details'!$D$19),\"Ration 4\",IF(AND(Table13[[#This Row],[AGE (weeks)]]>='Diet input details'!$C$20,Table13[[#This Row],[AGE (weeks)]]<='Diet input details'!$D$20),\"Ration 5\", \"Clear\")))))","v":"Clear"},{"$f":"(VLOOKUP(Table13[[#This Row],[Ration]],Table22[#All],2,FALSE))","v":{"$error":"#N/A"}},286.2,1.96,{"$f":"Table13[[#This Row],[Bodyweight Mid-point (kg)]]*1000","v":1960},109,{"$f":"Table13[[#This Row],[Feed Intake Mid-point (g/bird/day)]]*7","v":763},{"$f":"Table13[[#This Row],[Feed Intake (g/bird/week)]]+J141","v":37513},64,{"$f":"(Table13[[#This Row],[Hen-Housed Eggs Cumulative Mid-point]]*Table13[[#This Row],[Average Egg Weight Mid-point (g/egg)]])","v":18316.8}]
["Brown Colony",66,{"$f":"IF(AND(Table13[[#This Row],[AGE (weeks)]]>='Diet input details'!$C$16,Table13[[#This Row],[AGE (weeks)]]<='Diet input details'!$D$16),\"Ration 1\",IF(AND(Table13[[#This Row],[AGE (weeks)]]>='Diet input details'!$C$17,Table13[[#This Row],[AGE (weeks)]]<='Diet input details'!$D$17),\"Ration 2\",IF(AND(Table13[[#This Row],[AGE (weeks)]]>='Diet input details'!$C$18,Table13[[#This Row],[AGE (weeks)]]<='Diet input details'!$D$18),\"Ration 3\",IF(AND(Table13[[#This Row],[AGE (weeks)]]>='Diet input details'!$C$19,Table13[[#This Row],[AGE (weeks)]]<='Diet input details'!$D$19),\"Ration 4\",IF(AND(Table13[[#This Row],[AGE (weeks)]]>='Diet input details'!$C$20,Table13[[#This Row],[AGE (weeks)]]<='Diet input details'!$D$20),\"Ration 5\", \"Clear\")))))","v":"Clear"},{"$f":"(VLOOKUP(Table13[[#This Row],[Ration]],Table22[#All],2,FALSE))","v":{"$error":"#N/A"}},291.75,1.96,{"$f":"Table13[[#This Row],[Bodyweight Mid-point (kg)]]*1000","v":1960},109,{"$f":"Table13[[#This Row],[Feed Intake Mid-point (g/bird/day)]]*7","v":763},{"$f":"Table13[[#This Row],[Feed Intake (g/bird/week)]]+J142","v":38276},64,{"$f":"(Table13[[#This Row],[Hen-Housed Eggs Cumulative Mid-point]]*Table13[[#This Row],[Average Egg Weight Mid-point (g/egg)]])","v":18672}]
["Brown Colony",67,{"$f":"IF(AND(Table13[[#This Row],[AGE (weeks)]]>='Diet input details'!$C$16,Table13[[#This Row],[AGE (weeks)]]<='Diet input details'!$D$16),\"Ration 1\",IF(AND(Table13[[#This Row],[AGE (weeks)]]>='Diet input details'!$C$17,Table13[[#This Row],[AGE (weeks)]]<='Diet input details'!$D$17),\"Ration 2\",IF(AND(Table13[[#This Row],[AGE (weeks)]]>='Diet input details'!$C$18,Table13[[#This Row],[AGE (weeks)]]<='Diet input details'!$D$18),\"Ration 3\",IF(AND(Table13[[#This Row],[AGE (weeks)]]>='Diet input details'!$C$19,Table13[[#This Row],[AGE (weeks)]]<='Diet input details'!$D$19),\"Ration 4\",IF(AND(Table13[[#This Row],[AGE (weeks)]]>='Diet input details'!$C$20,Table13[[#This Row],[AGE (weeks)]]<='Diet input details'!$D$20),\"Ration 5\", \"Clear\")))))","v":"Clear"},{"$f":"(VLOOKUP(Table13[[#This Row],[Ration]],Table22[#All],2,FALSE))","v":{"$error":"#N/A"}},297.35000000000002,1.96,{"$f":"Table13[[#This Row],[Bodyweight Mid-point (kg)]]*1000","v":1960},109,{"$f":"Table13[[#This Row],[Feed Intake Mid-point (g/bird/day)]]*7","v":763},{"$f":"Table13[[#This Row],[Feed Intake (g/bird/week)]]+J143","v":39039},64.099999999999994,{"$f":"(Table13[[#This Row],[Hen-Housed Eggs Cumulative Mid-point]]*Table13[[#This Row],[Average Egg Weight Mid-point (g/egg)]])","v":19060.134999999998}]
["Brown Colony",68,{"$f":"IF(AND(Table13[[#This Row],[AGE (weeks)]]>='Diet input details'!$C$16,Table13[[#This Row],[AGE (weeks)]]<='Diet input details'!$D$16),\"Ration 1\",IF(AND(Table13[[#This Row],[AGE (weeks)]]>='Diet input details'!$C$17,Table13[[#This Row],[AGE (weeks)]]<='Diet input details'!$D$17),\"Ration 2\",IF(AND(Table13[[#This Row],[AGE (weeks)]]>='Diet input details'!$C$18,Table13[[#This Row],[AGE (weeks)]]<='Diet input details'!$D$18),\"Ration 3\",IF(AND(Table13[[#This Row],[AGE (weeks)]]>='Diet input details'!$C$19,Table13[[#This Row],[AGE (weeks)]]<='Diet input details'!$D$19),\"Ration 4\",IF(AND(Table13[[#This Row],[AGE (weeks)]]>='Diet input details'!$C$20,Table13[[#This Row],[AGE (weeks)]]<='Diet input details'!$D$20),\"Ration 5\", \"Clear\")))))","v":"Clear"},{"$f":"(VLOOKUP(Table13[[#This Row],[Ration]],Table22[#All],2,FALSE))","v":{"$error":"#N/A"}},302.89999999999998,1.96,{"$f":"Table13[[#This Row],[Bodyweight Mid-point (kg)]]*1000","v":1960},109,{"$f":"Table13[[#This Row],[Feed Intake Mid-point (g/bird/day)]]*7","v":763},{"$f":"Table13[[#This Row],[Feed Intake (g/bird/week)]]+J144","v":39802},64.099999999999994,{"$f":"(Table13[[#This Row],[Hen-Housed Eggs Cumulative Mid-point]]*Table13[[#This Row],[Average Egg Weight Mid-point (g/egg)]])","v":19415.889999999996}]
["Brown Colony",69,{"$f":"IF(AND(Table13[[#This Row],[AGE (weeks)]]>='Diet input details'!$C$16,Table13[[#This Row],[AGE (weeks)]]<='Diet input details'!$D$16),\"Ration 1\",IF(AND(Table13[[#This Row],[AGE (weeks)]]>='Diet input details'!$C$17,Table13[[#This Row],[AGE (weeks)]]<='Diet input details'!$D$17),\"Ration 2\",IF(AND(Table13[[#This Row],[AGE (weeks)]]>='Diet input details'!$C$18,Table13[[#This Row],[AGE (weeks)]]<='Diet input details'!$D$18),\"Ration 3\",IF(AND(Table13[[#This Row],[AGE (weeks)]]>='Diet input details'!$C$19,Table13[[#This Row],[AGE (weeks)]]<='Diet input details'!$D$19),\"Ration 4\",IF(AND(Table13[[#This Row],[AGE (weeks)]]>='Diet input details'!$C$20,Table13[[#This Row],[AGE (weeks)]]<='Diet input details'!$D$20),\"Ration 5\", \"Clear\")))))","v":"Clear"},{"$f":"(VLOOKUP(Table13[[#This Row],[Ration]],Table22[#All],2,FALSE))","v":{"$error":"#N/A"}},308.35000000000002,1.96,{"$f":"Table13[[#This Row],[Bodyweight Mid-point (kg)]]*1000","v":1960},109,{"$f":"Table13[[#This Row],[Feed Intake Mid-point (g/bird/day)]]*7","v":763},{"$f":"Table13[[#This Row],[Feed Intake (g/bird/week)]]+J145","v":40565},64.2,{"$f":"(Table13[[#This Row],[Hen-Housed Eggs Cumulative Mid-point]]*Table13[[#This Row],[Average Egg Weight Mid-point (g/egg)]])","v":19796.070000000003}]
["Brown Colony",70,{"$f":"IF(AND(Table13[[#This Row],[AGE (weeks)]]>='Diet input details'!$C$16,Table13[[#This Row],[AGE (weeks)]]<='Diet input details'!$D$16),\"Ration 1\",IF(AND(Table13[[#This Row],[AGE (weeks)]]>='Diet input details'!$C$17,Table13[[#This Row],[AGE (weeks)]]<='Diet input details'!$D$17),\"Ration 2\",IF(AND(Table13[[#This Row],[AGE (weeks)]]>='Diet input details'!$C$18,Table13[[#This Row],[AGE (weeks)]]<='Diet input details'!$D$18),\"Ration 3\",IF(AND(Table13[[#This Row],[AGE (weeks)]]>='Diet input details'!$C$19,Table13[[#This Row],[AGE (weeks)]]<='Diet input details'!$D$19),\"Ration 4\",IF(AND(Table13[[#This Row],[AGE (weeks)]]>='Diet input details'!$C$20,Table13[[#This Row],[AGE (weeks)]]<='Diet input details'!$D$20),\"Ration 5\", \"Clear\")))))","v":"Clear"},{"$f":"(VLOOKUP(Table13[[#This Row],[Ration]],Table22[#All],2,FALSE))","v":{"$error":"#N/A"}},313.85000000000002,1.9699999999999998,{"$f":"Table13[[#This Row],[Bodyweight Mid-point (kg)]]*1000","v":1969.9999999999998},109,{"$f":"Table13[[#This Row],[Feed Intake Mid-point (g/bird/day)]]*7","v":763},{"$f":"Table13[[#This Row],[Feed Intake (g/bird/week)]]+J146","v":41328},64.2,{"$f":"(Table13[[#This Row],[Hen-Housed Eggs Cumulative Mid-point]]*Table13[[#This Row],[Average Egg Weight Mid-point (g/egg)]])","v":20149.170000000002}]
["Brown Colony",71,{"$f":"IF(AND(Table13[[#This Row],[AGE (weeks)]]>='Diet input details'!$C$16,Table13[[#This Row],[AGE (weeks)]]<='Diet input details'!$D$16),\"Ration 1\",IF(AND(Table13[[#This Row],[AGE (weeks)]]>='Diet input details'!$C$17,Table13[[#This Row],[AGE (weeks)]]<='Diet input details'!$D$17),\"Ration 2\",IF(AND(Table13[[#This Row],[AGE (weeks)]]>='Diet input details'!$C$18,Table13[[#This Row],[AGE (weeks)]]<='Diet input details'!$D$18),\"Ration 3\",IF(AND(Table13[[#This Row],[AGE (weeks)]]>='Diet input details'!$C$19,Table13[[#This Row],[AGE (weeks)]]<='Diet input details'!$D$19),\"Ration 4\",IF(AND(Table13[[#This Row],[AGE (weeks)]]>='Diet input details'!$C$20,Table13[[#This Row],[AGE (weeks)]]<='Diet input details'!$D$20),\"Ration 5\", \"Clear\")))))","v":"Clear"},{"$f":"(VLOOKUP(Table13[[#This Row],[Ration]],Table22[#All],2,FALSE))","v":{"$error":"#N/A"}},319.2,1.9699999999999998,{"$f":"Table13[[#This Row],[Bodyweight Mid-point (kg)]]*1000","v":1969.9999999999998},109,{"$f":"Table13[[#This Row],[Feed Intake Mid-point (g/bird/day)]]*7","v":763},{"$f":"Table13[[#This Row],[Feed Intake (g/bird/week)]]+J147","v":42091},64.3,{"$f":"(Table13[[#This Row],[Hen-Housed Eggs Cumulative Mid-point]]*Table13[[#This Row],[Average Egg Weight Mid-point (g/egg)]])","v":20524.559999999998}]
["Brown Colony",72,{"$f":"IF(AND(Table13[[#This Row],[AGE (weeks)]]>='Diet input details'!$C$16,Table13[[#This Row],[AGE (weeks)]]<='Diet input details'!$D$16),\"Ration 1\",IF(AND(Table13[[#This Row],[AGE (weeks)]]>='Diet input details'!$C$17,Table13[[#This Row],[AGE (weeks)]]<='Diet input details'!$D$17),\"Ration 2\",IF(AND(Table13[[#This Row],[AGE (weeks)]]>='Diet input details'!$C$18,Table13[[#This Row],[AGE (weeks)]]<='Diet input details'!$D$18),\"Ration 3\",IF(AND(Table13[[#This Row],[AGE (weeks)]]>='Diet input details'!$C$19,Table13[[#This Row],[AGE (weeks)]]<='Diet input details'!$D$19),\"Ration 4\",IF(AND(Table13[[#This Row],[AGE (weeks)]]>='Diet input details'!$C$20,Table13[[#This Row],[AGE (weeks)]]<='Diet input details'!$D$20),\"Ration 5\", \"Clear\")))))","v":"Clear"},{"$f":"(VLOOKUP(Table13[[#This Row],[Ration]],Table22[#All],2,FALSE))","v":{"$error":"#N/A"}},324.60000000000002,1.9699999999999998,{"$f":"Table13[[#This Row],[Bodyweight Mid-point (kg)]]*1000","v":1969.9999999999998},109,{"$f":"Table13[[#This Row],[Feed Intake Mid-point (g/bird/day)]]*7","v":763},{"$f":"Table13[[#This Row],[Feed Intake (g/bird/week)]]+J148","v":42854},64.3,{"$f":"(Table13[[#This Row],[Hen-Housed Eggs Cumulative Mid-point]]*Table13[[#This Row],[Average Egg Weight Mid-point (g/egg)]])","v":20871.78}]
["Brown Colony",73,{"$f":"IF(AND(Table13[[#This Row],[AGE (weeks)]]>='Diet input details'!$C$16,Table13[[#This Row],[AGE (weeks)]]<='Diet input details'!$D$16),\"Ration 1\",IF(AND(Table13[[#This Row],[AGE (weeks)]]>='Diet input details'!$C$17,Table13[[#This Row],[AGE (weeks)]]<='Diet input details'!$D$17),\"Ration 2\",IF(AND(Table13[[#This Row],[AGE (weeks)]]>='Diet input details'!$C$18,Table13[[#This Row],[AGE (weeks)]]<='Diet input details'!$D$18),\"Ration 3\",IF(AND(Table13[[#This Row],[AGE (weeks)]]>='Diet input details'!$C$19,Table13[[#This Row],[AGE (weeks)]]<='Diet input details'!$D$19),\"Ration 4\",IF(AND(Table13[[#This Row],[AGE (weeks)]]>='Diet input details'!$C$20,Table13[[#This Row],[AGE (weeks)]]<='Diet input details'!$D$20),\"Ration 5\", \"Clear\")))))","v":"Clear"},{"$f":"(VLOOKUP(Table13[[#This Row],[Ration]],Table22[#All],2,FALSE))","v":{"$error":"#N/A"}},329.9,1.9699999999999998,{"$f":"Table13[[#This Row],[Bodyweight Mid-point (kg)]]*1000","v":1969.9999999999998},109,{"$f":"Table13[[#This Row],[Feed Intake Mid-point (g/bird/day)]]*7","v":763},{"$f":"Table13[[#This Row],[Feed Intake (g/bird/week)]]+J149","v":43617},64.400000000000006,{"$f":"(Table13[[#This Row],[Hen-Housed Eggs Cumulative Mid-point]]*Table13[[#This Row],[Average Egg Weight Mid-point (g/egg)]])","v":21245.56}]
["Brown Colony",74,{"$f":"IF(AND(Table13[[#This Row],[AGE (weeks)]]>='Diet input details'!$C$16,Table13[[#This Row],[AGE (weeks)]]<='Diet input details'!$D$16),\"Ration 1\",IF(AND(Table13[[#This Row],[AGE (weeks)]]>='Diet input details'!$C$17,Table13[[#This Row],[AGE (weeks)]]<='Diet input details'!$D$17),\"Ration 2\",IF(AND(Table13[[#This Row],[AGE (weeks)]]>='Diet input details'!$C$18,Table13[[#This Row],[AGE (weeks)]]<='Diet input details'!$D$18),\"Ration 3\",IF(AND(Table13[[#This Row],[AGE (weeks)]]>='Diet input details'!$C$19,Table13[[#This Row],[AGE (weeks)]]<='Diet input details'!$D$19),\"Ration 4\",IF(AND(Table13[[#This Row],[AGE (weeks)]]>='Diet input details'!$C$20,Table13[[#This Row],[AGE (weeks)]]<='Diet input details'!$D$20),\"Ration 5\", \"Clear\")))))","v":"Clear"},{"$f":"(VLOOKUP(Table13[[#This Row],[Ration]],Table22[#All],2,FALSE))","v":{"$error":"#N/A"}},335.15,1.9699999999999998,{"$f":"Table13[[#This Row],[Bodyweight Mid-point (kg)]]*1000","v":1969.9999999999998},109,{"$f":"Table13[[#This Row],[Feed Intake Mid-point (g/bird/day)]]*7","v":763},{"$f":"Table13[[#This Row],[Feed Intake (g/bird/week)]]+J150","v":44380},64.400000000000006,{"$f":"(Table13[[#This Row],[Hen-Housed Eggs Cumulative Mid-point]]*Table13[[#This Row],[Average Egg Weight Mid-point (g/egg)]])","v":21583.66}]
["Brown Colony",75,{"$f":"IF(AND(Table13[[#This Row],[AGE (weeks)]]>='Diet input details'!$C$16,Table13[[#This Row],[AGE (weeks)]]<='Diet input details'!$D$16),\"Ration 1\",IF(AND(Table13[[#This Row],[AGE (weeks)]]>='Diet input details'!$C$17,Table13[[#This Row],[AGE (weeks)]]<='Diet input details'!$D$17),\"Ration 2\",IF(AND(Table13[[#This Row],[AGE (weeks)]]>='Diet input details'!$C$18,Table13[[#This Row],[AGE (weeks)]]<='Diet input details'!$D$18),\"Ration 3\",IF(AND(Table13[[#This Row],[AGE (weeks)]]>='Diet input details'!$C$19,Table13[[#This Row],[AGE (weeks)]]<='Diet input details'!$D$19),\"Ration 4\",IF(AND(Table13[[#This Row],[AGE (weeks)]]>='Diet input details'!$C$20,Table13[[#This Row],[AGE (weeks)]]<='Diet input details'!$D$20),\"Ration 5\", \"Clear\")))))","v":"Clear"},{"$f":"(VLOOKUP(Table13[[#This Row],[Ration]],Table22[#All],2,FALSE))","v":{"$error":"#N/A"}},340.35,1.9699999999999998,{"$f":"Table13[[#This Row],[Bodyweight Mid-point (kg)]]*1000","v":1969.9999999999998},109,{"$f":"Table13[[#This Row],[Feed Intake Mid-point (g/bird/day)]]*7","v":763},{"$f":"Table13[[#This Row],[Feed Intake (g/bird/week)]]+J151","v":45143},64.5,{"$f":"(Table13[[#This Row],[Hen-Housed Eggs Cumulative Mid-point]]*Table13[[#This Row],[Average Egg Weight Mid-point (g/egg)]])","v":21952.575000000001}]
["Brown Colony",76,{"$f":"IF(AND(Table13[[#This Row],[AGE (weeks)]]>='Diet input details'!$C$16,Table13[[#This Row],[AGE (weeks)]]<='Diet input details'!$D$16),\"Ration 1\",IF(AND(Table13[[#This Row],[AGE (weeks)]]>='Diet input details'!$C$17,Table13[[#This Row],[AGE (weeks)]]<='Diet input details'!$D$17),\"Ration 2\",IF(AND(Table13[[#This Row],[AGE (weeks)]]>='Diet input details'!$C$18,Table13[[#This Row],[AGE (weeks)]]<='Diet input details'!$D$18),\"Ration 3\",IF(AND(Table13[[#This Row],[AGE (weeks)]]>='Diet input details'!$C$19,Table13[[#This Row],[AGE (weeks)]]<='Diet input details'!$D$19),\"Ration 4\",IF(AND(Table13[[#This Row],[AGE (weeks)]]>='Diet input details'!$C$20,Table13[[#This Row],[AGE (weeks)]]<='Diet input details'!$D$20),\"Ration 5\", \"Clear\")))))","v":"Clear"},{"$f":"(VLOOKUP(Table13[[#This Row],[Ration]],Table22[#All],2,FALSE))","v":{"$error":"#N/A"}},345.5,1.9699999999999998,{"$f":"Table13[[#This Row],[Bodyweight Mid-point (kg)]]*1000","v":1969.9999999999998},109,{"$f":"Table13[[#This Row],[Feed Intake Mid-point (g/bird/day)]]*7","v":763},{"$f":"Table13[[#This Row],[Feed Intake (g/bird/week)]]+J152","v":45906},64.5,{"$f":"(Table13[[#This Row],[Hen-Housed Eggs Cumulative Mid-point]]*Table13[[#This Row],[Average Egg Weight Mid-point (g/egg)]])","v":22284.75}]
["Brown Colony",77,{"$f":"IF(AND(Table13[[#This Row],[AGE (weeks)]]>='Diet input details'!$C$16,Table13[[#This Row],[AGE (weeks)]]<='Diet input details'!$D$16),\"Ration 1\",IF(AND(Table13[[#This Row],[AGE (weeks)]]>='Diet input details'!$C$17,Table13[[#This Row],[AGE (weeks)]]<='Diet input details'!$D$17),\"Ration 2\",IF(AND(Table13[[#This Row],[AGE (weeks)]]>='Diet input details'!$C$18,Table13[[#This Row],[AGE (weeks)]]<='Diet input details'!$D$18),\"Ration 3\",IF(AND(Table13[[#This Row],[AGE (weeks)]]>='Diet input details'!$C$19,Table13[[#This Row],[AGE (weeks)]]<='Diet input details'!$D$19),\"Ration 4\",IF(AND(Table13[[#This Row],[AGE (weeks)]]>='Diet input details'!$C$20,Table13[[#This Row],[AGE (weeks)]]<='Diet input details'!$D$20),\"Ration 5\", \"Clear\")))))","v":"Clear"},{"$f":"(VLOOKUP(Table13[[#This Row],[Ration]],Table22[#All],2,FALSE))","v":{"$error":"#N/A"}},350.54999999999995,1.9699999999999998,{"$f":"Table13[[#This Row],[Bodyweight Mid-point (kg)]]*1000","v":1969.9999999999998},109,{"$f":"Table13[[#This Row],[Feed Intake Mid-point (g/bird/day)]]*7","v":763},{"$f":"Table13[[#This Row],[Feed Intake (g/bird/week)]]+J153","v":46669},64.599999999999994,{"$f":"(Table13[[#This Row],[Hen-Housed Eggs Cumulative Mid-point]]*Table13[[#This Row],[Average Egg Weight Mid-point (g/egg)]])","v":22645.529999999995}]
["Brown Colony",78,{"$f":"IF(AND(Table13[[#This Row],[AGE (weeks)]]>='Diet input details'!$C$16,Table13[[#This Row],[AGE (weeks)]]<='Diet input details'!$D$16),\"Ration 1\",IF(AND(Table13[[#This Row],[AGE (weeks)]]>='Diet input details'!$C$17,Table13[[#This Row],[AGE (weeks)]]<='Diet input details'!$D$17),\"Ration 2\",IF(AND(Table13[[#This Row],[AGE (weeks)]]>='Diet input details'!$C$18,Table13[[#This Row],[AGE (weeks)]]<='Diet input details'!$D$18),\"Ration 3\",IF(AND(Table13[[#This Row],[AGE (weeks)]]>='Diet input details'!$C$19,Table13[[#This Row],[AGE (weeks)]]<='Diet input details'!$D$19),\"Ration 4\",IF(AND(Table13[[#This Row],[AGE (weeks)]]>='Diet input details'!$C$20,Table13[[#This Row],[AGE (weeks)]]<='Diet input details'!$D$20),\"Ration 5\", \"Clear\")))))","v":"Clear"},{"$f":"(VLOOKUP(Table13[[#This Row],[Ration]],Table22[#All],2,FALSE))","v":{"$error":"#N/A"}},355.6,1.9699999999999998,{"$f":"Table13[[#This Row],[Bodyweight Mid-point (kg)]]*1000","v":1969.9999999999998},109,{"$f":"Table13[[#This Row],[Feed Intake Mid-point (g/bird/day)]]*7","v":763},{"$f":"Table13[[#This Row],[Feed Intake (g/bird/week)]]+J154","v":47432},64.599999999999994,{"$f":"(Table13[[#This Row],[Hen-Housed Eggs Cumulative Mid-point]]*Table13[[#This Row],[Average Egg Weight Mid-point (g/egg)]])","v":22971.759999999998}]
["Brown Colony",79,{"$f":"IF(AND(Table13[[#This Row],[AGE (weeks)]]>='Diet input details'!$C$16,Table13[[#This Row],[AGE (weeks)]]<='Diet input details'!$D$16),\"Ration 1\",IF(AND(Table13[[#This Row],[AGE (weeks)]]>='Diet input details'!$C$17,Table13[[#This Row],[AGE (weeks)]]<='Diet input details'!$D$17),\"Ration 2\",IF(AND(Table13[[#This Row],[AGE (weeks)]]>='Diet input details'!$C$18,Table13[[#This Row],[AGE (weeks)]]<='Diet input details'!$D$18),\"Ration 3\",IF(AND(Table13[[#This Row],[AGE (weeks)]]>='Diet input details'!$C$19,Table13[[#This Row],[AGE (weeks)]]<='Diet input details'!$D$19),\"Ration 4\",IF(AND(Table13[[#This Row],[AGE (weeks)]]>='Diet input details'!$C$20,Table13[[#This Row],[AGE (weeks)]]<='Diet input details'!$D$20),\"Ration 5\", \"Clear\")))))","v":"Clear"},{"$f":"(VLOOKUP(Table13[[#This Row],[Ration]],Table22[#All],2,FALSE))","v":{"$error":"#N/A"}},360.65,1.9699999999999998,{"$f":"Table13[[#This Row],[Bodyweight Mid-point (kg)]]*1000","v":1969.9999999999998},109,{"$f":"Table13[[#This Row],[Feed Intake Mid-point (g/bird/day)]]*7","v":763},{"$f":"Table13[[#This Row],[Feed Intake (g/bird/week)]]+J155","v":48195},64.7,{"$f":"(Table13[[#This Row],[Hen-Housed Eggs Cumulative Mid-point]]*Table13[[#This Row],[Average Egg Weight Mid-point (g/egg)]])","v":23334.055}]
["Brown Colony",80,{"$f":"IF(AND(Table13[[#This Row],[AGE (weeks)]]>='Diet input details'!$C$16,Table13[[#This Row],[AGE (weeks)]]<='Diet input details'!$D$16),\"Ration 1\",IF(AND(Table13[[#This Row],[AGE (weeks)]]>='Diet input details'!$C$17,Table13[[#This Row],[AGE (weeks)]]<='Diet input details'!$D$17),\"Ration 2\",IF(AND(Table13[[#This Row],[AGE (weeks)]]>='Diet input details'!$C$18,Table13[[#This Row],[AGE (weeks)]]<='Diet input details'!$D$18),\"Ration 3\",IF(AND(Table13[[#This Row],[AGE (weeks)]]>='Diet input details'!$C$19,Table13[[#This Row],[AGE (weeks)]]<='Diet input details'!$D$19),\"Ration 4\",IF(AND(Table13[[#This Row],[AGE (weeks)]]>='Diet input details'!$C$20,Table13[[#This Row],[AGE (weeks)]]<='Diet input details'!$D$20),\"Ration 5\", \"Clear\")))))","v":"Clear"},{"$f":"(VLOOKUP(Table13[[#This Row],[Ration]],Table22[#All],2,FALSE))","v":{"$error":"#N/A"}},365.6,1.9699999999999998,{"$f":"Table13[[#This Row],[Bodyweight Mid-point (kg)]]*1000","v":1969.9999999999998},109,{"$f":"Table13[[#This Row],[Feed Intake Mid-point (g/bird/day)]]*7","v":763},{"$f":"Table13[[#This Row],[Feed Intake (g/bird/week)]]+J156","v":48958},64.8,{"$f":"(Table13[[#This Row],[Hen-Housed Eggs Cumulative Mid-point]]*Table13[[#This Row],[Average Egg Weight Mid-point (g/egg)]])","v":23690.880000000001}]
["Brown Colony",81,{"$f":"IF(AND(Table13[[#This Row],[AGE (weeks)]]>='Diet input details'!$C$16,Table13[[#This Row],[AGE (weeks)]]<='Diet input details'!$D$16),\"Ration 1\",IF(AND(Table13[[#This Row],[AGE (weeks)]]>='Diet input details'!$C$17,Table13[[#This Row],[AGE (weeks)]]<='Diet input details'!$D$17),\"Ration 2\",IF(AND(Table13[[#This Row],[AGE (weeks)]]>='Diet input details'!$C$18,Table13[[#This Row],[AGE (weeks)]]<='Diet input details'!$D$18),\"Ration 3\",IF(AND(Table13[[#This Row],[AGE (weeks)]]>='Diet input details'!$C$19,Table13[[#This Row],[AGE (weeks)]]<='Diet input details'!$D$19),\"Ration 4\",IF(AND(Table13[[#This Row],[AGE (weeks)]]>='Diet input details'!$C$20,Table13[[#This Row],[AGE (weeks)]]<='Diet input details'!$D$20),\"Ration 5\", \"Clear\")))))","v":"Clear"},{"$f":"(VLOOKUP(Table13[[#This Row],[Ration]],Table22[#All],2,FALSE))","v":{"$error":"#N/A"}},370.55,1.9699999999999998,{"$f":"Table13[[#This Row],[Bodyweight Mid-point (kg)]]*1000","v":1969.9999999999998},109,{"$f":"Table13[[#This Row],[Feed Intake Mid-point (g/bird/day)]]*7","v":763},{"$f":"Table13[[#This Row],[Feed Intake (g/bird/week)]]+J157","v":49721},64.8,{"$f":"(Table13[[#This Row],[Hen-Housed Eggs Cumulative Mid-point]]*Table13[[#This Row],[Average Egg Weight Mid-point (g/egg)]])","v":24011.64}]
["Brown Colony",82,{"$f":"IF(AND(Table13[[#This Row],[AGE (weeks)]]>='Diet input details'!$C$16,Table13[[#This Row],[AGE (weeks)]]<='Diet input details'!$D$16),\"Ration 1\",IF(AND(Table13[[#This Row],[AGE (weeks)]]>='Diet input details'!$C$17,Table13[[#This Row],[AGE (weeks)]]<='Diet input details'!$D$17),\"Ration 2\",IF(AND(Table13[[#This Row],[AGE (weeks)]]>='Diet input details'!$C$18,Table13[[#This Row],[AGE (weeks)]]<='Diet input details'!$D$18),\"Ration 3\",IF(AND(Table13[[#This Row],[AGE (weeks)]]>='Diet input details'!$C$19,Table13[[#This Row],[AGE (weeks)]]<='Diet input details'!$D$19),\"Ration 4\",IF(AND(Table13[[#This Row],[AGE (weeks)]]>='Diet input details'!$C$20,Table13[[#This Row],[AGE (weeks)]]<='Diet input details'!$D$20),\"Ration 5\", \"Clear\")))))","v":"Clear"},{"$f":"(VLOOKUP(Table13[[#This Row],[Ration]],Table22[#All],2,FALSE))","v":{"$error":"#N/A"}},375.55,1.9699999999999998,{"$f":"Table13[[#This Row],[Bodyweight Mid-point (kg)]]*1000","v":1969.9999999999998},109,{"$f":"Table13[[#This Row],[Feed Intake Mid-point (g/bird/day)]]*7","v":763},{"$f":"Table13[[#This Row],[Feed Intake (g/bird/week)]]+J158","v":50484},64.8,{"$f":"(Table13[[#This Row],[Hen-Housed Eggs Cumulative Mid-point]]*Table13[[#This Row],[Average Egg Weight Mid-point (g/egg)]])","v":24335.64}]
["Brown Colony",83,{"$f":"IF(AND(Table13[[#This Row],[AGE (weeks)]]>='Diet input details'!$C$16,Table13[[#This Row],[AGE (weeks)]]<='Diet input details'!$D$16),\"Ration 1\",IF(AND(Table13[[#This Row],[AGE (weeks)]]>='Diet input details'!$C$17,Table13[[#This Row],[AGE (weeks)]]<='Diet input details'!$D$17),\"Ration 2\",IF(AND(Table13[[#This Row],[AGE (weeks)]]>='Diet input details'!$C$18,Table13[[#This Row],[AGE (weeks)]]<='Diet input details'!$D$18),\"Ration 3\",IF(AND(Table13[[#This Row],[AGE (weeks)]]>='Diet input details'!$C$19,Table13[[#This Row],[AGE (weeks)]]<='Diet input details'!$D$19),\"Ration 4\",IF(AND(Table13[[#This Row],[AGE (weeks)]]>='Diet input details'!$C$20,Table13[[#This Row],[AGE (weeks)]]<='Diet input details'!$D$20),\"Ration 5\", \"Clear\")))))","v":"Clear"},{"$f":"(VLOOKUP(Table13[[#This Row],[Ration]],Table22[#All],2,FALSE))","v":{"$error":"#N/A"}},380.45,1.9699999999999998,{"$f":"Table13[[#This Row],[Bodyweight Mid-point (kg)]]*1000","v":1969.9999999999998},109,{"$f":"Table13[[#This Row],[Feed Intake Mid-point (g/bird/day)]]*7","v":763},{"$f":"Table13[[#This Row],[Feed Intake (g/bird/week)]]+J159","v":51247},64.900000000000006,{"$f":"(Table13[[#This Row],[Hen-Housed Eggs Cumulative Mid-point]]*Table13[[#This Row],[Average Egg Weight Mid-point (g/egg)]])","v":24691.205000000002}]
["Brown Colony",84,{"$f":"IF(AND(Table13[[#This Row],[AGE (weeks)]]>='Diet input details'!$C$16,Table13[[#This Row],[AGE (weeks)]]<='Diet input details'!$D$16),\"Ration 1\",IF(AND(Table13[[#This Row],[AGE (weeks)]]>='Diet input details'!$C$17,Table13[[#This Row],[AGE (weeks)]]<='Diet input details'!$D$17),\"Ration 2\",IF(AND(Table13[[#This Row],[AGE (weeks)]]>='Diet input details'!$C$18,Table13[[#This Row],[AGE (weeks)]]<='Diet input details'!$D$18),\"Ration 3\",IF(AND(Table13[[#This Row],[AGE (weeks)]]>='Diet input details'!$C$19,Table13[[#This Row],[AGE (weeks)]]<='Diet input details'!$D$19),\"Ration 4\",IF(AND(Table13[[#This Row],[AGE (weeks)]]>='Diet input details'!$C$20,Table13[[#This Row],[AGE (weeks)]]<='Diet input details'!$D$20),\"Ration 5\", \"Clear\")))))","v":"Clear"},{"$f":"(VLOOKUP(Table13[[#This Row],[Ration]],Table22[#All],2,FALSE))","v":{"$error":"#N/A"}},385.35,1.9699999999999998,{"$f":"Table13[[#This Row],[Bodyweight Mid-point (kg)]]*1000","v":1969.9999999999998},109,{"$f":"Table13[[#This Row],[Feed Intake Mid-point (g/bird/day)]]*7","v":763},{"$f":"Table13[[#This Row],[Feed Intake (g/bird/week)]]+J160","v":52010},64.900000000000006,{"$f":"(Table13[[#This Row],[Hen-Housed Eggs Cumulative Mid-point]]*Table13[[#This Row],[Average Egg Weight Mid-point (g/egg)]])","v":25009.215000000004}]
["Brown Colony",85,{"$f":"IF(AND(Table13[[#This Row],[AGE (weeks)]]>='Diet input details'!$C$16,Table13[[#This Row],[AGE (weeks)]]<='Diet input details'!$D$16),\"Ration 1\",IF(AND(Table13[[#This Row],[AGE (weeks)]]>='Diet input details'!$C$17,Table13[[#This Row],[AGE (weeks)]]<='Diet input details'!$D$17),\"Ration 2\",IF(AND(Table13[[#This Row],[AGE (weeks)]]>='Diet input details'!$C$18,Table13[[#This Row],[AGE (weeks)]]<='Diet input details'!$D$18),\"Ration 3\",IF(AND(Table13[[#This Row],[AGE (weeks)]]>='Diet input details'!$C$19,Table13[[#This Row],[AGE (weeks)]]<='Diet input details'!$D$19),\"Ration 4\",IF(AND(Table13[[#This Row],[AGE (weeks)]]>='Diet input details'!$C$20,Table13[[#This Row],[AGE (weeks)]]<='Diet input details'!$D$20),\"Ration 5\", \"Clear\")))))","v":"Clear"},{"$f":"(VLOOKUP(Table13[[#This Row],[Ration]],Table22[#All],2,FALSE))","v":{"$error":"#N/A"}},390.2,1.9699999999999998,{"$f":"Table13[[#This Row],[Bodyweight Mid-point (kg)]]*1000","v":1969.9999999999998},109,{"$f":"Table13[[#This Row],[Feed Intake Mid-point (g/bird/day)]]*7","v":763},{"$f":"Table13[[#This Row],[Feed Intake (g/bird/week)]]+J161","v":52773},64.900000000000006,{"$f":"(Table13[[#This Row],[Hen-Housed Eggs Cumulative Mid-point]]*Table13[[#This Row],[Average Egg Weight Mid-point (g/egg)]])","v":25323.980000000003}]
["Brown Colony",86,{"$f":"IF(AND(Table13[[#This Row],[AGE (weeks)]]>='Diet input details'!$C$16,Table13[[#This Row],[AGE (weeks)]]<='Diet input details'!$D$16),\"Ration 1\",IF(AND(Table13[[#This Row],[AGE (weeks)]]>='Diet input details'!$C$17,Table13[[#This Row],[AGE (weeks)]]<='Diet input details'!$D$17),\"Ration 2\",IF(AND(Table13[[#This Row],[AGE (weeks)]]>='Diet input details'!$C$18,Table13[[#This Row],[AGE (weeks)]]<='Diet input details'!$D$18),\"Ration 3\",IF(AND(Table13[[#This Row],[AGE (weeks)]]>='Diet input details'!$C$19,Table13[[#This Row],[AGE (weeks)]]<='Diet input details'!$D$19),\"Ration 4\",IF(AND(Table13[[#This Row],[AGE (weeks)]]>='Diet input details'!$C$20,Table13[[#This Row],[AGE (weeks)]]<='Diet input details'!$D$20),\"Ration 5\", \"Clear\")))))","v":"Clear"},{"$f":"(VLOOKUP(Table13[[#This Row],[Ration]],Table22[#All],2,FALSE))","v":{"$error":"#N/A"}},395.1,1.9699999999999998,{"$f":"Table13[[#This Row],[Bodyweight Mid-point (kg)]]*1000","v":1969.9999999999998},109,{"$f":"Table13[[#This Row],[Feed Intake Mid-point (g/bird/day)]]*7","v":763},{"$f":"Table13[[#This Row],[Feed Intake (g/bird/week)]]+J162","v":53536},64.900000000000006,{"$f":"(Table13[[#This Row],[Hen-Housed Eggs Cumulative Mid-point]]*Table13[[#This Row],[Average Egg Weight Mid-point (g/egg)]])","v":25641.990000000005}]
["Brown Colony",87,{"$f":"IF(AND(Table13[[#This Row],[AGE (weeks)]]>='Diet input details'!$C$16,Table13[[#This Row],[AGE (weeks)]]<='Diet input details'!$D$16),\"Ration 1\",IF(AND(Table13[[#This Row],[AGE (weeks)]]>='Diet input details'!$C$17,Table13[[#This Row],[AGE (weeks)]]<='Diet input details'!$D$17),\"Ration 2\",IF(AND(Table13[[#This Row],[AGE (weeks)]]>='Diet input details'!$C$18,Table13[[#This Row],[AGE (weeks)]]<='Diet input details'!$D$18),\"Ration 3\",IF(AND(Table13[[#This Row],[AGE (weeks)]]>='Diet input details'!$C$19,Table13[[#This Row],[AGE (weeks)]]<='Diet input details'!$D$19),\"Ration 4\",IF(AND(Table13[[#This Row],[AGE (weeks)]]>='Diet input details'!$C$20,Table13[[#This Row],[AGE (weeks)]]<='Diet input details'!$D$20),\"Ration 5\", \"Clear\")))))","v":"Clear"},{"$f":"(VLOOKUP(Table13[[#This Row],[Ration]],Table22[#All],2,FALSE))","v":{"$error":"#N/A"}},399.85,1.9699999999999998,{"$f":"Table13[[#This Row],[Bodyweight Mid-point (kg)]]*1000","v":1969.9999999999998},109,{"$f":"Table13[[#This Row],[Feed Intake Mid-point (g/bird/day)]]*7","v":763},{"$f":"Table13[[#This Row],[Feed Intake (g/bird/week)]]+J163","v":54299},65,{"$f":"(Table13[[#This Row],[Hen-Housed Eggs Cumulative Mid-point]]*Table13[[#This Row],[Average Egg Weight Mid-point (g/egg)]])","v":25990.25}]
["Brown Colony",88,{"$f":"IF(AND(Table13[[#This Row],[AGE (weeks)]]>='Diet input details'!$C$16,Table13[[#This Row],[AGE (weeks)]]<='Diet input details'!$D$16),\"Ration 1\",IF(AND(Table13[[#This Row],[AGE (weeks)]]>='Diet input details'!$C$17,Table13[[#This Row],[AGE (weeks)]]<='Diet input details'!$D$17),\"Ration 2\",IF(AND(Table13[[#This Row],[AGE (weeks)]]>='Diet input details'!$C$18,Table13[[#This Row],[AGE (weeks)]]<='Diet input details'!$D$18),\"Ration 3\",IF(AND(Table13[[#This Row],[AGE (weeks)]]>='Diet input details'!$C$19,Table13[[#This Row],[AGE (weeks)]]<='Diet input details'!$D$19),\"Ration 4\",IF(AND(Table13[[#This Row],[AGE (weeks)]]>='Diet input details'!$C$20,Table13[[#This Row],[AGE (weeks)]]<='Diet input details'!$D$20),\"Ration 5\", \"Clear\")))))","v":"Clear"},{"$f":"(VLOOKUP(Table13[[#This Row],[Ration]],Table22[#All],2,FALSE))","v":{"$error":"#N/A"}},404.65,1.9699999999999998,{"$f":"Table13[[#This Row],[Bodyweight Mid-point (kg)]]*1000","v":1969.9999999999998},109,{"$f":"Table13[[#This Row],[Feed Intake Mid-point (g/bird/day)]]*7","v":763},{"$f":"Table13[[#This Row],[Feed Intake (g/bird/week)]]+J164","v":55062},65,{"$f":"(Table13[[#This Row],[Hen-Housed Eggs Cumulative Mid-point]]*Table13[[#This Row],[Average Egg Weight Mid-point (g/egg)]])","v":26302.25}]
["Brown Colony",89,{"$f":"IF(AND(Table13[[#This Row],[AGE (weeks)]]>='Diet input details'!$C$16,Table13[[#This Row],[AGE (weeks)]]<='Diet input details'!$D$16),\"Ration 1\",IF(AND(Table13[[#This Row],[AGE (weeks)]]>='Diet input details'!$C$17,Table13[[#This Row],[AGE (weeks)]]<='Diet input details'!$D$17),\"Ration 2\",IF(AND(Table13[[#This Row],[AGE (weeks)]]>='Diet input details'!$C$18,Table13[[#This Row],[AGE (weeks)]]<='Diet input details'!$D$18),\"Ration 3\",IF(AND(Table13[[#This Row],[AGE (weeks)]]>='Diet input details'!$C$19,Table13[[#This Row],[AGE (weeks)]]<='Diet input details'!$D$19),\"Ration 4\",IF(AND(Table13[[#This Row],[AGE (weeks)]]>='Diet input details'!$C$20,Table13[[#This Row],[AGE (weeks)]]<='Diet input details'!$D$20),\"Ration 5\", \"Clear\")))))","v":"Clear"},{"$f":"(VLOOKUP(Table13[[#This Row],[Ration]],Table22[#All],2,FALSE))","v":{"$error":"#N/A"}},409.4,1.9699999999999998,{"$f":"Table13[[#This Row],[Bodyweight Mid-point (kg)]]*1000","v":1969.9999999999998},109,{"$f":"Table13[[#This Row],[Feed Intake Mid-point (g/bird/day)]]*7","v":763},{"$f":"Table13[[#This Row],[Feed Intake (g/bird/week)]]+J165","v":55825},65,{"$f":"(Table13[[#This Row],[Hen-Housed Eggs Cumulative Mid-point]]*Table13[[#This Row],[Average Egg Weight Mid-point (g/egg)]])","v":26611}]
["Brown Colony",90,{"$f":"IF(AND(Table13[[#This Row],[AGE (weeks)]]>='Diet input details'!$C$16,Table13[[#This Row],[AGE (weeks)]]<='Diet input details'!$D$16),\"Ration 1\",IF(AND(Table13[[#This Row],[AGE (weeks)]]>='Diet input details'!$C$17,Table13[[#This Row],[AGE (weeks)]]<='Diet input details'!$D$17),\"Ration 2\",IF(AND(Table13[[#This Row],[AGE (weeks)]]>='Diet input details'!$C$18,Table13[[#This Row],[AGE (weeks)]]<='Diet input details'!$D$18),\"Ration 3\",IF(AND(Table13[[#This Row],[AGE (weeks)]]>='Diet input details'!$C$19,Table13[[#This Row],[AGE (weeks)]]<='Diet input details'!$D$19),\"Ration 4\",IF(AND(Table13[[#This Row],[AGE (weeks)]]>='Diet input details'!$C$20,Table13[[#This Row],[AGE (weeks)]]<='Diet input details'!$D$20),\"Ration 5\", \"Clear\")))))","v":"Clear"},{"$f":"(VLOOKUP(Table13[[#This Row],[Ration]],Table22[#All],2,FALSE))","v":{"$error":"#N/A"}},414.2,1.9699999999999998,{"$f":"Table13[[#This Row],[Bodyweight Mid-point (kg)]]*1000","v":1969.9999999999998},109,{"$f":"Table13[[#This Row],[Feed Intake Mid-point (g/bird/day)]]*7","v":763},{"$f":"Table13[[#This Row],[Feed Intake (g/bird/week)]]+J166","v":56588},65,{"$f":"(Table13[[#This Row],[Hen-Housed Eggs Cumulative Mid-point]]*Table13[[#This Row],[Average Egg Weight Mid-point (g/egg)]])","v":26923}]
["Brown Colony",91,{"$f":"IF(AND(Table13[[#This Row],[AGE (weeks)]]>='Diet input details'!$C$16,Table13[[#This Row],[AGE (weeks)]]<='Diet input details'!$D$16),\"Ration 1\",IF(AND(Table13[[#This Row],[AGE (weeks)]]>='Diet input details'!$C$17,Table13[[#This Row],[AGE (weeks)]]<='Diet input details'!$D$17),\"Ration 2\",IF(AND(Table13[[#This Row],[AGE (weeks)]]>='Diet input details'!$C$18,Table13[[#This Row],[AGE (weeks)]]<='Diet input details'!$D$18),\"Ration 3\",IF(AND(Table13[[#This Row],[AGE (weeks)]]>='Diet input details'!$C$19,Table13[[#This Row],[AGE (weeks)]]<='Diet input details'!$D$19),\"Ration 4\",IF(AND(Table13[[#This Row],[AGE (weeks)]]>='Diet input details'!$C$20,Table13[[#This Row],[AGE (weeks)]]<='Diet input details'!$D$20),\"Ration 5\", \"Clear\")))))","v":"Clear"},{"$f":"(VLOOKUP(Table13[[#This Row],[Ration]],Table22[#All],2,FALSE))","v":{"$error":"#N/A"}},418.9,1.98,{"$f":"Table13[[#This Row],[Bodyweight Mid-point (kg)]]*1000","v":1980},108,{"$f":"Table13[[#This Row],[Feed Intake Mid-point (g/bird/day)]]*7","v":756},{"$f":"Table13[[#This Row],[Feed Intake (g/bird/week)]]+J167","v":57344},65.099999999999994,{"$f":"(Table13[[#This Row],[Hen-Housed Eggs Cumulative Mid-point]]*Table13[[#This Row],[Average Egg Weight Mid-point (g/egg)]])","v":27270.389999999996}]
["Brown Colony",92,{"$f":"IF(AND(Table13[[#This Row],[AGE (weeks)]]>='Diet input details'!$C$16,Table13[[#This Row],[AGE (weeks)]]<='Diet input details'!$D$16),\"Ration 1\",IF(AND(Table13[[#This Row],[AGE (weeks)]]>='Diet input details'!$C$17,Table13[[#This Row],[AGE (weeks)]]<='Diet input details'!$D$17),\"Ration 2\",IF(AND(Table13[[#This Row],[AGE (weeks)]]>='Diet input details'!$C$18,Table13[[#This Row],[AGE (weeks)]]<='Diet input details'!$D$18),\"Ration 3\",IF(AND(Table13[[#This Row],[AGE (weeks)]]>='Diet input details'!$C$19,Table13[[#This Row],[AGE (weeks)]]<='Diet input details'!$D$19),\"Ration 4\",IF(AND(Table13[[#This Row],[AGE (weeks)]]>='Diet input details'!$C$20,Table13[[#This Row],[AGE (weeks)]]<='Diet input details'!$D$20),\"Ration 5\", \"Clear\")))))","v":"Clear"},{"$f":"(VLOOKUP(Table13[[#This Row],[Ration]],Table22[#All],2,FALSE))","v":{"$error":"#N/A"}},423.6,1.98,{"$f":"Table13[[#This Row],[Bodyweight Mid-point (kg)]]*1000","v":1980},108,{"$f":"Table13[[#This Row],[Feed Intake Mid-point (g/bird/day)]]*7","v":756},{"$f":"Table13[[#This Row],[Feed Intake (g/bird/week)]]+J168","v":58100},65.099999999999994,{"$f":"(Table13[[#This Row],[Hen-Housed Eggs Cumulative Mid-point]]*Table13[[#This Row],[Average Egg Weight Mid-point (g/egg)]])","v":27576.36}]
["Brown Colony",93,{"$f":"IF(AND(Table13[[#This Row],[AGE (weeks)]]>='Diet input details'!$C$16,Table13[[#This Row],[AGE (weeks)]]<='Diet input details'!$D$16),\"Ration 1\",IF(AND(Table13[[#This Row],[AGE (weeks)]]>='Diet input details'!$C$17,Table13[[#This Row],[AGE (weeks)]]<='Diet input details'!$D$17),\"Ration 2\",IF(AND(Table13[[#This Row],[AGE (weeks)]]>='Diet input details'!$C$18,Table13[[#This Row],[AGE (weeks)]]<='Diet input details'!$D$18),\"Ration 3\",IF(AND(Table13[[#This Row],[AGE (weeks)]]>='Diet input details'!$C$19,Table13[[#This Row],[AGE (weeks)]]<='Diet input details'!$D$19),\"Ration 4\",IF(AND(Table13[[#This Row],[AGE (weeks)]]>='Diet input details'!$C$20,Table13[[#This Row],[AGE (weeks)]]<='Diet input details'!$D$20),\"Ration 5\", \"Clear\")))))","v":"Clear"},{"$f":"(VLOOKUP(Table13[[#This Row],[Ration]],Table22[#All],2,FALSE))","v":{"$error":"#N/A"}},428.25,1.98,{"$f":"Table13[[#This Row],[Bodyweight Mid-point (kg)]]*1000","v":1980},108,{"$f":"Table13[[#This Row],[Feed Intake Mid-point (g/bird/day)]]*7","v":756},{"$f":"Table13[[#This Row],[Feed Intake (g/bird/week)]]+J169","v":58856},65.099999999999994,{"$f":"(Table13[[#This Row],[Hen-Housed Eggs Cumulative Mid-point]]*Table13[[#This Row],[Average Egg Weight Mid-point (g/egg)]])","v":27879.074999999997}]
["Brown Colony",94,{"$f":"IF(AND(Table13[[#This Row],[AGE (weeks)]]>='Diet input details'!$C$16,Table13[[#This Row],[AGE (weeks)]]<='Diet input details'!$D$16),\"Ration 1\",IF(AND(Table13[[#This Row],[AGE (weeks)]]>='Diet input details'!$C$17,Table13[[#This Row],[AGE (weeks)]]<='Diet input details'!$D$17),\"Ration 2\",IF(AND(Table13[[#This Row],[AGE (weeks)]]>='Diet input details'!$C$18,Table13[[#This Row],[AGE (weeks)]]<='Diet input details'!$D$18),\"Ration 3\",IF(AND(Table13[[#This Row],[AGE (weeks)]]>='Diet input details'!$C$19,Table13[[#This Row],[AGE (weeks)]]<='Diet input details'!$D$19),\"Ration 4\",IF(AND(Table13[[#This Row],[AGE (weeks)]]>='Diet input details'!$C$20,Table13[[#This Row],[AGE (weeks)]]<='Diet input details'!$D$20),\"Ration 5\", \"Clear\")))))","v":"Clear"},{"$f":"(VLOOKUP(Table13[[#This Row],[Ration]],Table22[#All],2,FALSE))","v":{"$error":"#N/A"}},432.9,1.98,{"$f":"Table13[[#This Row],[Bodyweight Mid-point (kg)]]*1000","v":1980},108,{"$f":"Table13[[#This Row],[Feed Intake Mid-point (g/bird/day)]]*7","v":756},{"$f":"Table13[[#This Row],[Feed Intake (g/bird/week)]]+J170","v":59612},65.2,{"$f":"(Table13[[#This Row],[Hen-Housed Eggs Cumulative Mid-point]]*Table13[[#This Row],[Average Egg Weight Mid-point (g/egg)]])","v":28225.079999999998}]
["Brown Colony",95,{"$f":"IF(AND(Table13[[#This Row],[AGE (weeks)]]>='Diet input details'!$C$16,Table13[[#This Row],[AGE (weeks)]]<='Diet input details'!$D$16),\"Ration 1\",IF(AND(Table13[[#This Row],[AGE (weeks)]]>='Diet input details'!$C$17,Table13[[#This Row],[AGE (weeks)]]<='Diet input details'!$D$17),\"Ration 2\",IF(AND(Table13[[#This Row],[AGE (weeks)]]>='Diet input details'!$C$18,Table13[[#This Row],[AGE (weeks)]]<='Diet input details'!$D$18),\"Ration 3\",IF(AND(Table13[[#This Row],[AGE (weeks)]]>='Diet input details'!$C$19,Table13[[#This Row],[AGE (weeks)]]<='Diet input details'!$D$19),\"Ration 4\",IF(AND(Table13[[#This Row],[AGE (weeks)]]>='Diet input details'!$C$20,Table13[[#This Row],[AGE (weeks)]]<='Diet input details'!$D$20),\"Ration 5\", \"Clear\")))))","v":"Clear"},{"$f":"(VLOOKUP(Table13[[#This Row],[Ration]],Table22[#All],2,FALSE))","v":{"$error":"#N/A"}},437.54999999999995,1.98,{"$f":"Table13[[#This Row],[Bodyweight Mid-point (kg)]]*1000","v":1980},108,{"$f":"Table13[[#This Row],[Feed Intake Mid-point (g/bird/day)]]*7","v":756},{"$f":"Table13[[#This Row],[Feed Intake (g/bird/week)]]+J171","v":60368},65.2,{"$f":"(Table13[[#This Row],[Hen-Housed Eggs Cumulative Mid-point]]*Table13[[#This Row],[Average Egg Weight Mid-point (g/egg)]])","v":28528.26}]
["Brown Colony",96,{"$f":"IF(AND(Table13[[#This Row],[AGE (weeks)]]>='Diet input details'!$C$16,Table13[[#This Row],[AGE (weeks)]]<='Diet input details'!$D$16),\"Ration 1\",IF(AND(Table13[[#This Row],[AGE (weeks)]]>='Diet input details'!$C$17,Table13[[#This Row],[AGE (weeks)]]<='Diet input details'!$D$17),\"Ration 2\",IF(AND(Table13[[#This Row],[AGE (weeks)]]>='Diet input details'!$C$18,Table13[[#This Row],[AGE (weeks)]]<='Diet input details'!$D$18),\"Ration 3\",IF(AND(Table13[[#This Row],[AGE (weeks)]]>='Diet input details'!$C$19,Table13[[#This Row],[AGE (weeks)]]<='Diet input details'!$D$19),\"Ration 4\",IF(AND(Table13[[#This Row],[AGE (weeks)]]>='Diet input details'!$C$20,Table13[[#This Row],[AGE (weeks)]]<='Diet input details'!$D$20),\"Ration 5\", \"Clear\")))))","v":"Clear"},{"$f":"(VLOOKUP(Table13[[#This Row],[Ration]],Table22[#All],2,FALSE))","v":{"$error":"#N/A"}},442.15,1.98,{"$f":"Table13[[#This Row],[Bodyweight Mid-point (kg)]]*1000","v":1980},108,{"$f":"Table13[[#This Row],[Feed Intake Mid-point (g/bird/day)]]*7","v":756},{"$f":"Table13[[#This Row],[Feed Intake (g/bird/week)]]+J172","v":61124},65.2,{"$f":"(Table13[[#This Row],[Hen-Housed Eggs Cumulative Mid-point]]*Table13[[#This Row],[Average Egg Weight Mid-point (g/egg)]])","v":28828.18}]
["Brown Colony",97,{"$f":"IF(AND(Table13[[#This Row],[AGE (weeks)]]>='Diet input details'!$C$16,Table13[[#This Row],[AGE (weeks)]]<='Diet input details'!$D$16),\"Ration 1\",IF(AND(Table13[[#This Row],[AGE (weeks)]]>='Diet input details'!$C$17,Table13[[#This Row],[AGE (weeks)]]<='Diet input details'!$D$17),\"Ration 2\",IF(AND(Table13[[#This Row],[AGE (weeks)]]>='Diet input details'!$C$18,Table13[[#This Row],[AGE (weeks)]]<='Diet input details'!$D$18),\"Ration 3\",IF(AND(Table13[[#This Row],[AGE (weeks)]]>='Diet input details'!$C$19,Table13[[#This Row],[AGE (weeks)]]<='Diet input details'!$D$19),\"Ration 4\",IF(AND(Table13[[#This Row],[AGE (weeks)]]>='Diet input details'!$C$20,Table13[[#This Row],[AGE (weeks)]]<='Diet input details'!$D$20),\"Ration 5\", \"Clear\")))))","v":"Clear"},{"$f":"(VLOOKUP(Table13[[#This Row],[Ration]],Table22[#All],2,FALSE))","v":{"$error":"#N/A"}},446.7,1.98,{"$f":"Table13[[#This Row],[Bodyweight Mid-point (kg)]]*1000","v":1980},108,{"$f":"Table13[[#This Row],[Feed Intake Mid-point (g/bird/day)]]*7","v":756},{"$f":"Table13[[#This Row],[Feed Intake (g/bird/week)]]+J173","v":61880},65.3,{"$f":"(Table13[[#This Row],[Hen-Housed Eggs Cumulative Mid-point]]*Table13[[#This Row],[Average Egg Weight Mid-point (g/egg)]])","v":29169.51}]
["Brown Colony",98,{"$f":"IF(AND(Table13[[#This Row],[AGE (weeks)]]>='Diet input details'!$C$16,Table13[[#This Row],[AGE (weeks)]]<='Diet input details'!$D$16),\"Ration 1\",IF(AND(Table13[[#This Row],[AGE (weeks)]]>='Diet input details'!$C$17,Table13[[#This Row],[AGE (weeks)]]<='Diet input details'!$D$17),\"Ration 2\",IF(AND(Table13[[#This Row],[AGE (weeks)]]>='Diet input details'!$C$18,Table13[[#This Row],[AGE (weeks)]]<='Diet input details'!$D$18),\"Ration 3\",IF(AND(Table13[[#This Row],[AGE (weeks)]]>='Diet input details'!$C$19,Table13[[#This Row],[AGE (weeks)]]<='Diet input details'!$D$19),\"Ration 4\",IF(AND(Table13[[#This Row],[AGE (weeks)]]>='Diet input details'!$C$20,Table13[[#This Row],[AGE (weeks)]]<='Diet input details'!$D$20),\"Ration 5\", \"Clear\")))))","v":"Clear"},{"$f":"(VLOOKUP(Table13[[#This Row],[Ration]],Table22[#All],2,FALSE))","v":{"$error":"#N/A"}},451.20000000000005,1.98,{"$f":"Table13[[#This Row],[Bodyweight Mid-point (kg)]]*1000","v":1980},108,{"$f":"Table13[[#This Row],[Feed Intake Mid-point (g/bird/day)]]*7","v":756},{"$f":"Table13[[#This Row],[Feed Intake (g/bird/week)]]+J174","v":62636},65.3,{"$f":"(Table13[[#This Row],[Hen-Housed Eggs Cumulative Mid-point]]*Table13[[#This Row],[Average Egg Weight Mid-point (g/egg)]])","v":29463.360000000001}]
["Brown Colony",99,{"$f":"IF(AND(Table13[[#This Row],[AGE (weeks)]]>='Diet input details'!$C$16,Table13[[#This Row],[AGE (weeks)]]<='Diet input details'!$D$16),\"Ration 1\",IF(AND(Table13[[#This Row],[AGE (weeks)]]>='Diet input details'!$C$17,Table13[[#This Row],[AGE (weeks)]]<='Diet input details'!$D$17),\"Ration 2\",IF(AND(Table13[[#This Row],[AGE (weeks)]]>='Diet input details'!$C$18,Table13[[#This Row],[AGE (weeks)]]<='Diet input details'!$D$18),\"Ration 3\",IF(AND(Table13[[#This Row],[AGE (weeks)]]>='Diet input details'!$C$19,Table13[[#This Row],[AGE (weeks)]]<='Diet input details'!$D$19),\"Ration 4\",IF(AND(Table13[[#This Row],[AGE (weeks)]]>='Diet input details'!$C$20,Table13[[#This Row],[AGE (weeks)]]<='Diet input details'!$D$20),\"Ration 5\", \"Clear\")))))","v":"Clear"},{"$f":"(VLOOKUP(Table13[[#This Row],[Ration]],Table22[#All],2,FALSE))","v":{"$error":"#N/A"}},455.70000000000005,1.98,{"$f":"Table13[[#This Row],[Bodyweight Mid-point (kg)]]*1000","v":1980},108,{"$f":"Table13[[#This Row],[Feed Intake Mid-point (g/bird/day)]]*7","v":756},{"$f":"Table13[[#This Row],[Feed Intake (g/bird/week)]]+J175","v":63392},65.3,{"$f":"(Table13[[#This Row],[Hen-Housed Eggs Cumulative Mid-point]]*Table13[[#This Row],[Average Egg Weight Mid-point (g/egg)]])","v":29757.210000000003}]
["Brown Colony",100,{"$f":"IF(AND(Table13[[#This Row],[AGE (weeks)]]>='Diet input details'!$C$16,Table13[[#This Row],[AGE (weeks)]]<='Diet input details'!$D$16),\"Ration 1\",IF(AND(Table13[[#This Row],[AGE (weeks)]]>='Diet input details'!$C$17,Table13[[#This Row],[AGE (weeks)]]<='Diet input details'!$D$17),\"Ration 2\",IF(AND(Table13[[#This Row],[AGE (weeks)]]>='Diet input details'!$C$18,Table13[[#This Row],[AGE (weeks)]]<='Diet input details'!$D$18),\"Ration 3\",IF(AND(Table13[[#This Row],[AGE (weeks)]]>='Diet input details'!$C$19,Table13[[#This Row],[AGE (weeks)]]<='Diet input details'!$D$19),\"Ration 4\",IF(AND(Table13[[#This Row],[AGE (weeks)]]>='Diet input details'!$C$20,Table13[[#This Row],[AGE (weeks)]]<='Diet input details'!$D$20),\"Ration 5\", \"Clear\")))))","v":"Clear"},{"$f":"(VLOOKUP(Table13[[#This Row],[Ration]],Table22[#All],2,FALSE))","v":{"$error":"#N/A"}},460.2,1.98,{"$f":"Table13[[#This Row],[Bodyweight Mid-point (kg)]]*1000","v":1980},108,{"$f":"Table13[[#This Row],[Feed Intake Mid-point (g/bird/day)]]*7","v":756},{"$f":"Table13[[#This Row],[Feed Intake (g/bird/week)]]+J176","v":64148},65.349999999999994,{"$f":"(Table13[[#This Row],[Hen-Housed Eggs Cumulative Mid-point]]*Table13[[#This Row],[Average Egg Weight Mid-point (g/egg)]])","v":30074.069999999996}]
["White Free-range",16,{"$f":"IF(AND(Table13[[#This Row],[AGE (weeks)]]>='Diet input details'!$C$16,Table13[[#This Row],[AGE (weeks)]]<='Diet input details'!$D$16),\"Ration 1\",IF(AND(Table13[[#This Row],[AGE (weeks)]]>='Diet input details'!$C$17,Table13[[#This Row],[AGE (weeks)]]<='Diet input details'!$D$17),\"Ration 2\",IF(AND(Table13[[#This Row],[AGE (weeks)]]>='Diet input details'!$C$18,Table13[[#This Row],[AGE (weeks)]]<='Diet input details'!$D$18),\"Ration 3\",IF(AND(Table13[[#This Row],[AGE (weeks)]]>='Diet input details'!$C$19,Table13[[#This Row],[AGE (weeks)]]<='Diet input details'!$D$19),\"Ration 4\",IF(AND(Table13[[#This Row],[AGE (weeks)]]>='Diet input details'!$C$20,Table13[[#This Row],[AGE (weeks)]]<='Diet input details'!$D$20),\"Ration 5\", \"Clear\")))))","v":"Clear"},{"$f":"(VLOOKUP(Table13[[#This Row],[Ration]],Table22[#All],2,FALSE))","v":{"$error":"#N/A"}},0.15000000000000002,1.2650000000000001,{"$f":"Table13[[#This Row],[Bodyweight Mid-point (kg)]]*1000","v":1265.0000000000002},68.5,{"$f":"Table13[[#This Row],[Feed Intake Mid-point (g/bird/day)]]*7","v":479.5},{"$f":"Table13[[#This Row],[Feed Intake (g/bird/week)]]","v":479.5},44.2,{"$f":"(Table13[[#This Row],[Hen-Housed Eggs Cumulative Mid-point]]*Table13[[#This Row],[Average Egg Weight Mid-point (g/egg)]])","v":6.6300000000000017}]
["White Free-range",17,{"$f":"IF(AND(Table13[[#This Row],[AGE (weeks)]]>='Diet input details'!$C$16,Table13[[#This Row],[AGE (weeks)]]<='Diet input details'!$D$16),\"Ration 1\",IF(AND(Table13[[#This Row],[AGE (weeks)]]>='Diet input details'!$C$17,Table13[[#This Row],[AGE (weeks)]]<='Diet input details'!$D$17),\"Ration 2\",IF(AND(Table13[[#This Row],[AGE (weeks)]]>='Diet input details'!$C$18,Table13[[#This Row],[AGE (weeks)]]<='Diet input details'!$D$18),\"Ration 3\",IF(AND(Table13[[#This Row],[AGE (weeks)]]>='Diet input details'!$C$19,Table13[[#This Row],[AGE (weeks)]]<='Diet input details'!$D$19),\"Ration 4\",IF(AND(Table13[[#This Row],[AGE (weeks)]]>='Diet input details'!$C$20,Table13[[#This Row],[AGE (weeks)]]<='Diet input details'!$D$20),\"Ration 5\", \"Clear\")))))","v":"Clear"},{"$f":"(VLOOKUP(Table13[[#This Row],[Ration]],Table22[#All],2,FALSE))","v":{"$error":"#N/A"}},0.15000000000000002,1.2650000000000001,{"$f":"Table13[[#This Row],[Bodyweight Mid-point (kg)]]*1000","v":1265.0000000000002},68.5,{"$f":"Table13[[#This Row],[Feed Intake Mid-point (g/bird/day)]]*7","v":479.5},{"$f":"Table13[[#This Row],[Feed Intake (g/bird/week)]]+J178","v":959},44.2,{"$f":"(Table13[[#This Row],[Hen-Housed Eggs Cumulative Mid-point]]*Table13[[#This Row],[Average Egg Weight Mid-point (g/egg)]])","v":6.6300000000000017}]
["White Free-range",18,{"$f":"IF(AND(Table13[[#This Row],[AGE (weeks)]]>='Diet input details'!$C$16,Table13[[#This Row],[AGE (weeks)]]<='Diet input details'!$D$16),\"Ration 1\",IF(AND(Table13[[#This Row],[AGE (weeks)]]>='Diet input details'!$C$17,Table13[[#This Row],[AGE (weeks)]]<='Diet input details'!$D$17),\"Ration 2\",IF(AND(Table13[[#This Row],[AGE (weeks)]]>='Diet input details'!$C$18,Table13[[#This Row],[AGE (weeks)]]<='Diet input details'!$D$18),\"Ration 3\",IF(AND(Table13[[#This Row],[AGE (weeks)]]>='Diet input details'!$C$19,Table13[[#This Row],[AGE (weeks)]]<='Diet input details'!$D$19),\"Ration 4\",IF(AND(Table13[[#This Row],[AGE (weeks)]]>='Diet input details'!$C$20,Table13[[#This Row],[AGE (weeks)]]<='Diet input details'!$D$20),\"Ration 5\", \"Clear\")))))","v":"Clear"},{"$f":"(VLOOKUP(Table13[[#This Row],[Ration]],Table22[#All],2,FALSE))","v":{"$error":"#N/A"}},0.15000000000000002,1.2650000000000001,{"$f":"Table13[[#This Row],[Bodyweight Mid-point (kg)]]*1000","v":1265.0000000000002},68.5,{"$f":"Table13[[#This Row],[Feed Intake Mid-point (g/bird/day)]]*7","v":479.5},{"$f":"Table13[[#This Row],[Feed Intake (g/bird/week)]]+J179","v":1438.5},44.2,{"$f":"(Table13[[#This Row],[Hen-Housed Eggs Cumulative Mid-point]]*Table13[[#This Row],[Average Egg Weight Mid-point (g/egg)]])","v":6.6300000000000017}]
["White Free-range",19,{"$f":"IF(AND(Table13[[#This Row],[AGE (weeks)]]>='Diet input details'!$C$16,Table13[[#This Row],[AGE (weeks)]]<='Diet input details'!$D$16),\"Ration 1\",IF(AND(Table13[[#This Row],[AGE (weeks)]]>='Diet input details'!$C$17,Table13[[#This Row],[AGE (weeks)]]<='Diet input details'!$D$17),\"Ration 2\",IF(AND(Table13[[#This Row],[AGE (weeks)]]>='Diet input details'!$C$18,Table13[[#This Row],[AGE (weeks)]]<='Diet input details'!$D$18),\"Ration 3\",IF(AND(Table13[[#This Row],[AGE (weeks)]]>='Diet input details'!$C$19,Table13[[#This Row],[AGE (weeks)]]<='Diet input details'!$D$19),\"Ration 4\",IF(AND(Table13[[#This Row],[AGE (weeks)]]>='Diet input details'!$C$20,Table13[[#This Row],[AGE (weeks)]]<='Diet input details'!$D$20),\"Ration 5\", \"Clear\")))))","v":"Clear"},{"$f":"(VLOOKUP(Table13[[#This Row],[Ration]],Table22[#All],2,FALSE))","v":{"$error":"#N/A"}},1.45,1.32,{"$f":"Table13[[#This Row],[Bodyweight Mid-point (kg)]]*1000","v":1320},72.5,{"$f":"Table13[[#This Row],[Feed Intake Mid-point (g/bird/day)]]*7","v":507.5},{"$f":"Table13[[#This Row],[Feed Intake (g/bird/week)]]+J180","v":1946},45,{"$f":"(Table13[[#This Row],[Hen-Housed Eggs Cumulative Mid-point]]*Table13[[#This Row],[Average Egg Weight Mid-point (g/egg)]])","v":65.25}]
["White Free-range",20,{"$f":"IF(AND(Table13[[#This Row],[AGE (weeks)]]>='Diet input details'!$C$16,Table13[[#This Row],[AGE (weeks)]]<='Diet input details'!$D$16),\"Ration 1\",IF(AND(Table13[[#This Row],[AGE (weeks)]]>='Diet input details'!$C$17,Table13[[#This Row],[AGE (weeks)]]<='Diet input details'!$D$17),\"Ration 2\",IF(AND(Table13[[#This Row],[AGE (weeks)]]>='Diet input details'!$C$18,Table13[[#This Row],[AGE (weeks)]]<='Diet input details'!$D$18),\"Ration 3\",IF(AND(Table13[[#This Row],[AGE (weeks)]]>='Diet input details'!$C$19,Table13[[#This Row],[AGE (weeks)]]<='Diet input details'!$D$19),\"Ration 4\",IF(AND(Table13[[#This Row],[AGE (weeks)]]>='Diet input details'!$C$20,Table13[[#This Row],[AGE (weeks)]]<='Diet input details'!$D$20),\"Ration 5\", \"Clear\")))))","v":"Clear"},{"$f":"(VLOOKUP(Table13[[#This Row],[Ration]],Table22[#All],2,FALSE))","v":{"$error":"#N/A"}},4.4000000000000004,1.375,{"$f":"Table13[[#This Row],[Bodyweight Mid-point (kg)]]*1000","v":1375},76.5,{"$f":"Table13[[#This Row],[Feed Intake Mid-point (g/bird/day)]]*7","v":535.5},{"$f":"Table13[[#This Row],[Feed Intake (g/bird/week)]]+J181","v":2481.5},45.9,{"$f":"(Table13[[#This Row],[Hen-Housed Eggs Cumulative Mid-point]]*Table13[[#This Row],[Average Egg Weight Mid-point (g/egg)]])","v":201.96}]
["White Free-range",21,{"$f":"IF(AND(Table13[[#This Row],[AGE (weeks)]]>='Diet input details'!$C$16,Table13[[#This Row],[AGE (weeks)]]<='Diet input details'!$D$16),\"Ration 1\",IF(AND(Table13[[#This Row],[AGE (weeks)]]>='Diet input details'!$C$17,Table13[[#This Row],[AGE (weeks)]]<='Diet input details'!$D$17),\"Ration 2\",IF(AND(Table13[[#This Row],[AGE (weeks)]]>='Diet input details'!$C$18,Table13[[#This Row],[AGE (weeks)]]<='Diet input details'!$D$18),\"Ration 3\",IF(AND(Table13[[#This Row],[AGE (weeks)]]>='Diet input details'!$C$19,Table13[[#This Row],[AGE (weeks)]]<='Diet input details'!$D$19),\"Ration 4\",IF(AND(Table13[[#This Row],[AGE (weeks)]]>='Diet input details'!$C$20,Table13[[#This Row],[AGE (weeks)]]<='Diet input details'!$D$20),\"Ration 5\", \"Clear\")))))","v":"Clear"},{"$f":"(VLOOKUP(Table13[[#This Row],[Ration]],Table22[#All],2,FALSE))","v":{"$error":"#N/A"}},8.85,1.4249999999999998,{"$f":"Table13[[#This Row],[Bodyweight Mid-point (kg)]]*1000","v":1424.9999999999998},80,{"$f":"Table13[[#This Row],[Feed Intake Mid-point (g/bird/day)]]*7","v":560},{"$f":"Table13[[#This Row],[Feed Intake (g/bird/week)]]+J182","v":3041.5},48,{"$f":"(Table13[[#This Row],[Hen-Housed Eggs Cumulative Mid-point]]*Table13[[#This Row],[Average Egg Weight Mid-point (g/egg)]])","v":424.79999999999995}]
["White Free-range",22,{"$f":"IF(AND(Table13[[#This Row],[AGE (weeks)]]>='Diet input details'!$C$16,Table13[[#This Row],[AGE (weeks)]]<='Diet input details'!$D$16),\"Ration 1\",IF(AND(Table13[[#This Row],[AGE (weeks)]]>='Diet input details'!$C$17,Table13[[#This Row],[AGE (weeks)]]<='Diet input details'!$D$17),\"Ration 2\",IF(AND(Table13[[#This Row],[AGE (weeks)]]>='Diet input details'!$C$18,Table13[[#This Row],[AGE (weeks)]]<='Diet input details'!$D$18),\"Ration 3\",IF(AND(Table13[[#This Row],[AGE (weeks)]]>='Diet input details'!$C$19,Table13[[#This Row],[AGE (weeks)]]<='Diet input details'!$D$19),\"Ration 4\",IF(AND(Table13[[#This Row],[AGE (weeks)]]>='Diet input details'!$C$20,Table13[[#This Row],[AGE (weeks)]]<='Diet input details'!$D$20),\"Ration 5\", \"Clear\")))))","v":"Clear"},{"$f":"(VLOOKUP(Table13[[#This Row],[Ration]],Table22[#All],2,FALSE))","v":{"$error":"#N/A"}},14.600000000000001,1.45,{"$f":"Table13[[#This Row],[Bodyweight Mid-point (kg)]]*1000","v":1450},84,{"$f":"Table13[[#This Row],[Feed Intake Mid-point (g/bird/day)]]*7","v":588},{"$f":"Table13[[#This Row],[Feed Intake (g/bird/week)]]+J183","v":3629.5},49.8,{"$f":"(Table13[[#This Row],[Hen-Housed Eggs Cumulative Mid-point]]*Table13[[#This Row],[Average Egg Weight Mid-point (g/egg)]])","v":727.08}]
["White Free-range",23,{"$f":"IF(AND(Table13[[#This Row],[AGE (weeks)]]>='Diet input details'!$C$16,Table13[[#This Row],[AGE (weeks)]]<='Diet input details'!$D$16),\"Ration 1\",IF(AND(Table13[[#This Row],[AGE (weeks)]]>='Diet input details'!$C$17,Table13[[#This Row],[AGE (weeks)]]<='Diet input details'!$D$17),\"Ration 2\",IF(AND(Table13[[#This Row],[AGE (weeks)]]>='Diet input details'!$C$18,Table13[[#This Row],[AGE (weeks)]]<='Diet input details'!$D$18),\"Ration 3\",IF(AND(Table13[[#This Row],[AGE (weeks)]]>='Diet input details'!$C$19,Table13[[#This Row],[AGE (weeks)]]<='Diet input details'!$D$19),\"Ration 4\",IF(AND(Table13[[#This Row],[AGE (weeks)]]>='Diet input details'!$C$20,Table13[[#This Row],[AGE (weeks)]]<='Diet input details'!$D$20),\"Ration 5\", \"Clear\")))))","v":"Clear"},{"$f":"(VLOOKUP(Table13[[#This Row],[Ration]],Table22[#All],2,FALSE))","v":{"$error":"#N/A"}},20.9,1.4649999999999999,{"$f":"Table13[[#This Row],[Bodyweight Mid-point (kg)]]*1000","v":1464.9999999999998},89,{"$f":"Table13[[#This Row],[Feed Intake Mid-point (g/bird/day)]]*7","v":623},{"$f":"Table13[[#This Row],[Feed Intake (g/bird/week)]]+J184","v":4252.5},51.3,{"$f":"(Table13[[#This Row],[Hen-Housed Eggs Cumulative Mid-point]]*Table13[[#This Row],[Average Egg Weight Mid-point (g/egg)]])","v":1072.1699999999998}]
["White Free-range",24,{"$f":"IF(AND(Table13[[#This Row],[AGE (weeks)]]>='Diet input details'!$C$16,Table13[[#This Row],[AGE (weeks)]]<='Diet input details'!$D$16),\"Ration 1\",IF(AND(Table13[[#This Row],[AGE (weeks)]]>='Diet input details'!$C$17,Table13[[#This Row],[AGE (weeks)]]<='Diet input details'!$D$17),\"Ration 2\",IF(AND(Table13[[#This Row],[AGE (weeks)]]>='Diet input details'!$C$18,Table13[[#This Row],[AGE (weeks)]]<='Diet input details'!$D$18),\"Ration 3\",IF(AND(Table13[[#This Row],[AGE (weeks)]]>='Diet input details'!$C$19,Table13[[#This Row],[AGE (weeks)]]<='Diet input details'!$D$19),\"Ration 4\",IF(AND(Table13[[#This Row],[AGE (weeks)]]>='Diet input details'!$C$20,Table13[[#This Row],[AGE (weeks)]]<='Diet input details'!$D$20),\"Ration 5\", \"Clear\")))))","v":"Clear"},{"$f":"(VLOOKUP(Table13[[#This Row],[Ration]],Table22[#All],2,FALSE))","v":{"$error":"#N/A"}},27.35,1.48,{"$f":"Table13[[#This Row],[Bodyweight Mid-point (kg)]]*1000","v":1480},92.5,{"$f":"Table13[[#This Row],[Feed Intake Mid-point (g/bird/day)]]*7","v":647.5},{"$f":"Table13[[#This Row],[Feed Intake (g/bird/week)]]+J185","v":4900},52.6,{"$f":"(Table13[[#This Row],[Hen-Housed Eggs Cumulative Mid-point]]*Table13[[#This Row],[Average Egg Weight Mid-point (g/egg)]])","v":1438.6100000000001}]
["White Free-range",25,{"$f":"IF(AND(Table13[[#This Row],[AGE (weeks)]]>='Diet input details'!$C$16,Table13[[#This Row],[AGE (weeks)]]<='Diet input details'!$D$16),\"Ration 1\",IF(AND(Table13[[#This Row],[AGE (weeks)]]>='Diet input details'!$C$17,Table13[[#This Row],[AGE (weeks)]]<='Diet input details'!$D$17),\"Ration 2\",IF(AND(Table13[[#This Row],[AGE (weeks)]]>='Diet input details'!$C$18,Table13[[#This Row],[AGE (weeks)]]<='Diet input details'!$D$18),\"Ration 3\",IF(AND(Table13[[#This Row],[AGE (weeks)]]>='Diet input details'!$C$19,Table13[[#This Row],[AGE (weeks)]]<='Diet input details'!$D$19),\"Ration 4\",IF(AND(Table13[[#This Row],[AGE (weeks)]]>='Diet input details'!$C$20,Table13[[#This Row],[AGE (weeks)]]<='Diet input details'!$D$20),\"Ration 5\", \"Clear\")))))","v":"Clear"},{"$f":"(VLOOKUP(Table13[[#This Row],[Ration]],Table22[#All],2,FALSE))","v":{"$error":"#N/A"}},33.9,1.5,{"$f":"Table13[[#This Row],[Bodyweight Mid-point (kg)]]*1000","v":1500},96,{"$f":"Table13[[#This Row],[Feed Intake Mid-point (g/bird/day)]]*7","v":672},{"$f":"Table13[[#This Row],[Feed Intake (g/bird/week)]]+J186","v":5572},53.7,{"$f":"(Table13[[#This Row],[Hen-Housed Eggs Cumulative Mid-point]]*Table13[[#This Row],[Average Egg Weight Mid-point (g/egg)]])","v":1820.43}]
["White Free-range",26,{"$f":"IF(AND(Table13[[#This Row],[AGE (weeks)]]>='Diet input details'!$C$16,Table13[[#This Row],[AGE (weeks)]]<='Diet input details'!$D$16),\"Ration 1\",IF(AND(Table13[[#This Row],[AGE (weeks)]]>='Diet input details'!$C$17,Table13[[#This Row],[AGE (weeks)]]<='Diet input details'!$D$17),\"Ration 2\",IF(AND(Table13[[#This Row],[AGE (weeks)]]>='Diet input details'!$C$18,Table13[[#This Row],[AGE (weeks)]]<='Diet input details'!$D$18),\"Ration 3\",IF(AND(Table13[[#This Row],[AGE (weeks)]]>='Diet input details'!$C$19,Table13[[#This Row],[AGE (weeks)]]<='Diet input details'!$D$19),\"Ration 4\",IF(AND(Table13[[#This Row],[AGE (weeks)]]>='Diet input details'!$C$20,Table13[[#This Row],[AGE (weeks)]]<='Diet input details'!$D$20),\"Ration 5\", \"Clear\")))))","v":"Clear"},{"$f":"(VLOOKUP(Table13[[#This Row],[Ration]],Table22[#All],2,FALSE))","v":{"$error":"#N/A"}},40.549999999999997,1.51,{"$f":"Table13[[#This Row],[Bodyweight Mid-point (kg)]]*1000","v":1510},97.5,{"$f":"Table13[[#This Row],[Feed Intake Mid-point (g/bird/day)]]*7","v":682.5},{"$f":"Table13[[#This Row],[Feed Intake (g/bird/week)]]+J187","v":6254.5},54.7,{"$f":"(Table13[[#This Row],[Hen-Housed Eggs Cumulative Mid-point]]*Table13[[#This Row],[Average Egg Weight Mid-point (g/egg)]])","v":2218.085}]
["White Free-range",27,{"$f":"IF(AND(Table13[[#This Row],[AGE (weeks)]]>='Diet input details'!$C$16,Table13[[#This Row],[AGE (weeks)]]<='Diet input details'!$D$16),\"Ration 1\",IF(AND(Table13[[#This Row],[AGE (weeks)]]>='Diet input details'!$C$17,Table13[[#This Row],[AGE (weeks)]]<='Diet input details'!$D$17),\"Ration 2\",IF(AND(Table13[[#This Row],[AGE (weeks)]]>='Diet input details'!$C$18,Table13[[#This Row],[AGE (weeks)]]<='Diet input details'!$D$18),\"Ration 3\",IF(AND(Table13[[#This Row],[AGE (weeks)]]>='Diet input details'!$C$19,Table13[[#This Row],[AGE (weeks)]]<='Diet input details'!$D$19),\"Ration 4\",IF(AND(Table13[[#This Row],[AGE (weeks)]]>='Diet input details'!$C$20,Table13[[#This Row],[AGE (weeks)]]<='Diet input details'!$D$20),\"Ration 5\", \"Clear\")))))","v":"Clear"},{"$f":"(VLOOKUP(Table13[[#This Row],[Ration]],Table22[#All],2,FALSE))","v":{"$error":"#N/A"}},47.2,1.5150000000000001,{"$f":"Table13[[#This Row],[Bodyweight Mid-point (kg)]]*1000","v":1515.0000000000002},99,{"$f":"Table13[[#This Row],[Feed Intake Mid-point (g/bird/day)]]*7","v":693},{"$f":"Table13[[#This Row],[Feed Intake (g/bird/week)]]+J188","v":6947.5},55.5,{"$f":"(Table13[[#This Row],[Hen-Housed Eggs Cumulative Mid-point]]*Table13[[#This Row],[Average Egg Weight Mid-point (g/egg)]])","v":2619.6000000000004}]
["White Free-range",28,{"$f":"IF(AND(Table13[[#This Row],[AGE (weeks)]]>='Diet input details'!$C$16,Table13[[#This Row],[AGE (weeks)]]<='Diet input details'!$D$16),\"Ration 1\",IF(AND(Table13[[#This Row],[AGE (weeks)]]>='Diet input details'!$C$17,Table13[[#This Row],[AGE (weeks)]]<='Diet input details'!$D$17),\"Ration 2\",IF(AND(Table13[[#This Row],[AGE (weeks)]]>='Diet input details'!$C$18,Table13[[#This Row],[AGE (weeks)]]<='Diet input details'!$D$18),\"Ration 3\",IF(AND(Table13[[#This Row],[AGE (weeks)]]>='Diet input details'!$C$19,Table13[[#This Row],[AGE (weeks)]]<='Diet input details'!$D$19),\"Ration 4\",IF(AND(Table13[[#This Row],[AGE (weeks)]]>='Diet input details'!$C$20,Table13[[#This Row],[AGE (weeks)]]<='Diet input details'!$D$20),\"Ration 5\", \"Clear\")))))","v":"Clear"},{"$f":"(VLOOKUP(Table13[[#This Row],[Ration]],Table22[#All],2,FALSE))","v":{"$error":"#N/A"}},53.8,1.52,{"$f":"Table13[[#This Row],[Bodyweight Mid-point (kg)]]*1000","v":1520},99.5,{"$f":"Table13[[#This Row],[Feed Intake Mid-point (g/bird/day)]]*7","v":696.5},{"$f":"Table13[[#This Row],[Feed Intake (g/bird/week)]]+J189","v":7644},56.3,{"$f":"(Table13[[#This Row],[Hen-Housed Eggs Cumulative Mid-point]]*Table13[[#This Row],[Average Egg Weight Mid-point (g/egg)]])","v":3028.9399999999996}]
["White Free-range",29,{"$f":"IF(AND(Table13[[#This Row],[AGE (weeks)]]>='Diet input details'!$C$16,Table13[[#This Row],[AGE (weeks)]]<='Diet input details'!$D$16),\"Ration 1\",IF(AND(Table13[[#This Row],[AGE (weeks)]]>='Diet input details'!$C$17,Table13[[#This Row],[AGE (weeks)]]<='Diet input details'!$D$17),\"Ration 2\",IF(AND(Table13[[#This Row],[AGE (weeks)]]>='Diet input details'!$C$18,Table13[[#This Row],[AGE (weeks)]]<='Diet input details'!$D$18),\"Ration 3\",IF(AND(Table13[[#This Row],[AGE (weeks)]]>='Diet input details'!$C$19,Table13[[#This Row],[AGE (weeks)]]<='Diet input details'!$D$19),\"Ration 4\",IF(AND(Table13[[#This Row],[AGE (weeks)]]>='Diet input details'!$C$20,Table13[[#This Row],[AGE (weeks)]]<='Diet input details'!$D$20),\"Ration 5\", \"Clear\")))))","v":"Clear"},{"$f":"(VLOOKUP(Table13[[#This Row],[Ration]],Table22[#All],2,FALSE))","v":{"$error":"#N/A"}},60.45,1.53,{"$f":"Table13[[#This Row],[Bodyweight Mid-point (kg)]]*1000","v":1530},100,{"$f":"Table13[[#This Row],[Feed Intake Mid-point (g/bird/day)]]*7","v":700},{"$f":"Table13[[#This Row],[Feed Intake (g/bird/week)]]+J190","v":8344},57,{"$f":"(Table13[[#This Row],[Hen-Housed Eggs Cumulative Mid-point]]*Table13[[#This Row],[Average Egg Weight Mid-point (g/egg)]])","v":3445.65}]
["White Free-range",30,{"$f":"IF(AND(Table13[[#This Row],[AGE (weeks)]]>='Diet input details'!$C$16,Table13[[#This Row],[AGE (weeks)]]<='Diet input details'!$D$16),\"Ration 1\",IF(AND(Table13[[#This Row],[AGE (weeks)]]>='Diet input details'!$C$17,Table13[[#This Row],[AGE (weeks)]]<='Diet input details'!$D$17),\"Ration 2\",IF(AND(Table13[[#This Row],[AGE (weeks)]]>='Diet input details'!$C$18,Table13[[#This Row],[AGE (weeks)]]<='Diet input details'!$D$18),\"Ration 3\",IF(AND(Table13[[#This Row],[AGE (weeks)]]>='Diet input details'!$C$19,Table13[[#This Row],[AGE (weeks)]]<='Diet input details'!$D$19),\"Ration 4\",IF(AND(Table13[[#This Row],[AGE (weeks)]]>='Diet input details'!$C$20,Table13[[#This Row],[AGE (weeks)]]<='Diet input details'!$D$20),\"Ration 5\", \"Clear\")))))","v":"Clear"},{"$f":"(VLOOKUP(Table13[[#This Row],[Ration]],Table22[#All],2,FALSE))","v":{"$error":"#N/A"}},67.099999999999994,1.53,{"$f":"Table13[[#This Row],[Bodyweight Mid-point (kg)]]*1000","v":1530},100,{"$f":"Table13[[#This Row],[Feed Intake Mid-point (g/bird/day)]]*7","v":700},{"$f":"Table13[[#This Row],[Feed Intake (g/bird/week)]]+J191","v":9044},57.6,{"$f":"(Table13[[#This Row],[Hen-Housed Eggs Cumulative Mid-point]]*Table13[[#This Row],[Average Egg Weight Mid-point (g/egg)]])","v":3864.9599999999996}]
["White Free-range",31,{"$f":"IF(AND(Table13[[#This Row],[AGE (weeks)]]>='Diet input details'!$C$16,Table13[[#This Row],[AGE (weeks)]]<='Diet input details'!$D$16),\"Ration 1\",IF(AND(Table13[[#This Row],[AGE (weeks)]]>='Diet input details'!$C$17,Table13[[#This Row],[AGE (weeks)]]<='Diet input details'!$D$17),\"Ration 2\",IF(AND(Table13[[#This Row],[AGE (weeks)]]>='Diet input details'!$C$18,Table13[[#This Row],[AGE (weeks)]]<='Diet input details'!$D$18),\"Ration 3\",IF(AND(Table13[[#This Row],[AGE (weeks)]]>='Diet input details'!$C$19,Table13[[#This Row],[AGE (weeks)]]<='Diet input details'!$D$19),\"Ration 4\",IF(AND(Table13[[#This Row],[AGE (weeks)]]>='Diet input details'!$C$20,Table13[[#This Row],[AGE (weeks)]]<='Diet input details'!$D$20),\"Ration 5\", \"Clear\")))))","v":"Clear"},{"$f":"(VLOOKUP(Table13[[#This Row],[Ration]],Table22[#All],2,FALSE))","v":{"$error":"#N/A"}},73.75,1.54,{"$f":"Table13[[#This Row],[Bodyweight Mid-point (kg)]]*1000","v":1540},100,{"$f":"Table13[[#This Row],[Feed Intake Mid-point (g/bird/day)]]*7","v":700},{"$f":"Table13[[#This Row],[Feed Intake (g/bird/week)]]+J192","v":9744},58.1,{"$f":"(Table13[[#This Row],[Hen-Housed Eggs Cumulative Mid-point]]*Table13[[#This Row],[Average Egg Weight Mid-point (g/egg)]])","v":4284.875}]
["White Free-range",32,{"$f":"IF(AND(Table13[[#This Row],[AGE (weeks)]]>='Diet input details'!$C$16,Table13[[#This Row],[AGE (weeks)]]<='Diet input details'!$D$16),\"Ration 1\",IF(AND(Table13[[#This Row],[AGE (weeks)]]>='Diet input details'!$C$17,Table13[[#This Row],[AGE (weeks)]]<='Diet input details'!$D$17),\"Ration 2\",IF(AND(Table13[[#This Row],[AGE (weeks)]]>='Diet input details'!$C$18,Table13[[#This Row],[AGE (weeks)]]<='Diet input details'!$D$18),\"Ration 3\",IF(AND(Table13[[#This Row],[AGE (weeks)]]>='Diet input details'!$C$19,Table13[[#This Row],[AGE (weeks)]]<='Diet input details'!$D$19),\"Ration 4\",IF(AND(Table13[[#This Row],[AGE (weeks)]]>='Diet input details'!$C$20,Table13[[#This Row],[AGE (weeks)]]<='Diet input details'!$D$20),\"Ration 5\", \"Clear\")))))","v":"Clear"},{"$f":"(VLOOKUP(Table13[[#This Row],[Ration]],Table22[#All],2,FALSE))","v":{"$error":"#N/A"}},80.400000000000006,1.54,{"$f":"Table13[[#This Row],[Bodyweight Mid-point (kg)]]*1000","v":1540},101,{"$f":"Table13[[#This Row],[Feed Intake Mid-point (g/bird/day)]]*7","v":707},{"$f":"Table13[[#This Row],[Feed Intake (g/bird/week)]]+J193","v":10451},58.5,{"$f":"(Table13[[#This Row],[Hen-Housed Eggs Cumulative Mid-point]]*Table13[[#This Row],[Average Egg Weight Mid-point (g/egg)]])","v":4703.4000000000005}]
["White Free-range",33,{"$f":"IF(AND(Table13[[#This Row],[AGE (weeks)]]>='Diet input details'!$C$16,Table13[[#This Row],[AGE (weeks)]]<='Diet input details'!$D$16),\"Ration 1\",IF(AND(Table13[[#This Row],[AGE (weeks)]]>='Diet input details'!$C$17,Table13[[#This Row],[AGE (weeks)]]<='Diet input details'!$D$17),\"Ration 2\",IF(AND(Table13[[#This Row],[AGE (weeks)]]>='Diet input details'!$C$18,Table13[[#This Row],[AGE (weeks)]]<='Diet input details'!$D$18),\"Ration 3\",IF(AND(Table13[[#This Row],[AGE (weeks)]]>='Diet input details'!$C$19,Table13[[#This Row],[AGE (weeks)]]<='Diet input details'!$D$19),\"Ration 4\",IF(AND(Table13[[#This Row],[AGE (weeks)]]>='Diet input details'!$C$20,Table13[[#This Row],[AGE (weeks)]]<='Diet input details'!$D$20),\"Ration 5\", \"Clear\")))))","v":"Clear"},{"$f":"(VLOOKUP(Table13[[#This Row],[Ration]],Table22[#All],2,FALSE))","v":{"$error":"#N/A"}},87,1.55,{"$f":"Table13[[#This Row],[Bodyweight Mid-point (kg)]]*1000","v":1550},101,{"$f":"Table13[[#This Row],[Feed Intake Mid-point (g/bird/day)]]*7","v":707},{"$f":"Table13[[#This Row],[Feed Intake (g/bird/week)]]+J194","v":11158},59,{"$f":"(Table13[[#This Row],[Hen-Housed Eggs Cumulative Mid-point]]*Table13[[#This Row],[Average Egg Weight Mid-point (g/egg)]])","v":5133}]
["White Free-range",34,{"$f":"IF(AND(Table13[[#This Row],[AGE (weeks)]]>='Diet input details'!$C$16,Table13[[#This Row],[AGE (weeks)]]<='Diet input details'!$D$16),\"Ration 1\",IF(AND(Table13[[#This Row],[AGE (weeks)]]>='Diet input details'!$C$17,Table13[[#This Row],[AGE (weeks)]]<='Diet input details'!$D$17),\"Ration 2\",IF(AND(Table13[[#This Row],[AGE (weeks)]]>='Diet input details'!$C$18,Table13[[#This Row],[AGE (weeks)]]<='Diet input details'!$D$18),\"Ration 3\",IF(AND(Table13[[#This Row],[AGE (weeks)]]>='Diet input details'!$C$19,Table13[[#This Row],[AGE (weeks)]]<='Diet input details'!$D$19),\"Ration 4\",IF(AND(Table13[[#This Row],[AGE (weeks)]]>='Diet input details'!$C$20,Table13[[#This Row],[AGE (weeks)]]<='Diet input details'!$D$20),\"Ration 5\", \"Clear\")))))","v":"Clear"},{"$f":"(VLOOKUP(Table13[[#This Row],[Ration]],Table22[#All],2,FALSE))","v":{"$error":"#N/A"}},93.55,1.55,{"$f":"Table13[[#This Row],[Bodyweight Mid-point (kg)]]*1000","v":1550},101,{"$f":"Table13[[#This Row],[Feed Intake Mid-point (g/bird/day)]]*7","v":707},{"$f":"Table13[[#This Row],[Feed Intake (g/bird/week)]]+J195","v":11865},59.3,{"$f":"(Table13[[#This Row],[Hen-Housed Eggs Cumulative Mid-point]]*Table13[[#This Row],[Average Egg Weight Mid-point (g/egg)]])","v":5547.5149999999994}]
["White Free-range",35,{"$f":"IF(AND(Table13[[#This Row],[AGE (weeks)]]>='Diet input details'!$C$16,Table13[[#This Row],[AGE (weeks)]]<='Diet input details'!$D$16),\"Ration 1\",IF(AND(Table13[[#This Row],[AGE (weeks)]]>='Diet input details'!$C$17,Table13[[#This Row],[AGE (weeks)]]<='Diet input details'!$D$17),\"Ration 2\",IF(AND(Table13[[#This Row],[AGE (weeks)]]>='Diet input details'!$C$18,Table13[[#This Row],[AGE (weeks)]]<='Diet input details'!$D$18),\"Ration 3\",IF(AND(Table13[[#This Row],[AGE (weeks)]]>='Diet input details'!$C$19,Table13[[#This Row],[AGE (weeks)]]<='Diet input details'!$D$19),\"Ration 4\",IF(AND(Table13[[#This Row],[AGE (weeks)]]>='Diet input details'!$C$20,Table13[[#This Row],[AGE (weeks)]]<='Diet input details'!$D$20),\"Ration 5\", \"Clear\")))))","v":"Clear"},{"$f":"(VLOOKUP(Table13[[#This Row],[Ration]],Table22[#All],2,FALSE))","v":{"$error":"#N/A"}},100.15,1.56,{"$f":"Table13[[#This Row],[Bodyweight Mid-point (kg)]]*1000","v":1560},101,{"$f":"Table13[[#This Row],[Feed Intake Mid-point (g/bird/day)]]*7","v":707},{"$f":"Table13[[#This Row],[Feed Intake (g/bird/week)]]+J196","v":12572},59.7,{"$f":"(Table13[[#This Row],[Hen-Housed Eggs Cumulative Mid-point]]*Table13[[#This Row],[Average Egg Weight Mid-point (g/egg)]])","v":5978.9550000000008}]
["White Free-range",36,{"$f":"IF(AND(Table13[[#This Row],[AGE (weeks)]]>='Diet input details'!$C$16,Table13[[#This Row],[AGE (weeks)]]<='Diet input details'!$D$16),\"Ration 1\",IF(AND(Table13[[#This Row],[AGE (weeks)]]>='Diet input details'!$C$17,Table13[[#This Row],[AGE (weeks)]]<='Diet input details'!$D$17),\"Ration 2\",IF(AND(Table13[[#This Row],[AGE (weeks)]]>='Diet input details'!$C$18,Table13[[#This Row],[AGE (weeks)]]<='Diet input details'!$D$18),\"Ration 3\",IF(AND(Table13[[#This Row],[AGE (weeks)]]>='Diet input details'!$C$19,Table13[[#This Row],[AGE (weeks)]]<='Diet input details'!$D$19),\"Ration 4\",IF(AND(Table13[[#This Row],[AGE (weeks)]]>='Diet input details'!$C$20,Table13[[#This Row],[AGE (weeks)]]<='Diet input details'!$D$20),\"Ration 5\", \"Clear\")))))","v":"Clear"},{"$f":"(VLOOKUP(Table13[[#This Row],[Ration]],Table22[#All],2,FALSE))","v":{"$error":"#N/A"}},106.69999999999999,1.56,{"$f":"Table13[[#This Row],[Bodyweight Mid-point (kg)]]*1000","v":1560},101.5,{"$f":"Table13[[#This Row],[Feed Intake Mid-point (g/bird/day)]]*7","v":710.5},{"$f":"Table13[[#This Row],[Feed Intake (g/bird/week)]]+J197","v":13282.5},60,{"$f":"(Table13[[#This Row],[Hen-Housed Eggs Cumulative Mid-point]]*Table13[[#This Row],[Average Egg Weight Mid-point (g/egg)]])","v":6401.9999999999991}]
["White Free-range",37,{"$f":"IF(AND(Table13[[#This Row],[AGE (weeks)]]>='Diet input details'!$C$16,Table13[[#This Row],[AGE (weeks)]]<='Diet input details'!$D$16),\"Ration 1\",IF(AND(Table13[[#This Row],[AGE (weeks)]]>='Diet input details'!$C$17,Table13[[#This Row],[AGE (weeks)]]<='Diet input details'!$D$17),\"Ration 2\",IF(AND(Table13[[#This Row],[AGE (weeks)]]>='Diet input details'!$C$18,Table13[[#This Row],[AGE (weeks)]]<='Diet input details'!$D$18),\"Ration 3\",IF(AND(Table13[[#This Row],[AGE (weeks)]]>='Diet input details'!$C$19,Table13[[#This Row],[AGE (weeks)]]<='Diet input details'!$D$19),\"Ration 4\",IF(AND(Table13[[#This Row],[AGE (weeks)]]>='Diet input details'!$C$20,Table13[[#This Row],[AGE (weeks)]]<='Diet input details'!$D$20),\"Ration 5\", \"Clear\")))))","v":"Clear"},{"$f":"(VLOOKUP(Table13[[#This Row],[Ration]],Table22[#All],2,FALSE))","v":{"$error":"#N/A"}},113.2,1.56,{"$f":"Table13[[#This Row],[Bodyweight Mid-point (kg)]]*1000","v":1560},101.5,{"$f":"Table13[[#This Row],[Feed Intake Mid-point (g/bird/day)]]*7","v":710.5},{"$f":"Table13[[#This Row],[Feed Intake (g/bird/week)]]+J198","v":13993},60.3,{"$f":"(Table13[[#This Row],[Hen-Housed Eggs Cumulative Mid-point]]*Table13[[#This Row],[Average Egg Weight Mid-point (g/egg)]])","v":6825.96}]
["White Free-range",38,{"$f":"IF(AND(Table13[[#This Row],[AGE (weeks)]]>='Diet input details'!$C$16,Table13[[#This Row],[AGE (weeks)]]<='Diet input details'!$D$16),\"Ration 1\",IF(AND(Table13[[#This Row],[AGE (weeks)]]>='Diet input details'!$C$17,Table13[[#This Row],[AGE (weeks)]]<='Diet input details'!$D$17),\"Ration 2\",IF(AND(Table13[[#This Row],[AGE (weeks)]]>='Diet input details'!$C$18,Table13[[#This Row],[AGE (weeks)]]<='Diet input details'!$D$18),\"Ration 3\",IF(AND(Table13[[#This Row],[AGE (weeks)]]>='Diet input details'!$C$19,Table13[[#This Row],[AGE (weeks)]]<='Diet input details'!$D$19),\"Ration 4\",IF(AND(Table13[[#This Row],[AGE (weeks)]]>='Diet input details'!$C$20,Table13[[#This Row],[AGE (weeks)]]<='Diet input details'!$D$20),\"Ration 5\", \"Clear\")))))","v":"Clear"},{"$f":"(VLOOKUP(Table13[[#This Row],[Ration]],Table22[#All],2,FALSE))","v":{"$error":"#N/A"}},119.75,1.57,{"$f":"Table13[[#This Row],[Bodyweight Mid-point (kg)]]*1000","v":1570},101.5,{"$f":"Table13[[#This Row],[Feed Intake Mid-point (g/bird/day)]]*7","v":710.5},{"$f":"Table13[[#This Row],[Feed Intake (g/bird/week)]]+J199","v":14703.5},60.5,{"$f":"(Table13[[#This Row],[Hen-Housed Eggs Cumulative Mid-point]]*Table13[[#This Row],[Average Egg Weight Mid-point (g/egg)]])","v":7244.875}]
["White Free-range",39,{"$f":"IF(AND(Table13[[#This Row],[AGE (weeks)]]>='Diet input details'!$C$16,Table13[[#This Row],[AGE (weeks)]]<='Diet input details'!$D$16),\"Ration 1\",IF(AND(Table13[[#This Row],[AGE (weeks)]]>='Diet input details'!$C$17,Table13[[#This Row],[AGE (weeks)]]<='Diet input details'!$D$17),\"Ration 2\",IF(AND(Table13[[#This Row],[AGE (weeks)]]>='Diet input details'!$C$18,Table13[[#This Row],[AGE (weeks)]]<='Diet input details'!$D$18),\"Ration 3\",IF(AND(Table13[[#This Row],[AGE (weeks)]]>='Diet input details'!$C$19,Table13[[#This Row],[AGE (weeks)]]<='Diet input details'!$D$19),\"Ration 4\",IF(AND(Table13[[#This Row],[AGE (weeks)]]>='Diet input details'!$C$20,Table13[[#This Row],[AGE (weeks)]]<='Diet input details'!$D$20),\"Ration 5\", \"Clear\")))))","v":"Clear"},{"$f":"(VLOOKUP(Table13[[#This Row],[Ration]],Table22[#All],2,FALSE))","v":{"$error":"#N/A"}},126.2,1.57,{"$f":"Table13[[#This Row],[Bodyweight Mid-point (kg)]]*1000","v":1570},101.5,{"$f":"Table13[[#This Row],[Feed Intake Mid-point (g/bird/day)]]*7","v":710.5},{"$f":"Table13[[#This Row],[Feed Intake (g/bird/week)]]+J200","v":15414},60.7,{"$f":"(Table13[[#This Row],[Hen-Housed Eggs Cumulative Mid-point]]*Table13[[#This Row],[Average Egg Weight Mid-point (g/egg)]])","v":7660.34}]
["White Free-range",40,{"$f":"IF(AND(Table13[[#This Row],[AGE (weeks)]]>='Diet input details'!$C$16,Table13[[#This Row],[AGE (weeks)]]<='Diet input details'!$D$16),\"Ration 1\",IF(AND(Table13[[#This Row],[AGE (weeks)]]>='Diet input details'!$C$17,Table13[[#This Row],[AGE (weeks)]]<='Diet input details'!$D$17),\"Ration 2\",IF(AND(Table13[[#This Row],[AGE (weeks)]]>='Diet input details'!$C$18,Table13[[#This Row],[AGE (weeks)]]<='Diet input details'!$D$18),\"Ration 3\",IF(AND(Table13[[#This Row],[AGE (weeks)]]>='Diet input details'!$C$19,Table13[[#This Row],[AGE (weeks)]]<='Diet input details'!$D$19),\"Ration 4\",IF(AND(Table13[[#This Row],[AGE (weeks)]]>='Diet input details'!$C$20,Table13[[#This Row],[AGE (weeks)]]<='Diet input details'!$D$20),\"Ration 5\", \"Clear\")))))","v":"Clear"},{"$f":"(VLOOKUP(Table13[[#This Row],[Ration]],Table22[#All],2,FALSE))","v":{"$error":"#N/A"}},132.65,1.57,{"$f":"Table13[[#This Row],[Bodyweight Mid-point (kg)]]*1000","v":1570},102,{"$f":"Table13[[#This Row],[Feed Intake Mid-point (g/bird/day)]]*7","v":714},{"$f":"Table13[[#This Row],[Feed Intake (g/bird/week)]]+J201","v":16128},60.9,{"$f":"(Table13[[#This Row],[Hen-Housed Eggs Cumulative Mid-point]]*Table13[[#This Row],[Average Egg Weight Mid-point (g/egg)]])","v":8078.3850000000002}]
["White Free-range",41,{"$f":"IF(AND(Table13[[#This Row],[AGE (weeks)]]>='Diet input details'!$C$16,Table13[[#This Row],[AGE (weeks)]]<='Diet input details'!$D$16),\"Ration 1\",IF(AND(Table13[[#This Row],[AGE (weeks)]]>='Diet input details'!$C$17,Table13[[#This Row],[AGE (weeks)]]<='Diet input details'!$D$17),\"Ration 2\",IF(AND(Table13[[#This Row],[AGE (weeks)]]>='Diet input details'!$C$18,Table13[[#This Row],[AGE (weeks)]]<='Diet input details'!$D$18),\"Ration 3\",IF(AND(Table13[[#This Row],[AGE (weeks)]]>='Diet input details'!$C$19,Table13[[#This Row],[AGE (weeks)]]<='Diet input details'!$D$19),\"Ration 4\",IF(AND(Table13[[#This Row],[AGE (weeks)]]>='Diet input details'!$C$20,Table13[[#This Row],[AGE (weeks)]]<='Diet input details'!$D$20),\"Ration 5\", \"Clear\")))))","v":"Clear"},{"$f":"(VLOOKUP(Table13[[#This Row],[Ration]],Table22[#All],2,FALSE))","v":{"$error":"#N/A"}},139.05000000000001,1.57,{"$f":"Table13[[#This Row],[Bodyweight Mid-point (kg)]]*1000","v":1570},102,{"$f":"Table13[[#This Row],[Feed Intake Mid-point (g/bird/day)]]*7","v":714},{"$f":"Table13[[#This Row],[Feed Intake (g/bird/week)]]+J202","v":16842},61.1,{"$f":"(Table13[[#This Row],[Hen-Housed Eggs Cumulative Mid-point]]*Table13[[#This Row],[Average Egg Weight Mid-point (g/egg)]])","v":8495.9550000000017}]
["White Free-range",42,{"$f":"IF(AND(Table13[[#This Row],[AGE (weeks)]]>='Diet input details'!$C$16,Table13[[#This Row],[AGE (weeks)]]<='Diet input details'!$D$16),\"Ration 1\",IF(AND(Table13[[#This Row],[AGE (weeks)]]>='Diet input details'!$C$17,Table13[[#This Row],[AGE (weeks)]]<='Diet input details'!$D$17),\"Ration 2\",IF(AND(Table13[[#This Row],[AGE (weeks)]]>='Diet input details'!$C$18,Table13[[#This Row],[AGE (weeks)]]<='Diet input details'!$D$18),\"Ration 3\",IF(AND(Table13[[#This Row],[AGE (weeks)]]>='Diet input details'!$C$19,Table13[[#This Row],[AGE (weeks)]]<='Diet input details'!$D$19),\"Ration 4\",IF(AND(Table13[[#This Row],[AGE (weeks)]]>='Diet input details'!$C$20,Table13[[#This Row],[AGE (weeks)]]<='Diet input details'!$D$20),\"Ration 5\", \"Clear\")))))","v":"Clear"},{"$f":"(VLOOKUP(Table13[[#This Row],[Ration]],Table22[#All],2,FALSE))","v":{"$error":"#N/A"}},145.5,1.58,{"$f":"Table13[[#This Row],[Bodyweight Mid-point (kg)]]*1000","v":1580},102,{"$f":"Table13[[#This Row],[Feed Intake Mid-point (g/bird/day)]]*7","v":714},{"$f":"Table13[[#This Row],[Feed Intake (g/bird/week)]]+J203","v":17556},61.3,{"$f":"(Table13[[#This Row],[Hen-Housed Eggs Cumulative Mid-point]]*Table13[[#This Row],[Average Egg Weight Mid-point (g/egg)]])","v":8919.15}]
["White Free-range",43,{"$f":"IF(AND(Table13[[#This Row],[AGE (weeks)]]>='Diet input details'!$C$16,Table13[[#This Row],[AGE (weeks)]]<='Diet input details'!$D$16),\"Ration 1\",IF(AND(Table13[[#This Row],[AGE (weeks)]]>='Diet input details'!$C$17,Table13[[#This Row],[AGE (weeks)]]<='Diet input details'!$D$17),\"Ration 2\",IF(AND(Table13[[#This Row],[AGE (weeks)]]>='Diet input details'!$C$18,Table13[[#This Row],[AGE (weeks)]]<='Diet input details'!$D$18),\"Ration 3\",IF(AND(Table13[[#This Row],[AGE (weeks)]]>='Diet input details'!$C$19,Table13[[#This Row],[AGE (weeks)]]<='Diet input details'!$D$19),\"Ration 4\",IF(AND(Table13[[#This Row],[AGE (weeks)]]>='Diet input details'!$C$20,Table13[[#This Row],[AGE (weeks)]]<='Diet input details'!$D$20),\"Ration 5\", \"Clear\")))))","v":"Clear"},{"$f":"(VLOOKUP(Table13[[#This Row],[Ration]],Table22[#All],2,FALSE))","v":{"$error":"#N/A"}},151.85000000000002,1.58,{"$f":"Table13[[#This Row],[Bodyweight Mid-point (kg)]]*1000","v":1580},102,{"$f":"Table13[[#This Row],[Feed Intake Mid-point (g/bird/day)]]*7","v":714},{"$f":"Table13[[#This Row],[Feed Intake (g/bird/week)]]+J204","v":18270},61.5,{"$f":"(Table13[[#This Row],[Hen-Housed Eggs Cumulative Mid-point]]*Table13[[#This Row],[Average Egg Weight Mid-point (g/egg)]])","v":9338.7750000000015}]
["White Free-range",44,{"$f":"IF(AND(Table13[[#This Row],[AGE (weeks)]]>='Diet input details'!$C$16,Table13[[#This Row],[AGE (weeks)]]<='Diet input details'!$D$16),\"Ration 1\",IF(AND(Table13[[#This Row],[AGE (weeks)]]>='Diet input details'!$C$17,Table13[[#This Row],[AGE (weeks)]]<='Diet input details'!$D$17),\"Ration 2\",IF(AND(Table13[[#This Row],[AGE (weeks)]]>='Diet input details'!$C$18,Table13[[#This Row],[AGE (weeks)]]<='Diet input details'!$D$18),\"Ration 3\",IF(AND(Table13[[#This Row],[AGE (weeks)]]>='Diet input details'!$C$19,Table13[[#This Row],[AGE (weeks)]]<='Diet input details'!$D$19),\"Ration 4\",IF(AND(Table13[[#This Row],[AGE (weeks)]]>='Diet input details'!$C$20,Table13[[#This Row],[AGE (weeks)]]<='Diet input details'!$D$20),\"Ration 5\", \"Clear\")))))","v":"Clear"},{"$f":"(VLOOKUP(Table13[[#This Row],[Ration]],Table22[#All],2,FALSE))","v":{"$error":"#N/A"}},158.19999999999999,1.58,{"$f":"Table13[[#This Row],[Bodyweight Mid-point (kg)]]*1000","v":1580},102,{"$f":"Table13[[#This Row],[Feed Intake Mid-point (g/bird/day)]]*7","v":714},{"$f":"Table13[[#This Row],[Feed Intake (g/bird/week)]]+J205","v":18984},61.6,{"$f":"(Table13[[#This Row],[Hen-Housed Eggs Cumulative Mid-point]]*Table13[[#This Row],[Average Egg Weight Mid-point (g/egg)]])","v":9745.119999999999}]
["White Free-range",45,{"$f":"IF(AND(Table13[[#This Row],[AGE (weeks)]]>='Diet input details'!$C$16,Table13[[#This Row],[AGE (weeks)]]<='Diet input details'!$D$16),\"Ration 1\",IF(AND(Table13[[#This Row],[AGE (weeks)]]>='Diet input details'!$C$17,Table13[[#This Row],[AGE (weeks)]]<='Diet input details'!$D$17),\"Ration 2\",IF(AND(Table13[[#This Row],[AGE (weeks)]]>='Diet input details'!$C$18,Table13[[#This Row],[AGE (weeks)]]<='Diet input details'!$D$18),\"Ration 3\",IF(AND(Table13[[#This Row],[AGE (weeks)]]>='Diet input details'!$C$19,Table13[[#This Row],[AGE (weeks)]]<='Diet input details'!$D$19),\"Ration 4\",IF(AND(Table13[[#This Row],[AGE (weeks)]]>='Diet input details'!$C$20,Table13[[#This Row],[AGE (weeks)]]<='Diet input details'!$D$20),\"Ration 5\", \"Clear\")))))","v":"Clear"},{"$f":"(VLOOKUP(Table13[[#This Row],[Ration]],Table22[#All],2,FALSE))","v":{"$error":"#N/A"}},164.5,1.58,{"$f":"Table13[[#This Row],[Bodyweight Mid-point (kg)]]*1000","v":1580},102,{"$f":"Table13[[#This Row],[Feed Intake Mid-point (g/bird/day)]]*7","v":714},{"$f":"Table13[[#This Row],[Feed Intake (g/bird/week)]]+J206","v":19698},61.8,{"$f":"(Table13[[#This Row],[Hen-Housed Eggs Cumulative Mid-point]]*Table13[[#This Row],[Average Egg Weight Mid-point (g/egg)]])","v":10166.1}]
["White Free-range",46,{"$f":"IF(AND(Table13[[#This Row],[AGE (weeks)]]>='Diet input details'!$C$16,Table13[[#This Row],[AGE (weeks)]]<='Diet input details'!$D$16),\"Ration 1\",IF(AND(Table13[[#This Row],[AGE (weeks)]]>='Diet input details'!$C$17,Table13[[#This Row],[AGE (weeks)]]<='Diet input details'!$D$17),\"Ration 2\",IF(AND(Table13[[#This Row],[AGE (weeks)]]>='Diet input details'!$C$18,Table13[[#This Row],[AGE (weeks)]]<='Diet input details'!$D$18),\"Ration 3\",IF(AND(Table13[[#This Row],[AGE (weeks)]]>='Diet input details'!$C$19,Table13[[#This Row],[AGE (weeks)]]<='Diet input details'!$D$19),\"Ration 4\",IF(AND(Table13[[#This Row],[AGE (weeks)]]>='Diet input details'!$C$20,Table13[[#This Row],[AGE (weeks)]]<='Diet input details'!$D$20),\"Ration 5\", \"Clear\")))))","v":"Clear"},{"$f":"(VLOOKUP(Table13[[#This Row],[Ration]],Table22[#All],2,FALSE))","v":{"$error":"#N/A"}},170.8,1.58,{"$f":"Table13[[#This Row],[Bodyweight Mid-point (kg)]]*1000","v":1580},102,{"$f":"Table13[[#This Row],[Feed Intake Mid-point (g/bird/day)]]*7","v":714},{"$f":"Table13[[#This Row],[Feed Intake (g/bird/week)]]+J207","v":20412},61.9,{"$f":"(Table13[[#This Row],[Hen-Housed Eggs Cumulative Mid-point]]*Table13[[#This Row],[Average Egg Weight Mid-point (g/egg)]])","v":10572.52}]
["White Free-range",47,{"$f":"IF(AND(Table13[[#This Row],[AGE (weeks)]]>='Diet input details'!$C$16,Table13[[#This Row],[AGE (weeks)]]<='Diet input details'!$D$16),\"Ration 1\",IF(AND(Table13[[#This Row],[AGE (weeks)]]>='Diet input details'!$C$17,Table13[[#This Row],[AGE (weeks)]]<='Diet input details'!$D$17),\"Ration 2\",IF(AND(Table13[[#This Row],[AGE (weeks)]]>='Diet input details'!$C$18,Table13[[#This Row],[AGE (weeks)]]<='Diet input details'!$D$18),\"Ration 3\",IF(AND(Table13[[#This Row],[AGE (weeks)]]>='Diet input details'!$C$19,Table13[[#This Row],[AGE (weeks)]]<='Diet input details'!$D$19),\"Ration 4\",IF(AND(Table13[[#This Row],[AGE (weeks)]]>='Diet input details'!$C$20,Table13[[#This Row],[AGE (weeks)]]<='Diet input details'!$D$20),\"Ration 5\", \"Clear\")))))","v":"Clear"},{"$f":"(VLOOKUP(Table13[[#This Row],[Ration]],Table22[#All],2,FALSE))","v":{"$error":"#N/A"}},177.05,1.58,{"$f":"Table13[[#This Row],[Bodyweight Mid-point (kg)]]*1000","v":1580},102,{"$f":"Table13[[#This Row],[Feed Intake Mid-point (g/bird/day)]]*7","v":714},{"$f":"Table13[[#This Row],[Feed Intake (g/bird/week)]]+J208","v":21126},62,{"$f":"(Table13[[#This Row],[Hen-Housed Eggs Cumulative Mid-point]]*Table13[[#This Row],[Average Egg Weight Mid-point (g/egg)]])","v":10977.1}]
["White Free-range",48,{"$f":"IF(AND(Table13[[#This Row],[AGE (weeks)]]>='Diet input details'!$C$16,Table13[[#This Row],[AGE (weeks)]]<='Diet input details'!$D$16),\"Ration 1\",IF(AND(Table13[[#This Row],[AGE (weeks)]]>='Diet input details'!$C$17,Table13[[#This Row],[AGE (weeks)]]<='Diet input details'!$D$17),\"Ration 2\",IF(AND(Table13[[#This Row],[AGE (weeks)]]>='Diet input details'!$C$18,Table13[[#This Row],[AGE (weeks)]]<='Diet input details'!$D$18),\"Ration 3\",IF(AND(Table13[[#This Row],[AGE (weeks)]]>='Diet input details'!$C$19,Table13[[#This Row],[AGE (weeks)]]<='Diet input details'!$D$19),\"Ration 4\",IF(AND(Table13[[#This Row],[AGE (weeks)]]>='Diet input details'!$C$20,Table13[[#This Row],[AGE (weeks)]]<='Diet input details'!$D$20),\"Ration 5\", \"Clear\")))))","v":"Clear"},{"$f":"(VLOOKUP(Table13[[#This Row],[Ration]],Table22[#All],2,FALSE))","v":{"$error":"#N/A"}},183.3,1.58,{"$f":"Table13[[#This Row],[Bodyweight Mid-point (kg)]]*1000","v":1580},102,{"$f":"Table13[[#This Row],[Feed Intake Mid-point (g/bird/day)]]*7","v":714},{"$f":"Table13[[#This Row],[Feed Intake (g/bird/week)]]+J209","v":21840},62.1,{"$f":"(Table13[[#This Row],[Hen-Housed Eggs Cumulative Mid-point]]*Table13[[#This Row],[Average Egg Weight Mid-point (g/egg)]])","v":11382.93}]
["White Free-range",49,{"$f":"IF(AND(Table13[[#This Row],[AGE (weeks)]]>='Diet input details'!$C$16,Table13[[#This Row],[AGE (weeks)]]<='Diet input details'!$D$16),\"Ration 1\",IF(AND(Table13[[#This Row],[AGE (weeks)]]>='Diet input details'!$C$17,Table13[[#This Row],[AGE (weeks)]]<='Diet input details'!$D$17),\"Ration 2\",IF(AND(Table13[[#This Row],[AGE (weeks)]]>='Diet input details'!$C$18,Table13[[#This Row],[AGE (weeks)]]<='Diet input details'!$D$18),\"Ration 3\",IF(AND(Table13[[#This Row],[AGE (weeks)]]>='Diet input details'!$C$19,Table13[[#This Row],[AGE (weeks)]]<='Diet input details'!$D$19),\"Ration 4\",IF(AND(Table13[[#This Row],[AGE (weeks)]]>='Diet input details'!$C$20,Table13[[#This Row],[AGE (weeks)]]<='Diet input details'!$D$20),\"Ration 5\", \"Clear\")))))","v":"Clear"},{"$f":"(VLOOKUP(Table13[[#This Row],[Ration]],Table22[#All],2,FALSE))","v":{"$error":"#N/A"}},189.5,1.58,{"$f":"Table13[[#This Row],[Bodyweight Mid-point (kg)]]*1000","v":1580},102,{"$f":"Table13[[#This Row],[Feed Intake Mid-point (g/bird/day)]]*7","v":714},{"$f":"Table13[[#This Row],[Feed Intake (g/bird/week)]]+J210","v":22554},62.2,{"$f":"(Table13[[#This Row],[Hen-Housed Eggs Cumulative Mid-point]]*Table13[[#This Row],[Average Egg Weight Mid-point (g/egg)]])","v":11786.9}]
["White Free-range",50,{"$f":"IF(AND(Table13[[#This Row],[AGE (weeks)]]>='Diet input details'!$C$16,Table13[[#This Row],[AGE (weeks)]]<='Diet input details'!$D$16),\"Ration 1\",IF(AND(Table13[[#This Row],[AGE (weeks)]]>='Diet input details'!$C$17,Table13[[#This Row],[AGE (weeks)]]<='Diet input details'!$D$17),\"Ration 2\",IF(AND(Table13[[#This Row],[AGE (weeks)]]>='Diet input details'!$C$18,Table13[[#This Row],[AGE (weeks)]]<='Diet input details'!$D$18),\"Ration 3\",IF(AND(Table13[[#This Row],[AGE (weeks)]]>='Diet input details'!$C$19,Table13[[#This Row],[AGE (weeks)]]<='Diet input details'!$D$19),\"Ration 4\",IF(AND(Table13[[#This Row],[AGE (weeks)]]>='Diet input details'!$C$20,Table13[[#This Row],[AGE (weeks)]]<='Diet input details'!$D$20),\"Ration 5\", \"Clear\")))))","v":"Clear"},{"$f":"(VLOOKUP(Table13[[#This Row],[Ration]],Table22[#All],2,FALSE))","v":{"$error":"#N/A"}},195.7,1.58,{"$f":"Table13[[#This Row],[Bodyweight Mid-point (kg)]]*1000","v":1580},102,{"$f":"Table13[[#This Row],[Feed Intake Mid-point (g/bird/day)]]*7","v":714},{"$f":"Table13[[#This Row],[Feed Intake (g/bird/week)]]+J211","v":23268},62.3,{"$f":"(Table13[[#This Row],[Hen-Housed Eggs Cumulative Mid-point]]*Table13[[#This Row],[Average Egg Weight Mid-point (g/egg)]])","v":12192.109999999999}]
["White Free-range",51,{"$f":"IF(AND(Table13[[#This Row],[AGE (weeks)]]>='Diet input details'!$C$16,Table13[[#This Row],[AGE (weeks)]]<='Diet input details'!$D$16),\"Ration 1\",IF(AND(Table13[[#This Row],[AGE (weeks)]]>='Diet input details'!$C$17,Table13[[#This Row],[AGE (weeks)]]<='Diet input details'!$D$17),\"Ration 2\",IF(AND(Table13[[#This Row],[AGE (weeks)]]>='Diet input details'!$C$18,Table13[[#This Row],[AGE (weeks)]]<='Diet input details'!$D$18),\"Ration 3\",IF(AND(Table13[[#This Row],[AGE (weeks)]]>='Diet input details'!$C$19,Table13[[#This Row],[AGE (weeks)]]<='Diet input details'!$D$19),\"Ration 4\",IF(AND(Table13[[#This Row],[AGE (weeks)]]>='Diet input details'!$C$20,Table13[[#This Row],[AGE (weeks)]]<='Diet input details'!$D$20),\"Ration 5\", \"Clear\")))))","v":"Clear"},{"$f":"(VLOOKUP(Table13[[#This Row],[Ration]],Table22[#All],2,FALSE))","v":{"$error":"#N/A"}},201.85,1.58,{"$f":"Table13[[#This Row],[Bodyweight Mid-point (kg)]]*1000","v":1580},102,{"$f":"Table13[[#This Row],[Feed Intake Mid-point (g/bird/day)]]*7","v":714},{"$f":"Table13[[#This Row],[Feed Intake (g/bird/week)]]+J212","v":23982},62.4,{"$f":"(Table13[[#This Row],[Hen-Housed Eggs Cumulative Mid-point]]*Table13[[#This Row],[Average Egg Weight Mid-point (g/egg)]])","v":12595.439999999999}]
["White Free-range",52,{"$f":"IF(AND(Table13[[#This Row],[AGE (weeks)]]>='Diet input details'!$C$16,Table13[[#This Row],[AGE (weeks)]]<='Diet input details'!$D$16),\"Ration 1\",IF(AND(Table13[[#This Row],[AGE (weeks)]]>='Diet input details'!$C$17,Table13[[#This Row],[AGE (weeks)]]<='Diet input details'!$D$17),\"Ration 2\",IF(AND(Table13[[#This Row],[AGE (weeks)]]>='Diet input details'!$C$18,Table13[[#This Row],[AGE (weeks)]]<='Diet input details'!$D$18),\"Ration 3\",IF(AND(Table13[[#This Row],[AGE (weeks)]]>='Diet input details'!$C$19,Table13[[#This Row],[AGE (weeks)]]<='Diet input details'!$D$19),\"Ration 4\",IF(AND(Table13[[#This Row],[AGE (weeks)]]>='Diet input details'!$C$20,Table13[[#This Row],[AGE (weeks)]]<='Diet input details'!$D$20),\"Ration 5\", \"Clear\")))))","v":"Clear"},{"$f":"(VLOOKUP(Table13[[#This Row],[Ration]],Table22[#All],2,FALSE))","v":{"$error":"#N/A"}},208,1.58,{"$f":"Table13[[#This Row],[Bodyweight Mid-point (kg)]]*1000","v":1580},102,{"$f":"Table13[[#This Row],[Feed Intake Mid-point (g/bird/day)]]*7","v":714},{"$f":"Table13[[#This Row],[Feed Intake (g/bird/week)]]+J213","v":24696},62.5,{"$f":"(Table13[[#This Row],[Hen-Housed Eggs Cumulative Mid-point]]*Table13[[#This Row],[Average Egg Weight Mid-point (g/egg)]])","v":13000}]
["White Free-range",53,{"$f":"IF(AND(Table13[[#This Row],[AGE (weeks)]]>='Diet input details'!$C$16,Table13[[#This Row],[AGE (weeks)]]<='Diet input details'!$D$16),\"Ration 1\",IF(AND(Table13[[#This Row],[AGE (weeks)]]>='Diet input details'!$C$17,Table13[[#This Row],[AGE (weeks)]]<='Diet input details'!$D$17),\"Ration 2\",IF(AND(Table13[[#This Row],[AGE (weeks)]]>='Diet input details'!$C$18,Table13[[#This Row],[AGE (weeks)]]<='Diet input details'!$D$18),\"Ration 3\",IF(AND(Table13[[#This Row],[AGE (weeks)]]>='Diet input details'!$C$19,Table13[[#This Row],[AGE (weeks)]]<='Diet input details'!$D$19),\"Ration 4\",IF(AND(Table13[[#This Row],[AGE (weeks)]]>='Diet input details'!$C$20,Table13[[#This Row],[AGE (weeks)]]<='Diet input details'!$D$20),\"Ration 5\", \"Clear\")))))","v":"Clear"},{"$f":"(VLOOKUP(Table13[[#This Row],[Ration]],Table22[#All],2,FALSE))","v":{"$error":"#N/A"}},214.10000000000002,1.58,{"$f":"Table13[[#This Row],[Bodyweight Mid-point (kg)]]*1000","v":1580},102,{"$f":"Table13[[#This Row],[Feed Intake Mid-point (g/bird/day)]]*7","v":714},{"$f":"Table13[[#This Row],[Feed Intake (g/bird/week)]]+J214","v":25410},62.5,{"$f":"(Table13[[#This Row],[Hen-Housed Eggs Cumulative Mid-point]]*Table13[[#This Row],[Average Egg Weight Mid-point (g/egg)]])","v":13381.250000000002}]
["White Free-range",54,{"$f":"IF(AND(Table13[[#This Row],[AGE (weeks)]]>='Diet input details'!$C$16,Table13[[#This Row],[AGE (weeks)]]<='Diet input details'!$D$16),\"Ration 1\",IF(AND(Table13[[#This Row],[AGE (weeks)]]>='Diet input details'!$C$17,Table13[[#This Row],[AGE (weeks)]]<='Diet input details'!$D$17),\"Ration 2\",IF(AND(Table13[[#This Row],[AGE (weeks)]]>='Diet input details'!$C$18,Table13[[#This Row],[AGE (weeks)]]<='Diet input details'!$D$18),\"Ration 3\",IF(AND(Table13[[#This Row],[AGE (weeks)]]>='Diet input details'!$C$19,Table13[[#This Row],[AGE (weeks)]]<='Diet input details'!$D$19),\"Ration 4\",IF(AND(Table13[[#This Row],[AGE (weeks)]]>='Diet input details'!$C$20,Table13[[#This Row],[AGE (weeks)]]<='Diet input details'!$D$20),\"Ration 5\", \"Clear\")))))","v":"Clear"},{"$f":"(VLOOKUP(Table13[[#This Row],[Ration]],Table22[#All],2,FALSE))","v":{"$error":"#N/A"}},220.2,1.58,{"$f":"Table13[[#This Row],[Bodyweight Mid-point (kg)]]*1000","v":1580},102,{"$f":"Table13[[#This Row],[Feed Intake Mid-point (g/bird/day)]]*7","v":714},{"$f":"Table13[[#This Row],[Feed Intake (g/bird/week)]]+J215","v":26124},62.6,{"$f":"(Table13[[#This Row],[Hen-Housed Eggs Cumulative Mid-point]]*Table13[[#This Row],[Average Egg Weight Mid-point (g/egg)]])","v":13784.52}]
["White Free-range",55,{"$f":"IF(AND(Table13[[#This Row],[AGE (weeks)]]>='Diet input details'!$C$16,Table13[[#This Row],[AGE (weeks)]]<='Diet input details'!$D$16),\"Ration 1\",IF(AND(Table13[[#This Row],[AGE (weeks)]]>='Diet input details'!$C$17,Table13[[#This Row],[AGE (weeks)]]<='Diet input details'!$D$17),\"Ration 2\",IF(AND(Table13[[#This Row],[AGE (weeks)]]>='Diet input details'!$C$18,Table13[[#This Row],[AGE (weeks)]]<='Diet input details'!$D$18),\"Ration 3\",IF(AND(Table13[[#This Row],[AGE (weeks)]]>='Diet input details'!$C$19,Table13[[#This Row],[AGE (weeks)]]<='Diet input details'!$D$19),\"Ration 4\",IF(AND(Table13[[#This Row],[AGE (weeks)]]>='Diet input details'!$C$20,Table13[[#This Row],[AGE (weeks)]]<='Diet input details'!$D$20),\"Ration 5\", \"Clear\")))))","v":"Clear"},{"$f":"(VLOOKUP(Table13[[#This Row],[Ration]],Table22[#All],2,FALSE))","v":{"$error":"#N/A"}},226.3,1.58,{"$f":"Table13[[#This Row],[Bodyweight Mid-point (kg)]]*1000","v":1580},102,{"$f":"Table13[[#This Row],[Feed Intake Mid-point (g/bird/day)]]*7","v":714},{"$f":"Table13[[#This Row],[Feed Intake (g/bird/week)]]+J216","v":26838},62.7,{"$f":"(Table13[[#This Row],[Hen-Housed Eggs Cumulative Mid-point]]*Table13[[#This Row],[Average Egg Weight Mid-point (g/egg)]])","v":14189.010000000002}]
["White Free-range",56,{"$f":"IF(AND(Table13[[#This Row],[AGE (weeks)]]>='Diet input details'!$C$16,Table13[[#This Row],[AGE (weeks)]]<='Diet input details'!$D$16),\"Ration 1\",IF(AND(Table13[[#This Row],[AGE (weeks)]]>='Diet input details'!$C$17,Table13[[#This Row],[AGE (weeks)]]<='Diet input details'!$D$17),\"Ration 2\",IF(AND(Table13[[#This Row],[AGE (weeks)]]>='Diet input details'!$C$18,Table13[[#This Row],[AGE (weeks)]]<='Diet input details'!$D$18),\"Ration 3\",IF(AND(Table13[[#This Row],[AGE (weeks)]]>='Diet input details'!$C$19,Table13[[#This Row],[AGE (weeks)]]<='Diet input details'!$D$19),\"Ration 4\",IF(AND(Table13[[#This Row],[AGE (weeks)]]>='Diet input details'!$C$20,Table13[[#This Row],[AGE (weeks)]]<='Diet input details'!$D$20),\"Ration 5\", \"Clear\")))))","v":"Clear"},{"$f":"(VLOOKUP(Table13[[#This Row],[Ration]],Table22[#All],2,FALSE))","v":{"$error":"#N/A"}},232.35000000000002,1.58,{"$f":"Table13[[#This Row],[Bodyweight Mid-point (kg)]]*1000","v":1580},102,{"$f":"Table13[[#This Row],[Feed Intake Mid-point (g/bird/day)]]*7","v":714},{"$f":"Table13[[#This Row],[Feed Intake (g/bird/week)]]+J217","v":27552},62.7,{"$f":"(Table13[[#This Row],[Hen-Housed Eggs Cumulative Mid-point]]*Table13[[#This Row],[Average Egg Weight Mid-point (g/egg)]])","v":14568.345000000003}]
["White Free-range",57,{"$f":"IF(AND(Table13[[#This Row],[AGE (weeks)]]>='Diet input details'!$C$16,Table13[[#This Row],[AGE (weeks)]]<='Diet input details'!$D$16),\"Ration 1\",IF(AND(Table13[[#This Row],[AGE (weeks)]]>='Diet input details'!$C$17,Table13[[#This Row],[AGE (weeks)]]<='Diet input details'!$D$17),\"Ration 2\",IF(AND(Table13[[#This Row],[AGE (weeks)]]>='Diet input details'!$C$18,Table13[[#This Row],[AGE (weeks)]]<='Diet input details'!$D$18),\"Ration 3\",IF(AND(Table13[[#This Row],[AGE (weeks)]]>='Diet input details'!$C$19,Table13[[#This Row],[AGE (weeks)]]<='Diet input details'!$D$19),\"Ration 4\",IF(AND(Table13[[#This Row],[AGE (weeks)]]>='Diet input details'!$C$20,Table13[[#This Row],[AGE (weeks)]]<='Diet input details'!$D$20),\"Ration 5\", \"Clear\")))))","v":"Clear"},{"$f":"(VLOOKUP(Table13[[#This Row],[Ration]],Table22[#All],2,FALSE))","v":{"$error":"#N/A"}},238.3,1.58,{"$f":"Table13[[#This Row],[Bodyweight Mid-point (kg)]]*1000","v":1580},102,{"$f":"Table13[[#This Row],[Feed Intake Mid-point (g/bird/day)]]*7","v":714},{"$f":"Table13[[#This Row],[Feed Intake (g/bird/week)]]+J218","v":28266},62.8,{"$f":"(Table13[[#This Row],[Hen-Housed Eggs Cumulative Mid-point]]*Table13[[#This Row],[Average Egg Weight Mid-point (g/egg)]])","v":14965.24}]
["White Free-range",58,{"$f":"IF(AND(Table13[[#This Row],[AGE (weeks)]]>='Diet input details'!$C$16,Table13[[#This Row],[AGE (weeks)]]<='Diet input details'!$D$16),\"Ration 1\",IF(AND(Table13[[#This Row],[AGE (weeks)]]>='Diet input details'!$C$17,Table13[[#This Row],[AGE (weeks)]]<='Diet input details'!$D$17),\"Ration 2\",IF(AND(Table13[[#This Row],[AGE (weeks)]]>='Diet input details'!$C$18,Table13[[#This Row],[AGE (weeks)]]<='Diet input details'!$D$18),\"Ration 3\",IF(AND(Table13[[#This Row],[AGE (weeks)]]>='Diet input details'!$C$19,Table13[[#This Row],[AGE (weeks)]]<='Diet input details'!$D$19),\"Ration 4\",IF(AND(Table13[[#This Row],[AGE (weeks)]]>='Diet input details'!$C$20,Table13[[#This Row],[AGE (weeks)]]<='Diet input details'!$D$20),\"Ration 5\", \"Clear\")))))","v":"Clear"},{"$f":"(VLOOKUP(Table13[[#This Row],[Ration]],Table22[#All],2,FALSE))","v":{"$error":"#N/A"}},244.3,1.58,{"$f":"Table13[[#This Row],[Bodyweight Mid-point (kg)]]*1000","v":1580},102,{"$f":"Table13[[#This Row],[Feed Intake Mid-point (g/bird/day)]]*7","v":714},{"$f":"Table13[[#This Row],[Feed Intake (g/bird/week)]]+J219","v":28980},62.9,{"$f":"(Table13[[#This Row],[Hen-Housed Eggs Cumulative Mid-point]]*Table13[[#This Row],[Average Egg Weight Mid-point (g/egg)]])","v":15366.470000000001}]
["White Free-range",59,{"$f":"IF(AND(Table13[[#This Row],[AGE (weeks)]]>='Diet input details'!$C$16,Table13[[#This Row],[AGE (weeks)]]<='Diet input details'!$D$16),\"Ration 1\",IF(AND(Table13[[#This Row],[AGE (weeks)]]>='Diet input details'!$C$17,Table13[[#This Row],[AGE (weeks)]]<='Diet input details'!$D$17),\"Ration 2\",IF(AND(Table13[[#This Row],[AGE (weeks)]]>='Diet input details'!$C$18,Table13[[#This Row],[AGE (weeks)]]<='Diet input details'!$D$18),\"Ration 3\",IF(AND(Table13[[#This Row],[AGE (weeks)]]>='Diet input details'!$C$19,Table13[[#This Row],[AGE (weeks)]]<='Diet input details'!$D$19),\"Ration 4\",IF(AND(Table13[[#This Row],[AGE (weeks)]]>='Diet input details'!$C$20,Table13[[#This Row],[AGE (weeks)]]<='Diet input details'!$D$20),\"Ration 5\", \"Clear\")))))","v":"Clear"},{"$f":"(VLOOKUP(Table13[[#This Row],[Ration]],Table22[#All],2,FALSE))","v":{"$error":"#N/A"}},250.25,1.58,{"$f":"Table13[[#This Row],[Bodyweight Mid-point (kg)]]*1000","v":1580},102,{"$f":"Table13[[#This Row],[Feed Intake Mid-point (g/bird/day)]]*7","v":714},{"$f":"Table13[[#This Row],[Feed Intake (g/bird/week)]]+J220","v":29694},62.9,{"$f":"(Table13[[#This Row],[Hen-Housed Eggs Cumulative Mid-point]]*Table13[[#This Row],[Average Egg Weight Mid-point (g/egg)]])","v":15740.725}]
["White Free-range",60,{"$f":"IF(AND(Table13[[#This Row],[AGE (weeks)]]>='Diet input details'!$C$16,Table13[[#This Row],[AGE (weeks)]]<='Diet input details'!$D$16),\"Ration 1\",IF(AND(Table13[[#This Row],[AGE (weeks)]]>='Diet input details'!$C$17,Table13[[#This Row],[AGE (weeks)]]<='Diet input details'!$D$17),\"Ration 2\",IF(AND(Table13[[#This Row],[AGE (weeks)]]>='Diet input details'!$C$18,Table13[[#This Row],[AGE (weeks)]]<='Diet input details'!$D$18),\"Ration 3\",IF(AND(Table13[[#This Row],[AGE (weeks)]]>='Diet input details'!$C$19,Table13[[#This Row],[AGE (weeks)]]<='Diet input details'!$D$19),\"Ration 4\",IF(AND(Table13[[#This Row],[AGE (weeks)]]>='Diet input details'!$C$20,Table13[[#This Row],[AGE (weeks)]]<='Diet input details'!$D$20),\"Ration 5\", \"Clear\")))))","v":"Clear"},{"$f":"(VLOOKUP(Table13[[#This Row],[Ration]],Table22[#All],2,FALSE))","v":{"$error":"#N/A"}},256.10000000000002,1.58,{"$f":"Table13[[#This Row],[Bodyweight Mid-point (kg)]]*1000","v":1580},102,{"$f":"Table13[[#This Row],[Feed Intake Mid-point (g/bird/day)]]*7","v":714},{"$f":"Table13[[#This Row],[Feed Intake (g/bird/week)]]+J221","v":30408},63,{"$f":"(Table13[[#This Row],[Hen-Housed Eggs Cumulative Mid-point]]*Table13[[#This Row],[Average Egg Weight Mid-point (g/egg)]])","v":16134.300000000001}]
["White Free-range",61,{"$f":"IF(AND(Table13[[#This Row],[AGE (weeks)]]>='Diet input details'!$C$16,Table13[[#This Row],[AGE (weeks)]]<='Diet input details'!$D$16),\"Ration 1\",IF(AND(Table13[[#This Row],[AGE (weeks)]]>='Diet input details'!$C$17,Table13[[#This Row],[AGE (weeks)]]<='Diet input details'!$D$17),\"Ration 2\",IF(AND(Table13[[#This Row],[AGE (weeks)]]>='Diet input details'!$C$18,Table13[[#This Row],[AGE (weeks)]]<='Diet input details'!$D$18),\"Ration 3\",IF(AND(Table13[[#This Row],[AGE (weeks)]]>='Diet input details'!$C$19,Table13[[#This Row],[AGE (weeks)]]<='Diet input details'!$D$19),\"Ration 4\",IF(AND(Table13[[#This Row],[AGE (weeks)]]>='Diet input details'!$C$20,Table13[[#This Row],[AGE (weeks)]]<='Diet input details'!$D$20),\"Ration 5\", \"Clear\")))))","v":"Clear"},{"$f":"(VLOOKUP(Table13[[#This Row],[Ration]],Table22[#All],2,FALSE))","v":{"$error":"#N/A"}},262,1.58,{"$f":"Table13[[#This Row],[Bodyweight Mid-point (kg)]]*1000","v":1580},102,{"$f":"Table13[[#This Row],[Feed Intake Mid-point (g/bird/day)]]*7","v":714},{"$f":"Table13[[#This Row],[Feed Intake (g/bird/week)]]+J222","v":31122},63,{"$f":"(Table13[[#This Row],[Hen-Housed Eggs Cumulative Mid-point]]*Table13[[#This Row],[Average Egg Weight Mid-point (g/egg)]])","v":16506}]
["White Free-range",62,{"$f":"IF(AND(Table13[[#This Row],[AGE (weeks)]]>='Diet input details'!$C$16,Table13[[#This Row],[AGE (weeks)]]<='Diet input details'!$D$16),\"Ration 1\",IF(AND(Table13[[#This Row],[AGE (weeks)]]>='Diet input details'!$C$17,Table13[[#This Row],[AGE (weeks)]]<='Diet input details'!$D$17),\"Ration 2\",IF(AND(Table13[[#This Row],[AGE (weeks)]]>='Diet input details'!$C$18,Table13[[#This Row],[AGE (weeks)]]<='Diet input details'!$D$18),\"Ration 3\",IF(AND(Table13[[#This Row],[AGE (weeks)]]>='Diet input details'!$C$19,Table13[[#This Row],[AGE (weeks)]]<='Diet input details'!$D$19),\"Ration 4\",IF(AND(Table13[[#This Row],[AGE (weeks)]]>='Diet input details'!$C$20,Table13[[#This Row],[AGE (weeks)]]<='Diet input details'!$D$20),\"Ration 5\", \"Clear\")))))","v":"Clear"},{"$f":"(VLOOKUP(Table13[[#This Row],[Ration]],Table22[#All],2,FALSE))","v":{"$error":"#N/A"}},267.89999999999998,1.58,{"$f":"Table13[[#This Row],[Bodyweight Mid-point (kg)]]*1000","v":1580},102,{"$f":"Table13[[#This Row],[Feed Intake Mid-point (g/bird/day)]]*7","v":714},{"$f":"Table13[[#This Row],[Feed Intake (g/bird/week)]]+J223","v":31836},63,{"$f":"(Table13[[#This Row],[Hen-Housed Eggs Cumulative Mid-point]]*Table13[[#This Row],[Average Egg Weight Mid-point (g/egg)]])","v":16877.699999999997}]
["White Free-range",63,{"$f":"IF(AND(Table13[[#This Row],[AGE (weeks)]]>='Diet input details'!$C$16,Table13[[#This Row],[AGE (weeks)]]<='Diet input details'!$D$16),\"Ration 1\",IF(AND(Table13[[#This Row],[AGE (weeks)]]>='Diet input details'!$C$17,Table13[[#This Row],[AGE (weeks)]]<='Diet input details'!$D$17),\"Ration 2\",IF(AND(Table13[[#This Row],[AGE (weeks)]]>='Diet input details'!$C$18,Table13[[#This Row],[AGE (weeks)]]<='Diet input details'!$D$18),\"Ration 3\",IF(AND(Table13[[#This Row],[AGE (weeks)]]>='Diet input details'!$C$19,Table13[[#This Row],[AGE (weeks)]]<='Diet input details'!$D$19),\"Ration 4\",IF(AND(Table13[[#This Row],[AGE (weeks)]]>='Diet input details'!$C$20,Table13[[#This Row],[AGE (weeks)]]<='Diet input details'!$D$20),\"Ration 5\", \"Clear\")))))","v":"Clear"},{"$f":"(VLOOKUP(Table13[[#This Row],[Ration]],Table22[#All],2,FALSE))","v":{"$error":"#N/A"}},273.70000000000005,1.58,{"$f":"Table13[[#This Row],[Bodyweight Mid-point (kg)]]*1000","v":1580},102,{"$f":"Table13[[#This Row],[Feed Intake Mid-point (g/bird/day)]]*7","v":714},{"$f":"Table13[[#This Row],[Feed Intake (g/bird/week)]]+J224","v":32550},63.1,{"$f":"(Table13[[#This Row],[Hen-Housed Eggs Cumulative Mid-point]]*Table13[[#This Row],[Average Egg Weight Mid-point (g/egg)]])","v":17270.470000000005}]
["White Free-range",64,{"$f":"IF(AND(Table13[[#This Row],[AGE (weeks)]]>='Diet input details'!$C$16,Table13[[#This Row],[AGE (weeks)]]<='Diet input details'!$D$16),\"Ration 1\",IF(AND(Table13[[#This Row],[AGE (weeks)]]>='Diet input details'!$C$17,Table13[[#This Row],[AGE (weeks)]]<='Diet input details'!$D$17),\"Ration 2\",IF(AND(Table13[[#This Row],[AGE (weeks)]]>='Diet input details'!$C$18,Table13[[#This Row],[AGE (weeks)]]<='Diet input details'!$D$18),\"Ration 3\",IF(AND(Table13[[#This Row],[AGE (weeks)]]>='Diet input details'!$C$19,Table13[[#This Row],[AGE (weeks)]]<='Diet input details'!$D$19),\"Ration 4\",IF(AND(Table13[[#This Row],[AGE (weeks)]]>='Diet input details'!$C$20,Table13[[#This Row],[AGE (weeks)]]<='Diet input details'!$D$20),\"Ration 5\", \"Clear\")))))","v":"Clear"},{"$f":"(VLOOKUP(Table13[[#This Row],[Ration]],Table22[#All],2,FALSE))","v":{"$error":"#N/A"}},279.5,1.58,{"$f":"Table13[[#This Row],[Bodyweight Mid-point (kg)]]*1000","v":1580},102,{"$f":"Table13[[#This Row],[Feed Intake Mid-point (g/bird/day)]]*7","v":714},{"$f":"Table13[[#This Row],[Feed Intake (g/bird/week)]]+J225","v":33264},63.1,{"$f":"(Table13[[#This Row],[Hen-Housed Eggs Cumulative Mid-point]]*Table13[[#This Row],[Average Egg Weight Mid-point (g/egg)]])","v":17636.45}]
["White Free-range",65,{"$f":"IF(AND(Table13[[#This Row],[AGE (weeks)]]>='Diet input details'!$C$16,Table13[[#This Row],[AGE (weeks)]]<='Diet input details'!$D$16),\"Ration 1\",IF(AND(Table13[[#This Row],[AGE (weeks)]]>='Diet input details'!$C$17,Table13[[#This Row],[AGE (weeks)]]<='Diet input details'!$D$17),\"Ration 2\",IF(AND(Table13[[#This Row],[AGE (weeks)]]>='Diet input details'!$C$18,Table13[[#This Row],[AGE (weeks)]]<='Diet input details'!$D$18),\"Ration 3\",IF(AND(Table13[[#This Row],[AGE (weeks)]]>='Diet input details'!$C$19,Table13[[#This Row],[AGE (weeks)]]<='Diet input details'!$D$19),\"Ration 4\",IF(AND(Table13[[#This Row],[AGE (weeks)]]>='Diet input details'!$C$20,Table13[[#This Row],[AGE (weeks)]]<='Diet input details'!$D$20),\"Ration 5\", \"Clear\")))))","v":"Clear"},{"$f":"(VLOOKUP(Table13[[#This Row],[Ration]],Table22[#All],2,FALSE))","v":{"$error":"#N/A"}},285.3,1.58,{"$f":"Table13[[#This Row],[Bodyweight Mid-point (kg)]]*1000","v":1580},102,{"$f":"Table13[[#This Row],[Feed Intake Mid-point (g/bird/day)]]*7","v":714},{"$f":"Table13[[#This Row],[Feed Intake (g/bird/week)]]+J226","v":33978},63.2,{"$f":"(Table13[[#This Row],[Hen-Housed Eggs Cumulative Mid-point]]*Table13[[#This Row],[Average Egg Weight Mid-point (g/egg)]])","v":18030.960000000003}]
["White Free-range",66,{"$f":"IF(AND(Table13[[#This Row],[AGE (weeks)]]>='Diet input details'!$C$16,Table13[[#This Row],[AGE (weeks)]]<='Diet input details'!$D$16),\"Ration 1\",IF(AND(Table13[[#This Row],[AGE (weeks)]]>='Diet input details'!$C$17,Table13[[#This Row],[AGE (weeks)]]<='Diet input details'!$D$17),\"Ration 2\",IF(AND(Table13[[#This Row],[AGE (weeks)]]>='Diet input details'!$C$18,Table13[[#This Row],[AGE (weeks)]]<='Diet input details'!$D$18),\"Ration 3\",IF(AND(Table13[[#This Row],[AGE (weeks)]]>='Diet input details'!$C$19,Table13[[#This Row],[AGE (weeks)]]<='Diet input details'!$D$19),\"Ration 4\",IF(AND(Table13[[#This Row],[AGE (weeks)]]>='Diet input details'!$C$20,Table13[[#This Row],[AGE (weeks)]]<='Diet input details'!$D$20),\"Ration 5\", \"Clear\")))))","v":"Clear"},{"$f":"(VLOOKUP(Table13[[#This Row],[Ration]],Table22[#All],2,FALSE))","v":{"$error":"#N/A"}},291,1.58,{"$f":"Table13[[#This Row],[Bodyweight Mid-point (kg)]]*1000","v":1580},102,{"$f":"Table13[[#This Row],[Feed Intake Mid-point (g/bird/day)]]*7","v":714},{"$f":"Table13[[#This Row],[Feed Intake (g/bird/week)]]+J227","v":34692},63.2,{"$f":"(Table13[[#This Row],[Hen-Housed Eggs Cumulative Mid-point]]*Table13[[#This Row],[Average Egg Weight Mid-point (g/egg)]])","v":18391.2}]
["White Free-range",67,{"$f":"IF(AND(Table13[[#This Row],[AGE (weeks)]]>='Diet input details'!$C$16,Table13[[#This Row],[AGE (weeks)]]<='Diet input details'!$D$16),\"Ration 1\",IF(AND(Table13[[#This Row],[AGE (weeks)]]>='Diet input details'!$C$17,Table13[[#This Row],[AGE (weeks)]]<='Diet input details'!$D$17),\"Ration 2\",IF(AND(Table13[[#This Row],[AGE (weeks)]]>='Diet input details'!$C$18,Table13[[#This Row],[AGE (weeks)]]<='Diet input details'!$D$18),\"Ration 3\",IF(AND(Table13[[#This Row],[AGE (weeks)]]>='Diet input details'!$C$19,Table13[[#This Row],[AGE (weeks)]]<='Diet input details'!$D$19),\"Ration 4\",IF(AND(Table13[[#This Row],[AGE (weeks)]]>='Diet input details'!$C$20,Table13[[#This Row],[AGE (weeks)]]<='Diet input details'!$D$20),\"Ration 5\", \"Clear\")))))","v":"Clear"},{"$f":"(VLOOKUP(Table13[[#This Row],[Ration]],Table22[#All],2,FALSE))","v":{"$error":"#N/A"}},296.64999999999998,1.58,{"$f":"Table13[[#This Row],[Bodyweight Mid-point (kg)]]*1000","v":1580},102,{"$f":"Table13[[#This Row],[Feed Intake Mid-point (g/bird/day)]]*7","v":714},{"$f":"Table13[[#This Row],[Feed Intake (g/bird/week)]]+J228","v":35406},63.2,{"$f":"(Table13[[#This Row],[Hen-Housed Eggs Cumulative Mid-point]]*Table13[[#This Row],[Average Egg Weight Mid-point (g/egg)]])","v":18748.28}]
["White Free-range",68,{"$f":"IF(AND(Table13[[#This Row],[AGE (weeks)]]>='Diet input details'!$C$16,Table13[[#This Row],[AGE (weeks)]]<='Diet input details'!$D$16),\"Ration 1\",IF(AND(Table13[[#This Row],[AGE (weeks)]]>='Diet input details'!$C$17,Table13[[#This Row],[AGE (weeks)]]<='Diet input details'!$D$17),\"Ration 2\",IF(AND(Table13[[#This Row],[AGE (weeks)]]>='Diet input details'!$C$18,Table13[[#This Row],[AGE (weeks)]]<='Diet input details'!$D$18),\"Ration 3\",IF(AND(Table13[[#This Row],[AGE (weeks)]]>='Diet input details'!$C$19,Table13[[#This Row],[AGE (weeks)]]<='Diet input details'!$D$19),\"Ration 4\",IF(AND(Table13[[#This Row],[AGE (weeks)]]>='Diet input details'!$C$20,Table13[[#This Row],[AGE (weeks)]]<='Diet input details'!$D$20),\"Ration 5\", \"Clear\")))))","v":"Clear"},{"$f":"(VLOOKUP(Table13[[#This Row],[Ration]],Table22[#All],2,FALSE))","v":{"$error":"#N/A"}},302.35000000000002,1.58,{"$f":"Table13[[#This Row],[Bodyweight Mid-point (kg)]]*1000","v":1580},102,{"$f":"Table13[[#This Row],[Feed Intake Mid-point (g/bird/day)]]*7","v":714},{"$f":"Table13[[#This Row],[Feed Intake (g/bird/week)]]+J229","v":36120},63.3,{"$f":"(Table13[[#This Row],[Hen-Housed Eggs Cumulative Mid-point]]*Table13[[#This Row],[Average Egg Weight Mid-point (g/egg)]])","v":19138.755000000001}]
["White Free-range",69,{"$f":"IF(AND(Table13[[#This Row],[AGE (weeks)]]>='Diet input details'!$C$16,Table13[[#This Row],[AGE (weeks)]]<='Diet input details'!$D$16),\"Ration 1\",IF(AND(Table13[[#This Row],[AGE (weeks)]]>='Diet input details'!$C$17,Table13[[#This Row],[AGE (weeks)]]<='Diet input details'!$D$17),\"Ration 2\",IF(AND(Table13[[#This Row],[AGE (weeks)]]>='Diet input details'!$C$18,Table13[[#This Row],[AGE (weeks)]]<='Diet input details'!$D$18),\"Ration 3\",IF(AND(Table13[[#This Row],[AGE (weeks)]]>='Diet input details'!$C$19,Table13[[#This Row],[AGE (weeks)]]<='Diet input details'!$D$19),\"Ration 4\",IF(AND(Table13[[#This Row],[AGE (weeks)]]>='Diet input details'!$C$20,Table13[[#This Row],[AGE (weeks)]]<='Diet input details'!$D$20),\"Ration 5\", \"Clear\")))))","v":"Clear"},{"$f":"(VLOOKUP(Table13[[#This Row],[Ration]],Table22[#All],2,FALSE))","v":{"$error":"#N/A"}},307.95,1.58,{"$f":"Table13[[#This Row],[Bodyweight Mid-point (kg)]]*1000","v":1580},102,{"$f":"Table13[[#This Row],[Feed Intake Mid-point (g/bird/day)]]*7","v":714},{"$f":"Table13[[#This Row],[Feed Intake (g/bird/week)]]+J230","v":36834},63.3,{"$f":"(Table13[[#This Row],[Hen-Housed Eggs Cumulative Mid-point]]*Table13[[#This Row],[Average Egg Weight Mid-point (g/egg)]])","v":19493.234999999997}]
["White Free-range",70,{"$f":"IF(AND(Table13[[#This Row],[AGE (weeks)]]>='Diet input details'!$C$16,Table13[[#This Row],[AGE (weeks)]]<='Diet input details'!$D$16),\"Ration 1\",IF(AND(Table13[[#This Row],[AGE (weeks)]]>='Diet input details'!$C$17,Table13[[#This Row],[AGE (weeks)]]<='Diet input details'!$D$17),\"Ration 2\",IF(AND(Table13[[#This Row],[AGE (weeks)]]>='Diet input details'!$C$18,Table13[[#This Row],[AGE (weeks)]]<='Diet input details'!$D$18),\"Ration 3\",IF(AND(Table13[[#This Row],[AGE (weeks)]]>='Diet input details'!$C$19,Table13[[#This Row],[AGE (weeks)]]<='Diet input details'!$D$19),\"Ration 4\",IF(AND(Table13[[#This Row],[AGE (weeks)]]>='Diet input details'!$C$20,Table13[[#This Row],[AGE (weeks)]]<='Diet input details'!$D$20),\"Ration 5\", \"Clear\")))))","v":"Clear"},{"$f":"(VLOOKUP(Table13[[#This Row],[Ration]],Table22[#All],2,FALSE))","v":{"$error":"#N/A"}},313.5,1.58,{"$f":"Table13[[#This Row],[Bodyweight Mid-point (kg)]]*1000","v":1580},102,{"$f":"Table13[[#This Row],[Feed Intake Mid-point (g/bird/day)]]*7","v":714},{"$f":"Table13[[#This Row],[Feed Intake (g/bird/week)]]+J231","v":37548},63.3,{"$f":"(Table13[[#This Row],[Hen-Housed Eggs Cumulative Mid-point]]*Table13[[#This Row],[Average Egg Weight Mid-point (g/egg)]])","v":19844.55}]
["White Free-range",71,{"$f":"IF(AND(Table13[[#This Row],[AGE (weeks)]]>='Diet input details'!$C$16,Table13[[#This Row],[AGE (weeks)]]<='Diet input details'!$D$16),\"Ration 1\",IF(AND(Table13[[#This Row],[AGE (weeks)]]>='Diet input details'!$C$17,Table13[[#This Row],[AGE (weeks)]]<='Diet input details'!$D$17),\"Ration 2\",IF(AND(Table13[[#This Row],[AGE (weeks)]]>='Diet input details'!$C$18,Table13[[#This Row],[AGE (weeks)]]<='Diet input details'!$D$18),\"Ration 3\",IF(AND(Table13[[#This Row],[AGE (weeks)]]>='Diet input details'!$C$19,Table13[[#This Row],[AGE (weeks)]]<='Diet input details'!$D$19),\"Ration 4\",IF(AND(Table13[[#This Row],[AGE (weeks)]]>='Diet input details'!$C$20,Table13[[#This Row],[AGE (weeks)]]<='Diet input details'!$D$20),\"Ration 5\", \"Clear\")))))","v":"Clear"},{"$f":"(VLOOKUP(Table13[[#This Row],[Ration]],Table22[#All],2,FALSE))","v":{"$error":"#N/A"}},319.10000000000002,1.58,{"$f":"Table13[[#This Row],[Bodyweight Mid-point (kg)]]*1000","v":1580},102,{"$f":"Table13[[#This Row],[Feed Intake Mid-point (g/bird/day)]]*7","v":714},{"$f":"Table13[[#This Row],[Feed Intake (g/bird/week)]]+J232","v":38262},63.3,{"$f":"(Table13[[#This Row],[Hen-Housed Eggs Cumulative Mid-point]]*Table13[[#This Row],[Average Egg Weight Mid-point (g/egg)]])","v":20199.03}]
["White Free-range",72,{"$f":"IF(AND(Table13[[#This Row],[AGE (weeks)]]>='Diet input details'!$C$16,Table13[[#This Row],[AGE (weeks)]]<='Diet input details'!$D$16),\"Ration 1\",IF(AND(Table13[[#This Row],[AGE (weeks)]]>='Diet input details'!$C$17,Table13[[#This Row],[AGE (weeks)]]<='Diet input details'!$D$17),\"Ration 2\",IF(AND(Table13[[#This Row],[AGE (weeks)]]>='Diet input details'!$C$18,Table13[[#This Row],[AGE (weeks)]]<='Diet input details'!$D$18),\"Ration 3\",IF(AND(Table13[[#This Row],[AGE (weeks)]]>='Diet input details'!$C$19,Table13[[#This Row],[AGE (weeks)]]<='Diet input details'!$D$19),\"Ration 4\",IF(AND(Table13[[#This Row],[AGE (weeks)]]>='Diet input details'!$C$20,Table13[[#This Row],[AGE (weeks)]]<='Diet input details'!$D$20),\"Ration 5\", \"Clear\")))))","v":"Clear"},{"$f":"(VLOOKUP(Table13[[#This Row],[Ration]],Table22[#All],2,FALSE))","v":{"$error":"#N/A"}},324.60000000000002,1.58,{"$f":"Table13[[#This Row],[Bodyweight Mid-point (kg)]]*1000","v":1580},102,{"$f":"Table13[[#This Row],[Feed Intake Mid-point (g/bird/day)]]*7","v":714},{"$f":"Table13[[#This Row],[Feed Intake (g/bird/week)]]+J233","v":38976},63.4,{"$f":"(Table13[[#This Row],[Hen-Housed Eggs Cumulative Mid-point]]*Table13[[#This Row],[Average Egg Weight Mid-point (g/egg)]])","v":20579.64}]
["White Free-range",73,{"$f":"IF(AND(Table13[[#This Row],[AGE (weeks)]]>='Diet input details'!$C$16,Table13[[#This Row],[AGE (weeks)]]<='Diet input details'!$D$16),\"Ration 1\",IF(AND(Table13[[#This Row],[AGE (weeks)]]>='Diet input details'!$C$17,Table13[[#This Row],[AGE (weeks)]]<='Diet input details'!$D$17),\"Ration 2\",IF(AND(Table13[[#This Row],[AGE (weeks)]]>='Diet input details'!$C$18,Table13[[#This Row],[AGE (weeks)]]<='Diet input details'!$D$18),\"Ration 3\",IF(AND(Table13[[#This Row],[AGE (weeks)]]>='Diet input details'!$C$19,Table13[[#This Row],[AGE (weeks)]]<='Diet input details'!$D$19),\"Ration 4\",IF(AND(Table13[[#This Row],[AGE (weeks)]]>='Diet input details'!$C$20,Table13[[#This Row],[AGE (weeks)]]<='Diet input details'!$D$20),\"Ration 5\", \"Clear\")))))","v":"Clear"},{"$f":"(VLOOKUP(Table13[[#This Row],[Ration]],Table22[#All],2,FALSE))","v":{"$error":"#N/A"}},330.1,1.58,{"$f":"Table13[[#This Row],[Bodyweight Mid-point (kg)]]*1000","v":1580},102,{"$f":"Table13[[#This Row],[Feed Intake Mid-point (g/bird/day)]]*7","v":714},{"$f":"Table13[[#This Row],[Feed Intake (g/bird/week)]]+J234","v":39690},63.4,{"$f":"(Table13[[#This Row],[Hen-Housed Eggs Cumulative Mid-point]]*Table13[[#This Row],[Average Egg Weight Mid-point (g/egg)]])","v":20928.34}]
["White Free-range",74,{"$f":"IF(AND(Table13[[#This Row],[AGE (weeks)]]>='Diet input details'!$C$16,Table13[[#This Row],[AGE (weeks)]]<='Diet input details'!$D$16),\"Ration 1\",IF(AND(Table13[[#This Row],[AGE (weeks)]]>='Diet input details'!$C$17,Table13[[#This Row],[AGE (weeks)]]<='Diet input details'!$D$17),\"Ration 2\",IF(AND(Table13[[#This Row],[AGE (weeks)]]>='Diet input details'!$C$18,Table13[[#This Row],[AGE (weeks)]]<='Diet input details'!$D$18),\"Ration 3\",IF(AND(Table13[[#This Row],[AGE (weeks)]]>='Diet input details'!$C$19,Table13[[#This Row],[AGE (weeks)]]<='Diet input details'!$D$19),\"Ration 4\",IF(AND(Table13[[#This Row],[AGE (weeks)]]>='Diet input details'!$C$20,Table13[[#This Row],[AGE (weeks)]]<='Diet input details'!$D$20),\"Ration 5\", \"Clear\")))))","v":"Clear"},{"$f":"(VLOOKUP(Table13[[#This Row],[Ration]],Table22[#All],2,FALSE))","v":{"$error":"#N/A"}},335.55,1.58,{"$f":"Table13[[#This Row],[Bodyweight Mid-point (kg)]]*1000","v":1580},102,{"$f":"Table13[[#This Row],[Feed Intake Mid-point (g/bird/day)]]*7","v":714},{"$f":"Table13[[#This Row],[Feed Intake (g/bird/week)]]+J235","v":40404},63.4,{"$f":"(Table13[[#This Row],[Hen-Housed Eggs Cumulative Mid-point]]*Table13[[#This Row],[Average Egg Weight Mid-point (g/egg)]])","v":21273.87}]
["White Free-range",75,{"$f":"IF(AND(Table13[[#This Row],[AGE (weeks)]]>='Diet input details'!$C$16,Table13[[#This Row],[AGE (weeks)]]<='Diet input details'!$D$16),\"Ration 1\",IF(AND(Table13[[#This Row],[AGE (weeks)]]>='Diet input details'!$C$17,Table13[[#This Row],[AGE (weeks)]]<='Diet input details'!$D$17),\"Ration 2\",IF(AND(Table13[[#This Row],[AGE (weeks)]]>='Diet input details'!$C$18,Table13[[#This Row],[AGE (weeks)]]<='Diet input details'!$D$18),\"Ration 3\",IF(AND(Table13[[#This Row],[AGE (weeks)]]>='Diet input details'!$C$19,Table13[[#This Row],[AGE (weeks)]]<='Diet input details'!$D$19),\"Ration 4\",IF(AND(Table13[[#This Row],[AGE (weeks)]]>='Diet input details'!$C$20,Table13[[#This Row],[AGE (weeks)]]<='Diet input details'!$D$20),\"Ration 5\", \"Clear\")))))","v":"Clear"},{"$f":"(VLOOKUP(Table13[[#This Row],[Ration]],Table22[#All],2,FALSE))","v":{"$error":"#N/A"}},340.95,1.58,{"$f":"Table13[[#This Row],[Bodyweight Mid-point (kg)]]*1000","v":1580},102,{"$f":"Table13[[#This Row],[Feed Intake Mid-point (g/bird/day)]]*7","v":714},{"$f":"Table13[[#This Row],[Feed Intake (g/bird/week)]]+J236","v":41118},63.4,{"$f":"(Table13[[#This Row],[Hen-Housed Eggs Cumulative Mid-point]]*Table13[[#This Row],[Average Egg Weight Mid-point (g/egg)]])","v":21616.23}]
["White Free-range",76,{"$f":"IF(AND(Table13[[#This Row],[AGE (weeks)]]>='Diet input details'!$C$16,Table13[[#This Row],[AGE (weeks)]]<='Diet input details'!$D$16),\"Ration 1\",IF(AND(Table13[[#This Row],[AGE (weeks)]]>='Diet input details'!$C$17,Table13[[#This Row],[AGE (weeks)]]<='Diet input details'!$D$17),\"Ration 2\",IF(AND(Table13[[#This Row],[AGE (weeks)]]>='Diet input details'!$C$18,Table13[[#This Row],[AGE (weeks)]]<='Diet input details'!$D$18),\"Ration 3\",IF(AND(Table13[[#This Row],[AGE (weeks)]]>='Diet input details'!$C$19,Table13[[#This Row],[AGE (weeks)]]<='Diet input details'!$D$19),\"Ration 4\",IF(AND(Table13[[#This Row],[AGE (weeks)]]>='Diet input details'!$C$20,Table13[[#This Row],[AGE (weeks)]]<='Diet input details'!$D$20),\"Ration 5\", \"Clear\")))))","v":"Clear"},{"$f":"(VLOOKUP(Table13[[#This Row],[Ration]],Table22[#All],2,FALSE))","v":{"$error":"#N/A"}},346.35,1.58,{"$f":"Table13[[#This Row],[Bodyweight Mid-point (kg)]]*1000","v":1580},102,{"$f":"Table13[[#This Row],[Feed Intake Mid-point (g/bird/day)]]*7","v":714},{"$f":"Table13[[#This Row],[Feed Intake (g/bird/week)]]+J237","v":41832},63.5,{"$f":"(Table13[[#This Row],[Hen-Housed Eggs Cumulative Mid-point]]*Table13[[#This Row],[Average Egg Weight Mid-point (g/egg)]])","v":21993.225000000002}]
["White Free-range",77,{"$f":"IF(AND(Table13[[#This Row],[AGE (weeks)]]>='Diet input details'!$C$16,Table13[[#This Row],[AGE (weeks)]]<='Diet input details'!$D$16),\"Ration 1\",IF(AND(Table13[[#This Row],[AGE (weeks)]]>='Diet input details'!$C$17,Table13[[#This Row],[AGE (weeks)]]<='Diet input details'!$D$17),\"Ration 2\",IF(AND(Table13[[#This Row],[AGE (weeks)]]>='Diet input details'!$C$18,Table13[[#This Row],[AGE (weeks)]]<='Diet input details'!$D$18),\"Ration 3\",IF(AND(Table13[[#This Row],[AGE (weeks)]]>='Diet input details'!$C$19,Table13[[#This Row],[AGE (weeks)]]<='Diet input details'!$D$19),\"Ration 4\",IF(AND(Table13[[#This Row],[AGE (weeks)]]>='Diet input details'!$C$20,Table13[[#This Row],[AGE (weeks)]]<='Diet input details'!$D$20),\"Ration 5\", \"Clear\")))))","v":"Clear"},{"$f":"(VLOOKUP(Table13[[#This Row],[Ration]],Table22[#All],2,FALSE))","v":{"$error":"#N/A"}},351.75,1.58,{"$f":"Table13[[#This Row],[Bodyweight Mid-point (kg)]]*1000","v":1580},102,{"$f":"Table13[[#This Row],[Feed Intake Mid-point (g/bird/day)]]*7","v":714},{"$f":"Table13[[#This Row],[Feed Intake (g/bird/week)]]+J238","v":42546},63.5,{"$f":"(Table13[[#This Row],[Hen-Housed Eggs Cumulative Mid-point]]*Table13[[#This Row],[Average Egg Weight Mid-point (g/egg)]])","v":22336.125}]
["White Free-range",78,{"$f":"IF(AND(Table13[[#This Row],[AGE (weeks)]]>='Diet input details'!$C$16,Table13[[#This Row],[AGE (weeks)]]<='Diet input details'!$D$16),\"Ration 1\",IF(AND(Table13[[#This Row],[AGE (weeks)]]>='Diet input details'!$C$17,Table13[[#This Row],[AGE (weeks)]]<='Diet input details'!$D$17),\"Ration 2\",IF(AND(Table13[[#This Row],[AGE (weeks)]]>='Diet input details'!$C$18,Table13[[#This Row],[AGE (weeks)]]<='Diet input details'!$D$18),\"Ration 3\",IF(AND(Table13[[#This Row],[AGE (weeks)]]>='Diet input details'!$C$19,Table13[[#This Row],[AGE (weeks)]]<='Diet input details'!$D$19),\"Ration 4\",IF(AND(Table13[[#This Row],[AGE (weeks)]]>='Diet input details'!$C$20,Table13[[#This Row],[AGE (weeks)]]<='Diet input details'!$D$20),\"Ration 5\", \"Clear\")))))","v":"Clear"},{"$f":"(VLOOKUP(Table13[[#This Row],[Ration]],Table22[#All],2,FALSE))","v":{"$error":"#N/A"}},357.04999999999995,1.58,{"$f":"Table13[[#This Row],[Bodyweight Mid-point (kg)]]*1000","v":1580},102,{"$f":"Table13[[#This Row],[Feed Intake Mid-point (g/bird/day)]]*7","v":714},{"$f":"Table13[[#This Row],[Feed Intake (g/bird/week)]]+J239","v":43260},63.5,{"$f":"(Table13[[#This Row],[Hen-Housed Eggs Cumulative Mid-point]]*Table13[[#This Row],[Average Egg Weight Mid-point (g/egg)]])","v":22672.674999999996}]
["White Free-range",79,{"$f":"IF(AND(Table13[[#This Row],[AGE (weeks)]]>='Diet input details'!$C$16,Table13[[#This Row],[AGE (weeks)]]<='Diet input details'!$D$16),\"Ration 1\",IF(AND(Table13[[#This Row],[AGE (weeks)]]>='Diet input details'!$C$17,Table13[[#This Row],[AGE (weeks)]]<='Diet input details'!$D$17),\"Ration 2\",IF(AND(Table13[[#This Row],[AGE (weeks)]]>='Diet input details'!$C$18,Table13[[#This Row],[AGE (weeks)]]<='Diet input details'!$D$18),\"Ration 3\",IF(AND(Table13[[#This Row],[AGE (weeks)]]>='Diet input details'!$C$19,Table13[[#This Row],[AGE (weeks)]]<='Diet input details'!$D$19),\"Ration 4\",IF(AND(Table13[[#This Row],[AGE (weeks)]]>='Diet input details'!$C$20,Table13[[#This Row],[AGE (weeks)]]<='Diet input details'!$D$20),\"Ration 5\", \"Clear\")))))","v":"Clear"},{"$f":"(VLOOKUP(Table13[[#This Row],[Ration]],Table22[#All],2,FALSE))","v":{"$error":"#N/A"}},362.35,1.58,{"$f":"Table13[[#This Row],[Bodyweight Mid-point (kg)]]*1000","v":1580},102,{"$f":"Table13[[#This Row],[Feed Intake Mid-point (g/bird/day)]]*7","v":714},{"$f":"Table13[[#This Row],[Feed Intake (g/bird/week)]]+J240","v":43974},63.5,{"$f":"(Table13[[#This Row],[Hen-Housed Eggs Cumulative Mid-point]]*Table13[[#This Row],[Average Egg Weight Mid-point (g/egg)]])","v":23009.225000000002}]
["White Free-range",80,{"$f":"IF(AND(Table13[[#This Row],[AGE (weeks)]]>='Diet input details'!$C$16,Table13[[#This Row],[AGE (weeks)]]<='Diet input details'!$D$16),\"Ration 1\",IF(AND(Table13[[#This Row],[AGE (weeks)]]>='Diet input details'!$C$17,Table13[[#This Row],[AGE (weeks)]]<='Diet input details'!$D$17),\"Ration 2\",IF(AND(Table13[[#This Row],[AGE (weeks)]]>='Diet input details'!$C$18,Table13[[#This Row],[AGE (weeks)]]<='Diet input details'!$D$18),\"Ration 3\",IF(AND(Table13[[#This Row],[AGE (weeks)]]>='Diet input details'!$C$19,Table13[[#This Row],[AGE (weeks)]]<='Diet input details'!$D$19),\"Ration 4\",IF(AND(Table13[[#This Row],[AGE (weeks)]]>='Diet input details'!$C$20,Table13[[#This Row],[AGE (weeks)]]<='Diet input details'!$D$20),\"Ration 5\", \"Clear\")))))","v":"Clear"},{"$f":"(VLOOKUP(Table13[[#This Row],[Ration]],Table22[#All],2,FALSE))","v":{"$error":"#N/A"}},367.55,1.58,{"$f":"Table13[[#This Row],[Bodyweight Mid-point (kg)]]*1000","v":1580},102,{"$f":"Table13[[#This Row],[Feed Intake Mid-point (g/bird/day)]]*7","v":714},{"$f":"Table13[[#This Row],[Feed Intake (g/bird/week)]]+J241","v":44688},63.5,{"$f":"(Table13[[#This Row],[Hen-Housed Eggs Cumulative Mid-point]]*Table13[[#This Row],[Average Egg Weight Mid-point (g/egg)]])","v":23339.424999999999}]
["White Free-range",81,{"$f":"IF(AND(Table13[[#This Row],[AGE (weeks)]]>='Diet input details'!$C$16,Table13[[#This Row],[AGE (weeks)]]<='Diet input details'!$D$16),\"Ration 1\",IF(AND(Table13[[#This Row],[AGE (weeks)]]>='Diet input details'!$C$17,Table13[[#This Row],[AGE (weeks)]]<='Diet input details'!$D$17),\"Ration 2\",IF(AND(Table13[[#This Row],[AGE (weeks)]]>='Diet input details'!$C$18,Table13[[#This Row],[AGE (weeks)]]<='Diet input details'!$D$18),\"Ration 3\",IF(AND(Table13[[#This Row],[AGE (weeks)]]>='Diet input details'!$C$19,Table13[[#This Row],[AGE (weeks)]]<='Diet input details'!$D$19),\"Ration 4\",IF(AND(Table13[[#This Row],[AGE (weeks)]]>='Diet input details'!$C$20,Table13[[#This Row],[AGE (weeks)]]<='Diet input details'!$D$20),\"Ration 5\", \"Clear\")))))","v":"Clear"},{"$f":"(VLOOKUP(Table13[[#This Row],[Ration]],Table22[#All],2,FALSE))","v":{"$error":"#N/A"}},372.75,1.58,{"$f":"Table13[[#This Row],[Bodyweight Mid-point (kg)]]*1000","v":1580},102,{"$f":"Table13[[#This Row],[Feed Intake Mid-point (g/bird/day)]]*7","v":714},{"$f":"Table13[[#This Row],[Feed Intake (g/bird/week)]]+J242","v":45402},63.5,{"$f":"(Table13[[#This Row],[Hen-Housed Eggs Cumulative Mid-point]]*Table13[[#This Row],[Average Egg Weight Mid-point (g/egg)]])","v":23669.625}]
["White Free-range",82,{"$f":"IF(AND(Table13[[#This Row],[AGE (weeks)]]>='Diet input details'!$C$16,Table13[[#This Row],[AGE (weeks)]]<='Diet input details'!$D$16),\"Ration 1\",IF(AND(Table13[[#This Row],[AGE (weeks)]]>='Diet input details'!$C$17,Table13[[#This Row],[AGE (weeks)]]<='Diet input details'!$D$17),\"Ration 2\",IF(AND(Table13[[#This Row],[AGE (weeks)]]>='Diet input details'!$C$18,Table13[[#This Row],[AGE (weeks)]]<='Diet input details'!$D$18),\"Ration 3\",IF(AND(Table13[[#This Row],[AGE (weeks)]]>='Diet input details'!$C$19,Table13[[#This Row],[AGE (weeks)]]<='Diet input details'!$D$19),\"Ration 4\",IF(AND(Table13[[#This Row],[AGE (weeks)]]>='Diet input details'!$C$20,Table13[[#This Row],[AGE (weeks)]]<='Diet input details'!$D$20),\"Ration 5\", \"Clear\")))))","v":"Clear"},{"$f":"(VLOOKUP(Table13[[#This Row],[Ration]],Table22[#All],2,FALSE))","v":{"$error":"#N/A"}},377.95,1.58,{"$f":"Table13[[#This Row],[Bodyweight Mid-point (kg)]]*1000","v":1580},102,{"$f":"Table13[[#This Row],[Feed Intake Mid-point (g/bird/day)]]*7","v":714},{"$f":"Table13[[#This Row],[Feed Intake (g/bird/week)]]+J243","v":46116},63.6,{"$f":"(Table13[[#This Row],[Hen-Housed Eggs Cumulative Mid-point]]*Table13[[#This Row],[Average Egg Weight Mid-point (g/egg)]])","v":24037.62}]
["White Free-range",83,{"$f":"IF(AND(Table13[[#This Row],[AGE (weeks)]]>='Diet input details'!$C$16,Table13[[#This Row],[AGE (weeks)]]<='Diet input details'!$D$16),\"Ration 1\",IF(AND(Table13[[#This Row],[AGE (weeks)]]>='Diet input details'!$C$17,Table13[[#This Row],[AGE (weeks)]]<='Diet input details'!$D$17),\"Ration 2\",IF(AND(Table13[[#This Row],[AGE (weeks)]]>='Diet input details'!$C$18,Table13[[#This Row],[AGE (weeks)]]<='Diet input details'!$D$18),\"Ration 3\",IF(AND(Table13[[#This Row],[AGE (weeks)]]>='Diet input details'!$C$19,Table13[[#This Row],[AGE (weeks)]]<='Diet input details'!$D$19),\"Ration 4\",IF(AND(Table13[[#This Row],[AGE (weeks)]]>='Diet input details'!$C$20,Table13[[#This Row],[AGE (weeks)]]<='Diet input details'!$D$20),\"Ration 5\", \"Clear\")))))","v":"Clear"},{"$f":"(VLOOKUP(Table13[[#This Row],[Ration]],Table22[#All],2,FALSE))","v":{"$error":"#N/A"}},383.04999999999995,1.58,{"$f":"Table13[[#This Row],[Bodyweight Mid-point (kg)]]*1000","v":1580},102,{"$f":"Table13[[#This Row],[Feed Intake Mid-point (g/bird/day)]]*7","v":714},{"$f":"Table13[[#This Row],[Feed Intake (g/bird/week)]]+J244","v":46830},63.6,{"$f":"(Table13[[#This Row],[Hen-Housed Eggs Cumulative Mid-point]]*Table13[[#This Row],[Average Egg Weight Mid-point (g/egg)]])","v":24361.979999999996}]
["White Free-range",84,{"$f":"IF(AND(Table13[[#This Row],[AGE (weeks)]]>='Diet input details'!$C$16,Table13[[#This Row],[AGE (weeks)]]<='Diet input details'!$D$16),\"Ration 1\",IF(AND(Table13[[#This Row],[AGE (weeks)]]>='Diet input details'!$C$17,Table13[[#This Row],[AGE (weeks)]]<='Diet input details'!$D$17),\"Ration 2\",IF(AND(Table13[[#This Row],[AGE (weeks)]]>='Diet input details'!$C$18,Table13[[#This Row],[AGE (weeks)]]<='Diet input details'!$D$18),\"Ration 3\",IF(AND(Table13[[#This Row],[AGE (weeks)]]>='Diet input details'!$C$19,Table13[[#This Row],[AGE (weeks)]]<='Diet input details'!$D$19),\"Ration 4\",IF(AND(Table13[[#This Row],[AGE (weeks)]]>='Diet input details'!$C$20,Table13[[#This Row],[AGE (weeks)]]<='Diet input details'!$D$20),\"Ration 5\", \"Clear\")))))","v":"Clear"},{"$f":"(VLOOKUP(Table13[[#This Row],[Ration]],Table22[#All],2,FALSE))","v":{"$error":"#N/A"}},388.15,1.58,{"$f":"Table13[[#This Row],[Bodyweight Mid-point (kg)]]*1000","v":1580},102,{"$f":"Table13[[#This Row],[Feed Intake Mid-point (g/bird/day)]]*7","v":714},{"$f":"Table13[[#This Row],[Feed Intake (g/bird/week)]]+J245","v":47544},63.6,{"$f":"(Table13[[#This Row],[Hen-Housed Eggs Cumulative Mid-point]]*Table13[[#This Row],[Average Egg Weight Mid-point (g/egg)]])","v":24686.34}]
["White Free-range",85,{"$f":"IF(AND(Table13[[#This Row],[AGE (weeks)]]>='Diet input details'!$C$16,Table13[[#This Row],[AGE (weeks)]]<='Diet input details'!$D$16),\"Ration 1\",IF(AND(Table13[[#This Row],[AGE (weeks)]]>='Diet input details'!$C$17,Table13[[#This Row],[AGE (weeks)]]<='Diet input details'!$D$17),\"Ration 2\",IF(AND(Table13[[#This Row],[AGE (weeks)]]>='Diet input details'!$C$18,Table13[[#This Row],[AGE (weeks)]]<='Diet input details'!$D$18),\"Ration 3\",IF(AND(Table13[[#This Row],[AGE (weeks)]]>='Diet input details'!$C$19,Table13[[#This Row],[AGE (weeks)]]<='Diet input details'!$D$19),\"Ration 4\",IF(AND(Table13[[#This Row],[AGE (weeks)]]>='Diet input details'!$C$20,Table13[[#This Row],[AGE (weeks)]]<='Diet input details'!$D$20),\"Ration 5\", \"Clear\")))))","v":"Clear"},{"$f":"(VLOOKUP(Table13[[#This Row],[Ration]],Table22[#All],2,FALSE))","v":{"$error":"#N/A"}},393.20000000000005,1.58,{"$f":"Table13[[#This Row],[Bodyweight Mid-point (kg)]]*1000","v":1580},102,{"$f":"Table13[[#This Row],[Feed Intake Mid-point (g/bird/day)]]*7","v":714},{"$f":"Table13[[#This Row],[Feed Intake (g/bird/week)]]+J246","v":48258},63.6,{"$f":"(Table13[[#This Row],[Hen-Housed Eggs Cumulative Mid-point]]*Table13[[#This Row],[Average Egg Weight Mid-point (g/egg)]])","v":25007.520000000004}]
["White Free-range",86,{"$f":"IF(AND(Table13[[#This Row],[AGE (weeks)]]>='Diet input details'!$C$16,Table13[[#This Row],[AGE (weeks)]]<='Diet input details'!$D$16),\"Ration 1\",IF(AND(Table13[[#This Row],[AGE (weeks)]]>='Diet input details'!$C$17,Table13[[#This Row],[AGE (weeks)]]<='Diet input details'!$D$17),\"Ration 2\",IF(AND(Table13[[#This Row],[AGE (weeks)]]>='Diet input details'!$C$18,Table13[[#This Row],[AGE (weeks)]]<='Diet input details'!$D$18),\"Ration 3\",IF(AND(Table13[[#This Row],[AGE (weeks)]]>='Diet input details'!$C$19,Table13[[#This Row],[AGE (weeks)]]<='Diet input details'!$D$19),\"Ration 4\",IF(AND(Table13[[#This Row],[AGE (weeks)]]>='Diet input details'!$C$20,Table13[[#This Row],[AGE (weeks)]]<='Diet input details'!$D$20),\"Ration 5\", \"Clear\")))))","v":"Clear"},{"$f":"(VLOOKUP(Table13[[#This Row],[Ration]],Table22[#All],2,FALSE))","v":{"$error":"#N/A"}},398.2,1.58,{"$f":"Table13[[#This Row],[Bodyweight Mid-point (kg)]]*1000","v":1580},102,{"$f":"Table13[[#This Row],[Feed Intake Mid-point (g/bird/day)]]*7","v":714},{"$f":"Table13[[#This Row],[Feed Intake (g/bird/week)]]+J247","v":48972},63.6,{"$f":"(Table13[[#This Row],[Hen-Housed Eggs Cumulative Mid-point]]*Table13[[#This Row],[Average Egg Weight Mid-point (g/egg)]])","v":25325.52}]
["White Free-range",87,{"$f":"IF(AND(Table13[[#This Row],[AGE (weeks)]]>='Diet input details'!$C$16,Table13[[#This Row],[AGE (weeks)]]<='Diet input details'!$D$16),\"Ration 1\",IF(AND(Table13[[#This Row],[AGE (weeks)]]>='Diet input details'!$C$17,Table13[[#This Row],[AGE (weeks)]]<='Diet input details'!$D$17),\"Ration 2\",IF(AND(Table13[[#This Row],[AGE (weeks)]]>='Diet input details'!$C$18,Table13[[#This Row],[AGE (weeks)]]<='Diet input details'!$D$18),\"Ration 3\",IF(AND(Table13[[#This Row],[AGE (weeks)]]>='Diet input details'!$C$19,Table13[[#This Row],[AGE (weeks)]]<='Diet input details'!$D$19),\"Ration 4\",IF(AND(Table13[[#This Row],[AGE (weeks)]]>='Diet input details'!$C$20,Table13[[#This Row],[AGE (weeks)]]<='Diet input details'!$D$20),\"Ration 5\", \"Clear\")))))","v":"Clear"},{"$f":"(VLOOKUP(Table13[[#This Row],[Ration]],Table22[#All],2,FALSE))","v":{"$error":"#N/A"}},403.15,1.58,{"$f":"Table13[[#This Row],[Bodyweight Mid-point (kg)]]*1000","v":1580},102,{"$f":"Table13[[#This Row],[Feed Intake Mid-point (g/bird/day)]]*7","v":714},{"$f":"Table13[[#This Row],[Feed Intake (g/bird/week)]]+J248","v":49686},63.6,{"$f":"(Table13[[#This Row],[Hen-Housed Eggs Cumulative Mid-point]]*Table13[[#This Row],[Average Egg Weight Mid-point (g/egg)]])","v":25640.34}]
["White Free-range",88,{"$f":"IF(AND(Table13[[#This Row],[AGE (weeks)]]>='Diet input details'!$C$16,Table13[[#This Row],[AGE (weeks)]]<='Diet input details'!$D$16),\"Ration 1\",IF(AND(Table13[[#This Row],[AGE (weeks)]]>='Diet input details'!$C$17,Table13[[#This Row],[AGE (weeks)]]<='Diet input details'!$D$17),\"Ration 2\",IF(AND(Table13[[#This Row],[AGE (weeks)]]>='Diet input details'!$C$18,Table13[[#This Row],[AGE (weeks)]]<='Diet input details'!$D$18),\"Ration 3\",IF(AND(Table13[[#This Row],[AGE (weeks)]]>='Diet input details'!$C$19,Table13[[#This Row],[AGE (weeks)]]<='Diet input details'!$D$19),\"Ration 4\",IF(AND(Table13[[#This Row],[AGE (weeks)]]>='Diet input details'!$C$20,Table13[[#This Row],[AGE (weeks)]]<='Diet input details'!$D$20),\"Ration 5\", \"Clear\")))))","v":"Clear"},{"$f":"(VLOOKUP(Table13[[#This Row],[Ration]],Table22[#All],2,FALSE))","v":{"$error":"#N/A"}},408.1,1.58,{"$f":"Table13[[#This Row],[Bodyweight Mid-point (kg)]]*1000","v":1580},102,{"$f":"Table13[[#This Row],[Feed Intake Mid-point (g/bird/day)]]*7","v":714},{"$f":"Table13[[#This Row],[Feed Intake (g/bird/week)]]+J249","v":50400},63.6,{"$f":"(Table13[[#This Row],[Hen-Housed Eggs Cumulative Mid-point]]*Table13[[#This Row],[Average Egg Weight Mid-point (g/egg)]])","v":25955.160000000003}]
["White Free-range",89,{"$f":"IF(AND(Table13[[#This Row],[AGE (weeks)]]>='Diet input details'!$C$16,Table13[[#This Row],[AGE (weeks)]]<='Diet input details'!$D$16),\"Ration 1\",IF(AND(Table13[[#This Row],[AGE (weeks)]]>='Diet input details'!$C$17,Table13[[#This Row],[AGE (weeks)]]<='Diet input details'!$D$17),\"Ration 2\",IF(AND(Table13[[#This Row],[AGE (weeks)]]>='Diet input details'!$C$18,Table13[[#This Row],[AGE (weeks)]]<='Diet input details'!$D$18),\"Ration 3\",IF(AND(Table13[[#This Row],[AGE (weeks)]]>='Diet input details'!$C$19,Table13[[#This Row],[AGE (weeks)]]<='Diet input details'!$D$19),\"Ration 4\",IF(AND(Table13[[#This Row],[AGE (weeks)]]>='Diet input details'!$C$20,Table13[[#This Row],[AGE (weeks)]]<='Diet input details'!$D$20),\"Ration 5\", \"Clear\")))))","v":"Clear"},{"$f":"(VLOOKUP(Table13[[#This Row],[Ration]],Table22[#All],2,FALSE))","v":{"$error":"#N/A"}},413,1.58,{"$f":"Table13[[#This Row],[Bodyweight Mid-point (kg)]]*1000","v":1580},102,{"$f":"Table13[[#This Row],[Feed Intake Mid-point (g/bird/day)]]*7","v":714},{"$f":"Table13[[#This Row],[Feed Intake (g/bird/week)]]+J250","v":51114},63.7,{"$f":"(Table13[[#This Row],[Hen-Housed Eggs Cumulative Mid-point]]*Table13[[#This Row],[Average Egg Weight Mid-point (g/egg)]])","v":26308.100000000002}]
["White Free-range",90,{"$f":"IF(AND(Table13[[#This Row],[AGE (weeks)]]>='Diet input details'!$C$16,Table13[[#This Row],[AGE (weeks)]]<='Diet input details'!$D$16),\"Ration 1\",IF(AND(Table13[[#This Row],[AGE (weeks)]]>='Diet input details'!$C$17,Table13[[#This Row],[AGE (weeks)]]<='Diet input details'!$D$17),\"Ration 2\",IF(AND(Table13[[#This Row],[AGE (weeks)]]>='Diet input details'!$C$18,Table13[[#This Row],[AGE (weeks)]]<='Diet input details'!$D$18),\"Ration 3\",IF(AND(Table13[[#This Row],[AGE (weeks)]]>='Diet input details'!$C$19,Table13[[#This Row],[AGE (weeks)]]<='Diet input details'!$D$19),\"Ration 4\",IF(AND(Table13[[#This Row],[AGE (weeks)]]>='Diet input details'!$C$20,Table13[[#This Row],[AGE (weeks)]]<='Diet input details'!$D$20),\"Ration 5\", \"Clear\")))))","v":"Clear"},{"$f":"(VLOOKUP(Table13[[#This Row],[Ration]],Table22[#All],2,FALSE))","v":{"$error":"#N/A"}},417.79999999999995,1.58,{"$f":"Table13[[#This Row],[Bodyweight Mid-point (kg)]]*1000","v":1580},102,{"$f":"Table13[[#This Row],[Feed Intake Mid-point (g/bird/day)]]*7","v":714},{"$f":"Table13[[#This Row],[Feed Intake (g/bird/week)]]+J251","v":51828},63.7,{"$f":"(Table13[[#This Row],[Hen-Housed Eggs Cumulative Mid-point]]*Table13[[#This Row],[Average Egg Weight Mid-point (g/egg)]])","v":26613.859999999997}]
["White Free-range",91,{"$f":"IF(AND(Table13[[#This Row],[AGE (weeks)]]>='Diet input details'!$C$16,Table13[[#This Row],[AGE (weeks)]]<='Diet input details'!$D$16),\"Ration 1\",IF(AND(Table13[[#This Row],[AGE (weeks)]]>='Diet input details'!$C$17,Table13[[#This Row],[AGE (weeks)]]<='Diet input details'!$D$17),\"Ration 2\",IF(AND(Table13[[#This Row],[AGE (weeks)]]>='Diet input details'!$C$18,Table13[[#This Row],[AGE (weeks)]]<='Diet input details'!$D$18),\"Ration 3\",IF(AND(Table13[[#This Row],[AGE (weeks)]]>='Diet input details'!$C$19,Table13[[#This Row],[AGE (weeks)]]<='Diet input details'!$D$19),\"Ration 4\",IF(AND(Table13[[#This Row],[AGE (weeks)]]>='Diet input details'!$C$20,Table13[[#This Row],[AGE (weeks)]]<='Diet input details'!$D$20),\"Ration 5\", \"Clear\")))))","v":"Clear"},{"$f":"(VLOOKUP(Table13[[#This Row],[Ration]],Table22[#All],2,FALSE))","v":{"$error":"#N/A"}},422.6,1.58,{"$f":"Table13[[#This Row],[Bodyweight Mid-point (kg)]]*1000","v":1580},102,{"$f":"Table13[[#This Row],[Feed Intake Mid-point (g/bird/day)]]*7","v":714},{"$f":"Table13[[#This Row],[Feed Intake (g/bird/week)]]+J252","v":52542},63.7,{"$f":"(Table13[[#This Row],[Hen-Housed Eggs Cumulative Mid-point]]*Table13[[#This Row],[Average Egg Weight Mid-point (g/egg)]])","v":26919.620000000003}]
["White Free-range",92,{"$f":"IF(AND(Table13[[#This Row],[AGE (weeks)]]>='Diet input details'!$C$16,Table13[[#This Row],[AGE (weeks)]]<='Diet input details'!$D$16),\"Ration 1\",IF(AND(Table13[[#This Row],[AGE (weeks)]]>='Diet input details'!$C$17,Table13[[#This Row],[AGE (weeks)]]<='Diet input details'!$D$17),\"Ration 2\",IF(AND(Table13[[#This Row],[AGE (weeks)]]>='Diet input details'!$C$18,Table13[[#This Row],[AGE (weeks)]]<='Diet input details'!$D$18),\"Ration 3\",IF(AND(Table13[[#This Row],[AGE (weeks)]]>='Diet input details'!$C$19,Table13[[#This Row],[AGE (weeks)]]<='Diet input details'!$D$19),\"Ration 4\",IF(AND(Table13[[#This Row],[AGE (weeks)]]>='Diet input details'!$C$20,Table13[[#This Row],[AGE (weeks)]]<='Diet input details'!$D$20),\"Ration 5\", \"Clear\")))))","v":"Clear"},{"$f":"(VLOOKUP(Table13[[#This Row],[Ration]],Table22[#All],2,FALSE))","v":{"$error":"#N/A"}},427.35,1.58,{"$f":"Table13[[#This Row],[Bodyweight Mid-point (kg)]]*1000","v":1580},102,{"$f":"Table13[[#This Row],[Feed Intake Mid-point (g/bird/day)]]*7","v":714},{"$f":"Table13[[#This Row],[Feed Intake (g/bird/week)]]+J253","v":53256},63.7,{"$f":"(Table13[[#This Row],[Hen-Housed Eggs Cumulative Mid-point]]*Table13[[#This Row],[Average Egg Weight Mid-point (g/egg)]])","v":27222.195000000003}]
["White Free-range",93,{"$f":"IF(AND(Table13[[#This Row],[AGE (weeks)]]>='Diet input details'!$C$16,Table13[[#This Row],[AGE (weeks)]]<='Diet input details'!$D$16),\"Ration 1\",IF(AND(Table13[[#This Row],[AGE (weeks)]]>='Diet input details'!$C$17,Table13[[#This Row],[AGE (weeks)]]<='Diet input details'!$D$17),\"Ration 2\",IF(AND(Table13[[#This Row],[AGE (weeks)]]>='Diet input details'!$C$18,Table13[[#This Row],[AGE (weeks)]]<='Diet input details'!$D$18),\"Ration 3\",IF(AND(Table13[[#This Row],[AGE (weeks)]]>='Diet input details'!$C$19,Table13[[#This Row],[AGE (weeks)]]<='Diet input details'!$D$19),\"Ration 4\",IF(AND(Table13[[#This Row],[AGE (weeks)]]>='Diet input details'!$C$20,Table13[[#This Row],[AGE (weeks)]]<='Diet input details'!$D$20),\"Ration 5\", \"Clear\")))))","v":"Clear"},{"$f":"(VLOOKUP(Table13[[#This Row],[Ration]],Table22[#All],2,FALSE))","v":{"$error":"#N/A"}},432.1,1.58,{"$f":"Table13[[#This Row],[Bodyweight Mid-point (kg)]]*1000","v":1580},102,{"$f":"Table13[[#This Row],[Feed Intake Mid-point (g/bird/day)]]*7","v":714},{"$f":"Table13[[#This Row],[Feed Intake (g/bird/week)]]+J254","v":53970},63.7,{"$f":"(Table13[[#This Row],[Hen-Housed Eggs Cumulative Mid-point]]*Table13[[#This Row],[Average Egg Weight Mid-point (g/egg)]])","v":27524.770000000004}]
["White Free-range",94,{"$f":"IF(AND(Table13[[#This Row],[AGE (weeks)]]>='Diet input details'!$C$16,Table13[[#This Row],[AGE (weeks)]]<='Diet input details'!$D$16),\"Ration 1\",IF(AND(Table13[[#This Row],[AGE (weeks)]]>='Diet input details'!$C$17,Table13[[#This Row],[AGE (weeks)]]<='Diet input details'!$D$17),\"Ration 2\",IF(AND(Table13[[#This Row],[AGE (weeks)]]>='Diet input details'!$C$18,Table13[[#This Row],[AGE (weeks)]]<='Diet input details'!$D$18),\"Ration 3\",IF(AND(Table13[[#This Row],[AGE (weeks)]]>='Diet input details'!$C$19,Table13[[#This Row],[AGE (weeks)]]<='Diet input details'!$D$19),\"Ration 4\",IF(AND(Table13[[#This Row],[AGE (weeks)]]>='Diet input details'!$C$20,Table13[[#This Row],[AGE (weeks)]]<='Diet input details'!$D$20),\"Ration 5\", \"Clear\")))))","v":"Clear"},{"$f":"(VLOOKUP(Table13[[#This Row],[Ration]],Table22[#All],2,FALSE))","v":{"$error":"#N/A"}},436.7,1.58,{"$f":"Table13[[#This Row],[Bodyweight Mid-point (kg)]]*1000","v":1580},102,{"$f":"Table13[[#This Row],[Feed Intake Mid-point (g/bird/day)]]*7","v":714},{"$f":"Table13[[#This Row],[Feed Intake (g/bird/week)]]+J255","v":54684},63.7,{"$f":"(Table13[[#This Row],[Hen-Housed Eggs Cumulative Mid-point]]*Table13[[#This Row],[Average Egg Weight Mid-point (g/egg)]])","v":27817.79}]
["White Free-range",95,{"$f":"IF(AND(Table13[[#This Row],[AGE (weeks)]]>='Diet input details'!$C$16,Table13[[#This Row],[AGE (weeks)]]<='Diet input details'!$D$16),\"Ration 1\",IF(AND(Table13[[#This Row],[AGE (weeks)]]>='Diet input details'!$C$17,Table13[[#This Row],[AGE (weeks)]]<='Diet input details'!$D$17),\"Ration 2\",IF(AND(Table13[[#This Row],[AGE (weeks)]]>='Diet input details'!$C$18,Table13[[#This Row],[AGE (weeks)]]<='Diet input details'!$D$18),\"Ration 3\",IF(AND(Table13[[#This Row],[AGE (weeks)]]>='Diet input details'!$C$19,Table13[[#This Row],[AGE (weeks)]]<='Diet input details'!$D$19),\"Ration 4\",IF(AND(Table13[[#This Row],[AGE (weeks)]]>='Diet input details'!$C$20,Table13[[#This Row],[AGE (weeks)]]<='Diet input details'!$D$20),\"Ration 5\", \"Clear\")))))","v":"Clear"},{"$f":"(VLOOKUP(Table13[[#This Row],[Ration]],Table22[#All],2,FALSE))","v":{"$error":"#N/A"}},441.4,1.58,{"$f":"Table13[[#This Row],[Bodyweight Mid-point (kg)]]*1000","v":1580},102,{"$f":"Table13[[#This Row],[Feed Intake Mid-point (g/bird/day)]]*7","v":714},{"$f":"Table13[[#This Row],[Feed Intake (g/bird/week)]]+J256","v":55398},63.7,{"$f":"(Table13[[#This Row],[Hen-Housed Eggs Cumulative Mid-point]]*Table13[[#This Row],[Average Egg Weight Mid-point (g/egg)]])","v":28117.18}]
["White Free-range",96,{"$f":"IF(AND(Table13[[#This Row],[AGE (weeks)]]>='Diet input details'!$C$16,Table13[[#This Row],[AGE (weeks)]]<='Diet input details'!$D$16),\"Ration 1\",IF(AND(Table13[[#This Row],[AGE (weeks)]]>='Diet input details'!$C$17,Table13[[#This Row],[AGE (weeks)]]<='Diet input details'!$D$17),\"Ration 2\",IF(AND(Table13[[#This Row],[AGE (weeks)]]>='Diet input details'!$C$18,Table13[[#This Row],[AGE (weeks)]]<='Diet input details'!$D$18),\"Ration 3\",IF(AND(Table13[[#This Row],[AGE (weeks)]]>='Diet input details'!$C$19,Table13[[#This Row],[AGE (weeks)]]<='Diet input details'!$D$19),\"Ration 4\",IF(AND(Table13[[#This Row],[AGE (weeks)]]>='Diet input details'!$C$20,Table13[[#This Row],[AGE (weeks)]]<='Diet input details'!$D$20),\"Ration 5\", \"Clear\")))))","v":"Clear"},{"$f":"(VLOOKUP(Table13[[#This Row],[Ration]],Table22[#All],2,FALSE))","v":{"$error":"#N/A"}},445.9,1.58,{"$f":"Table13[[#This Row],[Bodyweight Mid-point (kg)]]*1000","v":1580},102,{"$f":"Table13[[#This Row],[Feed Intake Mid-point (g/bird/day)]]*7","v":714},{"$f":"Table13[[#This Row],[Feed Intake (g/bird/week)]]+J257","v":56112},63.7,{"$f":"(Table13[[#This Row],[Hen-Housed Eggs Cumulative Mid-point]]*Table13[[#This Row],[Average Egg Weight Mid-point (g/egg)]])","v":28403.829999999998}]
["White Free-range",97,{"$f":"IF(AND(Table13[[#This Row],[AGE (weeks)]]>='Diet input details'!$C$16,Table13[[#This Row],[AGE (weeks)]]<='Diet input details'!$D$16),\"Ration 1\",IF(AND(Table13[[#This Row],[AGE (weeks)]]>='Diet input details'!$C$17,Table13[[#This Row],[AGE (weeks)]]<='Diet input details'!$D$17),\"Ration 2\",IF(AND(Table13[[#This Row],[AGE (weeks)]]>='Diet input details'!$C$18,Table13[[#This Row],[AGE (weeks)]]<='Diet input details'!$D$18),\"Ration 3\",IF(AND(Table13[[#This Row],[AGE (weeks)]]>='Diet input details'!$C$19,Table13[[#This Row],[AGE (weeks)]]<='Diet input details'!$D$19),\"Ration 4\",IF(AND(Table13[[#This Row],[AGE (weeks)]]>='Diet input details'!$C$20,Table13[[#This Row],[AGE (weeks)]]<='Diet input details'!$D$20),\"Ration 5\", \"Clear\")))))","v":"Clear"},{"$f":"(VLOOKUP(Table13[[#This Row],[Ration]],Table22[#All],2,FALSE))","v":{"$error":"#N/A"}},450.5,1.58,{"$f":"Table13[[#This Row],[Bodyweight Mid-point (kg)]]*1000","v":1580},102,{"$f":"Table13[[#This Row],[Feed Intake Mid-point (g/bird/day)]]*7","v":714},{"$f":"Table13[[#This Row],[Feed Intake (g/bird/week)]]+J258","v":56826},63.7,{"$f":"(Table13[[#This Row],[Hen-Housed Eggs Cumulative Mid-point]]*Table13[[#This Row],[Average Egg Weight Mid-point (g/egg)]])","v":28696.850000000002}]
["White Free-range",98,{"$f":"IF(AND(Table13[[#This Row],[AGE (weeks)]]>='Diet input details'!$C$16,Table13[[#This Row],[AGE (weeks)]]<='Diet input details'!$D$16),\"Ration 1\",IF(AND(Table13[[#This Row],[AGE (weeks)]]>='Diet input details'!$C$17,Table13[[#This Row],[AGE (weeks)]]<='Diet input details'!$D$17),\"Ration 2\",IF(AND(Table13[[#This Row],[AGE (weeks)]]>='Diet input details'!$C$18,Table13[[#This Row],[AGE (weeks)]]<='Diet input details'!$D$18),\"Ration 3\",IF(AND(Table13[[#This Row],[AGE (weeks)]]>='Diet input details'!$C$19,Table13[[#This Row],[AGE (weeks)]]<='Diet input details'!$D$19),\"Ration 4\",IF(AND(Table13[[#This Row],[AGE (weeks)]]>='Diet input details'!$C$20,Table13[[#This Row],[AGE (weeks)]]<='Diet input details'!$D$20),\"Ration 5\", \"Clear\")))))","v":"Clear"},{"$f":"(VLOOKUP(Table13[[#This Row],[Ration]],Table22[#All],2,FALSE))","v":{"$error":"#N/A"}},455,1.58,{"$f":"Table13[[#This Row],[Bodyweight Mid-point (kg)]]*1000","v":1580},102,{"$f":"Table13[[#This Row],[Feed Intake Mid-point (g/bird/day)]]*7","v":714},{"$f":"Table13[[#This Row],[Feed Intake (g/bird/week)]]+J259","v":57540},63.7,{"$f":"(Table13[[#This Row],[Hen-Housed Eggs Cumulative Mid-point]]*Table13[[#This Row],[Average Egg Weight Mid-point (g/egg)]])","v":28983.5}]
["White Free-range",99,{"$f":"IF(AND(Table13[[#This Row],[AGE (weeks)]]>='Diet input details'!$C$16,Table13[[#This Row],[AGE (weeks)]]<='Diet input details'!$D$16),\"Ration 1\",IF(AND(Table13[[#This Row],[AGE (weeks)]]>='Diet input details'!$C$17,Table13[[#This Row],[AGE (weeks)]]<='Diet input details'!$D$17),\"Ration 2\",IF(AND(Table13[[#This Row],[AGE (weeks)]]>='Diet input details'!$C$18,Table13[[#This Row],[AGE (weeks)]]<='Diet input details'!$D$18),\"Ration 3\",IF(AND(Table13[[#This Row],[AGE (weeks)]]>='Diet input details'!$C$19,Table13[[#This Row],[AGE (weeks)]]<='Diet input details'!$D$19),\"Ration 4\",IF(AND(Table13[[#This Row],[AGE (weeks)]]>='Diet input details'!$C$20,Table13[[#This Row],[AGE (weeks)]]<='Diet input details'!$D$20),\"Ration 5\", \"Clear\")))))","v":"Clear"},{"$f":"(VLOOKUP(Table13[[#This Row],[Ration]],Table22[#All],2,FALSE))","v":{"$error":"#N/A"}},459.4,1.58,{"$f":"Table13[[#This Row],[Bodyweight Mid-point (kg)]]*1000","v":1580},102,{"$f":"Table13[[#This Row],[Feed Intake Mid-point (g/bird/day)]]*7","v":714},{"$f":"Table13[[#This Row],[Feed Intake (g/bird/week)]]+J260","v":58254},63.7,{"$f":"(Table13[[#This Row],[Hen-Housed Eggs Cumulative Mid-point]]*Table13[[#This Row],[Average Egg Weight Mid-point (g/egg)]])","v":29263.78}]
["White Free-range",100,{"$f":"IF(AND(Table13[[#This Row],[AGE (weeks)]]>='Diet input details'!$C$16,Table13[[#This Row],[AGE (weeks)]]<='Diet input details'!$D$16),\"Ration 1\",IF(AND(Table13[[#This Row],[AGE (weeks)]]>='Diet input details'!$C$17,Table13[[#This Row],[AGE (weeks)]]<='Diet input details'!$D$17),\"Ration 2\",IF(AND(Table13[[#This Row],[AGE (weeks)]]>='Diet input details'!$C$18,Table13[[#This Row],[AGE (weeks)]]<='Diet input details'!$D$18),\"Ration 3\",IF(AND(Table13[[#This Row],[AGE (weeks)]]>='Diet input details'!$C$19,Table13[[#This Row],[AGE (weeks)]]<='Diet input details'!$D$19),\"Ration 4\",IF(AND(Table13[[#This Row],[AGE (weeks)]]>='Diet input details'!$C$20,Table13[[#This Row],[AGE (weeks)]]<='Diet input details'!$D$20),\"Ration 5\", \"Clear\")))))","v":"Clear"},{"$f":"(VLOOKUP(Table13[[#This Row],[Ration]],Table22[#All],2,FALSE))","v":{"$error":"#N/A"}},463.9,1.58,{"$f":"Table13[[#This Row],[Bodyweight Mid-point (kg)]]*1000","v":1580},102,{"$f":"Table13[[#This Row],[Feed Intake Mid-point (g/bird/day)]]*7","v":714},{"$f":"Table13[[#This Row],[Feed Intake (g/bird/week)]]+J261","v":58968},63.8,{"$f":"(Table13[[#This Row],[Hen-Housed Eggs Cumulative Mid-point]]*Table13[[#This Row],[Average Egg Weight Mid-point (g/egg)]])","v":29596.819999999996}]

{"sheet":"Dataset","index":7,"n_rows":143,"n_cols":11,"rows_kept":143,"cut":false,"hidden":true,"merged":[]}
["Calculations"]
[]
[]
["Table 1a. Bodyweight and Cumulative feed intake"]
["Source: ","Poultry 01","Hyline Performance Data"]
["This table contains the assumed bodyweights and cumulative feed intake for the animals based on the HyLine performance data sets and refer to the 'Performance Data' sheet"]
[]
["Diet type","Bodyweight (g)","Cum. feed intake (g) "]
[{"$f":"'Diet input details'!$B$6","v":"Ration 1"},{"$f":"(INDEX(Table13[Bodyweight Mid-point (g)],MATCH(1,('Flock input details'!$C$8='Performance Data'!$A$8:$A$262)*('Diet input details'!D16='Performance Data'!$B$8:$B$262),0)))*Table25[% of Target bodyweight]","v":{"$error":"#N/A"}},{"$f":"INDEX(Table13[Cumulative Feed Intake (g/bird)],MATCH(1,('Flock input details'!$C$8=Table13[Flock Type])*('Diet input details'!D16=Table13[AGE (weeks)]),0))","v":{"$error":"#N/A"}}]
[{"$f":"'Diet input details'!$B$7","v":"Ration 2"},{"$f":"(INDEX(Table13[Bodyweight Mid-point (g)],MATCH(1,('Flock input details'!$C$8='Performance Data'!$A$8:$A$262)*('Diet input details'!D17='Performance Data'!$B$8:$B$262),0)))*Table25[% of Target bodyweight]","v":{"$error":"#N/A"}},{"$f":"INDEX(Table13[Cumulative Feed Intake (g/bird)],MATCH(1,('Flock input details'!$C$8=Table13[Flock Type])*('Diet input details'!D17=Table13[AGE (weeks)]),0))","v":{"$error":"#N/A"}}]
[{"$f":"'Diet input details'!$B$8","v":"Ration 3"},{"$f":"(INDEX(Table13[Bodyweight Mid-point (g)],MATCH(1,('Flock input details'!$C$8='Performance Data'!$A$8:$A$262)*('Diet input details'!D18='Performance Data'!$B$8:$B$262),0)))*Table25[% of Target bodyweight]","v":{"$error":"#N/A"}},{"$f":"INDEX(Table13[Cumulative Feed Intake (g/bird)],MATCH(1,('Flock input details'!$C$8=Table13[Flock Type])*('Diet input details'!D18=Table13[AGE (weeks)]),0))","v":{"$error":"#N/A"}}]
[{"$f":"'Diet input details'!B9","v":"Ration 4"},{"$f":"(INDEX(Table13[Bodyweight Mid-point (g)],MATCH(1,('Flock input details'!$C$8='Performance Data'!$A$8:$A$262)*('Diet input details'!D19='Performance Data'!$B$8:$B$262),0)))*Table25[% of Target bodyweight]","v":{"$error":"#N/A"}},{"$f":"INDEX(Table13[Cumulative Feed Intake (g/bird)],MATCH(1,('Flock input details'!$C$8=Table13[Flock Type])*('Diet input details'!D19=Table13[AGE (weeks)]),0))","v":{"$error":"#N/A"}}]
[{"$f":"'Diet input details'!B10","v":"Ration 5"},{"$f":"(INDEX(Table13[Bodyweight Mid-point (g)],MATCH(1,('Flock input details'!$C$8='Performance Data'!$A$8:$A$262)*('Diet input details'!D20='Performance Data'!$B$8:$B$262),0)))*Table25[% of Target bodyweight]","v":{"$error":"#N/A"}},{"$f":"INDEX(Table13[Cumulative Feed Intake (g/bird)],MATCH(1,('Flock input details'!$C$8=Table13[Flock Type])*('Diet input details'!D20=Table13[AGE (weeks)]),0))","v":{"$error":"#N/A"}}]
["Total",{"$f":" SUMIF(B9:B13,\"<>#N/A\")","v":0},{"$f":" SUMIF(C9:C13,\"<>#N/A\")","v":0}]
[]
["Table 1b. Mortality bodyweight and cumulative feed intake"]
["Source: ","Poultry 01","Hyline Performance Data"]
["This table contains the assumed bodyweights and cumulative feed intake for the animals based on the HyLine performance data sets and refer to the 'Performance Data' sheet"]
[]
["Diet type","Bodyweight loss due to mortality (g)","Mortality adjusted bodyweight (g)","Feed not consumed due to mortality (g)","Mortality adjusted feed intake (g)","Wholewheat intake (%)","Compound feed intake (%)","Wholewheat intake (g)","Compound feed intake (g)"]
[{"$f":"'Diet input details'!$B$6","v":"Ration 1"},{"$f":"B9-Table19[[#This Row],[Mortality adjusted bodyweight (g)]]","v":{"$error":"#N/A"}},{"$f":"B9*(1-B124)","v":{"$error":"#N/A"}},{"$f":"C9-Table19[[#This Row],[Mortality adjusted feed intake (g)]]","v":{"$error":"#N/A"}},{"$f":"C9*(1-B124)","v":{"$error":"#N/A"}},{"$f":"'Diet input details'!E16","v":0},{"$f":"1-F21","v":1},{"$f":"F21*E21","v":{"$error":"#N/A"}},{"$f":"G21*E21","v":{"$error":"#N/A"}}]
["Ration 2",{"$f":"B10-Table19[[#This Row],[Mortality adjusted bodyweight (g)]]","v":{"$error":"#N/A"}},{"$f":"(B10-B21)*(1-B125)","v":{"$error":"#N/A"}},{"$f":"C10-Table19[[#This Row],[Mortality adjusted feed intake (g)]]","v":{"$error":"#N/A"}},{"$f":"(C10-D21)*(1-B125)","v":{"$error":"#N/A"}},{"$f":"'Diet input details'!E17","v":0},{"$f":"1-F22","v":1},{"$f":"F22*(E22-E21)","v":{"$error":"#N/A"}},{"$f":"G22*(E22-E21)","v":{"$error":"#N/A"}}]
["Ration 3",{"$f":"B11-Table19[[#This Row],[Mortality adjusted bodyweight (g)]]","v":{"$error":"#N/A"}},{"$f":"(B11-B22)*(1-B126)","v":{"$error":"#N/A"}},{"$f":"C11-Table19[[#This Row],[Mortality adjusted feed intake (g)]]","v":{"$error":"#N/A"}},{"$f":"(C11-D22)*(1-B126)","v":{"$error":"#N/A"}},{"$f":"'Diet input details'!E18","v":0},{"$f":"1-F23","v":1},{"$f":"F23*(E23-E22)","v":{"$error":"#N/A"}},{"$f":"G23*(E23-E22)","v":{"$error":"#N/A"}}]
["Ration 4",{"$f":"B12-Table19[[#This Row],[Mortality adjusted bodyweight (g)]]","v":{"$error":"#N/A"}},{"$f":"(B12-B23)*(1-B127)","v":{"$error":"#N/A"}},{"$f":"C12-Table19[[#This Row],[Mortality adjusted feed intake (g)]]","v":{"$error":"#N/A"}},{"$f":"(C12-D23)*(1-B127)","v":{"$error":"#N/A"}},{"$f":"'Diet input details'!E19","v":0},{"$f":"1-F24","v":1},{"$f":"F24*(E24-E23)","v":{"$error":"#N/A"}},{"$f":"G24*(E24-E23)","v":{"$error":"#N/A"}}]
["Ration 5",{"$f":"B13-Table19[[#This Row],[Mortality adjusted bodyweight (g)]]","v":{"$error":"#N/A"}},{"$f":"(B13-B24)*(1-B128)","v":{"$error":"#N/A"}},{"$f":"C13-Table19[[#This Row],[Mortality adjusted feed intake (g)]]","v":{"$error":"#N/A"}},{"$f":"(C13-D24)*(1-B128)","v":{"$error":"#N/A"}},{"$f":"'Diet input details'!E20","v":0},{"$f":"1-F25","v":1},{"$f":"F25*(E25-E24)","v":{"$error":"#N/A"}},{"$f":"G25*(E25-E24)","v":{"$error":"#N/A"}}]
["Total",{"$f":" SUM(B21:B25)","v":{"$error":"#N/A"}},{"$f":" SUM(C21:C25)","v":{"$error":"#N/A"}},{"$f":" SUM(D21:D25)","v":{"$error":"#N/A"}},{"$f":" SUM(E21:E25)","v":{"$error":"#N/A"}},"N/A","N/A",{"$f":" SUMIF(H21:H25,\"<>#N/A\")","v":0},{"$f":" SUMIF(I21:I25,\"<>#N/A\")","v":0}]
[]
[]
["Table 2. N and P Intake"]
["Source: ","N/A"]
["This table contains the N and P intake at each phase based on the cumulative feed intake (Table 1 from 'Data tables'), and the nutrient status of the feed (from 'Diet input details')"]
[]
["Diet type","Feed Nitrogen conc. (%)","Feed Phosphorus conc. (%)","Wholewheat Nitrogen conc. (%) ","Wholewheat Phosphorus conc. (%)","Compound feed Nitrogen consumed (g)","Compound feed Phosphorus consumed (g)","Wholewheat Nitrogen consumed (g)","Wholewheat Phosphorus consumed (g)","Total Nitrogen consumed (g)","Total Phosphorus consumed (g)"]
[{"$f":"A9","v":"Ration 1"},{"$f":"'Diet input details'!C6/'Data tables'!$A$276","v":0},{"$f":"'Diet input details'!E6","v":0},{"$f":"IF('Diet input details'!$D$11=\"\",0,'Diet input details'!$D$11)","v":0},{"$f":"'Diet input details'!$E$11","v":0},{"$f":"B34%*I21","v":{"$error":"#N/A"}},{"$f":"C34%*I21","v":{"$error":"#N/A"}},{"$f":"D34%*H21","v":{"$error":"#N/A"}},{"$f":"D34%*H21","v":{"$error":"#N/A"}},{"$f":"F34+H34","v":{"$error":"#N/A"}},{"$error":"#N/A"}]
["Ration 2",{"$f":"'Diet input details'!C7/'Data tables'!$A$276","v":0},{"$f":"'Diet input details'!E7","v":0},{"$f":"IF('Diet input details'!$D$11=\"\",0,'Diet input details'!$D$11)","v":0},{"$f":"'Diet input details'!$E$11","v":0},{"$f":"B35%*I22","v":{"$error":"#N/A"}},{"$f":"C35%*I22","v":{"$error":"#N/A"}},{"$f":"D35%*H22","v":{"$error":"#N/A"}},{"$f":"E35%*H22","v":{"$error":"#N/A"}},{"$error":"#N/A"},{"$error":"#N/A"}]
["Ration 3",{"$f":"'Diet input details'!C8/'Data tables'!$A$276","v":0},{"$f":"'Diet input details'!E8","v":0},{"$f":"IF('Diet input details'!$D$11=\"\",0,'Diet input details'!$D$11)","v":0},{"$f":"'Diet input details'!$E$11","v":0},{"$f":"B36%*I23","v":{"$error":"#N/A"}},{"$f":"C36%*I23","v":{"$error":"#N/A"}},{"$f":"D36%*H23","v":{"$error":"#N/A"}},{"$f":"E36%*H23","v":{"$error":"#N/A"}},{"$error":"#N/A"},{"$error":"#N/A"}]
["Ration 4",{"$f":"'Diet input details'!C9/'Data tables'!$A$276","v":0},{"$f":"'Diet input details'!E9","v":0},{"$f":"IF('Diet input details'!$D$11=\"\",0,'Diet input details'!$D$11)","v":0},{"$f":"'Diet input details'!$E$11","v":0},{"$f":"B37%*I24","v":{"$error":"#N/A"}},{"$f":"C37%*I24","v":{"$error":"#N/A"}},{"$f":"D37%*H24","v":{"$error":"#N/A"}},{"$f":"E37%*H24","v":{"$error":"#N/A"}},{"$error":"#N/A"},{"$error":"#N/A"}]
["Ration 5",{"$f":"'Diet input details'!C10/'Data tables'!$A$276","v":0},{"$f":"'Diet input details'!E10","v":0},{"$f":"IF('Diet input details'!$D$11=\"\",0,'Diet input details'!$D$11)","v":0},{"$f":"'Diet input details'!$E$11","v":0},{"$f":"B38%*I25","v":{"$error":"#N/A"}},{"$f":"C38%*I25","v":{"$error":"#N/A"}},{"$f":"D38%*H25","v":{"$error":"#N/A"}},{"$f":"E38%*H25","v":{"$error":"#N/A"}},{"$error":"#N/A"},{"$error":"#N/A"}]
["Total","N/A","N/A","N/A","N/A",{"$f":" SUMIF(F34:F38,\"<>#N/A\")","v":0},0,0,0,0,0]
[]
[]
["Table 3. N and P Retained "]
["Source: ","Data tables' Table 8"]
["This table shows the amount of N and P that is retained in the body weight of the animal, based on the calculations of the retention factors in Table 2 from 'Dataset' and Table 8 from 'Data tables'"]
[]
["Diet type","Nitrogen retained (g)","Phosphorus retained (g)","Phytase"]
[{"$f":"A9","v":"Ration 1"},{"$f":"C21*'Data tables'!$B$316","v":{"$error":"#N/A"}},{"$f":"C21*'Data tables'!$B$317","v":{"$error":"#N/A"}},{"$f":"'Diet input details'!$D$24","v":"Please select"}]
["Ration 2",{"$f":"C22*'Data tables'!$B$316","v":{"$error":"#N/A"}},{"$f":"C22*'Data tables'!$B$317","v":{"$error":"#N/A"}},{"$f":"'Diet input details'!$D$24","v":"Please select"}]
["Ration 3",{"$f":"C23*'Data tables'!$B$316","v":{"$error":"#N/A"}},{"$f":"C23*'Data tables'!$B$317","v":{"$error":"#N/A"}},{"$f":"'Diet input details'!$D$24","v":"Please select"}]
["Ration 4",{"$f":"C24*'Data tables'!$B$316","v":{"$error":"#N/A"}},{"$f":"C24*'Data tables'!$B$317","v":{"$error":"#N/A"}},{"$f":"'Diet input details'!$D$24","v":"Please select"}]
["Ration 5",{"$f":"C25*'Data tables'!$B$316","v":{"$error":"#N/A"}},{"$f":"C25*'Data tables'!$B$317","v":{"$error":"#N/A"}},{"$f":"'Diet input details'!$D$24","v":"Please select"}]
["Total",{"$f":" SUMIF(B47:B51,\"<>#N/A\")","v":0},{"$f":" SUMIF(C47:C51,\"<>#N/A\")","v":0},"N/A"]
[]
[]
["Table 4. Eggs"]
["Source: ","Performance Data' & 'Data tables' Table 7"]
["This table calculates the amount of N and P fixed in eggs over the production cycle, based on egg production data from the HyLine performance data, and the N and P composition of eggs in 'Data tables' Table 7"]
[]
["Diet type","Weight of eggs (g)","Egg Weight Losst due to mortality (g)","Mortality adjusted cumulative egg weight (g)","N fixed in eggs (g)","P fixed in eggs (g)"]
["Ration 1",{"$f":"INDEX(Table13[Cumulative Egg Weight (g)],MATCH(1,('Flock input details'!$C$8=Table13[Flock Type])*('Diet input details'!D16=Table13[AGE (weeks)]),0))","v":{"$error":"#N/A"}},{"$f":"Table1_bw_feed_intake3638[[#This Row],[Weight of eggs (g)]]*B124","v":{"$error":"#N/A"}},{"$f":"Table1_bw_feed_intake3638[[#This Row],[Weight of eggs (g)]]-Table1_bw_feed_intake3638[[#This Row],[Egg Weight Losst due to mortality (g)]]","v":{"$error":"#N/A"}},{"$f":"Table1_bw_feed_intake3638[[#This Row],[Mortality adjusted cumulative egg weight (g)]]*('Data tables'!$C$307)","v":{"$error":"#N/A"}},{"$f":"Table1_bw_feed_intake3638[[#This Row],[Mortality adjusted cumulative egg weight (g)]]*('Data tables'!$C$308)","v":{"$error":"#N/A"}}]
["Ration 2",{"$f":"INDEX(Table13[Cumulative Egg Weight (g)],MATCH(1,('Flock input details'!$C$8=Table13[Flock Type])*('Diet input details'!D17=Table13[AGE (weeks)]),0))-B60","v":{"$error":"#N/A"}},{"$f":"Table1_bw_feed_intake3638[[#This Row],[Weight of eggs (g)]]-Table1_bw_feed_intake3638[[#This Row],[Mortality adjusted cumulative egg weight (g)]]","v":{"$error":"#N/A"}},{"$f":"(Table1_bw_feed_intake3638[[#This Row],[Weight of eggs (g)]]-C60)*(1-B125)","v":{"$error":"#N/A"}},{"$f":"Table1_bw_feed_intake3638[[#This Row],[Mortality adjusted cumulative egg weight (g)]]*('Data tables'!$C$307)","v":{"$error":"#N/A"}},{"$f":"Table1_bw_feed_intake3638[[#This Row],[Mortality adjusted cumulative egg weight (g)]]*('Data tables'!$C$308)","v":{"$error":"#N/A"}}]
["Ration 3",{"$f":"INDEX(Table13[Cumulative Egg Weight (g)],MATCH(1,('Flock input details'!$C$8=Table13[Flock Type])*('Diet input details'!D18=Table13[AGE (weeks)]),0))-B61","v":{"$error":"#N/A"}},{"$f":"Table1_bw_feed_intake3638[[#This Row],[Weight of eggs (g)]]-Table1_bw_feed_intake3638[[#This Row],[Mortality adjusted cumulative egg weight (g)]]","v":{"$error":"#N/A"}},{"$f":"(Table1_bw_feed_intake3638[[#This Row],[Weight of eggs (g)]]-C61-C60)*(1-B126)","v":{"$error":"#N/A"}},{"$f":"Table1_bw_feed_intake3638[[#This Row],[Mortality adjusted cumulative egg weight (g)]]*('Data tables'!$C$307)","v":{"$error":"#N/A"}},{"$f":"Table1_bw_feed_intake3638[[#This Row],[Mortality adjusted cumulative egg weight (g)]]*('Data tables'!$C$308)","v":{"$error":"#N/A"}}]
[{"$f":"A37","v":"Ration 4"},{"$f":"INDEX(Table13[Cumulative Egg Weight (g)],MATCH(1,('Flock input details'!$C$8=Table13[Flock Type])*('Diet input details'!D19=Table13[AGE (weeks)]),0))-B62","v":{"$error":"#N/A"}},{"$f":"Table1_bw_feed_intake3638[[#This Row],[Weight of eggs (g)]]-Table1_bw_feed_intake3638[[#This Row],[Mortality adjusted cumulative egg weight (g)]]","v":{"$error":"#N/A"}},{"$f":"(Table1_bw_feed_intake3638[[#This Row],[Weight of eggs (g)]]-C62-C61)*(1-B127)","v":{"$error":"#N/A"}},{"$f":"Table1_bw_feed_intake3638[[#This Row],[Mortality adjusted cumulative egg weight (g)]]*('Data tables'!$C$307)","v":{"$error":"#N/A"}},{"$f":"Table1_bw_feed_intake3638[[#This Row],[Mortality adjusted cumulative egg weight (g)]]*('Data tables'!$C$308)","v":{"$error":"#N/A"}}]
[{"$f":"A38","v":"Ration 5"},{"$f":"INDEX(Table13[Cumulative Egg Weight (g)],MATCH(1,('Flock input details'!$C$8=Table13[Flock Type])*('Diet input details'!D20=Table13[AGE (weeks)]),0))-B63","v":{"$error":"#N/A"}},{"$f":"Table1_bw_feed_intake3638[[#This Row],[Weight of eggs (g)]]-Table1_bw_feed_intake3638[[#This Row],[Mortality adjusted cumulative egg weight (g)]]","v":{"$error":"#N/A"}},{"$f":"(Table1_bw_feed_intake3638[[#This Row],[Weight of eggs (g)]]-C63-C62)*(1-B128)","v":{"$error":"#N/A"}},{"$f":"Table1_bw_feed_intake3638[[#This Row],[Mortality adjusted cumulative egg weight (g)]]*('Data tables'!$C$307)","v":{"$error":"#N/A"}},{"$f":"Table1_bw_feed_intake3638[[#This Row],[Mortality adjusted cumulative egg weight (g)]]*('Data tables'!$C$308)","v":{"$error":"#N/A"}}]
["Total",{"$f":" SUMIF(B60:B64,\"<>#N/A\")","v":0},{"$f":" SUMIF(C60:C64,\"<>#N/A\")","v":0},{"$f":" SUMIF(D60:D64,\"<>#N/A\")","v":0},{"$f":" SUMIF(E60:E64,\"<>#N/A\")","v":0},{"$f":" SUMIF(F60:F64,\"<>#N/A\")","v":0}]
[]
[]
["Table 5. Summary of Mass Balance "]
["Source: ","Dataset' Tables 2, 3, & 4"]
["This table summarises the calculations from Tables 2, 3, & 4. The P values calculated above are converted to P2O5 in B74 by dividing by 0.437 (as per the standard converison factor in Datatables)"]
[]
["Excretion mass balance","Total excreted element (kg/animal)","Fixed element by live animals (kg)","Element fixed by eggs (kg)","Ingested element (kg)"]
["N",{"$f":"E73-C73-D73","v":0},{"$f":"B52/1000","v":0},{"$f":"E65/1000","v":0},{"$f":"J39/1000","v":0}]
["P2O5",{"$f":"(E74-C74-D74)/0.437","v":0},{"$f":"C52/1000","v":0},{"$f":"F65/1000","v":0},{"$f":"K39/1000","v":0}]
[]
[]
["Table 6. Phytase"]
["Source: ","Performance Data', 'Diet input details' & 'Data tables' Table 5"]
[]
[]
["Excretion mass balance (before volatilisation losses) - N and P2O5 values compared to BAT AELs Excretion","Phytase Present?","Phytase Reduction Factor","Phytase Adjusted P excretion (kg)"]
["P2O5",{"$f":"'Diet input details'!D24","v":"Please select"},{"$f":"1-(12.2/100)","v":0.878},{"$f":"IF('Diet input details'!$D$24=\"Present\",(B74*C82),B74)","v":0}]
[]
[]
["Table 7. Excretion (kg/animal place/year)"]
["Source: ","N/A"]
["This table converts the excretion values presented in Tables 5 and 6 from kg per bird to kg/animal place/year.  The total nutrient excreted (from Table 5 in 'Dataset') is multiplied by cycles per year (from 'Flock input details')"]
[]
["Nutrient ","Intake (kg/animal place/year)","Excretion (kg/animal place/year)"]
["Nitrogen ",{"$f":"(J39*Table20[No. of cycles per year])/1000","v":{"$error":"#DIV/0!"}},{"$f":"(B73*Table20[No. of cycles per year])","v":{"$error":"#DIV/0!"}}]
["Phosphorus ",{"$f":"(K39*Table20[No. of cycles per year])/1000","v":{"$error":"#DIV/0!"}},{"$f":"(D82*Table20[No. of cycles per year])","v":{"$error":"#DIV/0!"}}]
["Feed",{"$f":"(I26*Table20[No. of cycles per year])/1000","v":{"$error":"#DIV/0!"}},"N/A"]
[]
["Table 8. Flock Per cycle/Per year values "]
["Source: ","N/A"]
["This table presents the intake and excreted values on a per cycle and per year basis.  These values are based off what has been calculated in the tables above and the days input to 'Flock input details'"]
[]
["Per cycle/year","Flock Feed Intake (t)","Flock Nitrogen Intake (t)","Flock Phosphorus Intake (t)","Flock Nitrogen Excretion (t)"," Flock Phosphorus Excretion (t)"]
["Per cycle",{"$f":"(I26*'Flock input details'!C5)/1000000","v":0},{"$f":"(J39*'Flock input details'!C5)/1000000","v":0},{"$f":"(K39*'Flock input details'!C5)/1000000","v":0},{"$f":"(B73*'Flock input details'!$C$5)/1000","v":0},{"$f":"(D82*'Flock input details'!C5)/1000","v":0}]
["Per year",{"$f":"B99*Table20[No. of cycles per year]","v":{"$error":"#DIV/0!"}},{"$f":"C99*Table20[No. of cycles per year]","v":{"$error":"#DIV/0!"}},{"$f":"D99*Table20[No. of cycles per year]","v":{"$error":"#DIV/0!"}},{"$f":"E99*Table20[No. of cycles per year]","v":{"$error":"#DIV/0!"}},{"$f":"F99*Table20[No. of cycles per year]","v":{"$error":"#DIV/0!"}}]
[]
[]
["Table 9. Liveweight Calcs"]
["Source: ","N/A"]
["This calculates the  weighted average bird weight based on bodyweight from 'Performance Data' and period in rations"]
[]
["Weight group","kg"]
["Weighted Ave. Bird weight/Cycle (kg)",{"$f":"(B14/3)/1000","v":0}]
["Liveweight/Cycle (kg)",{"$f":"B108*('Flock input details'!C5)","v":0}]
[]
[]
["Table 10. Cycles per year "]
["Source: ","Diet input details/Flock input details"]
["This table calcualtes the number of cycles per year, based on length of cycle and weeks empty between cycle in Diet input details and Flock input details.  This is used in Table 8 above, to work out excretion per year and per cycle"]
[]
["No. of cycles per year"]
[{"$f":"365/(((IF('Diet input details'!D20>0,'Diet input details'!D20,IF('Diet input details'!D19>0,'Diet input details'!D19,IF('Diet input details'!D18>0,'Diet input details'!D18,IF('Diet input details'!D17>0,'Diet input details'!D17,IF('Diet input details'!D16>0,'Diet input details'!D16,0))))-'Diet input details'!C16)+'Flock input details'!C6)*7))","v":{"$error":"#DIV/0!"}}]
[]
["Table 11. Mortality"]
["Source: ","Diet input details/Flock input details"]
["This table calcualtes the mortality rate per ration. This is used in tables 1b and 4 above."]
[]
["Ration","Mortality"]
["Ration 1",{"$f":"((-('Flock input details'!D18-'Flock input details'!C18))/'Flock input details'!E18)/'Flock input details'!C18","v":{"$error":"#VALUE!"}}]
["Ration 2",{"$f":"((-('Flock input details'!D19-'Flock input details'!C19))/'Flock input details'!E19)/'Flock input details'!C19","v":{"$error":"#VALUE!"}}]
["Ration 3",{"$f":"((-('Flock input details'!D20-'Flock input details'!C20))/'Flock input details'!E20)/'Flock input details'!C20","v":{"$error":"#VALUE!"}}]
["Ration 4",{"$f":"((-('Flock input details'!D21-'Flock input details'!C21))/'Flock input details'!E21)/'Flock input details'!C21","v":{"$error":"#VALUE!"}}]
["Ration 5",{"$f":"((-('Flock input details'!D22-'Flock input details'!C22))/'Flock input details'!E22)/'Flock input details'!C22","v":{"$error":"#VALUE!"}}]
[]
[]
["Table 12. Bodyweight Adjustment"]
["Source: ","N/A"]
["This calculates the % of the target bodyweight that the average bird in the system is reaching at clear"]
[]
["% of Target bodyweight"]
[{"$f":"IF('Flock input details'!C13>0,('Flock input details'!C13/'Flock input details'!D13),1)","v":1}]
[]
["Table 13. Age at clear"]
["Source: ","N/A"]
["This calculates the age in weeks of the flock at clear.  This is to be used to generate the target bodyweight at clear, which is presented in 'Flock input details'"]
[]
["Age at clear in weeks"]
[{"$f":"IF('Diet input details'!D20>0,'Diet input details'!D20,IF('Diet input details'!D19>0,'Diet input details'!D19,IF('Diet input details'!D18>0,'Diet input details'!D18,IF('Diet input details'!D17>0,'Diet input details'!D17,IF('Diet input details'!D16>0,'Diet input details'!D16,0)))))","v":0}]